Workbook

Sheet Instructions
A1: Affordability Ratio Calculator (ARC)
A2: Version Release Date: November 15, 2021
A4: Introduction This tool allows users to calculate values of the affordability ratio (AR) metric for representative households at the 20th and 50th percentiles of the income distribution,1 referred to as AR20 and AR50, respectively. The tool outputs results at several different levels of geographic specficity, depending on the specific type of AR metric that is of interest. AR can be calculated for a specific industry (electricity, gas, water, or communications), in which case only the essential utility bills associated with that industry are measured as a percentage of the representative households' income net of housing costs and other essential utility bills, or it can be measured for the entire bundle of essential utility bills, in which case the sum of the essential utility bills is expressed as a percentage of households' income net of housing costs. For more information on the methodology and data sources used to calculate this metric, please refer to the Affordability Metrics Framework Revised Staff Proposal.2 This tool identifies the essential service providers associated with each census block in the state of California, as well as the PUMA that the census block is associated with. Based on the essential usage bills (pre-populated, but can be overwritten by the user), as well as the income and housing costs for the representative household based on the PUMA that the census block belongs to, AR values are calculated for each census block. For census blocks where multiple service providers are present, the tool calculates AR values for each combination of possible providers. These census block-level results are then aggregated up to larger geographic areas and weighted average results are computed. 1 The AR metric is calculated for a representative household at a given point in the income distribution for a geographic area known as a Public Use Microdata Area (PUMA). This distribution of incomes is particular to each PUMA and is measured in the Census Bureau’s American Community Survey (ACS). PUMAs are “non-overlapping, statistical geographic areas that partition each state or equivalent entity into geographic areas containing no fewer than 100,000 people each.” There are currently 265 PUMAs in the state of California. By looking at a common income percentile across the different PUMAs in California, the AR metric characterizes the relative wealth of each PUMA to the others. More information on PUMAs can be found on the Census Bureau’s website:
A30: https://www.census.gov/programs-surveys/geography/guidance/geo-areas/pumas.html
A31: 2 https://docs.cpuc.ca.gov/PublishedDocs/Efile/G000/M325/K620/325620620.PDF
A33: Important Note: Do not add, delete, or move any rows or columns in this tool. This will break the macros.
A35: Recommendation for Optimizing Tool Performance This tool contains quite a bit of data and performs a large number of calculations. As such, it can sometimes take a few minutes to perform a task. Please be patient, particularly when running multi-year analyses. To minimize the number of times the tool needs to recalculate all of the formulas, it is highly recommended that users change the calculation settings in Microsoft Excel to "Manual". To do this, click on the "Formulas" menu and select the "Calculation Options" dropdown menu near the right hand side of the menu. If it is not already selected, change this setting to "Manual". Selecting this option means that cell formulas will not automatically re-calculate (for instance, if the essential usage bill is calculated based on an inflation formula and a prior year's value, changing the prior year's value will not automatically update the calculated value). However, the tool will recalculate all cells in the tool when either the single or multi-year analysis is run.
A50: Essential Usage Bill Input The main user-defined input to the ARC is the monthly amount households need to pay for an essential level of usage of electricity, natural gas, water, and communication services. Inputs can be specified for each year in the analysis period (base analysis year plus seven forecast years). The tool comes pre-populated with historical values for the base analysis year, and applies forecasted values of the US average of CPI-U to estimate essential usage bills during the forecast period. Users may overwrite the pre-populated values for any essential service provider for whatever portion of the analysis period that is desired.
A61: Essential Usage Bill Input Geographic Scale by Industry:
A62: Industry | B62: Geographic Scale of Input
A63: Electricity | B63: Utility/Climate Zone
A64: Gas | B64: Utility/Climate Zone
A65: Water | B65: Water System/Ratemaking Area
A66: Communications | B66: Area defined by combination of ILEC Voice and Lowest Cost Broadband
A68: Essential Usage Bill Input Instructions To overwrite the pre-populated essential usage bills, enter the values in the orange colored input tabs: "Electric Input", "Gas Input", "Water Input", and "Comm Input." For the "Electric Input" tab, users will need to specify the essential usage bills for basic service (columns D through K) and all-electric service (columns L through S) separately if any portion of the customers for that climate zone are on an all-electric rate (all-electric rate participation can be specified in column C). The tool will automatically turn the essential usage bill input cells blue if a formula is present, allowing for easy identification of cells that contain hard coded values (unshaded cells) as opposed to cells that contain an inflation calculation using a previous year's input as the basis (blue shaded cells). The tool comes pre-populated with 2019 values hard coded based on historical values, while forecast years use an inflation calculation. Tip: Do not override any cells shaded in gray. Please refer to Input Tabs Cell Color Legend below.
A84: Essential Usage Bill Input Tabs Cell Color Legend
B85: User Input (currently hard coded value, can be overwritten)
B86: User Input (currently calculated value, can be overwritten)
B87: Calculated or Static Cell (do not alter)
A89: Scenario Input This tool allows users to save and load scenarios once essential usage bills have been input. After inputting the desired essential usage bills in the industry-specific input tabs, select the "Scenario Input" tab and enter the desired name for the new scenario in cell C5. Then click on the "Save New Scenario" macro button. The essential usage bills associated with this scenario will be saved to a hidden tab and the name of the new scenario will be added to the list of scenarios saved in this workbook.
A103: The list of saved scenarios can be seen by selecting the dropdown menu in cell C6 of the same tab. The pre-populated values associated with the historical 2019 essential usage bills are saved to the tool as the scenario "2019 Base." Once additional scenarios are saved, they will be added to this dropdown list. Please note that users will still need to save the spreadsheet before closing the file in order to maintain the changes. Scenarios that have been saved previously can be loaded by selecting them from the dropdown menu in cell C6 and clicking on the "Load Selected Scenario" macro button. Doing this will overwrite any essential usage bills currently entered in the industry-specific input tabs.
A117: Scenario Calculation Once the user has finished entering the essential usage bill inputs (and saving the scenario, if so desired), the AR results can be calculated in two different ways: single year or multi-year analysis.
A121: Single Year Analysis To perform a single year analysis, select the year of interest in cell B2 of the "Scenario Input" tab and click on the "Calculate AR for Selected Year" macro button. The calculation may take a few minutes. Single year analysis will output the AR results in the output tabs (blue colored tabs) in the blue shaded cells on the left side. These results will reflect only the selected analysis year (which is displayed at the top of the output tabs for convenience).
A133: Multi-Year Analysis Multi-year analysis is performed by clicking on the "Calculate AR Results for All Years" macro button at the top of the "Scenario Input" tab. This macro runs the AR analysis for each year in the analysis period starting with the base year followed by each subsequent year. After the calculations are complete for each year, the AR values are copied over to the orange shaded cells on the right side of the blue output tabs and the next year's calculations begin. Because the tool is doing eight sets of AR calculations, it can take quite a bit of time to run. Please be patient. When the calculations are complete, the full set of results will be in the orange cells on the right side of each output tab.
A147: Please note that the multi-year analysis outputs (orange shaded cells in the outputs tabs) are only updated when the multi-year analysis is run. If a single year analysis is performed, those results will only be in the blue shaded cells on the left side of the output tabs, while the orange shaded cells will reflect the most recent multi-year analysis that was run. Tip: Please refer to Output Tabs Cell Color Legend below.
A154: Output Tabs Cell Color Legend
B155: AR results for single year analysis (based on analysis year selected in "Scenario Input")
B156: AR results for multi-year analysis
A158: Geographic Scale of Outputs The tool outpus the AR results in the blue output tabs at several different geographic scales depending on the given industry. For each industry, the more granular set of results also includes the estimated number of residential households that are located in each reporting area. These estimates are based on GIS analysis of Census data. They are intended to help the user understand how many customers would be affected by a change in affordability when evaluating results at this more granular level.
A165: Industry | B165: Geographic Scale of Output
A166: Electricity | B166: • Climate Zones broken down by PUMA (Electric PUMA-CZ Results) • Climate Zone (Electric CZ Results)
A167: Gas | B167: • Climate Zones broken down by PUMA (Gas PUMA-CZ Results) • Climate Zone (Gas CZ Results)
A168: Water | B168: • Water System/Ratemaking Area (Water Results)
A169: Communications | B169: • Area defined by combination of ILEC Voice and Lowest Broadband broken down by PUMA (Comm PUMA-Provider Results) • PUMA (Comm PUMA Results)
A170: Bundled (All Services Combined) | B170: • PUMA (PUMA Bundled AR Results)

Sheet Scenario Input
A1: Analysis Year | B1: 2026
Z2: Percentage point changes versus prior year
A4: Scenario Selector
B5: Name for New Scenario:
B6: Load Existing Scenario: | C6: 2019 Base
A8: Escalators applied to base year inputs (base year = 2019)
C9: 2020 | F9: 2021 | I9: 2022 | L9: 2023 | O9: 2024 | R9: 2025 | U9: 2026 | AA9: 2020 | AD9: 2021 | AG9: 2022 | AJ9: 2023 | AM9: 2024 | AP9: 2025 | AS9: 2026
A10: County ID | B10: MSA | C10: CPI-U | D10: CPI-W | E10: Shelter Escalator | F10: CPI-U | G10: CPI-W | H10: Shelter Escalator | I10: CPI-U | J10: CPI-W | K10: Shelter Escalator | L10: CPI-U | M10: CPI-W | N10: Shelter Escalator | O10: CPI-U | P10: CPI-W | Q10: Shelter Escalator | R10: CPI-U | S10: CPI-W | T10: Shelter Escalator | U10: CPI-U | V10: CPI-W | W10: Shelter Escalator | Z10: MSA | AA10: CPI-U | AB10: CPI-W | AC10: Shelter Escalator | AD10: CPI-U | AE10: CPI-W | AF10: Shelter Escalator | AG10: CPI-U | AH10: CPI-W | AI10: Shelter Escalator | AJ10: CPI-U | AK10: CPI-W | AL10: Shelter Escalator | AM10: CPI-U | AN10: CPI-W | AO10: Shelter Escalator | AP10: CPI-U | AQ10: CPI-W | AR10: Shelter Escalator | AS10: CPI-U | AT10: CPI-W | AU10: Shelter Escalator
A11: 037 | B11: LA | C11: =1+VLOOKUP($B11,$Z$11:$AU$15,2,FALSE)/100 -> 1.016696918 | D11: =1+VLOOKUP($B11,$Z$11:$AU$15,3,FALSE)/100 -> 1.016436071 | E11: =1+VLOOKUP($B11,$Z$11:$AU$15,4,FALSE)/100 -> 1.029573805 | F11: =C11*(1+VLOOKUP($B11,$Z$11:$AU$15,5,FALSE)/100) -> 1.043621095 | G11: =D11*(1+VLOOKUP($B11,$Z$11:$AU$15,6,FALSE)/100) -> 1.040862928 | H11: =E11*(1+VLOOKUP($B11,$Z$11:$AU$15,7,FALSE)/100) -> 1.053326399 | I11: =F11*(1+VLOOKUP($B11,$Z$11:$AU$15,8,FALSE)/100) -> 1.075843151 | J11: =G11*(1+VLOOKUP($B11,$Z$11:$AU$15,9,FALSE)/100) -> 1.074153715 | K11: =H11*(1+VLOOKUP($B11,$Z$11:$AU$15,10,FALSE)/100) -> 1.083129453 | L11: =I11*(1+VLOOKUP($B11,$Z$11:$AU$15,11,FALSE)/100) -> 1.108124552 | M11: =J11*(1+VLOOKUP($B11,$Z$11:$AU$15,12,FALSE)/100) -> 1.107048016 | N11: =K11*(1+VLOOKUP($B11,$Z$11:$AU$15,13,FALSE)/100) -> 1.119198317 | O11: =L11*(1+VLOOKUP($B11,$Z$11:$AU$15,14,FALSE)/100) -> 1.140564907 | P11: =M11*(1+VLOOKUP($B11,$Z$11:$AU$15,15,FALSE)/100) -> 1.139855042 | Q11: =N11*(1+VLOOKUP($B11,$Z$11:$AU$15,16,FALSE)/100) -> 1.160235319 | R11: =O11*(1+VLOOKUP($B11,$Z$11:$AU$15,17,FALSE)/100) -> 1.170980318 | S11: =P11*(1+VLOOKUP($B11,$Z$11:$AU$15,18,FALSE)/100) -> 1.170109057 | T11: =Q11*(1+VLOOKUP($B11,$Z$11:$AU$15,19,FALSE)/100) -> 1.195252468 | U11: =R11*(1+VLOOKUP($B11,$Z$11:$AU$15,20,FALSE)/100) -> 1.202206816 | V11: =S11*(1+VLOOKUP($B11,$Z$11:$AU$15,21,FALSE)/100) -> 1.201166073 | W11: =T11*(1+VLOOKUP($B11,$Z$11:$AU$15,22,FALSE)/100) -> 1.231326473 | Z11: LA | AA11: 1.669691771 | AB11: 1.643607105 | AC11: 2.957380524 | AD11: 2.648200933 | AE11: 2.403186764 | AF11: 2.30703163 | AG11: 3.087524403 | AH11: 3.198383397 | AI11: 2.829422556 | AJ11: 3.000567615 | AK11: 3.062345735 | AL11: 3.330060235 | AM11: 2.927500742 | AN11: 2.96346914 | AO11: 3.666642608 | AP11: =AVERAGE(AA11,AD11,AG11,AJ11,AM11) -> 2.666697093 | AQ11: =AVERAGE(AB11,AE11,AH11,AK11,AN11) -> 2.654198428 | AR11: 3.018107511 | AS11: =AP11 -> 2.666697093 | AT11: =AQ11 -> 2.654198428 | AU11: 3.018107511
A12: 059 | B12: LA | C12: =1+VLOOKUP($B12,$Z$11:$AU$15,2,FALSE)/100 -> 1.016696918 | D12: =1+VLOOKUP($B12,$Z$11:$AU$15,3,FALSE)/100 -> 1.016436071 | E12: =1+VLOOKUP($B12,$Z$11:$AU$15,4,FALSE)/100 -> 1.029573805 | F12: =C12*(1+VLOOKUP($B12,$Z$11:$AU$15,5,FALSE)/100) -> 1.043621095 | G12: =D12*(1+VLOOKUP($B12,$Z$11:$AU$15,6,FALSE)/100) -> 1.040862928 | H12: =E12*(1+VLOOKUP($B12,$Z$11:$AU$15,7,FALSE)/100) -> 1.053326399 | I12: =F12*(1+VLOOKUP($B12,$Z$11:$AU$15,8,FALSE)/100) -> 1.075843151 | J12: =G12*(1+VLOOKUP($B12,$Z$11:$AU$15,9,FALSE)/100) -> 1.074153715 | K12: =H12*(1+VLOOKUP($B12,$Z$11:$AU$15,10,FALSE)/100) -> 1.083129453 | L12: =I12*(1+VLOOKUP($B12,$Z$11:$AU$15,11,FALSE)/100) -> 1.108124552 | M12: =J12*(1+VLOOKUP($B12,$Z$11:$AU$15,12,FALSE)/100) -> 1.107048016 | N12: =K12*(1+VLOOKUP($B12,$Z$11:$AU$15,13,FALSE)/100) -> 1.119198317 | O12: =L12*(1+VLOOKUP($B12,$Z$11:$AU$15,14,FALSE)/100) -> 1.140564907 | P12: =M12*(1+VLOOKUP($B12,$Z$11:$AU$15,15,FALSE)/100) -> 1.139855042 | Q12: =N12*(1+VLOOKUP($B12,$Z$11:$AU$15,16,FALSE)/100) -> 1.160235319 | R12: =O12*(1+VLOOKUP($B12,$Z$11:$AU$15,17,FALSE)/100) -> 1.170980318 | S12: =P12*(1+VLOOKUP($B12,$Z$11:$AU$15,18,FALSE)/100) -> 1.170109057 | T12: =Q12*(1+VLOOKUP($B12,$Z$11:$AU$15,19,FALSE)/100) -> 1.195252468 | U12: =R12*(1+VLOOKUP($B12,$Z$11:$AU$15,20,FALSE)/100) -> 1.202206816 | V12: =S12*(1+VLOOKUP($B12,$Z$11:$AU$15,21,FALSE)/100) -> 1.201166073 | W12: =T12*(1+VLOOKUP($B12,$Z$11:$AU$15,22,FALSE)/100) -> 1.231326473 | Z12: Riverside | AA12: 1.994453013 | AB12: 2.139684932 | AC12: 3.63612696 | AD12: 3.40627975 | AE12: 2.685871294 | AF12: 2.754065125 | AG12: 3.412956817 | AH12: 3.458830474 | AI12: 2.94905388 | AJ12: 3.099973571 | AK12: 3.143629632 | AL12: 3.129079999 | AM12: 2.946910728 | AN12: 2.980336296 | AO12: 3.309106071 | AP12: =AVERAGE(AA12,AD12,AG12,AJ12,AM12) -> 2.972114776 | AQ12: =AVERAGE(AB12,AE12,AH12,AK12,AN12) -> 2.881670525 | AR12: =AVERAGE(AC12,AF12,AI12,AL12,AO12) -> 3.155486407 | AS12: =AP12 -> 2.972114776 | AT12: =AQ12 -> 2.881670525 | AU12: =AR12 -> 3.155486407
A13: 065 | B13: Riverside | C13: 1.01994453 | D13: 1.021396849 | E13: 1.03636127 | F13: 1.054686694 | G13: 1.048830254 | H13: 1.064903334 | I13: 1.090682696 | J13: 1.085107515 | K13: 1.096307907 | L13: 1.124493571 | M13: 1.119219276 | N13: 1.130612258 | O13: 1.157631393 | P13: 1.152575774 | Q13: 1.168025417 | R13: 1.192037526 | S13: 1.185789211 | T13: 1.204882301 | U13: 1.22746625 | V13: 1.219959749 | W13: 1.242902198 | Z13: SD | AA13: 1.501069089 | AB13: 1.687785624 | AC13: 2.396050166 | AD13: 2.511863992 | AE13: 1.921690062 | AF13: 1.857487943 | AG13: 2.98801757 | AH13: 3.096835204 | AI13: 2.624349117 | AJ13: 2.778364135 | AK13: 2.821489234 | AL13: 2.837873595 | AM13: 2.65375257 | AN13: 2.660837715 | AO13: 3.017899654 | AP13: 2.486613471 | AQ13: 2.437727568 | AR13: 2.546732095 | AS13: 2.486613471 | AT13: 2.437727568 | AU13: 2.546732095
A14: 071 | B14: Riverside | C14: 1.01994453 | D14: 1.021396849 | E14: 1.03636127 | F14: 1.054686694 | G14: 1.048830254 | H14: 1.064903334 | I14: 1.090682696 | J14: 1.085107515 | K14: 1.096307907 | L14: 1.124493571 | M14: 1.119219276 | N14: 1.130612258 | O14: 1.157631393 | P14: 1.152575774 | Q14: 1.168025417 | R14: 1.192037526 | S14: 1.185789211 | T14: 1.204882301 | U14: 1.22746625 | V14: 1.219959749 | W14: 1.242902198 | Z14: SF | AA14: 1.723581162 | AB14: 1.467539011 | AC14: 2.702197703 | AD14: 2.706115384 | AE14: 2.747113235 | AF14: 2.199374847 | AG14: 3.281855941 | AH14: 3.529212377 | AI14: 3.05117939 | AJ14: 3.410451698 | AK14: 3.484647671 | AL14: 3.798826763 | AM14: 3.40291348 | AN14: 3.371760046 | AO14: 4.103012347 | AP14: 2.904983533 | AQ14: 2.920054468 | AR14: 3.17091821 | AS14: 2.904983533 | AT14: 2.920054468 | AU14: 3.17091821
A15: 073 | B15: SD | C15: 1.015010691 | D15: 1.016877856 | E15: 1.023960502 | F15: 1.040506379 | G15: 1.036419097 | H15: 1.042980445 | I15: 1.071596892 | J15: 1.068515288 | K15: 1.070351893 | L15: 1.101369756 | M15: 1.098663332 | N15: 1.100727126 | O15: 1.130597384 | P15: 1.127896981 | Q15: 1.133945966 | R15: 1.158710971 | S15: 1.155392036 | T15: 1.162824532 | U15: 1.187523634 | V15: 1.183557346 | W15: 1.192438558 | Y15: US Avg. | Z15: Other | AA15: 1.191205568 | AB15: 1.176217873 | AC15: 2.481394395 | AD15: 1.92452884 | AE15: 2.06096819 | AF15: 2.200028664 | AG15: 2.489980129 | AH15: 2.534659823 | AI15: 2.542321255 | AJ15: 2.328389774 | AK15: 2.321490359 | AL15: 2.849748251 | AM15: 2.162273511 | AN15: 2.129897003 | AO15: 2.903132314 | AP15: 2.019275564 | AQ15: 2.04464665 | AR15: 2.595324976 | AS15: 2.019275564 | AT15: 2.04464665 | AU15: 2.595324976
A16: 001 | B16: SF | C16: 1.017235812 | D16: 1.01467539 | E16: 1.027021977 | F16: 1.044763386 | G16: 1.042549672 | H16: 1.04961004 | I16: 1.079051016 | J16: 1.079343464 | K16: 1.081635525 | L16: 1.115851529 | M16: 1.116954781 | N16: 1.122724985 | O16: 1.153822991 | P16: 1.154615816 | Q16: 1.16879053 | R16: 1.187341359 | S16: 1.188331227 | T16: 1.205851922 | U16: 1.22183343 | V16: 1.223031146 | W16: 1.2440885
A17: 013 | B17: SF | C17: 1.017235812 | D17: 1.01467539 | E17: 1.027021977 | F17: 1.044763386 | G17: 1.042549672 | H17: 1.04961004 | I17: 1.079051016 | J17: 1.079343464 | K17: 1.081635525 | L17: 1.115851529 | M17: 1.116954781 | N17: 1.122724985 | O17: 1.153822991 | P17: 1.154615816 | Q17: 1.16879053 | R17: 1.187341359 | S17: 1.188331227 | T17: 1.205851922 | U17: 1.22183343 | V17: 1.223031146 | W17: 1.2440885
A18: 041 | B18: SF | C18: 1.017235812 | D18: 1.01467539 | E18: 1.027021977 | F18: 1.044763386 | G18: 1.042549672 | H18: 1.04961004 | I18: 1.079051016 | J18: 1.079343464 | K18: 1.081635525 | L18: 1.115851529 | M18: 1.116954781 | N18: 1.122724985 | O18: 1.153822991 | P18: 1.154615816 | Q18: 1.16879053 | R18: 1.187341359 | S18: 1.188331227 | T18: 1.205851922 | U18: 1.22183343 | V18: 1.223031146 | W18: 1.2440885
A19: 075 | B19: SF | C19: 1.017235812 | D19: 1.01467539 | E19: 1.027021977 | F19: 1.044763386 | G19: 1.042549672 | H19: 1.04961004 | I19: 1.079051016 | J19: 1.079343464 | K19: 1.081635525 | L19: 1.115851529 | M19: 1.116954781 | N19: 1.122724985 | O19: 1.153822991 | P19: 1.154615816 | Q19: 1.16879053 | R19: 1.187341359 | S19: 1.188331227 | T19: 1.205851922 | U19: 1.22183343 | V19: 1.223031146 | W19: 1.2440885
A20: 081 | B20: SF | C20: 1.017235812 | D20: 1.01467539 | E20: 1.027021977 | F20: 1.044763386 | G20: 1.042549672 | H20: 1.04961004 | I20: 1.079051016 | J20: 1.079343464 | K20: 1.081635525 | L20: 1.115851529 | M20: 1.116954781 | N20: 1.122724985 | O20: 1.153822991 | P20: 1.154615816 | Q20: 1.16879053 | R20: 1.187341359 | S20: 1.188331227 | T20: 1.205851922 | U20: 1.22183343 | V20: 1.223031146 | W20: 1.2440885
A21: Other | B21: Other | C21: 1.011912056 | D21: 1.011762179 | E21: 1.024813944 | F21: 1.031386595 | G21: 1.032614275 | H21: 1.047360144 | I21: 1.057067916 | J21: 1.058787535 | K21: 1.073987404 | L21: 1.081680578 | M21: 1.083367185 | N21: 1.104593341 | O21: 1.10506947 | P21: 1.10644179 | Q21: 1.136661148 | R21: 1.127383868 | S21: 1.129064615 | T21: 1.166161198 | U21: 1.150148855 | V21: 1.152149997 | W21: 1.196426871
A24: Effective Escalators (based on selected analysis year)
A25: County ID | B25: MSA | C25: CPI-U | D25: CPI-W | E25: Shelter Escalator
A26: 037 | B26: LA | C26: =IF(selected_forecast_year=2019,1,IF(selected_forecast_year=2020,C11,IF(selected_forecast_year=2021,F11,IF(selected_forecast_year=2022,I11,IF(selected_forecast_year=2023,L11,IF(selected_forecast_year=2024,O11,IF(selected_forecast_year=2025,R11,U11))))))) -> 1.202206816 | D26: =IF(selected_forecast_year=2019,1,IF(selected_forecast_year=2020,D11,IF(selected_forecast_year=2021,G11,IF(selected_forecast_year=2022,J11,IF(selected_forecast_year=2023,M11,IF(selected_forecast_year=2024,P11,IF(selected_forecast_year=2025,S11,V11))))))) -> 1.201166073 | E26: =IF(selected_forecast_year=2019,1,IF(selected_forecast_year=2020,E11,IF(selected_forecast_year=2021,H11,IF(selected_forecast_year=2022,K11,IF(selected_forecast_year=2023,N11,IF(selected_forecast_year=2024,Q11,IF(selected_forecast_year=2025,T11,W11))))))) -> 1.231326473
A27: 059 | B27: LA | C27: 1.202206816 | D27: 1.201166073 | E27: 1.231326473
A28: 065 | B28: Riverside | C28: 1.22746625 | D28: 1.219959749 | E28: 1.242902198
A29: 071 | B29: Riverside | C29: 1.22746625 | D29: 1.219959749 | E29: 1.242902198
A30: 073 | B30: SD | C30: 1.187523634 | D30: 1.183557346 | E30: 1.192438558
A31: 001 | B31: SF | C31: 1.22183343 | D31: 1.223031146 | E31: 1.2440885
A32: 013 | B32: SF | C32: 1.22183343 | D32: 1.223031146 | E32: 1.2440885
A33: 041 | B33: SF | C33: 1.22183343 | D33: 1.223031146 | E33: 1.2440885
A34: 075 | B34: SF | C34: 1.22183343 | D34: 1.223031146 | E34: 1.2440885
A35: 081 | B35: SF | C35: 1.22183343 | D35: 1.223031146 | E35: 1.2440885
A36: Other | B36: Other | C36: 1.150148855 | D36: 1.152149997 | E36: 1.196426871

Sheet Electric Input
D1: Basic Service | L1: All-Electric Service | T1: Weighted Average
A2: Electric Provider and Climate Zone | B2: Regulated | C2: Percentage of Customers on All-Electric Rate | D2: 2019 Essential Usage Bill ($/month) | E2: 2020 Essential Usage Bill ($/month) | F2: 2021 Essential Usage Bill ($/month) | G2: 2022 Essential Usage Bill ($/month) | H2: 2023 Essential Usage Bill ($/month) | I2: 2024 Essential Usage Bill ($/month) | J2: 2025 Essential Usage Bill ($/month) | K2: 2026 Essential Usage Bill ($/month) | L2: 2019 Essential Usage Bill ($/month) | M2: 2020 Essential Usage Bill ($/month) | N2: 2021 Essential Usage Bill ($/month) | O2: 2022 Essential Usage Bill ($/month) | P2: 2023 Essential Usage Bill ($/month) | Q2: 2024 Essential Usage Bill ($/month) | R2: 2025 Essential Usage Bill ($/month) | S2: 2026 Essential Usage Bill ($/month) | T2: 2019 Essential Usage Bill ($/month) | U2: 2020 Essential Usage Bill ($/month) | V2: 2021 Essential Usage Bill ($/month) | W2: 2022 Essential Usage Bill ($/month) | X2: 2023 Essential Usage Bill ($/month) | Y2: 2024 Essential Usage Bill ($/month) | Z2: 2025 Essential Usage Bill ($/month) | AA2: 2026 Essential Usage Bill ($/month)
A3: Aha Macav Power Service | C3: 0 | D3: 45.71017027 | E3: =D3*(1+('Scenario Input'!$AA$15/100)) -> 46.25467236 | F3: =E3*(1+('Scenario Input'!$AD$15/100)) -> 47.14485687 | G3: =F3*(1+('Scenario Input'!$AG$15/100)) -> 48.31875444 | H3: =G3*(1+('Scenario Input'!$AJ$15/100)) -> 49.44380338 | I3: =H3*(1+('Scenario Input'!$AM$15/100)) -> 50.51291364 | J3: =I3*(1+('Scenario Input'!$AP$15/100)) -> 51.53290856 | K3: =J3*(1+('Scenario Input'!$AS$15/100)) -> 52.57349999 | L3: 45.71017027 | M3: =L3*(1+('Scenario Input'!$AA$15/100)) -> 46.25467236 | N3: =M3*(1+('Scenario Input'!$AD$15/100)) -> 47.14485687 | O3: =N3*(1+('Scenario Input'!$AG$15/100)) -> 48.31875444 | P3: =O3*(1+('Scenario Input'!$AJ$15/100)) -> 49.44380338 | Q3: =P3*(1+('Scenario Input'!$AM$15/100)) -> 50.51291364 | R3: =Q3*(1+('Scenario Input'!$AP$15/100)) -> 51.53290856 | S3: =R3*(1+('Scenario Input'!$AS$15/100)) -> 52.57349999 | T3: =(D3*(1-$C3))+(L3*$C3) -> 45.71017027 | U3: =(E3*(1-$C3))+(M3*$C3) -> 46.25467236 | V3: 47.14485687 | W3: 48.31875444 | X3: 49.44380338 | Y3: 50.51291364 | Z3: 51.53290856 | AA3: 52.57349999
A4: Anza Electric Coop Inc | C4: 0 | D4: 76 | E4: =D4*(1+('Scenario Input'!$AA$15/100)) -> 76.90531623 | F4: =E4*(1+('Scenario Input'!$AD$15/100)) -> 78.38538122 | G4: =F4*(1+('Scenario Input'!$AG$15/100)) -> 80.33716164 | H4: =G4*(1+('Scenario Input'!$AJ$15/100)) -> 82.20772389 | I4: =H4*(1+('Scenario Input'!$AM$15/100)) -> 83.98527973 | J4: =I4*(1+('Scenario Input'!$AP$15/100)) -> 85.68117396 | K4: =J4*(1+('Scenario Input'!$AS$15/100)) -> 87.41131297 | L4: 76 | M4: =L4*(1+('Scenario Input'!$AA$15/100)) -> 76.90531623 | N4: =M4*(1+('Scenario Input'!$AD$15/100)) -> 78.38538122 | O4: =N4*(1+('Scenario Input'!$AG$15/100)) -> 80.33716164 | P4: =O4*(1+('Scenario Input'!$AJ$15/100)) -> 82.20772389 | Q4: =P4*(1+('Scenario Input'!$AM$15/100)) -> 83.98527973 | R4: =Q4*(1+('Scenario Input'!$AP$15/100)) -> 85.68117396 | S4: =R4*(1+('Scenario Input'!$AS$15/100)) -> 87.41131297 | T4: =(D4*(1-$C4))+(L4*$C4) -> 76 | U4: =(E4*(1-$C4))+(M4*$C4) -> 76.90531623 | V4: =(F4*(1-$C4))+(N4*$C4) -> 78.38538122 | W4: =(G4*(1-$C4))+(O4*$C4) -> 80.33716164 | X4: =(H4*(1-$C4))+(P4*$C4) -> 82.20772389 | Y4: =(I4*(1-$C4))+(Q4*$C4) -> 83.98527973 | Z4: =(J4*(1-$C4))+(R4*$C4) -> 85.68117396 | AA4: =(K4*(1-$C4))+(S4*$C4) -> 87.41131297
A5: BVES 16 | B5: X | C5: 0.000616102273 | D5: 58.48 | E5: =D5*(1+('Scenario Input'!$AA$15/100)) -> 59.17661702 | F5: =E5*(1+('Scenario Input'!$AD$15/100)) -> 60.31548808 | G5: =F5*(1+('Scenario Input'!$AG$15/100)) -> 61.81733175 | H5: =G5*(1+('Scenario Input'!$AJ$15/100)) -> 63.25668018 | I5: =H5*(1+('Scenario Input'!$AM$15/100)) -> 64.62446262 | J5: =I5*(1+('Scenario Input'!$AP$15/100)) -> 65.9294086 | K5: =J5*(1+('Scenario Input'!$AS$15/100)) -> 67.26070503 | L5: 103.0419455 | M5: =L5*(1+('Scenario Input'!$AA$15/100)) -> 104.2693869 | N5: =M5*(1+('Scenario Input'!$AD$15/100)) -> 106.2760813 | O5: =N5*(1+('Scenario Input'!$AG$15/100)) -> 108.9223346 | P5: =O5*(1+('Scenario Input'!$AJ$15/100)) -> 111.4584711 | Q5: =P5*(1+('Scenario Input'!$AM$15/100)) -> 113.8685081 | R5: =Q5*(1+('Scenario Input'!$AP$15/100)) -> 116.1678271 | S5: =R5*(1+('Scenario Input'!$AS$15/100)) -> 118.5135756 | T5: 58.50745472 | U5: 59.20439877 | V5: 60.3438045 | W5: 61.84635324 | X5: 63.28637741 | Y5: 64.65480198 | Z5: 65.9603606 | AA5: 67.29228204
A6: City & County of San Francisco | C6: 0 | D6: 41.46545 | E6: =D6*(1+('Scenario Input'!$AA$15/100)) -> 41.95938875 | F6: =E6*(1+('Scenario Input'!$AD$15/100)) -> 42.76690929 | G6: =F6*(1+('Scenario Input'!$AG$15/100)) -> 43.83179683 | H6: =G6*(1+('Scenario Input'!$AJ$15/100)) -> 44.8523719 | I6: =H6*(1+('Scenario Input'!$AM$15/100)) -> 45.82220286 | J6: =I6*(1+('Scenario Input'!$AP$15/100)) -> 46.74747941 | K6: =J6*(1+('Scenario Input'!$AS$15/100)) -> 47.69143984 | L6: 41.46545 | M6: =L6*(1+('Scenario Input'!$AA$15/100)) -> 41.95938875 | N6: =M6*(1+('Scenario Input'!$AD$15/100)) -> 42.76690929 | O6: =N6*(1+('Scenario Input'!$AG$15/100)) -> 43.83179683 | P6: =O6*(1+('Scenario Input'!$AJ$15/100)) -> 44.8523719 | Q6: =P6*(1+('Scenario Input'!$AM$15/100)) -> 45.82220286 | R6: =Q6*(1+('Scenario Input'!$AP$15/100)) -> 46.74747941 | S6: =R6*(1+('Scenario Input'!$AS$15/100)) -> 47.69143984 | T6: 41.46545 | U6: 41.95938875 | V6: 42.76690929 | W6: 43.83179683 | X6: 44.8523719 | Y6: 45.82220286 | Z6: 46.74747941 | AA6: 47.69143984
A7: City of Alameda | C7: 0 | D7: 49.07865 | E7: =D7*(1+('Scenario Input'!$AA$15/100)) -> 49.66327761 | F7: =E7*(1+('Scenario Input'!$AD$15/100)) -> 50.61906171 | G7: =F7*(1+('Scenario Input'!$AG$15/100)) -> 51.87946629 | H7: =G7*(1+('Scenario Input'!$AJ$15/100)) -> 53.08742248 | I7: =H7*(1+('Scenario Input'!$AM$15/100)) -> 54.23531775 | J7: =I7*(1+('Scenario Input'!$AP$15/100)) -> 55.33047827 | K7: =J7*(1+('Scenario Input'!$AS$15/100)) -> 56.4477531 | L7: 49.07865 | M7: =L7*(1+('Scenario Input'!$AA$15/100)) -> 49.66327761 | N7: =M7*(1+('Scenario Input'!$AD$15/100)) -> 50.61906171 | O7: =N7*(1+('Scenario Input'!$AG$15/100)) -> 51.87946629 | P7: =O7*(1+('Scenario Input'!$AJ$15/100)) -> 53.08742248 | Q7: =P7*(1+('Scenario Input'!$AM$15/100)) -> 54.23531775 | R7: =Q7*(1+('Scenario Input'!$AP$15/100)) -> 55.33047827 | S7: =R7*(1+('Scenario Input'!$AS$15/100)) -> 56.4477531 | T7: 49.07865 | U7: 49.66327761 | V7: 50.61906171 | W7: 51.87946629 | X7: 53.08742248 | Y7: 54.23531775 | Z7: 55.33047827 | AA7: 56.4477531
A8: City of Anaheim - (CA) | C8: 0 | D8: 41.504 | E8: =D8*(1+('Scenario Input'!$AA$15/100)) -> 41.99839796 | F8: =E8*(1+('Scenario Input'!$AD$15/100)) -> 42.80666924 | G8: =F8*(1+('Scenario Input'!$AG$15/100)) -> 43.8725468 | H8: =G8*(1+('Scenario Input'!$AJ$15/100)) -> 44.89407069 | I8: =H8*(1+('Scenario Input'!$AM$15/100)) -> 45.86480329 | J8: =I8*(1+('Scenario Input'!$AP$15/100)) -> 46.79094006 | K8: =J8*(1+('Scenario Input'!$AS$15/100)) -> 47.73577807 | L8: 41.504 | M8: =L8*(1+('Scenario Input'!$AA$15/100)) -> 41.99839796 | N8: =M8*(1+('Scenario Input'!$AD$15/100)) -> 42.80666924 | O8: =N8*(1+('Scenario Input'!$AG$15/100)) -> 43.8725468 | P8: =O8*(1+('Scenario Input'!$AJ$15/100)) -> 44.89407069 | Q8: =P8*(1+('Scenario Input'!$AM$15/100)) -> 45.86480329 | R8: =Q8*(1+('Scenario Input'!$AP$15/100)) -> 46.79094006 | S8: =R8*(1+('Scenario Input'!$AS$15/100)) -> 47.73577807 | T8: 41.504 | U8: 41.99839796 | V8: 42.80666924 | W8: 43.8725468 | X8: 44.89407069 | Y8: 45.86480329 | Z8: 46.79094006 | AA8: 47.73577807
A9: City of Azusa | C9: 0 | D9: 33.075 | E9: =D9*(1+('Scenario Input'!$AA$15/100)) -> 33.46899124 | F9: =E9*(1+('Scenario Input'!$AD$15/100)) -> 34.11311163 | G9: =F9*(1+('Scenario Input'!$AG$15/100)) -> 34.96252133 | H9: =G9*(1+('Scenario Input'!$AJ$15/100)) -> 35.7765851 | I9: =H9*(1+('Scenario Input'!$AM$15/100)) -> 36.55017273 | J9: =I9*(1+('Scenario Input'!$AP$15/100)) -> 37.28822143 | K9: =J9*(1+('Scenario Input'!$AS$15/100)) -> 38.04117338 | L9: 33.075 | M9: =L9*(1+('Scenario Input'!$AA$15/100)) -> 33.46899124 | N9: =M9*(1+('Scenario Input'!$AD$15/100)) -> 34.11311163 | O9: =N9*(1+('Scenario Input'!$AG$15/100)) -> 34.96252133 | P9: =O9*(1+('Scenario Input'!$AJ$15/100)) -> 35.7765851 | Q9: =P9*(1+('Scenario Input'!$AM$15/100)) -> 36.55017273 | R9: =Q9*(1+('Scenario Input'!$AP$15/100)) -> 37.28822143 | S9: =R9*(1+('Scenario Input'!$AS$15/100)) -> 38.04117338 | T9: 33.075 | U9: 33.46899124 | V9: 34.11311163 | W9: 34.96252133 | X9: 35.7765851 | Y9: 36.55017273 | Z9: 37.28822143 | AA9: 38.04117338
A10: City of Banning - (CA) | C10: 0 | D10: 119.11197 | E10: =D10*(1+('Scenario Input'!$AA$15/100)) -> 120.5308384 | F10: =E10*(1+('Scenario Input'!$AD$15/100)) -> 122.8504892 | G10: =F10*(1+('Scenario Input'!$AG$15/100)) -> 125.9094419 | H10: =G10*(1+('Scenario Input'!$AJ$15/100)) -> 128.8411045 | I10: =H10*(1+('Scenario Input'!$AM$15/100)) -> 131.6270016 | J10: =I10*(1+('Scenario Input'!$AP$15/100)) -> 134.2849135 | K10: =J10*(1+('Scenario Input'!$AS$15/100)) -> 136.9964959 | L10: 119.11197 | M10: =L10*(1+('Scenario Input'!$AA$15/100)) -> 120.5308384 | N10: =M10*(1+('Scenario Input'!$AD$15/100)) -> 122.8504892 | O10: =N10*(1+('Scenario Input'!$AG$15/100)) -> 125.9094419 | P10: =O10*(1+('Scenario Input'!$AJ$15/100)) -> 128.8411045 | Q10: =P10*(1+('Scenario Input'!$AM$15/100)) -> 131.6270016 | R10: =Q10*(1+('Scenario Input'!$AP$15/100)) -> 134.2849135 | S10: =R10*(1+('Scenario Input'!$AS$15/100)) -> 136.9964959 | T10: 119.11197 | U10: 120.5308384 | V10: 122.8504892 | W10: 125.9094419 | X10: 128.8411045 | Y10: 131.6270016 | Z10: 134.2849135 | AA10: 136.9964959
A11: City of Biggs | C11: 0 | D11: 67.57 | E11: =D11*(1+('Scenario Input'!$AA$15/100)) -> 68.3748976 | F11: =E11*(1+('Scenario Input'!$AD$15/100)) -> 69.69079223 | G11: =F11*(1+('Scenario Input'!$AG$15/100)) -> 71.4260791 | H11: =G11*(1+('Scenario Input'!$AJ$15/100)) -> 73.08915663 | I11: =H11*(1+('Scenario Input'!$AM$15/100)) -> 74.6695441 | J11: =I11*(1+('Scenario Input'!$AP$15/100)) -> 76.17732796 | K11: =J11*(1+('Scenario Input'!$AS$15/100)) -> 77.71555813 | L11: 67.57 | M11: =L11*(1+('Scenario Input'!$AA$15/100)) -> 68.3748976 | N11: =M11*(1+('Scenario Input'!$AD$15/100)) -> 69.69079223 | O11: =N11*(1+('Scenario Input'!$AG$15/100)) -> 71.4260791 | P11: =O11*(1+('Scenario Input'!$AJ$15/100)) -> 73.08915663 | Q11: =P11*(1+('Scenario Input'!$AM$15/100)) -> 74.6695441 | R11: =Q11*(1+('Scenario Input'!$AP$15/100)) -> 76.17732796 | S11: =R11*(1+('Scenario Input'!$AS$15/100)) -> 77.71555813 | T11: 67.57 | U11: 68.3748976 | V11: 69.69079223 | W11: 71.4260791 | X11: 73.08915663 | Y11: 74.6695441 | Z11: 76.17732796 | AA11: 77.71555813
A12: City of Burbank Water and Power | C12: 0 | D12: 45.65 | E12: =D12*(1+('Scenario Input'!$AA$15/100)) -> 46.19378534 | F12: =E12*(1+('Scenario Input'!$AD$15/100)) -> 47.08279806 | G12: =F12*(1+('Scenario Input'!$AG$15/100)) -> 48.25515038 | H12: =G12*(1+('Scenario Input'!$AJ$15/100)) -> 49.37871837 | I12: =H12*(1+('Scenario Input'!$AM$15/100)) -> 50.44642131 | J12: =I12*(1+('Scenario Input'!$AP$15/100)) -> 51.46507357 | K12: =J12*(1+('Scenario Input'!$AS$15/100)) -> 52.50429523 | L12: 45.65 | M12: =L12*(1+('Scenario Input'!$AA$15/100)) -> 46.19378534 | N12: =M12*(1+('Scenario Input'!$AD$15/100)) -> 47.08279806 | O12: =N12*(1+('Scenario Input'!$AG$15/100)) -> 48.25515038 | P12: =O12*(1+('Scenario Input'!$AJ$15/100)) -> 49.37871837 | Q12: =P12*(1+('Scenario Input'!$AM$15/100)) -> 50.44642131 | R12: =Q12*(1+('Scenario Input'!$AP$15/100)) -> 51.46507357 | S12: =R12*(1+('Scenario Input'!$AS$15/100)) -> 52.50429523 | T12: 45.65 | U12: 46.19378534 | V12: 47.08279806 | W12: 48.25515038 | X12: 49.37871837 | Y12: 50.44642131 | Z12: 51.46507357 | AA12: 52.50429523
A13: City of Colton - (CA) | C13: 0 | D13: 23.075 | E13: =D13*(1+('Scenario Input'!$AA$15/100)) -> 23.34987068 | F13: =E13*(1+('Scenario Input'!$AD$15/100)) -> 23.79924568 | G13: =F13*(1+('Scenario Input'!$AG$15/100)) -> 24.39184217 | H13: =G13*(1+('Scenario Input'!$AJ$15/100)) -> 24.95977933 | I13: =H13*(1+('Scenario Input'!$AM$15/100)) -> 25.49947802 | J13: =I13*(1+('Scenario Input'!$AP$15/100)) -> 26.01438275 | K13: =J13*(1+('Scenario Input'!$AS$15/100)) -> 26.53968483 | L13: 23.075 | M13: =L13*(1+('Scenario Input'!$AA$15/100)) -> 23.34987068 | N13: =M13*(1+('Scenario Input'!$AD$15/100)) -> 23.79924568 | O13: =N13*(1+('Scenario Input'!$AG$15/100)) -> 24.39184217 | P13: =O13*(1+('Scenario Input'!$AJ$15/100)) -> 24.95977933 | Q13: =P13*(1+('Scenario Input'!$AM$15/100)) -> 25.49947802 | R13: =Q13*(1+('Scenario Input'!$AP$15/100)) -> 26.01438275 | S13: =R13*(1+('Scenario Input'!$AS$15/100)) -> 26.53968483 | T13: 23.075 | U13: 23.34987068 | V13: 23.79924568 | W13: 24.39184217 | X13: 24.95977933 | Y13: 25.49947802 | Z13: 26.01438275 | AA13: 26.53968483
A14: City of Corona - (CA) | C14: 0 | D14: 47.34054 | E14: =D14*(1+('Scenario Input'!$AA$15/100)) -> 47.90446315 | F14: =E14*(1+('Scenario Input'!$AD$15/100)) -> 48.82639836 | G14: =F14*(1+('Scenario Input'!$AG$15/100)) -> 50.04216597 | H14: =G14*(1+('Scenario Input'!$AJ$15/100)) -> 51.20734265 | I14: =H14*(1+('Scenario Input'!$AM$15/100)) -> 52.31458545 | J14: =I14*(1+('Scenario Input'!$AP$15/100)) -> 53.3709611 | K14: =J14*(1+('Scenario Input'!$AS$15/100)) -> 54.44866787 | L14: 47.34054 | M14: =L14*(1+('Scenario Input'!$AA$15/100)) -> 47.90446315 | N14: =M14*(1+('Scenario Input'!$AD$15/100)) -> 48.82639836 | O14: =N14*(1+('Scenario Input'!$AG$15/100)) -> 50.04216597 | P14: =O14*(1+('Scenario Input'!$AJ$15/100)) -> 51.20734265 | Q14: =P14*(1+('Scenario Input'!$AM$15/100)) -> 52.31458545 | R14: =Q14*(1+('Scenario Input'!$AP$15/100)) -> 53.3709611 | S14: =R14*(1+('Scenario Input'!$AS$15/100)) -> 54.44866787 | T14: 47.34054 | U14: 47.90446315 | V14: 48.82639836 | W14: 50.04216597 | X14: 51.20734265 | Y14: 52.31458545 | Z14: 53.3709611 | AA14: 54.44866787
A15: City of Glendale - (CA) | C15: 0 | D15: 57.3369 | E15: =D15*(1+('Scenario Input'!$AA$15/100)) -> 58.01990035 | F15: =E15*(1+('Scenario Input'!$AD$15/100)) -> 59.13651006 | G15: =F15*(1+('Scenario Input'!$AG$15/100)) -> 60.60899741 | H15: =G15*(1+('Scenario Input'!$AJ$15/100)) -> 62.02021111 | I15: =H15*(1+('Scenario Input'!$AM$15/100)) -> 63.3612577 | J15: =I15*(1+('Scenario Input'!$AP$15/100)) -> 64.6406961 | K15: =J15*(1+('Scenario Input'!$AS$15/100)) -> 65.94596988 | L15: 57.3369 | M15: =L15*(1+('Scenario Input'!$AA$15/100)) -> 58.01990035 | N15: =M15*(1+('Scenario Input'!$AD$15/100)) -> 59.13651006 | O15: =N15*(1+('Scenario Input'!$AG$15/100)) -> 60.60899741 | P15: =O15*(1+('Scenario Input'!$AJ$15/100)) -> 62.02021111 | Q15: =P15*(1+('Scenario Input'!$AM$15/100)) -> 63.3612577 | R15: =Q15*(1+('Scenario Input'!$AP$15/100)) -> 64.6406961 | S15: =R15*(1+('Scenario Input'!$AS$15/100)) -> 65.94596988 | T15: 57.3369 | U15: 58.01990035 | V15: 59.13651006 | W15: 60.60899741 | X15: 62.02021111 | Y15: 63.3612577 | Z15: 64.6406961 | AA15: 65.94596988
A16: City of Gridley | C16: 0 | D16: 94.143075 | E16: =D16*(1+('Scenario Input'!$AA$15/100)) -> 95.26451255 | F16: =E16*(1+('Scenario Input'!$AD$15/100)) -> 97.09790557 | G16: =F16*(1+('Scenario Input'!$AG$15/100)) -> 99.51562412 | H16: =G16*(1+('Scenario Input'!$AJ$15/100)) -> 101.8327357 | I16: =H16*(1+('Scenario Input'!$AM$15/100)) -> 104.034638 | J16: =I16*(1+('Scenario Input'!$AP$15/100)) -> 106.135384 | K16: =J16*(1+('Scenario Input'!$AS$15/100)) -> 108.2785499 | L16: 94.143075 | M16: =L16*(1+('Scenario Input'!$AA$15/100)) -> 95.26451255 | N16: =M16*(1+('Scenario Input'!$AD$15/100)) -> 97.09790557 | O16: =N16*(1+('Scenario Input'!$AG$15/100)) -> 99.51562412 | P16: =O16*(1+('Scenario Input'!$AJ$15/100)) -> 101.8327357 | Q16: =P16*(1+('Scenario Input'!$AM$15/100)) -> 104.034638 | R16: =Q16*(1+('Scenario Input'!$AP$15/100)) -> 106.135384 | S16: =R16*(1+('Scenario Input'!$AS$15/100)) -> 108.2785499 | T16: 94.143075 | U16: 95.26451255 | V16: 97.09790557 | W16: 99.51562412 | X16: 101.8327357 | Y16: 104.034638 | Z16: 106.135384 | AA16: 108.2785499
A17: City of Healdsburg - (CA) | C17: 0 | D17: 49.8184 | E17: =D17*(1+('Scenario Input'!$AA$15/100)) -> 50.41183955 | F17: =E17*(1+('Scenario Input'!$AD$15/100)) -> 51.38202995 | G17: =F17*(1+('Scenario Input'!$AG$15/100)) -> 52.66143228 | H17: =G17*(1+('Scenario Input'!$AJ$15/100)) -> 53.88759569 | I17: =H17*(1+('Scenario Input'!$AM$15/100)) -> 55.05279289 | J17: =I17*(1+('Scenario Input'!$AP$15/100)) -> 56.16446049 | K17: =J17*(1+('Scenario Input'!$AS$15/100)) -> 57.29857571 | L17: 49.8184 | M17: =L17*(1+('Scenario Input'!$AA$15/100)) -> 50.41183955 | N17: =M17*(1+('Scenario Input'!$AD$15/100)) -> 51.38202995 | O17: =N17*(1+('Scenario Input'!$AG$15/100)) -> 52.66143228 | P17: =O17*(1+('Scenario Input'!$AJ$15/100)) -> 53.88759569 | Q17: =P17*(1+('Scenario Input'!$AM$15/100)) -> 55.05279289 | R17: =Q17*(1+('Scenario Input'!$AP$15/100)) -> 56.16446049 | S17: =R17*(1+('Scenario Input'!$AS$15/100)) -> 57.29857571 | T17: 49.8184 | U17: 50.41183955 | V17: 51.38202995 | W17: 52.66143228 | X17: 53.88759569 | Y17: 55.05279289 | Z17: 56.16446049 | AA17: 57.29857571
A18: City of Industry | C18: 0 | D18: 39.4424 | E18: =D18*(1+('Scenario Input'!$AA$15/100)) -> 39.91224007 | F18: =E18*(1+('Scenario Input'!$AD$15/100)) -> 40.68036264 | G18: =F18*(1+('Scenario Input'!$AG$15/100)) -> 41.69329558 | H18: =G18*(1+('Scenario Input'!$AJ$15/100)) -> 42.66407801 | I18: =H18*(1+('Scenario Input'!$AM$15/100)) -> 43.58659207 | J18: =I18*(1+('Scenario Input'!$AP$15/100)) -> 44.46672547 | K18: =J18*(1+('Scenario Input'!$AS$15/100)) -> 45.36463119 | L18: 39.4424 | M18: =L18*(1+('Scenario Input'!$AA$15/100)) -> 39.91224007 | N18: =M18*(1+('Scenario Input'!$AD$15/100)) -> 40.68036264 | O18: =N18*(1+('Scenario Input'!$AG$15/100)) -> 41.69329558 | P18: =O18*(1+('Scenario Input'!$AJ$15/100)) -> 42.66407801 | Q18: =P18*(1+('Scenario Input'!$AM$15/100)) -> 43.58659207 | R18: =Q18*(1+('Scenario Input'!$AP$15/100)) -> 44.46672547 | S18: =R18*(1+('Scenario Input'!$AS$15/100)) -> 45.36463119 | T18: 39.4424 | U18: 39.91224007 | V18: 40.68036264 | W18: 41.69329558 | X18: 42.66407801 | Y18: 43.58659207 | Z18: 44.46672547 | AA18: 45.36463119
A19: City of Lodi - (CA) | C19: 0 | D19: 72.4608 | E19: =D19*(1+('Scenario Input'!$AA$15/100)) -> 73.32395708 | F19: =E19*(1+('Scenario Input'!$AD$15/100)) -> 74.73509779 | G19: =F19*(1+('Scenario Input'!$AG$15/100)) -> 76.59598687 | H19: =G19*(1+('Scenario Input'!$AJ$15/100)) -> 78.37943999 | I19: =H19*(1+('Scenario Input'!$AM$15/100)) -> 80.07421786 | J19: =I19*(1+('Scenario Input'!$AP$15/100)) -> 81.69113698 | K19: =J19*(1+('Scenario Input'!$AS$15/100)) -> 83.34070615 | L19: 72.4608 | M19: =L19*(1+('Scenario Input'!$AA$15/100)) -> 73.32395708 | N19: =M19*(1+('Scenario Input'!$AD$15/100)) -> 74.73509779 | O19: =N19*(1+('Scenario Input'!$AG$15/100)) -> 76.59598687 | P19: =O19*(1+('Scenario Input'!$AJ$15/100)) -> 78.37943999 | Q19: =P19*(1+('Scenario Input'!$AM$15/100)) -> 80.07421786 | R19: =Q19*(1+('Scenario Input'!$AP$15/100)) -> 81.69113698 | S19: =R19*(1+('Scenario Input'!$AS$15/100)) -> 83.34070615 | T19: 72.4608 | U19: 73.32395708 | V19: 74.73509779 | W19: 76.59598687 | X19: 78.37943999 | Y19: 80.07421786 | Z19: 81.69113698 | AA19: 83.34070615
A20: City of Lompoc - (CA) | C20: 0 | D20: 52.6225 | E20: =D20*(1+('Scenario Input'!$AA$15/100)) -> 53.24934215 | F20: =E20*(1+('Scenario Input'!$AD$15/100)) -> 54.2741411 | G20: =F20*(1+('Scenario Input'!$AG$15/100)) -> 55.62555643 | H20: =G20*(1+('Scenario Input'!$AJ$15/100)) -> 56.92073619 | I20: =H20*(1+('Scenario Input'!$AM$15/100)) -> 58.15151819 | J20: =I20*(1+('Scenario Input'!$AP$15/100)) -> 59.32575759 | K20: =J20*(1+('Scenario Input'!$AS$15/100)) -> 60.52370812 | L20: 52.6225 | M20: =L20*(1+('Scenario Input'!$AA$15/100)) -> 53.24934215 | N20: =M20*(1+('Scenario Input'!$AD$15/100)) -> 54.2741411 | O20: =N20*(1+('Scenario Input'!$AG$15/100)) -> 55.62555643 | P20: =O20*(1+('Scenario Input'!$AJ$15/100)) -> 56.92073619 | Q20: =P20*(1+('Scenario Input'!$AM$15/100)) -> 58.15151819 | R20: =Q20*(1+('Scenario Input'!$AP$15/100)) -> 59.32575759 | S20: =R20*(1+('Scenario Input'!$AS$15/100)) -> 60.52370812 | T20: 52.6225 | U20: 53.24934215 | V20: 54.2741411 | W20: 55.62555643 | X20: 56.92073619 | Y20: 58.15151819 | Z20: 59.32575759 | AA20: 60.52370812
A21: City of Moreno Valley - (CA) | C21: 0 | D21: 84.08468 | E21: =D21*(1+('Scenario Input'!$AA$15/100)) -> 85.08630139 | F21: =E21*(1+('Scenario Input'!$AD$15/100)) -> 86.7238118 | G21: =F21*(1+('Scenario Input'!$AG$15/100)) -> 88.88321748 | H21: =G21*(1+('Scenario Input'!$AJ$15/100)) -> 90.95276523 | I21: =H21*(1+('Scenario Input'!$AM$15/100)) -> 92.91941278 | J21: =I21*(1+('Scenario Input'!$AP$15/100)) -> 94.79571177 | K21: =J21*(1+('Scenario Input'!$AS$15/100)) -> 96.70989842 | L21: 84.11468 | M21: =L21*(1+('Scenario Input'!$AA$15/100)) -> 85.11665875 | N21: =M21*(1+('Scenario Input'!$AD$15/100)) -> 86.7547534 | O21: =N21*(1+('Scenario Input'!$AG$15/100)) -> 88.91492952 | P21: =O21*(1+('Scenario Input'!$AJ$15/100)) -> 90.98521564 | Q21: =P21*(1+('Scenario Input'!$AM$15/100)) -> 92.95256486 | R21: =Q21*(1+('Scenario Input'!$AP$15/100)) -> 94.82953329 | S21: =R21*(1+('Scenario Input'!$AS$15/100)) -> 96.74440288 | T21: 84.08468 | U21: 85.08630139 | V21: 86.7238118 | W21: 88.88321748 | X21: 90.95276523 | Y21: 92.91941278 | Z21: 94.79571177 | AA21: 96.70989842
A22: City of Needles | C22: 0 | D22: 0 | E22: =D22*(1+('Scenario Input'!$AA$15/100)) -> 0 | F22: =E22*(1+('Scenario Input'!$AD$15/100)) -> 0 | G22: =F22*(1+('Scenario Input'!$AG$15/100)) -> 0 | H22: =G22*(1+('Scenario Input'!$AJ$15/100)) -> 0 | I22: =H22*(1+('Scenario Input'!$AM$15/100)) -> 0 | J22: =I22*(1+('Scenario Input'!$AP$15/100)) -> 0 | K22: =J22*(1+('Scenario Input'!$AS$15/100)) -> 0 | L22: 0 | M22: =L22*(1+('Scenario Input'!$AA$15/100)) -> 0 | N22: =M22*(1+('Scenario Input'!$AD$15/100)) -> 0 | O22: =N22*(1+('Scenario Input'!$AG$15/100)) -> 0 | P22: =O22*(1+('Scenario Input'!$AJ$15/100)) -> 0 | Q22: =P22*(1+('Scenario Input'!$AM$15/100)) -> 0 | R22: =Q22*(1+('Scenario Input'!$AP$15/100)) -> 0 | S22: =R22*(1+('Scenario Input'!$AS$15/100)) -> 0 | T22: 0 | U22: 0 | V22: 0 | W22: 0 | X22: 0 | Y22: 0 | Z22: 0 | AA22: 0
A23: City of Palo Alto - (CA) | C23: 0 | D23: 56.03096 | E23: =D23*(1+('Scenario Input'!$AA$15/100)) -> 56.69840392 | F23: =E23*(1+('Scenario Input'!$AD$15/100)) -> 57.78958105 | G23: =F23*(1+('Scenario Input'!$AG$15/100)) -> 59.22853014 | H23: =G23*(1+('Scenario Input'!$AJ$15/100)) -> 60.60760117 | I23: =H23*(1+('Scenario Input'!$AM$15/100)) -> 61.91810328 | J23: =I23*(1+('Scenario Input'!$AP$15/100)) -> 63.16840041 | K23: =J23*(1+('Scenario Input'!$AS$15/100)) -> 64.44394448 | L23: 56.03096 | M23: =L23*(1+('Scenario Input'!$AA$15/100)) -> 56.69840392 | N23: =M23*(1+('Scenario Input'!$AD$15/100)) -> 57.78958105 | O23: =N23*(1+('Scenario Input'!$AG$15/100)) -> 59.22853014 | P23: =O23*(1+('Scenario Input'!$AJ$15/100)) -> 60.60760117 | Q23: =P23*(1+('Scenario Input'!$AM$15/100)) -> 61.91810328 | R23: =Q23*(1+('Scenario Input'!$AP$15/100)) -> 63.16840041 | S23: =R23*(1+('Scenario Input'!$AS$15/100)) -> 64.44394448 | T23: 56.03096 | U23: 56.69840392 | V23: 57.78958105 | W23: 59.22853014 | X23: 60.60760117 | Y23: 61.91810328 | Z23: 63.16840041 | AA23: 64.44394448
A24: City of Pasadena - (CA) | C24: 0 | D24: 57.77 | E24: =D24*(1+('Scenario Input'!$AA$15/100)) -> 58.45815946 | F24: =E24*(1+('Scenario Input'!$AD$15/100)) -> 59.58320359 | G24: =F24*(1+('Scenario Input'!$AG$15/100)) -> 61.06681352 | H24: =G24*(1+('Scenario Input'!$AJ$15/100)) -> 62.48868697 | I24: =H24*(1+('Scenario Input'!$AM$15/100)) -> 63.83986329 | J24: =I24*(1+('Scenario Input'!$AP$15/100)) -> 65.12896605 | K24: =J24*(1+('Scenario Input'!$AS$15/100)) -> 66.44409935 | L24: 57.77 | M24: =L24*(1+('Scenario Input'!$AA$15/100)) -> 58.45815946 | N24: =M24*(1+('Scenario Input'!$AD$15/100)) -> 59.58320359 | O24: =N24*(1+('Scenario Input'!$AG$15/100)) -> 61.06681352 | P24: =O24*(1+('Scenario Input'!$AJ$15/100)) -> 62.48868697 | Q24: =P24*(1+('Scenario Input'!$AM$15/100)) -> 63.83986329 | R24: =Q24*(1+('Scenario Input'!$AP$15/100)) -> 65.12896605 | S24: =R24*(1+('Scenario Input'!$AS$15/100)) -> 66.44409935 | T24: 57.77 | U24: 58.45815946 | V24: 59.58320359 | W24: 61.06681352 | X24: 62.48868697 | Y24: 63.83986329 | Z24: 65.12896605 | AA24: 66.44409935
A25: City of Rancho Cucamonga | C25: 0 | D25: 55.76500074 | E25: =D25*(1+('Scenario Input'!$AA$15/100)) -> 56.42927653 | F25: =E25*(1+('Scenario Input'!$AD$15/100)) -> 57.51527423 | G25: =F25*(1+('Scenario Input'!$AG$15/100)) -> 58.94739313 | H25: =G25*(1+('Scenario Input'!$AJ$15/100)) -> 60.3199182 | I25: =H25*(1+('Scenario Input'!$AM$15/100)) -> 61.62419982 | J25: =I25*(1+('Scenario Input'!$AP$15/100)) -> 62.86856222 | K25: =J25*(1+('Scenario Input'!$AS$15/100)) -> 64.13805174 | L25: 55.76500074 | M25: =L25*(1+('Scenario Input'!$AA$15/100)) -> 56.42927653 | N25: =M25*(1+('Scenario Input'!$AD$15/100)) -> 57.51527423 | O25: =N25*(1+('Scenario Input'!$AG$15/100)) -> 58.94739313 | P25: =O25*(1+('Scenario Input'!$AJ$15/100)) -> 60.3199182 | Q25: =P25*(1+('Scenario Input'!$AM$15/100)) -> 61.62419982 | R25: =Q25*(1+('Scenario Input'!$AP$15/100)) -> 62.86856222 | S25: =R25*(1+('Scenario Input'!$AS$15/100)) -> 64.13805174 | T25: 55.76500074 | U25: 56.42927653 | V25: 57.51527423 | W25: 58.94739313 | X25: 60.3199182 | Y25: 61.62419982 | Z25: 62.86856222 | AA25: 64.13805174
A26: City of Redding - (CA) | C26: 0 | D26: 77.28128 | E26: =D26*(1+('Scenario Input'!$AA$15/100)) -> 78.20185891 | F26: =E26*(1+('Scenario Input'!$AD$15/100)) -> 79.70687624 | G26: =F26*(1+('Scenario Input'!$AG$15/100)) -> 81.69156162 | H26: =G26*(1+('Scenario Input'!$AJ$15/100)) -> 83.59365959 | I26: =H26*(1+('Scenario Input'!$AM$15/100)) -> 85.40118314 | J26: =I26*(1+('Scenario Input'!$AP$15/100)) -> 87.12566837 | K26: =J26*(1+('Scenario Input'!$AS$15/100)) -> 88.8849757 | L26: 77.28128 | M26: =L26*(1+('Scenario Input'!$AA$15/100)) -> 78.20185891 | N26: =M26*(1+('Scenario Input'!$AD$15/100)) -> 79.70687624 | O26: =N26*(1+('Scenario Input'!$AG$15/100)) -> 81.69156162 | P26: =O26*(1+('Scenario Input'!$AJ$15/100)) -> 83.59365959 | Q26: =P26*(1+('Scenario Input'!$AM$15/100)) -> 85.40118314 | R26: =Q26*(1+('Scenario Input'!$AP$15/100)) -> 87.12566837 | S26: =R26*(1+('Scenario Input'!$AS$15/100)) -> 88.8849757 | T26: 77.28128 | U26: 78.20185891 | V26: 79.70687624 | W26: 81.69156162 | X26: 83.59365959 | Y26: 85.40118314 | Z26: 87.12566837 | AA26: 88.8849757
A27: City of Riverside - (CA) | C27: 0 | D27: 80.01151 | E27: =D27*(1+('Scenario Input'!$AA$15/100)) -> 80.96461156 | F27: =E27*(1+('Scenario Input'!$AD$15/100)) -> 82.52279886 | G27: =F27*(1+('Scenario Input'!$AG$15/100)) -> 84.57760016 | H27: =G27*(1+('Scenario Input'!$AJ$15/100)) -> 86.54689635 | I27: =H27*(1+('Scenario Input'!$AM$15/100)) -> 88.41827696 | J27: =I27*(1+('Scenario Input'!$AP$15/100)) -> 90.20368562 | K27: =J27*(1+('Scenario Input'!$AS$15/100)) -> 92.02514661 | L27: 80.01151 | M27: =L27*(1+('Scenario Input'!$AA$15/100)) -> 80.96461156 | N27: =M27*(1+('Scenario Input'!$AD$15/100)) -> 82.52279886 | O27: =N27*(1+('Scenario Input'!$AG$15/100)) -> 84.57760016 | P27: =O27*(1+('Scenario Input'!$AJ$15/100)) -> 86.54689635 | Q27: =P27*(1+('Scenario Input'!$AM$15/100)) -> 88.41827696 | R27: =Q27*(1+('Scenario Input'!$AP$15/100)) -> 90.20368562 | S27: =R27*(1+('Scenario Input'!$AS$15/100)) -> 92.02514661 | T27: 80.01151 | U27: 80.96461156 | V27: 82.52279886 | W27: 84.57760016 | X27: 86.54689635 | Y27: 88.41827696 | Z27: 90.20368562 | AA27: 92.02514661
A28: City of Roseville - (CA) | C28: 0 | D28: 72.55 | E28: =D28*(1+('Scenario Input'!$AA$15/100)) -> 73.41421964 | F28: =E28*(1+('Scenario Input'!$AD$15/100)) -> 74.82709747 | G28: =F28*(1+('Scenario Input'!$AG$15/100)) -> 76.69027733 | H28: =G28*(1+('Scenario Input'!$AJ$15/100)) -> 78.4759259 | I28: =H28*(1+('Scenario Input'!$AM$15/100)) -> 80.17279006 | J28: =I28*(1+('Scenario Input'!$AP$15/100)) -> 81.79169962 | K28: =J28*(1+('Scenario Input'!$AS$15/100)) -> 83.44329942 | L28: 72.55 | M28: =L28*(1+('Scenario Input'!$AA$15/100)) -> 73.41421964 | N28: =M28*(1+('Scenario Input'!$AD$15/100)) -> 74.82709747 | O28: =N28*(1+('Scenario Input'!$AG$15/100)) -> 76.69027733 | P28: =O28*(1+('Scenario Input'!$AJ$15/100)) -> 78.4759259 | Q28: =P28*(1+('Scenario Input'!$AM$15/100)) -> 80.17279006 | R28: =Q28*(1+('Scenario Input'!$AP$15/100)) -> 81.79169962 | S28: =R28*(1+('Scenario Input'!$AS$15/100)) -> 83.44329942 | T28: 72.55 | U28: 73.41421964 | V28: 74.82709747 | W28: 76.69027733 | X28: 78.4759259 | Y28: 80.17279006 | Z28: 81.79169962 | AA28: 83.44329942
A29: City of Santa Clara - (CA) | C29: 0 | D29: 36.96 | E29: =D29*(1+('Scenario Input'!$AA$15/100)) -> 37.40026958 | F29: =E29*(1+('Scenario Input'!$AD$15/100)) -> 38.12004855 | G29: =F29*(1+('Scenario Input'!$AG$15/100)) -> 39.06923019 | H29: =G29*(1+('Scenario Input'!$AJ$15/100)) -> 39.97891415 | I29: =H29*(1+('Scenario Input'!$AM$15/100)) -> 40.84336762 | J29: =I29*(1+('Scenario Input'!$AP$15/100)) -> 41.66810776 | K29: =J29*(1+('Scenario Input'!$AS$15/100)) -> 42.50950168 | L29: 36.96 | M29: =L29*(1+('Scenario Input'!$AA$15/100)) -> 37.40026958 | N29: =M29*(1+('Scenario Input'!$AD$15/100)) -> 38.12004855 | O29: =N29*(1+('Scenario Input'!$AG$15/100)) -> 39.06923019 | P29: =O29*(1+('Scenario Input'!$AJ$15/100)) -> 39.97891415 | Q29: =P29*(1+('Scenario Input'!$AM$15/100)) -> 40.84336762 | R29: =Q29*(1+('Scenario Input'!$AP$15/100)) -> 41.66810776 | S29: =R29*(1+('Scenario Input'!$AS$15/100)) -> 42.50950168 | T29: 36.96 | U29: 37.40026958 | V29: 38.12004855 | W29: 39.06923019 | X29: 39.97891415 | Y29: 40.84336762 | Z29: 41.66810776 | AA29: 42.50950168
A30: City of Shasta Lake - (CA) | C30: 0 | D30: 86.98768 | E30: =D30*(1+('Scenario Input'!$AA$15/100)) -> 88.02388209 | F30: =E30*(1+('Scenario Input'!$AD$15/100)) -> 89.71792708 | G30: =F30*(1+('Scenario Input'!$AG$15/100)) -> 91.95188564 | H30: =G30*(1+('Scenario Input'!$AJ$15/100)) -> 94.09288394 | I30: =H30*(1+('Scenario Input'!$AM$15/100)) -> 96.12742945 | J30: =I30*(1+('Scenario Input'!$AP$15/100)) -> 98.06850714 | K30: =J30*(1+('Scenario Input'!$AS$15/100)) -> 100.0487805 | L30: 86.98768 | M30: =L30*(1+('Scenario Input'!$AA$15/100)) -> 88.02388209 | N30: =M30*(1+('Scenario Input'!$AD$15/100)) -> 89.71792708 | O30: =N30*(1+('Scenario Input'!$AG$15/100)) -> 91.95188564 | P30: =O30*(1+('Scenario Input'!$AJ$15/100)) -> 94.09288394 | Q30: =P30*(1+('Scenario Input'!$AM$15/100)) -> 96.12742945 | R30: =Q30*(1+('Scenario Input'!$AP$15/100)) -> 98.06850714 | S30: =R30*(1+('Scenario Input'!$AS$15/100)) -> 100.0487805 | T30: 86.98768 | U30: 88.02388209 | V30: 89.71792708 | W30: 91.95188564 | X30: 94.09288394 | Y30: 96.12742945 | Z30: 98.06850714 | AA30: 100.0487805
A31: City of Ukiah - (CA) | C31: 0 | D31: 48.558 | E31: =D31*(1+('Scenario Input'!$AA$15/100)) -> 49.1364256 | F31: =E31*(1+('Scenario Input'!$AD$15/100)) -> 50.08207028 | G31: =F31*(1+('Scenario Input'!$AG$15/100)) -> 51.32910388 | H31: =G31*(1+('Scenario Input'!$AJ$15/100)) -> 52.52424549 | I31: =H31*(1+('Scenario Input'!$AM$15/100)) -> 53.65996333 | J31: =I31*(1+('Scenario Input'!$AP$15/100)) -> 54.74350586 | K31: =J31*(1+('Scenario Input'!$AS$15/100)) -> 55.8489281 | L31: 48.558 | M31: =L31*(1+('Scenario Input'!$AA$15/100)) -> 49.1364256 | N31: =M31*(1+('Scenario Input'!$AD$15/100)) -> 50.08207028 | O31: =N31*(1+('Scenario Input'!$AG$15/100)) -> 51.32910388 | P31: =O31*(1+('Scenario Input'!$AJ$15/100)) -> 52.52424549 | Q31: =P31*(1+('Scenario Input'!$AM$15/100)) -> 53.65996333 | R31: =Q31*(1+('Scenario Input'!$AP$15/100)) -> 54.74350586 | S31: =R31*(1+('Scenario Input'!$AS$15/100)) -> 55.8489281 | T31: 48.558 | U31: 49.1364256 | V31: 50.08207028 | W31: 51.32910388 | X31: 52.52424549 | Y31: 53.65996333 | Z31: 54.74350586 | AA31: 55.8489281
A32: City of Vernon | C32: 0 | D32: 35.7984 | E32: =D32*(1+('Scenario Input'!$AA$15/100)) -> 36.22483253 | F32: =E32*(1+('Scenario Input'!$AD$15/100)) -> 36.92198988 | G32: =F32*(1+('Scenario Input'!$AG$15/100)) -> 37.84134009 | H32: =G32*(1+('Scenario Input'!$AJ$15/100)) -> 38.72243399 | I32: =H32*(1+('Scenario Input'!$AM$15/100)) -> 39.55971892 | J32: =I32*(1+('Scenario Input'!$AP$15/100)) -> 40.35853866 | K32: =J32*(1+('Scenario Input'!$AS$15/100)) -> 41.17348877 | L32: 35.7984 | M32: =L32*(1+('Scenario Input'!$AA$15/100)) -> 36.22483253 | N32: =M32*(1+('Scenario Input'!$AD$15/100)) -> 36.92198988 | O32: =N32*(1+('Scenario Input'!$AG$15/100)) -> 37.84134009 | P32: =O32*(1+('Scenario Input'!$AJ$15/100)) -> 38.72243399 | Q32: =P32*(1+('Scenario Input'!$AM$15/100)) -> 39.55971892 | R32: =Q32*(1+('Scenario Input'!$AP$15/100)) -> 40.35853866 | S32: =R32*(1+('Scenario Input'!$AS$15/100)) -> 41.17348877 | T32: 35.7984 | U32: 36.22483253 | V32: 36.92198988 | W32: 37.84134009 | X32: 38.72243399 | Y32: 39.55971892 | Z32: 40.35853866 | AA32: 41.17348877
A33: Imperial Irrigation District | C33: 0 | D33: 55.76545245 | E33: =D33*(1+('Scenario Input'!$AA$15/100)) -> 56.42973362 | F33: =E33*(1+('Scenario Input'!$AD$15/100)) -> 57.51574012 | G33: =F33*(1+('Scenario Input'!$AG$15/100)) -> 58.94787062 | H33: =G33*(1+('Scenario Input'!$AJ$15/100)) -> 60.32040681 | I33: =H33*(1+('Scenario Input'!$AM$15/100)) -> 61.62469899 | J33: =I33*(1+('Scenario Input'!$AP$15/100)) -> 62.86907147 | K33: =J33*(1+('Scenario Input'!$AS$15/100)) -> 64.13857127 | L33: 55.76545245 | M33: =L33*(1+('Scenario Input'!$AA$15/100)) -> 56.42973362 | N33: =M33*(1+('Scenario Input'!$AD$15/100)) -> 57.51574012 | O33: =N33*(1+('Scenario Input'!$AG$15/100)) -> 58.94787062 | P33: =O33*(1+('Scenario Input'!$AJ$15/100)) -> 60.32040681 | Q33: =P33*(1+('Scenario Input'!$AM$15/100)) -> 61.62469899 | R33: =Q33*(1+('Scenario Input'!$AP$15/100)) -> 62.86907147 | S33: =R33*(1+('Scenario Input'!$AS$15/100)) -> 64.13857127 | T33: 55.76545245 | U33: 56.42973362 | V33: 57.51574012 | W33: 58.94787062 | X33: 60.32040681 | Y33: 61.62469899 | Z33: 62.86907147 | AA33: 64.13857127
A34: Kirkwood Meadows Public Utility District | C34: 0 | D34: 169.9815 | E34: =D34*(1+('Scenario Input'!$AA$15/100)) -> 172.0063291 | F34: =E34*(1+('Scenario Input'!$AD$15/100)) -> 175.3166405 | G34: =F34*(1+('Scenario Input'!$AG$15/100)) -> 179.68199 | H34: =G34*(1+('Scenario Input'!$AJ$15/100)) -> 183.8656871 | I34: =H34*(1+('Scenario Input'!$AM$15/100)) -> 187.8413661 | J34: =I34*(1+('Scenario Input'!$AP$15/100)) -> 191.6344009 | K34: =J34*(1+('Scenario Input'!$AS$15/100)) -> 195.5040276 | L34: 55.76545245 | M34: =L34*(1+('Scenario Input'!$AA$15/100)) -> 56.42973362 | N34: =M34*(1+('Scenario Input'!$AD$15/100)) -> 57.51574012 | O34: =N34*(1+('Scenario Input'!$AG$15/100)) -> 58.94787062 | P34: =O34*(1+('Scenario Input'!$AJ$15/100)) -> 60.32040681 | Q34: =P34*(1+('Scenario Input'!$AM$15/100)) -> 61.62469899 | R34: =Q34*(1+('Scenario Input'!$AP$15/100)) -> 62.86907147 | S34: =R34*(1+('Scenario Input'!$AS$15/100)) -> 64.13857127 | T34: 169.9815 | U34: 172.0063291 | V34: 175.3166405 | W34: 179.68199 | X34: 183.8656871 | Y34: 187.8413661 | Z34: 191.6344009 | AA34: 195.5040276
A35: Lassen Municipal Utility District | C35: 0 | D35: 73.114 | E35: =D35*(1+('Scenario Input'!$AA$15/100)) -> 73.98493804 | F35: =E35*(1+('Scenario Input'!$AD$15/100)) -> 75.40879951 | G35: =F35*(1+('Scenario Input'!$AG$15/100)) -> 77.28646363 | H35: =G35*(1+('Scenario Input'!$AJ$15/100)) -> 79.08599375 | I35: =H35*(1+('Scenario Input'!$AM$15/100)) -> 80.79604924 | J35: =I35*(1+('Scenario Input'!$AP$15/100)) -> 82.42754412 | K35: =J35*(1+('Scenario Input'!$AS$15/100)) -> 84.09198338 | L35: 73.114 | M35: =L35*(1+('Scenario Input'!$AA$15/100)) -> 73.98493804 | N35: =M35*(1+('Scenario Input'!$AD$15/100)) -> 75.40879951 | O35: =N35*(1+('Scenario Input'!$AG$15/100)) -> 77.28646363 | P35: =O35*(1+('Scenario Input'!$AJ$15/100)) -> 79.08599375 | Q35: =P35*(1+('Scenario Input'!$AM$15/100)) -> 80.79604924 | R35: =Q35*(1+('Scenario Input'!$AP$15/100)) -> 82.42754412 | S35: =R35*(1+('Scenario Input'!$AS$15/100)) -> 84.09198338 | T35: 73.114 | U35: 73.98493804 | V35: 75.40879951 | W35: 77.28646363 | X35: 79.08599375 | Y35: 80.79604924 | Z35: 82.42754412 | AA35: 84.09198338
A36: Lathrop Irrigation District | C36: 0 | D36: 82.9 | E36: =D36*(1+('Scenario Input'!$AA$15/100)) -> 83.88750942 | F36: =E36*(1+('Scenario Input'!$AD$15/100)) -> 85.50194873 | G36: =F36*(1+('Scenario Input'!$AG$15/100)) -> 87.63093026 | H36: =G36*(1+('Scenario Input'!$AJ$15/100)) -> 89.67131988 | I36: =H36*(1+('Scenario Input'!$AM$15/100)) -> 91.61025908 | J36: =I36*(1+('Scenario Input'!$AP$15/100)) -> 93.46012265 | K36: =J36*(1+('Scenario Input'!$AS$15/100)) -> 95.34734007 | L36: 82.9 | M36: =L36*(1+('Scenario Input'!$AA$15/100)) -> 83.88750942 | N36: =M36*(1+('Scenario Input'!$AD$15/100)) -> 85.50194873 | O36: =N36*(1+('Scenario Input'!$AG$15/100)) -> 87.63093026 | P36: =O36*(1+('Scenario Input'!$AJ$15/100)) -> 89.67131988 | Q36: =P36*(1+('Scenario Input'!$AM$15/100)) -> 91.61025908 | R36: =Q36*(1+('Scenario Input'!$AP$15/100)) -> 93.46012265 | S36: =R36*(1+('Scenario Input'!$AS$15/100)) -> 95.34734007 | T36: 82.9 | U36: 83.88750942 | V36: 85.50194873 | W36: 87.63093026 | X36: 89.67131988 | Y36: 91.61025908 | Z36: 93.46012265 | AA36: 95.34734007
A37: Liberty 16 | B37: X | C37: 0.0444844747 | D37: 79.87 | E37: =D37*(1+('Scenario Input'!$AA$15/100)) -> 80.82141589 | F37: =E37*(1+('Scenario Input'!$AD$15/100)) -> 82.37684735 | G37: =F37*(1+('Scenario Input'!$AG$15/100)) -> 84.42801447 | H37: =G37*(1+('Scenario Input'!$AJ$15/100)) -> 86.39382773 | I37: =H37*(1+('Scenario Input'!$AM$15/100)) -> 88.26189858 | J37: =I37*(1+('Scenario Input'!$AP$15/100)) -> 90.04414953 | K37: =J37*(1+('Scenario Input'!$AS$15/100)) -> 91.86238904 | L37: 110.1192033 | M37: =L37*(1+('Scenario Input'!$AA$15/100)) -> 111.4309494 | N37: =M37*(1+('Scenario Input'!$AD$15/100)) -> 113.5754702 | O37: =N37*(1+('Scenario Input'!$AG$15/100)) -> 116.4034768 | P37: =O37*(1+('Scenario Input'!$AJ$15/100)) -> 119.1138035 | Q37: =P37*(1+('Scenario Input'!$AM$15/100)) -> 121.6893697 | R37: =Q37*(1+('Scenario Input'!$AP$15/100)) -> 124.1466134 | S37: =R37*(1+('Scenario Input'!$AS$15/100)) -> 126.6534756 | T37: 81.21561992 | U37: 82.18306491 | V37: 83.76470169 | W37: 85.85042612 | X37: 87.84935866 | Y37: 89.74890207 | Z37: 91.56117972 | AA37: 93.41005225
A38: Los Angeles Dep of Water & Power | C38: 0 | D38: 138.18 | E38: =D38*(1+('Scenario Input'!$AA$15/100)) -> 139.8260079 | F38: =E38*(1+('Scenario Input'!$AD$15/100)) -> 142.5169997 | G38: =F38*(1+('Scenario Input'!$AG$15/100)) -> 146.0656447 | H38: =G38*(1+('Scenario Input'!$AJ$15/100)) -> 149.4666222 | I38: =H38*(1+('Scenario Input'!$AM$15/100)) -> 152.6984994 | J38: =I38*(1+('Scenario Input'!$AP$15/100)) -> 155.7819029 | K38: =J38*(1+('Scenario Input'!$AS$15/100)) -> 158.9275688 | L38: 138.18 | M38: =L38*(1+('Scenario Input'!$AA$15/100)) -> 139.8260079 | N38: =M38*(1+('Scenario Input'!$AD$15/100)) -> 142.5169997 | O38: =N38*(1+('Scenario Input'!$AG$15/100)) -> 146.0656447 | P38: =O38*(1+('Scenario Input'!$AJ$15/100)) -> 149.4666222 | Q38: =P38*(1+('Scenario Input'!$AM$15/100)) -> 152.6984994 | R38: =Q38*(1+('Scenario Input'!$AP$15/100)) -> 155.7819029 | S38: =R38*(1+('Scenario Input'!$AS$15/100)) -> 158.9275688 | T38: 138.18 | U38: 139.8260079 | V38: 142.5169997 | W38: 146.0656447 | X38: 149.4666222 | Y38: 152.6984994 | Z38: 155.7819029 | AA38: 158.9275688
A39: Merced Irrigation District | C39: 0 | D39: 55.355 | E39: =D39*(1+('Scenario Input'!$AA$15/100)) -> 56.01439184 | F39: =E39*(1+('Scenario Input'!$AD$15/100)) -> 57.09240497 | G39: =F39*(1+('Scenario Input'!$AG$15/100)) -> 58.51399451 | H39: =G39*(1+('Scenario Input'!$AJ$15/100)) -> 59.87642837 | I39: =H39*(1+('Scenario Input'!$AM$15/100)) -> 61.17112052 | J39: =I39*(1+('Scenario Input'!$AP$15/100)) -> 62.40633401 | K39: =J39*(1+('Scenario Input'!$AS$15/100)) -> 63.66648986 | L39: 55.355 | M39: =L39*(1+('Scenario Input'!$AA$15/100)) -> 56.01439184 | N39: =M39*(1+('Scenario Input'!$AD$15/100)) -> 57.09240497 | O39: =N39*(1+('Scenario Input'!$AG$15/100)) -> 58.51399451 | P39: =O39*(1+('Scenario Input'!$AJ$15/100)) -> 59.87642837 | Q39: =P39*(1+('Scenario Input'!$AM$15/100)) -> 61.17112052 | R39: =Q39*(1+('Scenario Input'!$AP$15/100)) -> 62.40633401 | S39: =R39*(1+('Scenario Input'!$AS$15/100)) -> 63.66648986 | T39: 55.355 | U39: 56.01439184 | V39: 57.09240497 | W39: 58.51399451 | X39: 59.87642837 | Y39: 61.17112052 | Z39: 62.40633401 | AA39: 63.66648986
A40: Modesto Irrigation District | C40: 0 | D40: 86.25 | E40: =D40*(1+('Scenario Input'!$AA$15/100)) -> 87.2774148 | F40: =E40*(1+('Scenario Input'!$AD$15/100)) -> 88.95709382 | G40: =F40*(1+('Scenario Input'!$AG$15/100)) -> 91.17210778 | H40: =G40*(1+('Scenario Input'!$AJ$15/100)) -> 93.29494981 | I40: =H40*(1+('Scenario Input'!$AM$15/100)) -> 95.3122418 | J40: =I40*(1+('Scenario Input'!$AP$15/100)) -> 97.23685861 | K40: =J40*(1+('Scenario Input'!$AS$15/100)) -> 99.20033874 | L40: 86.25 | M40: =L40*(1+('Scenario Input'!$AA$15/100)) -> 87.2774148 | N40: =M40*(1+('Scenario Input'!$AD$15/100)) -> 88.95709382 | O40: =N40*(1+('Scenario Input'!$AG$15/100)) -> 91.17210778 | P40: =O40*(1+('Scenario Input'!$AJ$15/100)) -> 93.29494981 | Q40: =P40*(1+('Scenario Input'!$AM$15/100)) -> 95.3122418 | R40: =Q40*(1+('Scenario Input'!$AP$15/100)) -> 97.23685861 | S40: =R40*(1+('Scenario Input'!$AS$15/100)) -> 99.20033874 | T40: 86.25 | U40: 87.2774148 | V40: 88.95709382 | W40: 91.17210778 | X40: 93.29494981 | Y40: 95.3122418 | Z40: 97.23685861 | AA40: 99.20033874
A41: PacCorp DEL NORTE | B41: X | C41: 0.7762004573 | D41: 109.64 | E41: =D41*(1+('Scenario Input'!$AA$15/100)) -> 110.9460378 | F41: =E41*(1+('Scenario Input'!$AD$15/100)) -> 113.0812263 | G41: =F41*(1+('Scenario Input'!$AG$15/100)) -> 115.8969263 | H41: =G41*(1+('Scenario Input'!$AJ$15/100)) -> 118.5954585 | I41: =H41*(1+('Scenario Input'!$AM$15/100)) -> 121.1598167 | J41: =I41*(1+('Scenario Input'!$AP$15/100)) -> 123.6063673 | K41: =J41*(1+('Scenario Input'!$AS$15/100)) -> 126.1023205 | L41: 137.5312077 | M41: =L41*(1+('Scenario Input'!$AA$15/100)) -> 139.1694871 | N41: =M41*(1+('Scenario Input'!$AD$15/100)) -> 141.847844 | O41: =N41*(1+('Scenario Input'!$AG$15/100)) -> 145.3798272 | P41: =O41*(1+('Scenario Input'!$AJ$15/100)) -> 148.7648362 | Q41: =P41*(1+('Scenario Input'!$AM$15/100)) -> 151.9815388 | R41: =Q41*(1+('Scenario Input'!$AP$15/100)) -> 155.0504649 | S41: =R41*(1+('Scenario Input'!$AS$15/100)) -> 158.1813611 | T41: 131.2891682 | U41: 132.8530921 | V41: 135.4098881 | W41: 138.7815674 | X41: 142.0129433 | Y41: 145.0836515 | Z41: 148.0132902 | AA41: 151.0020864
A42: PacCorp NON-DEL NORTE | B42: X | C42: 0.5552011204 | D42: 98.68 | E42: =D42*(1+('Scenario Input'!$AA$15/100)) -> 99.85548165 | F42: =E42*(1+('Scenario Input'!$AD$15/100)) -> 101.7772292 | G42: =F42*(1+('Scenario Input'!$AG$15/100)) -> 104.311462 | H42: =G42*(1+('Scenario Input'!$AJ$15/100)) -> 106.7402394 | I42: =H42*(1+('Scenario Input'!$AM$15/100)) -> 109.0482553 | J42: =I42*(1+('Scenario Input'!$AP$15/100)) -> 111.2502401 | K42: =J42*(1+('Scenario Input'!$AS$15/100)) -> 113.496689 | L42: 129.6479223 | M42: =L42*(1+('Scenario Input'!$AA$15/100)) -> 131.1922956 | N42: =M42*(1+('Scenario Input'!$AD$15/100)) -> 133.7171291 | O42: =N42*(1+('Scenario Input'!$AG$15/100)) -> 137.0466591 | P42: =O42*(1+('Scenario Input'!$AJ$15/100)) -> 140.2376395 | Q42: =P42*(1+('Scenario Input'!$AM$15/100)) -> 143.2699608 | R42: =Q42*(1+('Scenario Input'!$AP$15/100)) -> 146.1629761 | S42: =R42*(1+('Scenario Input'!$AS$15/100)) -> 149.1144094 | T42: 115.8734252 | U42: 117.2537158 | V42: 119.5102974 | W42: 122.4860801 | X42: 125.3380334 | Y42: 128.0481845 | Z42: 130.6338302 | AA42: 133.2716873
A43: PG&E P | B43: X | C43: 0.5441198326 | D43: 85 | E43: =D43*(1+('Scenario Input'!$AA$15/100)) -> 86.01252473 | F43: =E43*(1+('Scenario Input'!$AD$15/100)) -> 87.66786058 | G43: =F43*(1+('Scenario Input'!$AG$15/100)) -> 89.85077289 | H43: =G43*(1+('Scenario Input'!$AJ$15/100)) -> 91.94284909 | I43: =H43*(1+('Scenario Input'!$AM$15/100)) -> 93.93090496 | J43: =I43*(1+('Scenario Input'!$AP$15/100)) -> 95.82762878 | K43: =J43*(1+('Scenario Input'!$AS$15/100)) -> 97.76265267 | L43: 154.505012 | M43: =L43*(1+('Scenario Input'!$AA$15/100)) -> 156.3454843 | N43: =M43*(1+('Scenario Input'!$AD$15/100)) -> 159.3543982 | O43: =N43*(1+('Scenario Input'!$AG$15/100)) -> 163.3222911 | P43: =O43*(1+('Scenario Input'!$AJ$15/100)) -> 167.1250706 | Q43: =P43*(1+('Scenario Input'!$AM$15/100)) -> 170.7387718 | R43: =Q43*(1+('Scenario Input'!$AP$15/100)) -> 174.1864581 | S43: =R43*(1+('Scenario Input'!$AS$15/100)) -> 177.7037626 | T43: 122.8190555 | U43: 124.2820829 | V43: 126.6739275 | W43: 129.8280831 | X43: 132.8509869 | Y43: 135.7235886 | Z43: 138.4642218 | AA43: 141.260196
A44: PG&E Q | B44: X | C44: 0.5102855388 | D44: 76.22 | E44: =D44*(1+('Scenario Input'!$AA$15/100)) -> 77.12793688 | F44: =E44*(1+('Scenario Input'!$AD$15/100)) -> 78.61228627 | G44: =F44*(1+('Scenario Input'!$AG$15/100)) -> 80.56971658 | H44: =G44*(1+('Scenario Input'!$AJ$15/100)) -> 82.44569362 | I44: =H44*(1+('Scenario Input'!$AM$15/100)) -> 84.22839502 | J44: =I44*(1+('Scenario Input'!$AP$15/100)) -> 85.92919841 | K44: =J44*(1+('Scenario Input'!$AS$15/100)) -> 87.66434572 | L44: 136.1031072 | M44: =L44*(1+('Scenario Input'!$AA$15/100)) -> 137.724375 | N44: =M44*(1+('Scenario Input'!$AD$15/100)) -> 140.3749203 | O44: =N44*(1+('Scenario Input'!$AG$15/100)) -> 143.8702279 | P44: =O44*(1+('Scenario Input'!$AJ$15/100)) -> 147.2200876 | Q44: =P44*(1+('Scenario Input'!$AM$15/100)) -> 150.4033886 | R44: =Q44*(1+('Scenario Input'!$AP$15/100)) -> 153.4404475 | S44: =R44*(1+('Scenario Input'!$AS$15/100)) -> 156.5388329 | T44: 106.7774836 | U44: 108.049423 | V44: 110.1288653 | W44: 112.8710521 | X44: 115.4991302 | Y44: 117.9965373 | Z44: 120.3792125 | AA44: 122.8100005
A45: PG&E R | B45: X | C45: 0.1291489707 | D45: 90.63 | E45: =D45*(1+('Scenario Input'!$AA$15/100)) -> 91.70958961 | F45: =E45*(1+('Scenario Input'!$AD$15/100)) -> 93.47456711 | G45: =F45*(1+('Scenario Input'!$AG$15/100)) -> 95.80206525 | H45: =G45*(1+('Scenario Input'!$AJ$15/100)) -> 98.03271074 | I45: =H45*(1+('Scenario Input'!$AM$15/100)) -> 100.1524461 | J45: =I45*(1+('Scenario Input'!$AP$15/100)) -> 102.1748 | K45: =J45*(1+('Scenario Input'!$AS$15/100)) -> 104.2379907 | L45: 167.4880852 | M45: =L45*(1+('Scenario Input'!$AA$15/100)) -> 169.4832125 | N45: =M45*(1+('Scenario Input'!$AD$15/100)) -> 172.7449659 | O45: =N45*(1+('Scenario Input'!$AG$15/100)) -> 177.0462812 | P45: =O45*(1+('Scenario Input'!$AJ$15/100)) -> 181.1686087 | Q45: =P45*(1+('Scenario Input'!$AM$15/100)) -> 185.0859695 | R45: =Q45*(1+('Scenario Input'!$AP$15/100)) -> 188.8233653 | S45: =R45*(1+('Scenario Input'!$AS$15/100)) -> 192.6362293 | T45: 100.5561426 | U45: 101.753973 | V45: 103.7122575 | W45: 106.2946721 | X45: 108.7696264 | Y45: 111.1215232 | Z45: 113.365373 | AA45: 115.6545323
A46: PG&E S | B46: X | C46: 0.1158736851 | D46: 84.05 | E46: =D46*(1+('Scenario Input'!$AA$15/100)) -> 85.05120828 | F46: =E46*(1+('Scenario Input'!$AD$15/100)) -> 86.68804331 | G46: =F46*(1+('Scenario Input'!$AG$15/100)) -> 88.84655836 | H46: =G46*(1+('Scenario Input'!$AJ$15/100)) -> 90.91525254 | I46: =H46*(1+('Scenario Input'!$AM$15/100)) -> 92.88108897 | J46: =I46*(1+('Scenario Input'!$AP$15/100)) -> 94.7566141 | K46: =J46*(1+('Scenario Input'!$AS$15/100)) -> 96.67001125 | L46: 149.7659192 | M46: =L46*(1+('Scenario Input'!$AA$15/100)) -> 151.5499392 | N46: =M46*(1+('Scenario Input'!$AD$15/100)) -> 154.4665615 | O46: =N46*(1+('Scenario Input'!$AG$15/100)) -> 158.3127481 | P46: =O46*(1+('Scenario Input'!$AJ$15/100)) -> 161.998886 | Q46: =P46*(1+('Scenario Input'!$AM$15/100)) -> 165.501745 | R46: =Q46*(1+('Scenario Input'!$AP$15/100)) -> 168.8436813 | S46: =R46*(1+('Scenario Input'!$AS$15/100)) -> 172.2531005 | T46: 91.66474573 | U46: 92.75666128 | V46: 94.54178998 | W46: 96.89586176 | X46: 99.1519751 | Y46: 101.295912 | Z46: 103.3413556 | AA46: 105.4281023
A47: PG&E T | B47: X | C47: 0.1659234726 | D47: 51.87 | E47: =D47*(1+('Scenario Input'!$AA$15/100)) -> 52.48787833 | F47: =E47*(1+('Scenario Input'!$AD$15/100)) -> 53.49802268 | G47: =F47*(1+('Scenario Input'!$AG$15/100)) -> 54.83011282 | H47: =G47*(1+('Scenario Input'!$AJ$15/100)) -> 56.10677156 | I47: =H47*(1+('Scenario Input'!$AM$15/100)) -> 57.31995342 | J47: =I47*(1+('Scenario Input'!$AP$15/100)) -> 58.47740123 | K47: =J47*(1+('Scenario Input'!$AS$15/100)) -> 59.6582211 | L47: 76.9253078 | M47: =L47*(1+('Scenario Input'!$AA$15/100)) -> 77.84164635 | N47: =M47*(1+('Scenario Input'!$AD$15/100)) -> 79.33973128 | O47: =N47*(1+('Scenario Input'!$AG$15/100)) -> 81.31527483 | P47: =O47*(1+('Scenario Input'!$AJ$15/100)) -> 83.20861137 | Q47: =P47*(1+('Scenario Input'!$AM$15/100)) -> 85.00780913 | R47: =Q47*(1+('Scenario Input'!$AP$15/100)) -> 86.72435105 | S47: =R47*(1+('Scenario Input'!$AS$15/100)) -> 88.47555468 | T47: 56.02726368 | U47: 56.69466356 | V47: 57.78576871 | W47: 59.22462287 | X47: 60.60360293 | Y47: 61.91401859 | Z47: 63.16423324 | AA47: 64.43969316
A48: PG&E V | B48: X | C48: 0.5883493847 | D48: 56.93 | E48: =D48*(1+('Scenario Input'!$AA$15/100)) -> 57.60815333 | F48: =E48*(1+('Scenario Input'!$AD$15/100)) -> 58.71683886 | G48: =F48*(1+('Scenario Input'!$AG$15/100)) -> 60.17887647 | H48: =G48*(1+('Scenario Input'!$AJ$15/100)) -> 61.58007528 | I48: =H48*(1+('Scenario Input'!$AM$15/100)) -> 62.91160494 | J48: =I48*(1+('Scenario Input'!$AP$15/100)) -> 64.1819636 | K48: =J48*(1+('Scenario Input'!$AS$15/100)) -> 65.47797431 | L48: 101.5296825 | M48: =L48*(1+('Scenario Input'!$AA$15/100)) -> 102.7391097 | N48: =M48*(1+('Scenario Input'!$AD$15/100)) -> 104.7163535 | O48: =N48*(1+('Scenario Input'!$AG$15/100)) -> 107.3237699 | P48: =O48*(1+('Scenario Input'!$AJ$15/100)) -> 109.8226856 | Q48: =P48*(1+('Scenario Input'!$AM$15/100)) -> 112.1973524 | R48: =Q48*(1+('Scenario Input'!$AP$15/100)) -> 114.4629261 | S48: =R48*(1+('Scenario Input'!$AS$15/100)) -> 116.774248 | T48: 83.17019574 | U48: 84.16092374 | V48: 85.78062499 | W48: 87.91654551 | X48: 89.96358536 | Y48: 91.90884414 | Z48: 93.76473697 | AA48: 95.65810539
A49: PG&E W | B49: X | C49: 0.07248822713 | D49: 91.09 | E49: =D49*(1+('Scenario Input'!$AA$15/100)) -> 92.17506915 | F49: =E49*(1+('Scenario Input'!$AD$15/100)) -> 93.94900494 | G49: =F49*(1+('Scenario Input'!$AG$15/100)) -> 96.2883165 | H49: =G49*(1+('Scenario Input'!$AJ$15/100)) -> 98.53028381 | I49: =H49*(1+('Scenario Input'!$AM$15/100)) -> 100.660778 | J49: =I49*(1+('Scenario Input'!$AP$15/100)) -> 102.6933965 | K49: =J49*(1+('Scenario Input'!$AS$15/100)) -> 104.7670592 | L49: 138.0234085 | M49: =L49*(1+('Scenario Input'!$AA$15/100)) -> 139.667551 | N49: =M49*(1+('Scenario Input'!$AD$15/100)) -> 142.3554933 | O49: =N49*(1+('Scenario Input'!$AG$15/100)) -> 145.9001168 | P49: =O49*(1+('Scenario Input'!$AJ$15/100)) -> 149.2972402 | Q49: =P49*(1+('Scenario Input'!$AM$15/100)) -> 152.5254549 | R49: =Q49*(1+('Scenario Input'!$AP$15/100)) -> 155.6053641 | S49: =R49*(1+('Scenario Input'!$AS$15/100)) -> 158.7474652 | T49: 94.49211957 | U49: 95.61771496 | V49: 97.45790546 | W49: 99.88458794 | X49: 102.2102905 | Y49: 104.4203565 | Z49: 106.5288913 | AA49: 108.6800031
A50: PG&E X | B50: X | C50: 0.1491194139 | D50: 69.68 | E50: =D50*(1+('Scenario Input'!$AA$15/100)) -> 70.51003204 | F50: =E50*(1+('Scenario Input'!$AD$15/100)) -> 71.86701794 | G50: =F50*(1+('Scenario Input'!$AG$15/100)) -> 73.65649241 | H50: =G50*(1+('Scenario Input'!$AJ$15/100)) -> 75.37150264 | I50: =H50*(1+('Scenario Input'!$AM$15/100)) -> 77.00124068 | J50: =I50*(1+('Scenario Input'!$AP$15/100)) -> 78.55610792 | K50: =J50*(1+('Scenario Input'!$AS$15/100)) -> 80.14237221 | L50: 87.10499561 | M50: =L50*(1+('Scenario Input'!$AA$15/100)) -> 88.14259516 | N50: =M50*(1+('Scenario Input'!$AD$15/100)) -> 89.83892483 | O50: =N50*(1+('Scenario Input'!$AG$15/100)) -> 92.0758962 | P50: =O50*(1+('Scenario Input'!$AJ$15/100)) -> 94.21978196 | Q50: =P50*(1+('Scenario Input'!$AM$15/100)) -> 96.25707134 | R50: =Q50*(1+('Scenario Input'!$AP$15/100)) -> 98.20076686 | S50: =R50*(1+('Scenario Input'!$AS$15/100)) -> 100.183711 | T50: 72.27840513 | U50: 73.13938952 | V50: 74.54697816 | W50: 76.40318311 | X50: 78.18214701 | Y50: 79.87265886 | Z50: 81.48550795 | AA50: 83.1309249
A51: PG&E Y | B51: X | C51: 0.1421656911 | D51: 79.1 | E51: =D51*(1+('Scenario Input'!$AA$15/100)) -> 80.0422436 | F51: =E51*(1+('Scenario Input'!$AD$15/100)) -> 81.58267967 | G51: =F51*(1+('Scenario Input'!$AG$15/100)) -> 83.61407218 | H51: =G51*(1+('Scenario Input'!$AJ$15/100)) -> 85.56093369 | I51: =H51*(1+('Scenario Input'!$AM$15/100)) -> 87.41099509 | J51: =I51*(1+('Scenario Input'!$AP$15/100)) -> 89.17606395 | K51: =J51*(1+('Scenario Input'!$AS$15/100)) -> 90.97677442 | L51: 138.2478175 | M51: =L51*(1+('Scenario Input'!$AA$15/100)) -> 139.8946332 | N51: =M51*(1+('Scenario Input'!$AD$15/100)) -> 142.5869458 | O51: =N51*(1+('Scenario Input'!$AG$15/100)) -> 146.1373324 | P51: =O51*(1+('Scenario Input'!$AJ$15/100)) -> 149.5399791 | Q51: =P51*(1+('Scenario Input'!$AM$15/100)) -> 152.7734424 | R51: =Q51*(1+('Scenario Input'!$AP$15/100)) -> 155.8583592 | S51: =R51*(1+('Scenario Input'!$AS$15/100)) -> 159.005569 | T51: 87.50879035 | U51: 88.55119994 | V51: 90.25539332 | W51: 92.50273468 | X51: 94.65655889 | Y51: 96.70329259 | Z51: 98.65599855 | AA51: 100.648135
A52: PG&E Z | B52: X | C52: 0.6444998084 | D52: 50.81 | E52: =D52*(1+('Scenario Input'!$AA$15/100)) -> 51.41525155 | F52: =E52*(1+('Scenario Input'!$AD$15/100)) -> 52.40475289 | G52: =F52*(1+('Scenario Input'!$AG$15/100)) -> 53.70962083 | H52: =G52*(1+('Scenario Input'!$AJ$15/100)) -> 54.96019015 | I52: =H52*(1+('Scenario Input'!$AM$15/100)) -> 56.14857978 | J52: =I52*(1+('Scenario Input'!$AP$15/100)) -> 57.28237433 | K52: =J52*(1+('Scenario Input'!$AS$15/100)) -> 58.43906332 | L52: 87.85132993 | M52: =L52*(1+('Scenario Input'!$AA$15/100)) -> 88.89781987 | N52: =M52*(1+('Scenario Input'!$AD$15/100)) -> 90.60868405 | O52: =N52*(1+('Scenario Input'!$AG$15/100)) -> 92.86482227 | P52: =O52*(1+('Scenario Input'!$AJ$15/100)) -> 95.0270773 | Q52: =P52*(1+('Scenario Input'!$AM$15/100)) -> 97.08182262 | R52: =Q52*(1+('Scenario Input'!$AP$15/100)) -> 99.04217214 | S52: =R52*(1+('Scenario Input'!$AS$15/100)) -> 101.0421065 | T52: 74.68313004 | U52: 75.57275965 | V52: 77.0271792 | W52: 78.94514066 | X52: 80.78329124 | Y52: 82.53004695 | Z52: 84.19655602 | AA52: 85.8967165
A53: Pittsburg Power Company | C53: 0 | D53: 88.47211043 | E53: =D53*(1+('Scenario Input'!$AA$15/100)) -> 89.52599513 | F53: =E53*(1+('Scenario Input'!$AD$15/100)) -> 91.24894873 | G53: =F53*(1+('Scenario Input'!$AG$15/100)) -> 93.52102942 | H53: =G53*(1+('Scenario Input'!$AJ$15/100)) -> 95.6985635 | I53: =H53*(1+('Scenario Input'!$AM$15/100)) -> 97.76782819 | J53: =I53*(1+('Scenario Input'!$AP$15/100)) -> 99.74203006 | K53: =J53*(1+('Scenario Input'!$AS$15/100)) -> 101.7560965 | L53: 88.47211043 | M53: =L53*(1+('Scenario Input'!$AA$15/100)) -> 89.52599513 | N53: =M53*(1+('Scenario Input'!$AD$15/100)) -> 91.24894873 | O53: =N53*(1+('Scenario Input'!$AG$15/100)) -> 93.52102942 | P53: =O53*(1+('Scenario Input'!$AJ$15/100)) -> 95.6985635 | Q53: =P53*(1+('Scenario Input'!$AM$15/100)) -> 97.76782819 | R53: =Q53*(1+('Scenario Input'!$AP$15/100)) -> 99.74203006 | S53: =R53*(1+('Scenario Input'!$AS$15/100)) -> 101.7560965 | T53: 88.47211043 | U53: 89.52599513 | V53: 91.24894873 | W53: 93.52102942 | X53: 95.6985635 | Y53: 97.76782819 | Z53: 99.74203006 | AA53: 101.7560965
A54: Plumas-Sierra Rural Elec Coop | C54: 0 | D54: 71.53976 | E54: =D54*(1+('Scenario Input'!$AA$15/100)) -> 72.3919456 | F54: =E54*(1+('Scenario Input'!$AD$15/100)) -> 73.78514948 | G54: =F54*(1+('Scenario Input'!$AG$15/100)) -> 75.62238504 | H54: =G54*(1+('Scenario Input'!$AJ$15/100)) -> 77.38316892 | I54: =H54*(1+('Scenario Input'!$AM$15/100)) -> 79.05640468 | J54: =I54*(1+('Scenario Input'!$AP$15/100)) -> 80.65277134 | K54: =J54*(1+('Scenario Input'!$AS$15/100)) -> 82.28137304 | L54: 71.53976 | M54: =L54*(1+('Scenario Input'!$AA$15/100)) -> 72.3919456 | N54: =M54*(1+('Scenario Input'!$AD$15/100)) -> 73.78514948 | O54: =N54*(1+('Scenario Input'!$AG$15/100)) -> 75.62238504 | P54: =O54*(1+('Scenario Input'!$AJ$15/100)) -> 77.38316892 | Q54: =P54*(1+('Scenario Input'!$AM$15/100)) -> 79.05640468 | R54: =Q54*(1+('Scenario Input'!$AP$15/100)) -> 80.65277134 | S54: =R54*(1+('Scenario Input'!$AS$15/100)) -> 82.28137304 | T54: 71.53976 | U54: 72.3919456 | V54: 73.78514948 | W54: 75.62238504 | X54: 77.38316892 | Y54: 79.05640468 | Z54: 80.65277134 | AA54: 82.28137304
A55: Sacramento Municipal Util Dist | C55: 0 | D55: 67.44 | E55: =D55*(1+('Scenario Input'!$AA$15/100)) -> 68.24334904 | F55: =E55*(1+('Scenario Input'!$AD$15/100)) -> 69.55671197 | G55: =F55*(1+('Scenario Input'!$AG$15/100)) -> 71.28866028 | H55: =G55*(1+('Scenario Input'!$AJ$15/100)) -> 72.94853815 | I55: =H55*(1+('Scenario Input'!$AM$15/100)) -> 74.52588507 | J55: =I55*(1+('Scenario Input'!$AP$15/100)) -> 76.03076805 | K55: =J55*(1+('Scenario Input'!$AS$15/100)) -> 77.56603877 | L55: 67.44 | M55: =L55*(1+('Scenario Input'!$AA$15/100)) -> 68.24334904 | N55: =M55*(1+('Scenario Input'!$AD$15/100)) -> 69.55671197 | O55: =N55*(1+('Scenario Input'!$AG$15/100)) -> 71.28866028 | P55: =O55*(1+('Scenario Input'!$AJ$15/100)) -> 72.94853815 | Q55: =P55*(1+('Scenario Input'!$AM$15/100)) -> 74.52588507 | R55: =Q55*(1+('Scenario Input'!$AP$15/100)) -> 76.03076805 | S55: =R55*(1+('Scenario Input'!$AS$15/100)) -> 77.56603877 | T55: 67.44 | U55: 68.24334904 | V55: 69.55671197 | W55: 71.28866028 | X55: 72.94853815 | Y55: 74.52588507 | Z55: 76.03076805 | AA55: 77.56603877
A56: SCE 10 | B56: X | C56: 0.09274000265 | D56: 81.4 | E56: =D56*(1+('Scenario Input'!$AA$15/100)) -> 82.36964133 | F56: =E56*(1+('Scenario Input'!$AD$15/100)) -> 83.95486884 | G56: =F56*(1+('Scenario Input'!$AG$15/100)) -> 86.04532839 | H56: =G56*(1+('Scenario Input'!$AJ$15/100)) -> 88.04879901 | I56: =H56*(1+('Scenario Input'!$AM$15/100)) -> 89.95265487 | J56: =I56*(1+('Scenario Input'!$AP$15/100)) -> 91.76904685 | K56: =J56*(1+('Scenario Input'!$AS$15/100)) -> 93.62211679 | L56: 94.18141043 | M56: =L56*(1+('Scenario Input'!$AA$15/100)) -> 95.30330463 | N56: =M56*(1+('Scenario Input'!$AD$15/100)) -> 97.13744422 | O56: =N56*(1+('Scenario Input'!$AG$15/100)) -> 99.55614728 | P56: =O56*(1+('Scenario Input'!$AJ$15/100)) -> 101.8742024 | Q56: =P56*(1+('Scenario Input'!$AM$15/100)) -> 104.0770013 | R56: =Q56*(1+('Scenario Input'!$AP$15/100)) -> 106.1786028 | S56: =R56*(1+('Scenario Input'!$AS$15/100)) -> 108.3226414 | T56: 82.58534804 | U56: 83.5691093 | V56: 85.17742091 | W56: 87.29832177 | X56: 89.33096696 | Y56: 91.2625468 | Z56: 93.10538911 | AA56: 94.98544348
A57: SCE 13 | B57: X | C57: 0.075517815 | D57: 87.71 | E57: =D57*(1+('Scenario Input'!$AA$15/100)) -> 88.7548064 | F57: =E57*(1+('Scenario Input'!$AD$15/100)) -> 90.46291825 | G57: =F57*(1+('Scenario Input'!$AG$15/100)) -> 92.71542694 | H57: =G57*(1+('Scenario Input'!$AJ$15/100)) -> 94.87420346 | I57: =H57*(1+('Scenario Input'!$AM$15/100)) -> 96.92564323 | J57: =I57*(1+('Scenario Input'!$AP$15/100)) -> 98.88283906 | K57: =J57*(1+('Scenario Input'!$AS$15/100)) -> 100.8795561 | L57: 138.768085 | M57: =L57*(1+('Scenario Input'!$AA$15/100)) -> 140.4210981 | N57: =M57*(1+('Scenario Input'!$AD$15/100)) -> 143.1235426 | O57: =N57*(1+('Scenario Input'!$AG$15/100)) -> 146.6872904 | P57: =O57*(1+('Scenario Input'!$AJ$15/100)) -> 150.1027423 | Q57: =P57*(1+('Scenario Input'!$AM$15/100)) -> 153.3483741 | R57: =Q57*(1+('Scenario Input'!$AP$15/100)) -> 156.4449004 | S57: =R57*(1+('Scenario Input'!$AS$15/100)) -> 159.603954 | T57: 91.56579501 | U57: 92.65653186 | V57: 94.43973354 | W57: 96.79126414 | X57: 99.04494204 | Y57: 101.1865646 | Z57: 103.2298002 | AA57: 105.3142943
A58: SCE 14 | B58: X | C58: 0.08727983375 | D58: 79.33 | E58: =D58*(1+('Scenario Input'!$AA$15/100)) -> 80.27498338 | F58: =E58*(1+('Scenario Input'!$AD$15/100)) -> 81.81989858 | G58: =F58*(1+('Scenario Input'!$AG$15/100)) -> 83.8571978 | H58: =G58*(1+('Scenario Input'!$AJ$15/100)) -> 85.80972022 | I58: =H58*(1+('Scenario Input'!$AM$15/100)) -> 87.66516107 | J58: =I58*(1+('Scenario Input'!$AP$15/100)) -> 89.43536224 | K58: =J58*(1+('Scenario Input'!$AS$15/100)) -> 91.24130866 | L58: 115.2196456 | M58: =L58*(1+('Scenario Input'!$AA$15/100)) -> 116.5921485 | N58: =M58*(1+('Scenario Input'!$AD$15/100)) -> 118.835998 | O58: =N58*(1+('Scenario Input'!$AG$15/100)) -> 121.7949907 | P58: =O58*(1+('Scenario Input'!$AJ$15/100)) -> 124.6308528 | Q58: =P58*(1+('Scenario Input'!$AM$15/100)) -> 127.3257128 | R58: =Q58*(1+('Scenario Input'!$AP$15/100)) -> 129.8967698 | S58: =R58*(1+('Scenario Input'!$AS$15/100)) -> 132.5197435 | T58: 82.4624423 | U58: 83.44473951 | V58: 85.05065759 | W58: 87.16840206 | X58: 89.19802222 | Y58: 91.12672743 | Z58: 92.96682717 | AA58: 94.84408359
A59: SCE 15 | B59: X | C59: 0.1422826176 | D59: 124.35 | E59: =D59*(1+('Scenario Input'!$AA$15/100)) -> 125.8312641 | F59: =E59*(1+('Scenario Input'!$AD$15/100)) -> 128.2529231 | G59: =F59*(1+('Scenario Input'!$AG$15/100)) -> 131.4463954 | H59: =G59*(1+('Scenario Input'!$AJ$15/100)) -> 134.5069798 | I59: =H59*(1+('Scenario Input'!$AM$15/100)) -> 137.4153886 | J59: =I59*(1+('Scenario Input'!$AP$15/100)) -> 140.190184 | K59: =J59*(1+('Scenario Input'!$AS$15/100)) -> 143.0210101 | L59: 113.3818707 | M59: =L59*(1+('Scenario Input'!$AA$15/100)) -> 114.7324819 | N59: =M59*(1+('Scenario Input'!$AD$15/100)) -> 116.9405416 | O59: =N59*(1+('Scenario Input'!$AG$15/100)) -> 119.8523378 | P59: =O59*(1+('Scenario Input'!$AJ$15/100)) -> 122.6429674 | Q59: =P59*(1+('Scenario Input'!$AM$15/100)) -> 125.2948438 | R59: =Q59*(1+('Scenario Input'!$AP$15/100)) -> 127.8248919 | S59: =R59*(1+('Scenario Input'!$AS$15/100)) -> 130.4060288 | T59: 122.7894259 | U59: 124.2521003 | V59: 126.6433678 | W59: 129.7967625 | X59: 132.8189371 | Y59: 135.6908458 | Z59: 138.4308179 | AA59: 141.2261175
A60: SCE 16 | B60: X | C60: 0.1817297769 | D60: 73.06 | E60: =D60*(1+('Scenario Input'!$AA$15/100)) -> 73.93029479 | F60: =E60*(1+('Scenario Input'!$AD$15/100)) -> 75.35310463 | G60: =F60*(1+('Scenario Input'!$AG$15/100)) -> 77.22938196 | H60: =G60*(1+('Scenario Input'!$AJ$15/100)) -> 79.027583 | I60: =H60*(1+('Scenario Input'!$AM$15/100)) -> 80.73637549 | J60: =I60*(1+('Scenario Input'!$AP$15/100)) -> 82.36666539 | K60: =J60*(1+('Scenario Input'!$AS$15/100)) -> 84.02987534 | L60: 113.1164487 | M60: =L60*(1+('Scenario Input'!$AA$15/100)) -> 114.4638982 | N60: =M60*(1+('Scenario Input'!$AD$15/100)) -> 116.6667889 | O60: =N60*(1+('Scenario Input'!$AG$15/100)) -> 119.5717688 | P60: =O60*(1+('Scenario Input'!$AJ$15/100)) -> 122.3558656 | Q60: =P60*(1+('Scenario Input'!$AM$15/100)) -> 125.0015341 | R60: =Q60*(1+('Scenario Input'!$AP$15/100)) -> 127.5256595 | S60: =R60*(1+('Scenario Input'!$AS$15/100)) -> 130.100754 | T60: 80.33944949 | U60: 81.29645749 | V60: 82.86103126 | W60: 84.92425447 | X60: 86.90162213 | Y60: 88.78067288 | Z60: 90.57339932 | AA60: 92.40232584
A61: SCE 5 | B61: X | C61: 0.3490136571 | D61: 99.68 | E61: =D61*(1+('Scenario Input'!$AA$15/100)) -> 100.8673937 | F61: =E61*(1+('Scenario Input'!$AD$15/100)) -> 102.8086158 | G61: =F61*(1+('Scenario Input'!$AG$15/100)) -> 105.3685299 | H61: =G61*(1+('Scenario Input'!$AJ$15/100)) -> 107.82192 | I61: =H61*(1+('Scenario Input'!$AM$15/100)) -> 110.1533248 | J61: =I61*(1+('Scenario Input'!$AP$15/100)) -> 112.377624 | K61: =J61*(1+('Scenario Input'!$AS$15/100)) -> 114.6468379 | L61: 144.2370084 | M61: =L61*(1+('Scenario Input'!$AA$15/100)) -> 145.9551677 | N61: =M61*(1+('Scenario Input'!$AD$15/100)) -> 148.764117 | O61: =N61*(1+('Scenario Input'!$AG$15/100)) -> 152.4683139 | P61: =O61*(1+('Scenario Input'!$AJ$15/100)) -> 156.0183705 | Q61: =P61*(1+('Scenario Input'!$AM$15/100)) -> 159.3919144 | R61: =Q61*(1+('Scenario Input'!$AP$15/100)) -> 162.6104764 | S61: =R61*(1+('Scenario Input'!$AS$15/100)) -> 165.89403 | T61: 115.2310044 | U61: 116.6036426 | V61: 118.8477133 | W61: 121.8069978 | X61: 124.6431394 | Y61: 127.338265 | Z61: 129.9095755 | AA61: 132.5328078
A62: SCE 6 | B62: X | C62: 0.1684401735 | D62: 62.55 | E62: =D62*(1+('Scenario Input'!$AA$15/100)) -> 63.29509908 | F62: =E62*(1+('Scenario Input'!$AD$15/100)) -> 64.51323152 | G62: =F62*(1+('Scenario Input'!$AG$15/100)) -> 66.11959816 | H62: =G62*(1+('Scenario Input'!$AJ$15/100)) -> 67.65912013 | I62: =H62*(1+('Scenario Input'!$AM$15/100)) -> 69.12209536 | J62: =I62*(1+('Scenario Input'!$AP$15/100)) -> 70.51786094 | K62: =J62*(1+('Scenario Input'!$AS$15/100)) -> 71.94181087 | L62: 65.82761376 | M62: =L62*(1+('Scenario Input'!$AA$15/100)) -> 66.61175596 | N62: =M62*(1+('Scenario Input'!$AD$15/100)) -> 67.89371842 | O62: =N62*(1+('Scenario Input'!$AG$15/100)) -> 69.58425851 | P62: =O62*(1+('Scenario Input'!$AJ$15/100)) -> 71.20445127 | Q62: =P62*(1+('Scenario Input'!$AM$15/100)) -> 72.74408626 | R62: =Q62*(1+('Scenario Input'!$AP$15/100)) -> 74.21298982 | S62: =R62*(1+('Scenario Input'!$AS$15/100)) -> 75.71155459 | T62: 63.10208183 | U62: 63.85375734 | V62: 65.08264132 | W62: 66.70318615 | X62: 68.25629632 | Y62: 69.73218413 | Z62: 71.14026909 | AA62: 72.57678716
A63: SCE 8 | B63: X | C63: 0.1090072161 | D63: 62.41 | E63: =D63*(1+('Scenario Input'!$AA$15/100)) -> 63.1534314 | F63: =E63*(1+('Scenario Input'!$AD$15/100)) -> 64.3688374 | G63: =F63*(1+('Scenario Input'!$AG$15/100)) -> 65.97160866 | H63: =G63*(1+('Scenario Input'!$AJ$15/100)) -> 67.50768485 | I63: =H63*(1+('Scenario Input'!$AM$15/100)) -> 68.96738563 | J63: =I63*(1+('Scenario Input'!$AP$15/100)) -> 70.3600272 | K63: =J63*(1+('Scenario Input'!$AS$15/100)) -> 71.78079003 | L63: 66.62166243 | M63: =L63*(1+('Scenario Input'!$AA$15/100)) -> 67.41526338 | N63: =M63*(1+('Scenario Input'!$AD$15/100)) -> 68.71268957 | O63: =N63*(1+('Scenario Input'!$AG$15/100)) -> 70.42362188 | P63: =O63*(1+('Scenario Input'!$AJ$15/100)) -> 72.06335829 | Q63: =P63*(1+('Scenario Input'!$AM$15/100)) -> 73.6215652 | R63: =Q63*(1+('Scenario Input'!$AP$15/100)) -> 75.10818748 | S63: =R63*(1+('Scenario Input'!$AS$15/100)) -> 76.62482875 | T63: 62.8691016 | U63: 63.61800184 | V63: 64.84234863 | W63: 66.45691022 | X63: 68.00428613 | Y63: 69.47472479 | Z63: 70.87761093 | AA63: 72.30882521
A64: SCE 9 | B64: X | C64: 0.08632794978 | D64: 76.05 | E64: =D64*(1+('Scenario Input'!$AA$15/100)) -> 76.95591183 | F64: =E64*(1+('Scenario Input'!$AD$15/100)) -> 78.43695055 | G64: =F64*(1+('Scenario Input'!$AG$15/100)) -> 80.39001503 | H64: =G64*(1+('Scenario Input'!$AJ$15/100)) -> 82.26180792 | I64: =H64*(1+('Scenario Input'!$AM$15/100)) -> 84.04053321 | J64: =I64*(1+('Scenario Input'!$AP$15/100)) -> 85.73754316 | K64: =J64*(1+('Scenario Input'!$AS$15/100)) -> 87.46882042 | L64: 77.58015376 | M64: =L64*(1+('Scenario Input'!$AA$15/100)) -> 78.50429287 | N64: =M64*(1+('Scenario Input'!$AD$15/100)) -> 80.01513063 | O64: =N64*(1+('Scenario Input'!$AG$15/100)) -> 82.00749148 | P64: =O64*(1+('Scenario Input'!$AJ$15/100)) -> 83.91694553 | Q64: =P64*(1+('Scenario Input'!$AM$15/100)) -> 85.73145941 | R64: =Q64*(1+('Scenario Input'!$AP$15/100)) -> 87.46261382 | S64: =R64*(1+('Scenario Input'!$AS$15/100)) -> 89.22872501 | T64: 76.18209504 | U64: 77.0895804 | V64: 78.5731916 | W64: 80.52964846 | X64: 82.40469256 | Y64: 84.1865074 | Z64: 85.88646497 | AA64: 87.62074937
A65: SDG&E COASTAL | B65: X | C65: 0.2053131221 | D65: 72.43 | E65: =D65*(1+('Scenario Input'!$AA$15/100)) -> 73.29279019 | F65: =E65*(1+('Scenario Input'!$AD$15/100)) -> 74.70333108 | G65: =F65*(1+('Scenario Input'!$AG$15/100)) -> 76.56342918 | H65: =G65*(1+('Scenario Input'!$AJ$15/100)) -> 78.34612423 | I65: =H65*(1+('Scenario Input'!$AM$15/100)) -> 80.04018172 | J65: =I65*(1+('Scenario Input'!$AP$15/100)) -> 81.65641356 | K65: =J65*(1+('Scenario Input'!$AS$15/100)) -> 83.30528156 | L65: 59.76147556 | M65: =L65*(1+('Scenario Input'!$AA$15/100)) -> 60.47335759 | N65: =M65*(1+('Scenario Input'!$AD$15/100)) -> 61.6371848 | O65: =N65*(1+('Scenario Input'!$AG$15/100)) -> 63.17193845 | P65: =O65*(1+('Scenario Input'!$AJ$15/100)) -> 64.6428274 | Q65: =P65*(1+('Scenario Input'!$AM$15/100)) -> 66.04058214 | R65: =Q65*(1+('Scenario Input'!$AP$15/100)) -> 67.37412348 | S65: =R65*(1+('Scenario Input'!$AS$15/100)) -> 68.73459269 | T65: 69.8289857 | U65: 70.66079246 | V65: 72.02067979 | W65: 73.81398041 | X65: 75.53265758 | Y65: 77.16588022 | Z65: 78.72407199 | AA65: 80.31372794
A66: SDG&E DESERT | B66: X | C66: 0.5368565076 | D66: 104.93 | E66: =D66*(1+('Scenario Input'!$AA$15/100)) -> 106.179932 | F66: =E66*(1+('Scenario Input'!$AD$15/100)) -> 108.2233954 | G66: =F66*(1+('Scenario Input'!$AG$15/100)) -> 110.9181365 | H66: =G66*(1+('Scenario Input'!$AJ$15/100)) -> 113.500743 | I66: =H66*(1+('Scenario Input'!$AM$15/100)) -> 115.9549395 | J66: =I66*(1+('Scenario Input'!$AP$15/100)) -> 118.2963893 | K66: =J66*(1+('Scenario Input'!$AS$15/100)) -> 120.6851193 | L66: 135.6229154 | M66: =L66*(1+('Scenario Input'!$AA$15/100)) -> 137.2384631 | N66: =M66*(1+('Scenario Input'!$AD$15/100)) -> 139.8796569 | O66: =N66*(1+('Scenario Input'!$AG$15/100)) -> 143.3626325 | P66: =O66*(1+('Scenario Input'!$AJ$15/100)) -> 146.7006734 | Q66: =P66*(1+('Scenario Input'!$AM$15/100)) -> 149.8727432 | R66: =Q66*(1+('Scenario Input'!$AP$15/100)) -> 152.8990869 | S66: =R66*(1+('Scenario Input'!$AS$15/100)) -> 155.9865408 | T66: 121.4076913 | U66: 122.8539065 | V66: 125.2182654 | W66: 128.3361753 | X66: 131.3243417 | Y66: 134.1639331 | Z66: 136.8730727 | AA66: 139.6369172
A67: SDG&E INLAND | B67: X | C67: 0.2294108869 | D67: 79.26 | E67: =D67*(1+('Scenario Input'!$AA$15/100)) -> 80.20414953 | F67: =E67*(1+('Scenario Input'!$AD$15/100)) -> 81.74770152 | G67: =F67*(1+('Scenario Input'!$AG$15/100)) -> 83.78320305 | H67: =G67*(1+('Scenario Input'!$AJ$15/100)) -> 85.73400258 | I67: =H67*(1+('Scenario Input'!$AM$15/100)) -> 87.58780621 | J67: =I67*(1+('Scenario Input'!$AP$15/100)) -> 89.35644537 | K67: =J67*(1+('Scenario Input'!$AS$15/100)) -> 91.16079824 | L67: 84.24485761 | M67: =L67*(1+('Scenario Input'!$AA$15/100)) -> 85.24838705 | N67: =M67*(1+('Scenario Input'!$AD$15/100)) -> 86.88901684 | O67: =N67*(1+('Scenario Input'!$AG$15/100)) -> 89.0525361 | P67: =O67*(1+('Scenario Input'!$AJ$15/100)) -> 91.12602624 | Q67: =P67*(1+('Scenario Input'!$AM$15/100)) -> 93.09642017 | R67: =Q67*(1+('Scenario Input'!$AP$15/100)) -> 94.97629343 | S67: =R67*(1+('Scenario Input'!$AS$15/100)) -> 96.89412652 | T67: 80.40358061 | U67: 81.36135254 | V67: 82.92717523 | W67: 84.99204541 | X67: 86.97099151 | Y67: 88.85154222 | Z67: 90.6456997 | AA67: 92.47608616
A68: SDG&E MOUNTAIN | B68: X | C68: 0.3933469111 | D68: 105.14 | E68: =D68*(1+('Scenario Input'!$AA$15/100)) -> 106.3924335 | F68: =E68*(1+('Scenario Input'!$AD$15/100)) -> 108.4399866 | G68: =F68*(1+('Scenario Input'!$AG$15/100)) -> 111.1401207 | H68: =G68*(1+('Scenario Input'!$AJ$15/100)) -> 113.7278959 | I68: =H68*(1+('Scenario Input'!$AM$15/100)) -> 116.1870041 | J68: =I68*(1+('Scenario Input'!$AP$15/100)) -> 118.5331399 | K68: =J68*(1+('Scenario Input'!$AS$15/100)) -> 120.9266506 | L68: 150.5639622 | M68: =L68*(1+('Scenario Input'!$AA$15/100)) -> 152.3574885 | N68: =M68*(1+('Scenario Input'!$AD$15/100)) -> 155.2896523 | O68: =N68*(1+('Scenario Input'!$AG$15/100)) -> 159.1563338 | P68: =O68*(1+('Scenario Input'!$AJ$15/100)) -> 162.8621136 | Q68: =P68*(1+('Scenario Input'!$AM$15/100)) -> 166.3836379 | R68: =Q68*(1+('Scenario Input'!$AP$15/100)) -> 169.7433821 | S68: =R68*(1+('Scenario Input'!$AS$15/100)) -> 173.1709687 | T68: =(D68*(1-$C68))+(L68*$C68) -> 123.0073752 | U68: =(E68*(1-$C68))+(M68*$C68) -> 124.4726459 | V68: =(F68*(1-$C68))+(N68*$C68) -> 126.8681579 | W68: =(G68*(1-$C68))+(O68*$C68) -> 130.0271498 | X68: =(H68*(1-$C68))+(P68*$C68) -> 133.0546887 | Y68: =(I68*(1-$C68))+(Q68*$C68) -> 135.931695 | Z68: =(J68*(1-$C68))+(R68*$C68) -> 138.6765305 | AA68: =(K68*(1-$C68))+(S68*$C68) -> 141.4767917
A69: Shelter Cove Resort Improvement District | C69: 0 | D69: 251.82 | E69: =D69*(1+('Scenario Input'!$AA$15/100)) -> 254.8196939 | F69: =E69*(1+('Scenario Input'!$AD$15/100)) -> 259.7237724 | G69: =F69*(1+('Scenario Input'!$AG$15/100)) -> 266.1908427 | H69: =G69*(1+('Scenario Input'!$AJ$15/100)) -> 272.388803 | I69: =H69*(1+('Scenario Input'!$AM$15/100)) -> 278.278594 | J69: =I69*(1+('Scenario Input'!$AP$15/100)) -> 283.8978056 | K69: =J69*(1+('Scenario Input'!$AS$15/100)) -> 289.6304846 | L69: 251.82 | M69: =L69*(1+('Scenario Input'!$AA$15/100)) -> 254.8196939 | N69: =M69*(1+('Scenario Input'!$AD$15/100)) -> 259.7237724 | O69: =N69*(1+('Scenario Input'!$AG$15/100)) -> 266.1908427 | P69: =O69*(1+('Scenario Input'!$AJ$15/100)) -> 272.388803 | Q69: =P69*(1+('Scenario Input'!$AM$15/100)) -> 278.278594 | R69: =Q69*(1+('Scenario Input'!$AP$15/100)) -> 283.8978056 | S69: =R69*(1+('Scenario Input'!$AS$15/100)) -> 289.6304846 | T69: 251.82 | U69: 254.8196939 | V69: 259.7237724 | W69: 266.1908427 | X69: 272.388803 | Y69: 278.278594 | Z69: 283.8978056 | AA69: 289.6304846
A70: Surprise Valley Electrification | C70: 0 | D70: 31.9534 | E70: =D70*(1+('Scenario Input'!$AA$15/100)) -> 32.33403068 | F70: =E70*(1+('Scenario Input'!$AD$15/100)) -> 32.95630843 | G70: =F70*(1+('Scenario Input'!$AG$15/100)) -> 33.77691396 | H70: =G70*(1+('Scenario Input'!$AJ$15/100)) -> 34.56337217 | I70: =H70*(1+('Scenario Input'!$AM$15/100)) -> 35.31072681 | J70: =I70*(1+('Scenario Input'!$AP$15/100)) -> 36.02374769 | K70: =J70*(1+('Scenario Input'!$AS$15/100)) -> 36.75116642 | L70: 31.9534 | M70: =L70*(1+('Scenario Input'!$AA$15/100)) -> 32.33403068 | N70: =M70*(1+('Scenario Input'!$AD$15/100)) -> 32.95630843 | O70: =N70*(1+('Scenario Input'!$AG$15/100)) -> 33.77691396 | P70: =O70*(1+('Scenario Input'!$AJ$15/100)) -> 34.56337217 | Q70: =P70*(1+('Scenario Input'!$AM$15/100)) -> 35.31072681 | R70: =Q70*(1+('Scenario Input'!$AP$15/100)) -> 36.02374769 | S70: =R70*(1+('Scenario Input'!$AS$15/100)) -> 36.75116642 | T70: 31.9534 | U70: 32.33403068 | V70: 32.95630843 | W70: 33.77691396 | X70: 34.56337217 | Y70: 35.31072681 | Z70: 36.02374769 | AA70: 36.75116642
A71: Trinity Public Utility District | C71: 0 | D71: 44.35044 | E71: =D71*(1+('Scenario Input'!$AA$15/100)) -> 44.87874491 | F71: =E71*(1+('Scenario Input'!$AD$15/100)) -> 45.7424493 | G71: =F71*(1+('Scenario Input'!$AG$15/100)) -> 46.8814272 | H71: =G71*(1+('Scenario Input'!$AJ$15/100)) -> 47.97300955 | I71: =H71*(1+('Scenario Input'!$AM$15/100)) -> 49.01031723 | J71: =I71*(1+('Scenario Input'!$AP$15/100)) -> 49.99997059 | K71: =J71*(1+('Scenario Input'!$AS$15/100)) -> 51.00960778 | L71: 44.35044 | M71: =L71*(1+('Scenario Input'!$AA$15/100)) -> 44.87874491 | N71: =M71*(1+('Scenario Input'!$AD$15/100)) -> 45.7424493 | O71: =N71*(1+('Scenario Input'!$AG$15/100)) -> 46.8814272 | P71: =O71*(1+('Scenario Input'!$AJ$15/100)) -> 47.97300955 | Q71: =P71*(1+('Scenario Input'!$AM$15/100)) -> 49.01031723 | R71: =Q71*(1+('Scenario Input'!$AP$15/100)) -> 49.99997059 | S71: =R71*(1+('Scenario Input'!$AS$15/100)) -> 51.00960778 | T71: 44.35044 | U71: 44.87874491 | V71: 45.7424493 | W71: 46.8814272 | X71: 47.97300955 | Y71: 49.01031723 | Z71: 49.99997059 | AA71: 51.00960778
A72: Truckee Donner P U D | C72: 0 | D72: 44.3412 | E72: =D72*(1+('Scenario Input'!$AA$15/100)) -> 44.86939484 | F72: =E72*(1+('Scenario Input'!$AD$15/100)) -> 45.73291929 | G72: =F72*(1+('Scenario Input'!$AG$15/100)) -> 46.87165989 | H72: =G72*(1+('Scenario Input'!$AJ$15/100)) -> 47.96301483 | I72: =H72*(1+('Scenario Input'!$AM$15/100)) -> 49.00010639 | J72: =I72*(1+('Scenario Input'!$AP$15/100)) -> 49.98955357 | K72: =J72*(1+('Scenario Input'!$AS$15/100)) -> 50.99898041 | L72: 44.3412 | M72: =L72*(1+('Scenario Input'!$AA$15/100)) -> 44.86939484 | N72: =M72*(1+('Scenario Input'!$AD$15/100)) -> 45.73291929 | O72: =N72*(1+('Scenario Input'!$AG$15/100)) -> 46.87165989 | P72: =O72*(1+('Scenario Input'!$AJ$15/100)) -> 47.96301483 | Q72: =P72*(1+('Scenario Input'!$AM$15/100)) -> 49.00010639 | R72: =Q72*(1+('Scenario Input'!$AP$15/100)) -> 49.98955357 | S72: =R72*(1+('Scenario Input'!$AS$15/100)) -> 50.99898041 | T72: 44.3412 | U72: 44.86939484 | V72: 45.73291929 | W72: 46.87165989 | X72: 47.96301483 | Y72: 49.00010639 | Z72: 49.98955357 | AA72: 50.99898041
A73: Turlock Irrigation District | C73: 0 | D73: 90.01 | E73: =D73*(1+('Scenario Input'!$AA$15/100)) -> 91.08220413 | F73: =E73*(1+('Scenario Input'!$AD$15/100)) -> 92.83510742 | G73: =F73*(1+('Scenario Input'!$AG$15/100)) -> 95.14668315 | H73: =G73*(1+('Scenario Input'!$AJ$15/100)) -> 97.36206879 | I73: =H73*(1+('Scenario Input'!$AM$15/100)) -> 99.46730301 | J73: =I73*(1+('Scenario Input'!$AP$15/100)) -> 101.475822 | K73: =J73*(1+('Scenario Input'!$AS$15/100)) -> 103.5248984 | L73: 90.01 | M73: =L73*(1+('Scenario Input'!$AA$15/100)) -> 91.08220413 | N73: =M73*(1+('Scenario Input'!$AD$15/100)) -> 92.83510742 | O73: =N73*(1+('Scenario Input'!$AG$15/100)) -> 95.14668315 | P73: =O73*(1+('Scenario Input'!$AJ$15/100)) -> 97.36206879 | Q73: =P73*(1+('Scenario Input'!$AM$15/100)) -> 99.46730301 | R73: =Q73*(1+('Scenario Input'!$AP$15/100)) -> 101.475822 | S73: =R73*(1+('Scenario Input'!$AS$15/100)) -> 103.5248984 | T73: 90.01 | U73: 91.08220413 | V73: 92.83510742 | W73: 95.14668315 | X73: 97.36206879 | Y73: 99.46730301 | Z73: 101.475822 | AA73: 103.5248984
A74: Valley Electric Assn, Inc | C74: 0 | D74: 66.96692 | E74: =D74*(1+('Scenario Input'!$AA$15/100)) -> 67.76463368 | F74: =E74*(1+('Scenario Input'!$AD$15/100)) -> 69.0687836 | G74: =F74*(1+('Scenario Input'!$AG$15/100)) -> 70.78858259 | H74: =G74*(1+('Scenario Input'!$AJ$15/100)) -> 72.4368167 | I74: =H74*(1+('Scenario Input'!$AM$15/100)) -> 74.0030988 | J74: =I74*(1+('Scenario Input'!$AP$15/100)) -> 75.49742529 | K74: =J74*(1+('Scenario Input'!$AS$15/100)) -> 77.02192635 | L74: 66.96692 | M74: =L74*(1+('Scenario Input'!$AA$15/100)) -> 67.76463368 | N74: =M74*(1+('Scenario Input'!$AD$15/100)) -> 69.0687836 | O74: =N74*(1+('Scenario Input'!$AG$15/100)) -> 70.78858259 | P74: =O74*(1+('Scenario Input'!$AJ$15/100)) -> 72.4368167 | Q74: =P74*(1+('Scenario Input'!$AM$15/100)) -> 74.0030988 | R74: =Q74*(1+('Scenario Input'!$AP$15/100)) -> 75.49742529 | S74: =R74*(1+('Scenario Input'!$AS$15/100)) -> 77.02192635 | T74: 66.96692 | U74: 67.76463368 | V74: 69.0687836 | W74: 70.78858259 | X74: 72.4368167 | Y74: 74.0030988 | Z74: 75.49742529 | AA74: 77.02192635

Sheet Gas Input
A1: Gas Provider and Climate Zone | B1: 2019 Essential Usage Bill ($/month) | C1: 2020 Essential Usage Bill ($/month) | D1: 2021 Essential Usage Bill ($/month) | E1: 2022 Essential Usage Bill ($/month) | F1: 2023 Essential Usage Bill ($/month) | G1: 2024 Essential Usage Bill ($/month) | H1: 2025 Essential Usage Bill ($/month) | I1: 2026 Essential Usage Bill ($/month)
A2: City of Coalinga | B2: 37.75 | C2: =B2*(1+('Scenario Input'!$AA$15/100)) -> 38.1996801 | D2: =C2*(1+('Scenario Input'!$AD$15/100)) -> 38.93484396 | E2: =D2*(1+('Scenario Input'!$AG$15/100)) -> 39.90431384 | F2: =E2*(1+('Scenario Input'!$AJ$15/100)) -> 40.8334418 | G2: =F2*(1+('Scenario Input'!$AM$15/100)) -> 41.7163725 | H2: =G2*(1+('Scenario Input'!$AP$15/100)) -> 42.55874101 | I2: =H2*(1+('Scenario Input'!$AS$15/100)) -> 43.41811927
A3: City of Palo Alto Ultilities | B3: 45.3 | C3: =B3*(1+('Scenario Input'!$AA$15/100)) -> 45.83961612 | D3: =C3*(1+('Scenario Input'!$AD$15/100)) -> 46.72181275 | E3: =D3*(1+('Scenario Input'!$AG$15/100)) -> 47.88517661 | F3: =E3*(1+('Scenario Input'!$AJ$15/100)) -> 49.00013016 | G3: =F3*(1+('Scenario Input'!$AM$15/100)) -> 50.059647 | H3: =G3*(1+('Scenario Input'!$AP$15/100)) -> 51.07048922 | I3: =H3*(1+('Scenario Input'!$AS$15/100)) -> 52.10174313
A4: City of Susanville | B4: 60.47 | C4: =B4*(1+('Scenario Input'!$AA$15/100)) -> 61.19032201 | D4: =C4*(1+('Scenario Input'!$AD$15/100)) -> 62.3679474 | E4: =D4*(1+('Scenario Input'!$AG$15/100)) -> 63.9208969 | F4: =E4*(1+('Scenario Input'!$AJ$15/100)) -> 65.40922453 | G4: =F4*(1+('Scenario Input'!$AM$15/100)) -> 66.82355086 | H4: =G4*(1+('Scenario Input'!$AP$15/100)) -> 68.17290249 | I4: =H4*(1+('Scenario Input'!$AS$15/100)) -> 69.54950126
A5: City of Vernon Gas System | B5: 29.89 | C5: =B5*(1+('Scenario Input'!$AA$15/100)) -> 30.24605134 | D5: =C5*(1+('Scenario Input'!$AD$15/100)) -> 30.82814533 | E5: =D5*(1+('Scenario Input'!$AG$15/100)) -> 31.59576002 | F5: =E5*(1+('Scenario Input'!$AJ$15/100)) -> 32.33143246 | G5: =F5*(1+('Scenario Input'!$AM$15/100)) -> 33.03052646 | H5: =G5*(1+('Scenario Input'!$AP$15/100)) -> 33.69750381 | I5: =H5*(1+('Scenario Input'!$AS$15/100)) -> 34.37794927
A6: Island Energy | B6: 45.3 | C6: =B6*(1+('Scenario Input'!$AA$15/100)) -> 45.83961612 | D6: =C6*(1+('Scenario Input'!$AD$15/100)) -> 46.72181275 | E6: =D6*(1+('Scenario Input'!$AG$15/100)) -> 47.88517661 | F6: =E6*(1+('Scenario Input'!$AJ$15/100)) -> 49.00013016 | G6: =F6*(1+('Scenario Input'!$AM$15/100)) -> 50.059647 | H6: =G6*(1+('Scenario Input'!$AP$15/100)) -> 51.07048922 | I6: =H6*(1+('Scenario Input'!$AS$15/100)) -> 52.10174313
A7: Long Beach Gas & Oil | B7: 29.89 | C7: =B7*(1+('Scenario Input'!$AA$15/100)) -> 30.24605134 | D7: =C7*(1+('Scenario Input'!$AD$15/100)) -> 30.82814533 | E7: =D7*(1+('Scenario Input'!$AG$15/100)) -> 31.59576002 | F7: =E7*(1+('Scenario Input'!$AJ$15/100)) -> 32.33143246 | G7: =F7*(1+('Scenario Input'!$AM$15/100)) -> 33.03052646 | H7: =G7*(1+('Scenario Input'!$AP$15/100)) -> 33.69750381 | I7: =H7*(1+('Scenario Input'!$AS$15/100)) -> 34.37794927
A8: PG&E P | B8: 46.61 | C8: =B8*(1+('Scenario Input'!$AA$15/100)) -> 47.16522092 | D8: =C8*(1+('Scenario Input'!$AD$15/100)) -> 48.07292919 | E8: =D8*(1+('Scenario Input'!$AG$15/100)) -> 49.26993558 | F8: =E8*(1+('Scenario Input'!$AJ$15/100)) -> 50.41713172 | G8: =F8*(1+('Scenario Input'!$AM$15/100)) -> 51.507288 | H8: =G8*(1+('Scenario Input'!$AP$15/100)) -> 52.54736208 | I8: =H8*(1+('Scenario Input'!$AS$15/100)) -> 53.60843813
A9: PG&E Q | B9: 47.69 | C9: =B9*(1+('Scenario Input'!$AA$15/100)) -> 48.25808594 | D9: =C9*(1+('Scenario Input'!$AD$15/100)) -> 49.18682672 | E9: =D9*(1+('Scenario Input'!$AG$15/100)) -> 50.41156893 | F9: =E9*(1+('Scenario Input'!$AJ$15/100)) -> 51.58534674 | G9: =F9*(1+('Scenario Input'!$AM$15/100)) -> 52.70076303 | H9: =G9*(1+('Scenario Input'!$AP$15/100)) -> 53.76493666 | I9: =H9*(1+('Scenario Input'!$AS$15/100)) -> 54.85059889
A10: PG&E R | B10: 37.75 | C10: =B10*(1+('Scenario Input'!$AA$15/100)) -> 38.1996801 | D10: =C10*(1+('Scenario Input'!$AD$15/100)) -> 38.93484396 | E10: =D10*(1+('Scenario Input'!$AG$15/100)) -> 39.90431384 | F10: =E10*(1+('Scenario Input'!$AJ$15/100)) -> 40.8334418 | G10: =F10*(1+('Scenario Input'!$AM$15/100)) -> 41.7163725 | H10: =G10*(1+('Scenario Input'!$AP$15/100)) -> 42.55874101 | I10: =H10*(1+('Scenario Input'!$AS$15/100)) -> 43.41811927
A11: PG&E S | B11: 40.26 | C11: =B11*(1+('Scenario Input'!$AA$15/100)) -> 40.73957936 | D11: =C11*(1+('Scenario Input'!$AD$15/100)) -> 41.52362432 | E11: =D11*(1+('Scenario Input'!$AG$15/100)) -> 42.55755431 | F11: =E11*(1+('Scenario Input'!$AJ$15/100)) -> 43.54846005 | G11: =F11*(1+('Scenario Input'!$AM$15/100)) -> 44.49009687 | H11: =G11*(1+('Scenario Input'!$AP$15/100)) -> 45.38847452 | I11: =H11*(1+('Scenario Input'!$AS$15/100)) -> 46.3049929
A12: PG&E T | B12: 43.14 | C12: =B12*(1+('Scenario Input'!$AA$15/100)) -> 43.65388608 | D12: =C12*(1+('Scenario Input'!$AD$15/100)) -> 44.49401771 | E12: =D12*(1+('Scenario Input'!$AG$15/100)) -> 45.60190991 | F12: =E12*(1+('Scenario Input'!$AJ$15/100)) -> 46.66370012 | G12: =F12*(1+('Scenario Input'!$AM$15/100)) -> 47.67269694 | H12: =G12*(1+('Scenario Input'!$AP$15/100)) -> 48.63534006 | I12: =H12*(1+('Scenario Input'!$AS$15/100)) -> 49.6174216
A13: PG&E V | B13: 45.54 | C13: =B13*(1+('Scenario Input'!$AA$15/100)) -> 46.08247502 | D13: =C13*(1+('Scenario Input'!$AD$15/100)) -> 46.96934554 | E13: =D13*(1+('Scenario Input'!$AG$15/100)) -> 48.13887291 | F13: =E13*(1+('Scenario Input'!$AJ$15/100)) -> 49.2597335 | G13: =F13*(1+('Scenario Input'!$AM$15/100)) -> 50.32486367 | H13: =G13*(1+('Scenario Input'!$AP$15/100)) -> 51.34106135 | I13: =H13*(1+('Scenario Input'!$AS$15/100)) -> 52.37777885
A14: PG&E W | B14: 36.37 | C14: =B14*(1+('Scenario Input'!$AA$15/100)) -> 36.80324147 | D14: =C14*(1+('Scenario Input'!$AD$15/100)) -> 37.51153046 | E14: =D14*(1+('Scenario Input'!$AG$15/100)) -> 38.44556012 | F14: =E14*(1+('Scenario Input'!$AJ$15/100)) -> 39.34072261 | G14: =F14*(1+('Scenario Input'!$AM$15/100)) -> 40.19137663 | H14: =G14*(1+('Scenario Input'!$AP$15/100)) -> 41.00295128 | I14: =H14*(1+('Scenario Input'!$AS$15/100)) -> 41.83091385
A15: PG&E X | B15: 45.3 | C15: =B15*(1+('Scenario Input'!$AA$15/100)) -> 45.83961612 | D15: =C15*(1+('Scenario Input'!$AD$15/100)) -> 46.72181275 | E15: =D15*(1+('Scenario Input'!$AG$15/100)) -> 47.88517661 | F15: =E15*(1+('Scenario Input'!$AJ$15/100)) -> 49.00013016 | G15: =F15*(1+('Scenario Input'!$AM$15/100)) -> 50.059647 | H15: =G15*(1+('Scenario Input'!$AP$15/100)) -> 51.07048922 | I15: =H15*(1+('Scenario Input'!$AS$15/100)) -> 52.10174313
A16: PG&E Y | B16: 60.47 | C16: =B16*(1+('Scenario Input'!$AA$15/100)) -> 61.19032201 | D16: =C16*(1+('Scenario Input'!$AD$15/100)) -> 62.3679474 | E16: =D16*(1+('Scenario Input'!$AG$15/100)) -> 63.9208969 | F16: =E16*(1+('Scenario Input'!$AJ$15/100)) -> 65.40922453 | G16: =F16*(1+('Scenario Input'!$AM$15/100)) -> 66.82355086 | H16: =G16*(1+('Scenario Input'!$AP$15/100)) -> 68.17290249 | I16: =H16*(1+('Scenario Input'!$AS$15/100)) -> 69.54950126
A17: SCG 1 | B17: 29.89 | C17: =B17*(1+('Scenario Input'!$AA$15/100)) -> 30.24605134 | D17: =C17*(1+('Scenario Input'!$AD$15/100)) -> 30.82814533 | E17: =D17*(1+('Scenario Input'!$AG$15/100)) -> 31.59576002 | F17: =E17*(1+('Scenario Input'!$AJ$15/100)) -> 32.33143246 | G17: =F17*(1+('Scenario Input'!$AM$15/100)) -> 33.03052646 | H17: =G17*(1+('Scenario Input'!$AP$15/100)) -> 33.69750381 | I17: =H17*(1+('Scenario Input'!$AS$15/100)) -> 34.37794927
A18: SCG 2 | B18: 31.4 | C18: =B18*(1+('Scenario Input'!$AA$15/100)) -> 31.77403855 | D18: =C18*(1+('Scenario Input'!$AD$15/100)) -> 32.38553908 | E18: =D18*(1+('Scenario Input'!$AG$15/100)) -> 33.19193257 | F18: =E18*(1+('Scenario Input'!$AJ$15/100)) -> 33.96477014 | G18: =F18*(1+('Scenario Input'!$AM$15/100)) -> 34.69918136 | H18: =G18*(1+('Scenario Input'!$AP$15/100)) -> 35.39985345 | I18: =H18*(1+('Scenario Input'!$AS$15/100)) -> 36.11467404
A19: SCG 3 | B19: 44.29 | C19: =B19*(1+('Scenario Input'!$AA$15/100)) -> 44.81758495 | D19: =C19*(1+('Scenario Input'!$AD$15/100)) -> 45.68011229 | E19: =D19*(1+('Scenario Input'!$AG$15/100)) -> 46.81753801 | F19: =E19*(1+('Scenario Input'!$AJ$15/100)) -> 47.90763278 | G19: =F19*(1+('Scenario Input'!$AM$15/100)) -> 48.94352683 | H19: =G19*(1+('Scenario Input'!$AP$15/100)) -> 49.93183151 | I19: =H19*(1+('Scenario Input'!$AS$15/100)) -> 50.94009278
A20: SDG&E COASTAL | B20: 34.08 | C20: =B20*(1+('Scenario Input'!$AA$15/100)) -> 34.48596286 | D20: =C20*(1+('Scenario Input'!$AD$15/100)) -> 35.14965516 | E20: =D20*(1+('Scenario Input'!$AG$15/100)) -> 36.02487459 | F20: =E20*(1+('Scenario Input'!$AJ$15/100)) -> 36.86367408 | G20: =F20*(1+('Scenario Input'!$AM$15/100)) -> 37.66076754 | H20: =G20*(1+('Scenario Input'!$AP$15/100)) -> 38.42124222 | I20: =H20*(1+('Scenario Input'!$AS$15/100)) -> 39.19707298
A21: SDG&E DESERT | B21: 34.08 | C21: =B21*(1+('Scenario Input'!$AA$15/100)) -> 34.48596286 | D21: =C21*(1+('Scenario Input'!$AD$15/100)) -> 35.14965516 | E21: =D21*(1+('Scenario Input'!$AG$15/100)) -> 36.02487459 | F21: =E21*(1+('Scenario Input'!$AJ$15/100)) -> 36.86367408 | G21: =F21*(1+('Scenario Input'!$AM$15/100)) -> 37.66076754 | H21: =G21*(1+('Scenario Input'!$AP$15/100)) -> 38.42124222 | I21: =H21*(1+('Scenario Input'!$AS$15/100)) -> 39.19707298
A22: SDG&E INLAND | B22: 34.08 | C22: =B22*(1+('Scenario Input'!$AA$15/100)) -> 34.48596286 | D22: =C22*(1+('Scenario Input'!$AD$15/100)) -> 35.14965516 | E22: =D22*(1+('Scenario Input'!$AG$15/100)) -> 36.02487459 | F22: =E22*(1+('Scenario Input'!$AJ$15/100)) -> 36.86367408 | G22: =F22*(1+('Scenario Input'!$AM$15/100)) -> 37.66076754 | H22: =G22*(1+('Scenario Input'!$AP$15/100)) -> 38.42124222 | I22: =H22*(1+('Scenario Input'!$AS$15/100)) -> 39.19707298
A23: SDG&E MOUNTAIN | B23: 34.08 | C23: =B23*(1+('Scenario Input'!$AA$15/100)) -> 34.48596286 | D23: =C23*(1+('Scenario Input'!$AD$15/100)) -> 35.14965516 | E23: =D23*(1+('Scenario Input'!$AG$15/100)) -> 36.02487459 | F23: =E23*(1+('Scenario Input'!$AJ$15/100)) -> 36.86367408 | G23: =F23*(1+('Scenario Input'!$AM$15/100)) -> 37.66076754 | H23: =G23*(1+('Scenario Input'!$AP$15/100)) -> 38.42124222 | I23: =H23*(1+('Scenario Input'!$AS$15/100)) -> 39.19707298
A24: SWG_Barstow | B24: 53.13 | C24: =B24*(1+('Scenario Input'!$AA$15/100)) -> 53.76288752 | D24: =C24*(1+('Scenario Input'!$AD$15/100)) -> 54.79756979 | E24: =D24*(1+('Scenario Input'!$AG$15/100)) -> 56.16201839 | F24: =E24*(1+('Scenario Input'!$AJ$15/100)) -> 57.46968909 | G24: =F24*(1+('Scenario Input'!$AM$15/100)) -> 58.71234095 | H24: =G24*(1+('Scenario Input'!$AP$15/100)) -> 59.8979049 | I24: =H24*(1+('Scenario Input'!$AS$15/100)) -> 61.10740866
A25: SWG_Victorville | B25: 56.23 | C25: =B25*(1+('Scenario Input'!$AA$15/100)) -> 56.89981489 | D25: =C25*(1+('Scenario Input'!$AD$15/100)) -> 57.99486824 | E25: =D25*(1+('Scenario Input'!$AG$15/100)) -> 59.43892893 | F25: =E25*(1+('Scenario Input'!$AJ$15/100)) -> 60.82289888 | G25: =F25*(1+('Scenario Input'!$AM$15/100)) -> 62.13805631 | H25: =G25*(1+('Scenario Input'!$AP$15/100)) -> 63.39279489 | I25: =H25*(1+('Scenario Input'!$AS$15/100)) -> 64.67287011
A26: SWG_Big_Bear | B26: 71.48 | C26: =B26*(1+('Scenario Input'!$AA$15/100)) -> 72.33147374 | D26: =C26*(1+('Scenario Input'!$AD$15/100)) -> 73.72351381 | E26: =D26*(1+('Scenario Input'!$AG$15/100)) -> 75.55921466 | F26: =E26*(1+('Scenario Input'!$AJ$15/100)) -> 77.31852768 | G26: =F26*(1+('Scenario Input'!$AM$15/100)) -> 78.99036573 | H26: =G26*(1+('Scenario Input'!$AP$15/100)) -> 80.58539888 | I26: =H26*(1+('Scenario Input'!$AS$15/100)) -> 82.21264015
A27: SWG_NLT | B27: 83.75 | C27: =B27*(1+('Scenario Input'!$AA$15/100)) -> 84.74763466 | D27: =C27*(1+('Scenario Input'!$AD$15/100)) -> 86.37862733 | E27: =D27*(1+('Scenario Input'!$AG$15/100)) -> 88.52943799 | F27: =E27*(1+('Scenario Input'!$AJ$15/100)) -> 90.59074837 | G27: =F27*(1+('Scenario Input'!$AM$15/100)) -> 92.54956813 | H27: =G27*(1+('Scenario Input'!$AP$15/100)) -> 94.41839894 | I27: =H27*(1+('Scenario Input'!$AS$15/100)) -> 96.3249666
A28: SWG_Truckee | B28: 85.61 | C28: =B28*(1+('Scenario Input'!$AA$15/100)) -> 86.62979109 | D28: =C28*(1+('Scenario Input'!$AD$15/100)) -> 88.2970064 | E28: =D28*(1+('Scenario Input'!$AG$15/100)) -> 90.49558431 | F28: =E28*(1+('Scenario Input'!$AJ$15/100)) -> 92.60267425 | G28: =F28*(1+('Scenario Input'!$AM$15/100)) -> 94.60499734 | H28: =G28*(1+('Scenario Input'!$AP$15/100)) -> 96.51533293 | I28: =H28*(1+('Scenario Input'!$AS$15/100)) -> 98.46424347
A29: SWG_SLT | B29: 66.41 | C29: =B29*(1+('Scenario Input'!$AA$15/100)) -> 67.20107962 | D29: =C29*(1+('Scenario Input'!$AD$15/100)) -> 68.49438378 | E29: =D29*(1+('Scenario Input'!$AG$15/100)) -> 70.19988032 | F29: =E29*(1+('Scenario Input'!$AJ$15/100)) -> 71.83440716 | G29: =F29*(1+('Scenario Input'!$AM$15/100)) -> 73.38766351 | H29: =G29*(1+('Scenario Input'!$AP$15/100)) -> 74.86956267 | I29: =H29*(1+('Scenario Input'!$AS$15/100)) -> 76.38138545
A30: SWG_Needles | B30: 28.91 | C30: =B30*(1+('Scenario Input'!$AA$15/100)) -> 29.25437753 | D30: =C30*(1+('Scenario Input'!$AD$15/100)) -> 29.81738646 | E30: =D30*(1+('Scenario Input'!$AG$15/100)) -> 30.55983346 | F30: =E30*(1+('Scenario Input'!$AJ$15/100)) -> 31.2713855 | G30: =F30*(1+('Scenario Input'!$AM$15/100)) -> 31.94755838 | H30: =G30*(1+('Scenario Input'!$AP$15/100)) -> 32.59266762 | I30: =H30*(1+('Scenario Input'!$AS$15/100)) -> 33.2508034

Sheet Water Input
A1: PWSID | B1: 2019 Essential Usage Bill ($/month) | C1: 2020 Essential Usage Bill ($/month) | D1: 2021 Essential Usage Bill ($/month) | E1: 2022 Essential Usage Bill ($/month) | F1: 2023 Essential Usage Bill ($/month) | G1: 2024 Essential Usage Bill ($/month) | H1: 2025 Essential Usage Bill ($/month) | I1: 2026 Essential Usage Bill ($/month)
A2: LU_RANCHOS | B2: 69.18 | C2: =B2*(1+('Scenario Input'!$AA$15/100)) -> 70.00407601 | D2: =C2*(1+('Scenario Input'!$AD$15/100)) -> 71.35132464 | E2: =D2*(1+('Scenario Input'!$AG$15/100)) -> 73.12795845 | F2: =E2*(1+('Scenario Input'!$AJ$15/100)) -> 74.83066236 | G2: =F2*(1+('Scenario Input'!$AM$15/100)) -> 76.44870595 | H2: =G2*(1+('Scenario Input'!$AP$15/100)) -> 77.99241598 | I2: =H2*(1+('Scenario Input'!$AS$15/100)) -> 79.56729778
A3: LU_AV | B3: 69.18 | C3: =B3*(1+('Scenario Input'!$AA$15/100)) -> 70.00407601 | D3: =C3*(1+('Scenario Input'!$AD$15/100)) -> 71.35132464 | E3: =D3*(1+('Scenario Input'!$AG$15/100)) -> 73.12795845 | F3: =E3*(1+('Scenario Input'!$AJ$15/100)) -> 74.83066236 | G3: =F3*(1+('Scenario Input'!$AM$15/100)) -> 76.44870595 | H3: =G3*(1+('Scenario Input'!$AP$15/100)) -> 77.99241598 | I3: =H3*(1+('Scenario Input'!$AS$15/100)) -> 79.56729778
A4: SWS_SJ | B4: 38.87 | C4: =B4*(1+('Scenario Input'!$AA$15/100)) -> 39.3330216 | D4: =C4*(1+('Scenario Input'!$AD$15/100)) -> 40.08999695 | E4: =D4*(1+('Scenario Input'!$AG$15/100)) -> 41.08822991 | F4: =E4*(1+('Scenario Input'!$AJ$15/100)) -> 42.04492405 | G4: =F4*(1+('Scenario Input'!$AM$15/100)) -> 42.95405031 | H4: =G4*(1+('Scenario Input'!$AP$15/100)) -> 43.82141095 | I4: =H4*(1+('Scenario Input'!$AS$15/100)) -> 44.70628599
A5: SWS_COVINA_KNOLES | B5: 38.87 | C5: =B5*(1+('Scenario Input'!$AA$15/100)) -> 39.3330216 | D5: =C5*(1+('Scenario Input'!$AD$15/100)) -> 40.08999695 | E5: =D5*(1+('Scenario Input'!$AG$15/100)) -> 41.08822991 | F5: =E5*(1+('Scenario Input'!$AJ$15/100)) -> 42.04492405 | G5: =F5*(1+('Scenario Input'!$AM$15/100)) -> 42.95405031 | H5: =G5*(1+('Scenario Input'!$AP$15/100)) -> 43.82141095 | I5: =H5*(1+('Scenario Input'!$AS$15/100)) -> 44.70628599
A6: LU-MESA_CREST | B6: 127.19 | C6: =B6*(1+('Scenario Input'!$AA$15/100)) -> 128.7050944 | D6: =C6*(1+('Scenario Input'!$AD$15/100)) -> 131.182061 | E6: =D6*(1+('Scenario Input'!$AG$15/100)) -> 134.4484683 | F6: =E6*(1+('Scenario Input'!$AJ$15/100)) -> 137.5789527 | G6: =F6*(1+('Scenario Input'!$AM$15/100)) -> 140.5537859 | H6: =G6*(1+('Scenario Input'!$AP$15/100)) -> 143.3919542 | I6: =H6*(1+('Scenario Input'!$AS$15/100)) -> 146.2874329
A7: SanJoseWater | B7: 66.44 | C7: =B7*(1+('Scenario Input'!$AA$15/100)) -> 67.23143698 | D7: =C7*(1+('Scenario Input'!$AD$15/100)) -> 68.52532537 | E7: =D7*(1+('Scenario Input'!$AG$15/100)) -> 70.23159236 | F7: =E7*(1+('Scenario Input'!$AJ$15/100)) -> 71.86685757 | G7: =F7*(1+('Scenario Input'!$AM$15/100)) -> 73.4208156 | H7: =G7*(1+('Scenario Input'!$AP$15/100)) -> 74.90338419 | I7: =H7*(1+('Scenario Input'!$AS$15/100)) -> 76.41588992
A8: SWS_Glendora | B8: 38.87 | C8: =B8*(1+('Scenario Input'!$AA$15/100)) -> 39.3330216 | D8: =C8*(1+('Scenario Input'!$AD$15/100)) -> 40.08999695 | E8: =D8*(1+('Scenario Input'!$AG$15/100)) -> 41.08822991 | F8: =E8*(1+('Scenario Input'!$AJ$15/100)) -> 42.04492405 | G8: =F8*(1+('Scenario Input'!$AM$15/100)) -> 42.95405031 | H8: =G8*(1+('Scenario Input'!$AP$15/100)) -> 43.82141095 | I8: =H8*(1+('Scenario Input'!$AS$15/100)) -> 44.70628599
A9: LU_Yermo | B9: 40.51 | C9: =B9*(1+('Scenario Input'!$AA$15/100)) -> 40.99255738 | D9: =C9*(1+('Scenario Input'!$AD$15/100)) -> 41.78147096 | E9: =D9*(1+('Scenario Input'!$AG$15/100)) -> 42.82182129 | F9: =E9*(1+('Scenario Input'!$AJ$15/100)) -> 43.8188802 | G9: =F9*(1+('Scenario Input'!$AM$15/100)) -> 44.76636424 | H9: =G9*(1+('Scenario Input'!$AP$15/100)) -> 45.67032049 | I9: =H9*(1+('Scenario Input'!$AS$15/100)) -> 46.59253011
A10: LU_Compton | B10: 81.68 | C10: =B10*(1+('Scenario Input'!$AA$15/100)) -> 82.65297671 | D10: =C10*(1+('Scenario Input'!$AD$15/100)) -> 84.24365708 | E10: =D10*(1+('Scenario Input'!$AG$15/100)) -> 86.3413074 | F10: =E10*(1+('Scenario Input'!$AJ$15/100)) -> 88.35166958 | G10: =F10*(1+('Scenario Input'!$AM$15/100)) -> 90.26207432 | H10: =G10*(1+('Scenario Input'!$AP$15/100)) -> 92.08471433 | I10: =H10*(1+('Scenario Input'!$AS$15/100)) -> 93.94415847
A11: SWS_LaMiranda | B11: 38.12 | C11: =B11*(1+('Scenario Input'!$AA$15/100)) -> 38.57408756 | D11: =C11*(1+('Scenario Input'!$AD$15/100)) -> 39.316457 | E11: =D11*(1+('Scenario Input'!$AG$15/100)) -> 40.29542897 | F11: =E11*(1+('Scenario Input'!$AJ$15/100)) -> 41.23366362 | G11: =F11*(1+('Scenario Input'!$AM$15/100)) -> 42.1252482 | H11: =G11*(1+('Scenario Input'!$AP$15/100)) -> 42.97587305 | I11: =H11*(1+('Scenario Input'!$AS$15/100)) -> 43.84367435
A12: SWS_Whittier | B12: 38.12 | C12: =B12*(1+('Scenario Input'!$AA$15/100)) -> 38.57408756 | D12: =C12*(1+('Scenario Input'!$AD$15/100)) -> 39.316457 | E12: =D12*(1+('Scenario Input'!$AG$15/100)) -> 40.29542897 | F12: =E12*(1+('Scenario Input'!$AJ$15/100)) -> 41.23366362 | G12: =F12*(1+('Scenario Input'!$AM$15/100)) -> 42.1252482 | H12: =G12*(1+('Scenario Input'!$AP$15/100)) -> 42.97587305 | I12: =H12*(1+('Scenario Input'!$AS$15/100)) -> 43.84367435
A13: LU_Lynwood | B13: 81.68 | C13: =B13*(1+('Scenario Input'!$AA$15/100)) -> 82.65297671 | D13: =C13*(1+('Scenario Input'!$AD$15/100)) -> 84.24365708 | E13: =D13*(1+('Scenario Input'!$AG$15/100)) -> 86.3413074 | F13: =E13*(1+('Scenario Input'!$AJ$15/100)) -> 88.35166958 | G13: =F13*(1+('Scenario Input'!$AM$15/100)) -> 90.26207432 | H13: =G13*(1+('Scenario Input'!$AP$15/100)) -> 92.08471433 | I13: =H13*(1+('Scenario Input'!$AS$15/100)) -> 93.94415847
A14: LU_Bellflower | B14: 81.68 | C14: =B14*(1+('Scenario Input'!$AA$15/100)) -> 82.65297671 | D14: =C14*(1+('Scenario Input'!$AD$15/100)) -> 84.24365708 | E14: =D14*(1+('Scenario Input'!$AG$15/100)) -> 86.3413074 | F14: =E14*(1+('Scenario Input'!$AJ$15/100)) -> 88.35166958 | G14: =F14*(1+('Scenario Input'!$AM$15/100)) -> 90.26207432 | H14: =G14*(1+('Scenario Input'!$AP$15/100)) -> 92.08471433 | I14: =H14*(1+('Scenario Input'!$AS$15/100)) -> 93.94415847
A15: GreatOaks | B15: 35.57 | C15: =B15*(1+('Scenario Input'!$AA$15/100)) -> 35.99371182 | D15: =C15*(1+('Scenario Input'!$AD$15/100)) -> 36.68642119 | E15: =D15*(1+('Scenario Input'!$AG$15/100)) -> 37.59990578 | F15: =E15*(1+('Scenario Input'!$AJ$15/100)) -> 38.47537814 | G15: =F15*(1+('Scenario Input'!$AM$15/100)) -> 39.30732105 | H15: =G15*(1+('Scenario Input'!$AP$15/100)) -> 40.10104418 | I15: =H15*(1+('Scenario Input'!$AS$15/100)) -> 40.91079477
A16: GSWC_Clearlake | B16: 86.82 | C16: =B16*(1+('Scenario Input'!$AA$15/100)) -> 87.85420467 | D16: =C16*(1+('Scenario Input'!$AD$15/100)) -> 89.54498418 | E16: =D16*(1+('Scenario Input'!$AG$15/100)) -> 91.77463649 | F16: =E16*(1+('Scenario Input'!$AJ$15/100)) -> 93.91150774 | G16: =F16*(1+('Scenario Input'!$AM$15/100)) -> 95.9421314 | H16: =G16*(1+('Scenario Input'!$AP$15/100)) -> 97.87946741 | I16: =H16*(1+('Scenario Input'!$AS$15/100)) -> 99.85592358
A17: GSWC_ArdenCordova | B17: 23.22 | C17: =B17*(1+('Scenario Input'!$AA$15/100)) -> 23.49659793 | D17: =C17*(1+('Scenario Input'!$AD$15/100)) -> 23.94879674 | E17: =D17*(1+('Scenario Input'!$AG$15/100)) -> 24.54511702 | F17: =E17*(1+('Scenario Input'!$AJ$15/100)) -> 25.11662301 | G17: =F17*(1+('Scenario Input'!$AM$15/100)) -> 25.6597131 | H17: =G17*(1+('Scenario Input'!$AP$15/100)) -> 26.17785341 | I17: =H17*(1+('Scenario Input'!$AS$15/100)) -> 26.70645641
A18: GSWC_BayPoint | B18: 68.67 | C18: =B18*(1+('Scenario Input'!$AA$15/100)) -> 69.48800086 | D18: =C18*(1+('Scenario Input'!$AD$15/100)) -> 70.82531748 | E18: =D18*(1+('Scenario Input'!$AG$15/100)) -> 72.58885381 | F18: =E18*(1+('Scenario Input'!$AJ$15/100)) -> 74.27900526 | G18: =F18*(1+('Scenario Input'!$AM$15/100)) -> 75.88512052 | H18: =G18*(1+('Scenario Input'!$AP$15/100)) -> 77.41745021 | I18: =H18*(1+('Scenario Input'!$AS$15/100)) -> 78.98072187
A19: GSWC_Region3 | B19: 36.11 | C19: =B19*(1+('Scenario Input'!$AA$15/100)) -> 36.54014433 | D19: =C19*(1+('Scenario Input'!$AD$15/100)) -> 37.24336995 | E19: =D19*(1+('Scenario Input'!$AG$15/100)) -> 38.17072246 | F19: =E19*(1+('Scenario Input'!$AJ$15/100)) -> 39.05948566 | G19: =F19*(1+('Scenario Input'!$AM$15/100)) -> 39.90405857 | H19: =G19*(1+('Scenario Input'!$AP$15/100)) -> 40.70983147 | I19: =H19*(1+('Scenario Input'!$AS$15/100)) -> 41.53187515
A20: GSWC_Region3 | B20: 36.11 | C20: =B20*(1+('Scenario Input'!$AA$15/100)) -> 36.54014433 | D20: =C20*(1+('Scenario Input'!$AD$15/100)) -> 37.24336995 | E20: =D20*(1+('Scenario Input'!$AG$15/100)) -> 38.17072246 | F20: =E20*(1+('Scenario Input'!$AJ$15/100)) -> 39.05948566 | G20: =F20*(1+('Scenario Input'!$AM$15/100)) -> 39.90405857 | H20: =G20*(1+('Scenario Input'!$AP$15/100)) -> 40.70983147 | I20: =H20*(1+('Scenario Input'!$AS$15/100)) -> 41.53187515
A21: GSWC_Region3 | B21: 36.11 | C21: =B21*(1+('Scenario Input'!$AA$15/100)) -> 36.54014433 | D21: =C21*(1+('Scenario Input'!$AD$15/100)) -> 37.24336995 | E21: =D21*(1+('Scenario Input'!$AG$15/100)) -> 38.17072246 | F21: =E21*(1+('Scenario Input'!$AJ$15/100)) -> 39.05948566 | G21: =F21*(1+('Scenario Input'!$AM$15/100)) -> 39.90405857 | H21: =G21*(1+('Scenario Input'!$AP$15/100)) -> 40.70983147 | I21: =H21*(1+('Scenario Input'!$AS$15/100)) -> 41.53187515
A22: GSWC_SantaMaria | B22: 40.01 | C22: =B22*(1+('Scenario Input'!$AA$15/100)) -> 40.48660135 | D22: =C22*(1+('Scenario Input'!$AD$15/100)) -> 41.26577767 | E22: =D22*(1+('Scenario Input'!$AG$15/100)) -> 42.29328733 | F22: =E22*(1+('Scenario Input'!$AJ$15/100)) -> 43.27803991 | G22: =F22*(1+('Scenario Input'!$AM$15/100)) -> 44.2138295 | H22: =G22*(1+('Scenario Input'!$AP$15/100)) -> 45.10662856 | I22: =H22*(1+('Scenario Input'!$AS$15/100)) -> 46.01745568
A23: GSWC_SantaMaria | B23: 40.01 | C23: =B23*(1+('Scenario Input'!$AA$15/100)) -> 40.48660135 | D23: =C23*(1+('Scenario Input'!$AD$15/100)) -> 41.26577767 | E23: =D23*(1+('Scenario Input'!$AG$15/100)) -> 42.29328733 | F23: =E23*(1+('Scenario Input'!$AJ$15/100)) -> 43.27803991 | G23: =F23*(1+('Scenario Input'!$AM$15/100)) -> 44.2138295 | H23: =G23*(1+('Scenario Input'!$AP$15/100)) -> 45.10662856 | I23: =H23*(1+('Scenario Input'!$AS$15/100)) -> 46.01745568
A24: GSWC_SantaMaria | B24: 40.01 | C24: =B24*(1+('Scenario Input'!$AA$15/100)) -> 40.48660135 | D24: =C24*(1+('Scenario Input'!$AD$15/100)) -> 41.26577767 | E24: =D24*(1+('Scenario Input'!$AG$15/100)) -> 42.29328733 | F24: =E24*(1+('Scenario Input'!$AJ$15/100)) -> 43.27803991 | G24: =F24*(1+('Scenario Input'!$AM$15/100)) -> 44.2138295 | H24: =G24*(1+('Scenario Input'!$AP$15/100)) -> 45.10662856 | I24: =H24*(1+('Scenario Input'!$AS$15/100)) -> 46.01745568
A25: GSWC_Region2 | B25: 45.33 | C25: =B25*(1+('Scenario Input'!$AA$15/100)) -> 45.86997348 | D25: =C25*(1+('Scenario Input'!$AD$15/100)) -> 46.75275435 | E25: =D25*(1+('Scenario Input'!$AG$15/100)) -> 47.91688865 | F25: =E25*(1+('Scenario Input'!$AJ$15/100)) -> 49.03258058 | G25: =F25*(1+('Scenario Input'!$AM$15/100)) -> 50.09279908 | H25: =G25*(1+('Scenario Input'!$AP$15/100)) -> 51.10431073 | I25: =H25*(1+('Scenario Input'!$AS$15/100)) -> 52.13624759
A26: GSWC_Region2 | B26: 45.33 | C26: =B26*(1+('Scenario Input'!$AA$15/100)) -> 45.86997348 | D26: =C26*(1+('Scenario Input'!$AD$15/100)) -> 46.75275435 | E26: =D26*(1+('Scenario Input'!$AG$15/100)) -> 47.91688865 | F26: =E26*(1+('Scenario Input'!$AJ$15/100)) -> 49.03258058 | G26: =F26*(1+('Scenario Input'!$AM$15/100)) -> 50.09279908 | H26: =G26*(1+('Scenario Input'!$AP$15/100)) -> 51.10431073 | I26: =H26*(1+('Scenario Input'!$AS$15/100)) -> 52.13624759
A27: GSWC_Region2 | B27: 45.33 | C27: =B27*(1+('Scenario Input'!$AA$15/100)) -> 45.86997348 | D27: =C27*(1+('Scenario Input'!$AD$15/100)) -> 46.75275435 | E27: =D27*(1+('Scenario Input'!$AG$15/100)) -> 47.91688865 | F27: =E27*(1+('Scenario Input'!$AJ$15/100)) -> 49.03258058 | G27: =F27*(1+('Scenario Input'!$AM$15/100)) -> 50.09279908 | H27: =G27*(1+('Scenario Input'!$AP$15/100)) -> 51.10431073 | I27: =H27*(1+('Scenario Input'!$AS$15/100)) -> 52.13624759
A28: GSWC_Region2 | B28: 45.33 | C28: =B28*(1+('Scenario Input'!$AA$15/100)) -> 45.86997348 | D28: =C28*(1+('Scenario Input'!$AD$15/100)) -> 46.75275435 | E28: =D28*(1+('Scenario Input'!$AG$15/100)) -> 47.91688865 | F28: =E28*(1+('Scenario Input'!$AJ$15/100)) -> 49.03258058 | G28: =F28*(1+('Scenario Input'!$AM$15/100)) -> 50.09279908 | H28: =G28*(1+('Scenario Input'!$AP$15/100)) -> 51.10431073 | I28: =H28*(1+('Scenario Input'!$AS$15/100)) -> 52.13624759
A29: GSWC_LosOsos | B29: 85.2 | C29: =B29*(1+('Scenario Input'!$AA$15/100)) -> 86.21490714 | D29: =C29*(1+('Scenario Input'!$AD$15/100)) -> 87.8741379 | E29: =D29*(1+('Scenario Input'!$AG$15/100)) -> 90.06218647 | F29: =E29*(1+('Scenario Input'!$AJ$15/100)) -> 92.15918521 | G29: =F29*(1+('Scenario Input'!$AM$15/100)) -> 94.15191886 | H29: =G29*(1+('Scenario Input'!$AP$15/100)) -> 96.05310555 | I29: =H29*(1+('Scenario Input'!$AS$15/100)) -> 97.99268244
A30: GSWC_SantaMaria | B30: 40.01 | C30: =B30*(1+('Scenario Input'!$AA$15/100)) -> 40.48660135 | D30: =C30*(1+('Scenario Input'!$AD$15/100)) -> 41.26577767 | E30: =D30*(1+('Scenario Input'!$AG$15/100)) -> 42.29328733 | F30: =E30*(1+('Scenario Input'!$AJ$15/100)) -> 43.27803991 | G30: =F30*(1+('Scenario Input'!$AM$15/100)) -> 44.2138295 | H30: =G30*(1+('Scenario Input'!$AP$15/100)) -> 45.10662856 | I30: =H30*(1+('Scenario Input'!$AS$15/100)) -> 46.01745568
A31: GSWC_Region2 | B31: 45.33 | C31: =B31*(1+('Scenario Input'!$AA$15/100)) -> 45.86997348 | D31: =C31*(1+('Scenario Input'!$AD$15/100)) -> 46.75275435 | E31: =D31*(1+('Scenario Input'!$AG$15/100)) -> 47.91688865 | F31: =E31*(1+('Scenario Input'!$AJ$15/100)) -> 49.03258058 | G31: =F31*(1+('Scenario Input'!$AM$15/100)) -> 50.09279908 | H31: =G31*(1+('Scenario Input'!$AP$15/100)) -> 51.10431073 | I31: =H31*(1+('Scenario Input'!$AS$15/100)) -> 52.13624759
A32: GSWC_Region3 | B32: 36.11 | C32: =B32*(1+('Scenario Input'!$AA$15/100)) -> 36.54014433 | D32: =C32*(1+('Scenario Input'!$AD$15/100)) -> 37.24336995 | E32: =D32*(1+('Scenario Input'!$AG$15/100)) -> 38.17072246 | F32: =E32*(1+('Scenario Input'!$AJ$15/100)) -> 39.05948566 | G32: =F32*(1+('Scenario Input'!$AM$15/100)) -> 39.90405857 | H32: =G32*(1+('Scenario Input'!$AP$15/100)) -> 40.70983147 | I32: =H32*(1+('Scenario Input'!$AS$15/100)) -> 41.53187515
A33: GSWC_Region2 | B33: 45.33 | C33: =B33*(1+('Scenario Input'!$AA$15/100)) -> 45.86997348 | D33: =C33*(1+('Scenario Input'!$AD$15/100)) -> 46.75275435 | E33: =D33*(1+('Scenario Input'!$AG$15/100)) -> 47.91688865 | F33: =E33*(1+('Scenario Input'!$AJ$15/100)) -> 49.03258058 | G33: =F33*(1+('Scenario Input'!$AM$15/100)) -> 50.09279908 | H33: =G33*(1+('Scenario Input'!$AP$15/100)) -> 51.10431073 | I33: =H33*(1+('Scenario Input'!$AS$15/100)) -> 52.13624759
A34: GSWC_Region2 | B34: 45.33 | C34: =B34*(1+('Scenario Input'!$AA$15/100)) -> 45.86997348 | D34: =C34*(1+('Scenario Input'!$AD$15/100)) -> 46.75275435 | E34: =D34*(1+('Scenario Input'!$AG$15/100)) -> 47.91688865 | F34: =E34*(1+('Scenario Input'!$AJ$15/100)) -> 49.03258058 | G34: =F34*(1+('Scenario Input'!$AM$15/100)) -> 50.09279908 | H34: =G34*(1+('Scenario Input'!$AP$15/100)) -> 51.10431073 | I34: =H34*(1+('Scenario Input'!$AS$15/100)) -> 52.13624759
A35: GSWC_Region3 | B35: 36.11 | C35: =B35*(1+('Scenario Input'!$AA$15/100)) -> 36.54014433 | D35: =C35*(1+('Scenario Input'!$AD$15/100)) -> 37.24336995 | E35: =D35*(1+('Scenario Input'!$AG$15/100)) -> 38.17072246 | F35: =E35*(1+('Scenario Input'!$AJ$15/100)) -> 39.05948566 | G35: =F35*(1+('Scenario Input'!$AM$15/100)) -> 39.90405857 | H35: =G35*(1+('Scenario Input'!$AP$15/100)) -> 40.70983147 | I35: =H35*(1+('Scenario Input'!$AS$15/100)) -> 41.53187515
A36: GSWC_Region2 | B36: 45.33 | C36: =B36*(1+('Scenario Input'!$AA$15/100)) -> 45.86997348 | D36: =C36*(1+('Scenario Input'!$AD$15/100)) -> 46.75275435 | E36: =D36*(1+('Scenario Input'!$AG$15/100)) -> 47.91688865 | F36: =E36*(1+('Scenario Input'!$AJ$15/100)) -> 49.03258058 | G36: =F36*(1+('Scenario Input'!$AM$15/100)) -> 50.09279908 | H36: =G36*(1+('Scenario Input'!$AP$15/100)) -> 51.10431073 | I36: =H36*(1+('Scenario Input'!$AS$15/100)) -> 52.13624759
A37: GSWC_SimiValley | B37: 41.7 | C37: =B37*(1+('Scenario Input'!$AA$15/100)) -> 42.19673272 | D37: =C37*(1+('Scenario Input'!$AD$15/100)) -> 43.00882101 | E37: =D37*(1+('Scenario Input'!$AG$15/100)) -> 44.07973211 | F37: =E37*(1+('Scenario Input'!$AJ$15/100)) -> 45.10608008 | G37: =F37*(1+('Scenario Input'!$AM$15/100)) -> 46.08139691 | H37: =G37*(1+('Scenario Input'!$AP$15/100)) -> 47.01190729 | I37: =H37*(1+('Scenario Input'!$AS$15/100)) -> 47.96120725
A38: GSWC_Region3 | B38: 36.11 | C38: =B38*(1+('Scenario Input'!$AA$15/100)) -> 36.54014433 | D38: =C38*(1+('Scenario Input'!$AD$15/100)) -> 37.24336995 | E38: =D38*(1+('Scenario Input'!$AG$15/100)) -> 38.17072246 | F38: =E38*(1+('Scenario Input'!$AJ$15/100)) -> 39.05948566 | G38: =F38*(1+('Scenario Input'!$AM$15/100)) -> 39.90405857 | H38: =G38*(1+('Scenario Input'!$AP$15/100)) -> 40.70983147 | I38: =H38*(1+('Scenario Input'!$AS$15/100)) -> 41.53187515
A39: GSWC_Region3 | B39: 36.11 | C39: =B39*(1+('Scenario Input'!$AA$15/100)) -> 36.54014433 | D39: =C39*(1+('Scenario Input'!$AD$15/100)) -> 37.24336995 | E39: =D39*(1+('Scenario Input'!$AG$15/100)) -> 38.17072246 | F39: =E39*(1+('Scenario Input'!$AJ$15/100)) -> 39.05948566 | G39: =F39*(1+('Scenario Input'!$AM$15/100)) -> 39.90405857 | H39: =G39*(1+('Scenario Input'!$AP$15/100)) -> 40.70983147 | I39: =H39*(1+('Scenario Input'!$AS$15/100)) -> 41.53187515
A40: GSWC_Region3 | B40: 36.11 | C40: =B40*(1+('Scenario Input'!$AA$15/100)) -> 36.54014433 | D40: =C40*(1+('Scenario Input'!$AD$15/100)) -> 37.24336995 | E40: =D40*(1+('Scenario Input'!$AG$15/100)) -> 38.17072246 | F40: =E40*(1+('Scenario Input'!$AJ$15/100)) -> 39.05948566 | G40: =F40*(1+('Scenario Input'!$AM$15/100)) -> 39.90405857 | H40: =G40*(1+('Scenario Input'!$AP$15/100)) -> 40.70983147 | I40: =H40*(1+('Scenario Input'!$AS$15/100)) -> 41.53187515
A41: GSWC_Region3 | B41: 36.11 | C41: =B41*(1+('Scenario Input'!$AA$15/100)) -> 36.54014433 | D41: =C41*(1+('Scenario Input'!$AD$15/100)) -> 37.24336995 | E41: =D41*(1+('Scenario Input'!$AG$15/100)) -> 38.17072246 | F41: =E41*(1+('Scenario Input'!$AJ$15/100)) -> 39.05948566 | G41: =F41*(1+('Scenario Input'!$AM$15/100)) -> 39.90405857 | H41: =G41*(1+('Scenario Input'!$AP$15/100)) -> 40.70983147 | I41: =H41*(1+('Scenario Input'!$AS$15/100)) -> 41.53187515
A42: GSWC_Region3 | B42: 36.11 | C42: =B42*(1+('Scenario Input'!$AA$15/100)) -> 36.54014433 | D42: =C42*(1+('Scenario Input'!$AD$15/100)) -> 37.24336995 | E42: =D42*(1+('Scenario Input'!$AG$15/100)) -> 38.17072246 | F42: =E42*(1+('Scenario Input'!$AJ$15/100)) -> 39.05948566 | G42: =F42*(1+('Scenario Input'!$AM$15/100)) -> 39.90405857 | H42: =G42*(1+('Scenario Input'!$AP$15/100)) -> 40.70983147 | I42: =H42*(1+('Scenario Input'!$AS$15/100)) -> 41.53187515
A43: GSWC_Region3 | B43: 36.11 | C43: =B43*(1+('Scenario Input'!$AA$15/100)) -> 36.54014433 | D43: =C43*(1+('Scenario Input'!$AD$15/100)) -> 37.24336995 | E43: =D43*(1+('Scenario Input'!$AG$15/100)) -> 38.17072246 | F43: =E43*(1+('Scenario Input'!$AJ$15/100)) -> 39.05948566 | G43: =F43*(1+('Scenario Input'!$AM$15/100)) -> 39.90405857 | H43: =G43*(1+('Scenario Input'!$AP$15/100)) -> 40.70983147 | I43: =H43*(1+('Scenario Input'!$AS$15/100)) -> 41.53187515
A44: GSWC_Region3 | B44: 36.11 | C44: =B44*(1+('Scenario Input'!$AA$15/100)) -> 36.54014433 | D44: =C44*(1+('Scenario Input'!$AD$15/100)) -> 37.24336995 | E44: =D44*(1+('Scenario Input'!$AG$15/100)) -> 38.17072246 | F44: =E44*(1+('Scenario Input'!$AJ$15/100)) -> 39.05948566 | G44: =F44*(1+('Scenario Input'!$AM$15/100)) -> 39.90405857 | H44: =G44*(1+('Scenario Input'!$AP$15/100)) -> 40.70983147 | I44: =H44*(1+('Scenario Input'!$AS$15/100)) -> 41.53187515
A45: GSWC_Region2 | B45: 45.33 | C45: =B45*(1+('Scenario Input'!$AA$15/100)) -> 45.86997348 | D45: =C45*(1+('Scenario Input'!$AD$15/100)) -> 46.75275435 | E45: =D45*(1+('Scenario Input'!$AG$15/100)) -> 47.91688865 | F45: =E45*(1+('Scenario Input'!$AJ$15/100)) -> 49.03258058 | G45: =F45*(1+('Scenario Input'!$AM$15/100)) -> 50.09279908 | H45: =G45*(1+('Scenario Input'!$AP$15/100)) -> 51.10431073 | I45: =H45*(1+('Scenario Input'!$AS$15/100)) -> 52.13624759
A46: GSWC_Region3 | B46: 36.11 | C46: =B46*(1+('Scenario Input'!$AA$15/100)) -> 36.54014433 | D46: =C46*(1+('Scenario Input'!$AD$15/100)) -> 37.24336995 | E46: =D46*(1+('Scenario Input'!$AG$15/100)) -> 38.17072246 | F46: =E46*(1+('Scenario Input'!$AJ$15/100)) -> 39.05948566 | G46: =F46*(1+('Scenario Input'!$AM$15/100)) -> 39.90405857 | H46: =G46*(1+('Scenario Input'!$AP$15/100)) -> 40.70983147 | I46: =H46*(1+('Scenario Input'!$AS$15/100)) -> 41.53187515
A47: GSWC_Region3 | B47: 36.11 | C47: =B47*(1+('Scenario Input'!$AA$15/100)) -> 36.54014433 | D47: =C47*(1+('Scenario Input'!$AD$15/100)) -> 37.24336995 | E47: =D47*(1+('Scenario Input'!$AG$15/100)) -> 38.17072246 | F47: =E47*(1+('Scenario Input'!$AJ$15/100)) -> 39.05948566 | G47: =F47*(1+('Scenario Input'!$AM$15/100)) -> 39.90405857 | H47: =G47*(1+('Scenario Input'!$AP$15/100)) -> 40.70983147 | I47: =H47*(1+('Scenario Input'!$AS$15/100)) -> 41.53187515
A48: GSWC_Region3 | B48: 36.11 | C48: =B48*(1+('Scenario Input'!$AA$15/100)) -> 36.54014433 | D48: =C48*(1+('Scenario Input'!$AD$15/100)) -> 37.24336995 | E48: =D48*(1+('Scenario Input'!$AG$15/100)) -> 38.17072246 | F48: =E48*(1+('Scenario Input'!$AJ$15/100)) -> 39.05948566 | G48: =F48*(1+('Scenario Input'!$AM$15/100)) -> 39.90405857 | H48: =G48*(1+('Scenario Input'!$AP$15/100)) -> 40.70983147 | I48: =H48*(1+('Scenario Input'!$AS$15/100)) -> 41.53187515
A49: GSWC_Region3 | B49: 36.11 | C49: =B49*(1+('Scenario Input'!$AA$15/100)) -> 36.54014433 | D49: =C49*(1+('Scenario Input'!$AD$15/100)) -> 37.24336995 | E49: =D49*(1+('Scenario Input'!$AG$15/100)) -> 38.17072246 | F49: =E49*(1+('Scenario Input'!$AJ$15/100)) -> 39.05948566 | G49: =F49*(1+('Scenario Input'!$AM$15/100)) -> 39.90405857 | H49: =G49*(1+('Scenario Input'!$AP$15/100)) -> 40.70983147 | I49: =H49*(1+('Scenario Input'!$AS$15/100)) -> 41.53187515
A50: GSWC_Region3 | B50: 36.11 | C50: =B50*(1+('Scenario Input'!$AA$15/100)) -> 36.54014433 | D50: =C50*(1+('Scenario Input'!$AD$15/100)) -> 37.24336995 | E50: =D50*(1+('Scenario Input'!$AG$15/100)) -> 38.17072246 | F50: =E50*(1+('Scenario Input'!$AJ$15/100)) -> 39.05948566 | G50: =F50*(1+('Scenario Input'!$AM$15/100)) -> 39.90405857 | H50: =G50*(1+('Scenario Input'!$AP$15/100)) -> 40.70983147 | I50: =H50*(1+('Scenario Input'!$AS$15/100)) -> 41.53187515
A51: GSWC_Region3 | B51: 36.11 | C51: =B51*(1+('Scenario Input'!$AA$15/100)) -> 36.54014433 | D51: =C51*(1+('Scenario Input'!$AD$15/100)) -> 37.24336995 | E51: =D51*(1+('Scenario Input'!$AG$15/100)) -> 38.17072246 | F51: =E51*(1+('Scenario Input'!$AJ$15/100)) -> 39.05948566 | G51: =F51*(1+('Scenario Input'!$AM$15/100)) -> 39.90405857 | H51: =G51*(1+('Scenario Input'!$AP$15/100)) -> 40.70983147 | I51: =H51*(1+('Scenario Input'!$AS$15/100)) -> 41.53187515
A52: GSWC_LosOsos | B52: 85.2 | C52: =B52*(1+('Scenario Input'!$AA$15/100)) -> 86.21490714 | D52: =C52*(1+('Scenario Input'!$AD$15/100)) -> 87.8741379 | E52: =D52*(1+('Scenario Input'!$AG$15/100)) -> 90.06218647 | F52: =E52*(1+('Scenario Input'!$AJ$15/100)) -> 92.15918521 | G52: =F52*(1+('Scenario Input'!$AM$15/100)) -> 94.15191886 | H52: =G52*(1+('Scenario Input'!$AP$15/100)) -> 96.05310555 | I52: =H52*(1+('Scenario Input'!$AS$15/100)) -> 97.99268244
A53: GSWC_Region3 | B53: 36.11 | C53: =B53*(1+('Scenario Input'!$AA$15/100)) -> 36.54014433 | D53: =C53*(1+('Scenario Input'!$AD$15/100)) -> 37.24336995 | E53: =D53*(1+('Scenario Input'!$AG$15/100)) -> 38.17072246 | F53: =E53*(1+('Scenario Input'!$AJ$15/100)) -> 39.05948566 | G53: =F53*(1+('Scenario Input'!$AM$15/100)) -> 39.90405857 | H53: =G53*(1+('Scenario Input'!$AP$15/100)) -> 40.70983147 | I53: =H53*(1+('Scenario Input'!$AS$15/100)) -> 41.53187515
A54: GSWC_Region3 | B54: 36.11 | C54: =B54*(1+('Scenario Input'!$AA$15/100)) -> 36.54014433 | D54: =C54*(1+('Scenario Input'!$AD$15/100)) -> 37.24336995 | E54: =D54*(1+('Scenario Input'!$AG$15/100)) -> 38.17072246 | F54: =E54*(1+('Scenario Input'!$AJ$15/100)) -> 39.05948566 | G54: =F54*(1+('Scenario Input'!$AM$15/100)) -> 39.90405857 | H54: =G54*(1+('Scenario Input'!$AP$15/100)) -> 40.70983147 | I54: =H54*(1+('Scenario Input'!$AS$15/100)) -> 41.53187515
A55: GSWC_Region3 | B55: 36.11 | C55: =B55*(1+('Scenario Input'!$AA$15/100)) -> 36.54014433 | D55: =C55*(1+('Scenario Input'!$AD$15/100)) -> 37.24336995 | E55: =D55*(1+('Scenario Input'!$AG$15/100)) -> 38.17072246 | F55: =E55*(1+('Scenario Input'!$AJ$15/100)) -> 39.05948566 | G55: =F55*(1+('Scenario Input'!$AM$15/100)) -> 39.90405857 | H55: =G55*(1+('Scenario Input'!$AP$15/100)) -> 40.70983147 | I55: =H55*(1+('Scenario Input'!$AS$15/100)) -> 41.53187515
A56: GSWC_Region2 | B56: 45.33 | C56: =B56*(1+('Scenario Input'!$AA$15/100)) -> 45.86997348 | D56: =C56*(1+('Scenario Input'!$AD$15/100)) -> 46.75275435 | E56: =D56*(1+('Scenario Input'!$AG$15/100)) -> 47.91688865 | F56: =E56*(1+('Scenario Input'!$AJ$15/100)) -> 49.03258058 | G56: =F56*(1+('Scenario Input'!$AM$15/100)) -> 50.09279908 | H56: =G56*(1+('Scenario Input'!$AP$15/100)) -> 51.10431073 | I56: =H56*(1+('Scenario Input'!$AS$15/100)) -> 52.13624759
A57: GSWC_Region2 | B57: 45.33 | C57: =B57*(1+('Scenario Input'!$AA$15/100)) -> 45.86997348 | D57: =C57*(1+('Scenario Input'!$AD$15/100)) -> 46.75275435 | E57: =D57*(1+('Scenario Input'!$AG$15/100)) -> 47.91688865 | F57: =E57*(1+('Scenario Input'!$AJ$15/100)) -> 49.03258058 | G57: =F57*(1+('Scenario Input'!$AM$15/100)) -> 50.09279908 | H57: =G57*(1+('Scenario Input'!$AP$15/100)) -> 51.10431073 | I57: =H57*(1+('Scenario Input'!$AS$15/100)) -> 52.13624759
A58: GSWC_Region3 | B58: 36.11 | C58: =B58*(1+('Scenario Input'!$AA$15/100)) -> 36.54014433 | D58: =C58*(1+('Scenario Input'!$AD$15/100)) -> 37.24336995 | E58: =D58*(1+('Scenario Input'!$AG$15/100)) -> 38.17072246 | F58: =E58*(1+('Scenario Input'!$AJ$15/100)) -> 39.05948566 | G58: =F58*(1+('Scenario Input'!$AM$15/100)) -> 39.90405857 | H58: =G58*(1+('Scenario Input'!$AP$15/100)) -> 40.70983147 | I58: =H58*(1+('Scenario Input'!$AS$15/100)) -> 41.53187515
A59: GSWC_SantaMaria | B59: 40.01 | C59: =B59*(1+('Scenario Input'!$AA$15/100)) -> 40.48660135 | D59: =C59*(1+('Scenario Input'!$AD$15/100)) -> 41.26577767 | E59: =D59*(1+('Scenario Input'!$AG$15/100)) -> 42.29328733 | F59: =E59*(1+('Scenario Input'!$AJ$15/100)) -> 43.27803991 | G59: =F59*(1+('Scenario Input'!$AM$15/100)) -> 44.2138295 | H59: =G59*(1+('Scenario Input'!$AP$15/100)) -> 45.10662856 | I59: =H59*(1+('Scenario Input'!$AS$15/100)) -> 46.01745568
A60: GSWC_SantaMaria | B60: 40.01 | C60: =B60*(1+('Scenario Input'!$AA$15/100)) -> 40.48660135 | D60: =C60*(1+('Scenario Input'!$AD$15/100)) -> 41.26577767 | E60: =D60*(1+('Scenario Input'!$AG$15/100)) -> 42.29328733 | F60: =E60*(1+('Scenario Input'!$AJ$15/100)) -> 43.27803991 | G60: =F60*(1+('Scenario Input'!$AM$15/100)) -> 44.2138295 | H60: =G60*(1+('Scenario Input'!$AP$15/100)) -> 45.10662856 | I60: =H60*(1+('Scenario Input'!$AS$15/100)) -> 46.01745568
A61: GSWC_SantaMaria | B61: 40.01 | C61: =B61*(1+('Scenario Input'!$AA$15/100)) -> 40.48660135 | D61: =C61*(1+('Scenario Input'!$AD$15/100)) -> 41.26577767 | E61: =D61*(1+('Scenario Input'!$AG$15/100)) -> 42.29328733 | F61: =E61*(1+('Scenario Input'!$AJ$15/100)) -> 43.27803991 | G61: =F61*(1+('Scenario Input'!$AM$15/100)) -> 44.2138295 | H61: =G61*(1+('Scenario Input'!$AP$15/100)) -> 45.10662856 | I61: =H61*(1+('Scenario Input'!$AS$15/100)) -> 46.01745568
A62: GSWC_SantaMaria | B62: 40.01 | C62: =B62*(1+('Scenario Input'!$AA$15/100)) -> 40.48660135 | D62: =C62*(1+('Scenario Input'!$AD$15/100)) -> 41.26577767 | E62: =D62*(1+('Scenario Input'!$AG$15/100)) -> 42.29328733 | F62: =E62*(1+('Scenario Input'!$AJ$15/100)) -> 43.27803991 | G62: =F62*(1+('Scenario Input'!$AM$15/100)) -> 44.2138295 | H62: =G62*(1+('Scenario Input'!$AP$15/100)) -> 45.10662856 | I62: =H62*(1+('Scenario Input'!$AS$15/100)) -> 46.01745568
A63: GSWC_SantaMaria | B63: 40.01 | C63: =B63*(1+('Scenario Input'!$AA$15/100)) -> 40.48660135 | D63: =C63*(1+('Scenario Input'!$AD$15/100)) -> 41.26577767 | E63: =D63*(1+('Scenario Input'!$AG$15/100)) -> 42.29328733 | F63: =E63*(1+('Scenario Input'!$AJ$15/100)) -> 43.27803991 | G63: =F63*(1+('Scenario Input'!$AM$15/100)) -> 44.2138295 | H63: =G63*(1+('Scenario Input'!$AP$15/100)) -> 45.10662856 | I63: =H63*(1+('Scenario Input'!$AS$15/100)) -> 46.01745568
A64: GSWC_ArdenCordova | B64: 23.22 | C64: =B64*(1+('Scenario Input'!$AA$15/100)) -> 23.49659793 | D64: =C64*(1+('Scenario Input'!$AD$15/100)) -> 23.94879674 | E64: =D64*(1+('Scenario Input'!$AG$15/100)) -> 24.54511702 | F64: =E64*(1+('Scenario Input'!$AJ$15/100)) -> 25.11662301 | G64: =F64*(1+('Scenario Input'!$AM$15/100)) -> 25.6597131 | H64: =G64*(1+('Scenario Input'!$AP$15/100)) -> 26.17785341 | I64: =H64*(1+('Scenario Input'!$AS$15/100)) -> 26.70645641
A65: CWS_Visalia | B65: 20.24 | C65: =B65*(1+('Scenario Input'!$AA$15/100)) -> 20.48110001 | D65: =C65*(1+('Scenario Input'!$AD$15/100)) -> 20.87526468 | E65: =D65*(1+('Scenario Input'!$AG$15/100)) -> 21.39505463 | F65: =E65*(1+('Scenario Input'!$AJ$15/100)) -> 21.89321489 | G65: =F65*(1+('Scenario Input'!$AM$15/100)) -> 22.36660608 | H65: =G65*(1+('Scenario Input'!$AP$15/100)) -> 22.81824949 | I65: =H65*(1+('Scenario Input'!$AS$15/100)) -> 23.27901282
A66: CWS_Visalia | B66: 20.24 | C66: =B66*(1+('Scenario Input'!$AA$15/100)) -> 20.48110001 | D66: =C66*(1+('Scenario Input'!$AD$15/100)) -> 20.87526468 | E66: =D66*(1+('Scenario Input'!$AG$15/100)) -> 21.39505463 | F66: =E66*(1+('Scenario Input'!$AJ$15/100)) -> 21.89321489 | G66: =F66*(1+('Scenario Input'!$AM$15/100)) -> 22.36660608 | H66: =G66*(1+('Scenario Input'!$AP$15/100)) -> 22.81824949 | I66: =H66*(1+('Scenario Input'!$AS$15/100)) -> 23.27901282
A67: CWS_Visalia | B67: 20.24 | C67: =B67*(1+('Scenario Input'!$AA$15/100)) -> 20.48110001 | D67: =C67*(1+('Scenario Input'!$AD$15/100)) -> 20.87526468 | E67: =D67*(1+('Scenario Input'!$AG$15/100)) -> 21.39505463 | F67: =E67*(1+('Scenario Input'!$AJ$15/100)) -> 21.89321489 | G67: =F67*(1+('Scenario Input'!$AM$15/100)) -> 22.36660608 | H67: =G67*(1+('Scenario Input'!$AP$15/100)) -> 22.81824949 | I67: =H67*(1+('Scenario Input'!$AS$15/100)) -> 23.27901282
A68: CWS_Willows | B68: 54.43 | C68: =B68*(1+('Scenario Input'!$AA$15/100)) -> 55.07837319 | D68: =C68*(1+('Scenario Input'!$AD$15/100)) -> 56.13837237 | E68: =D68*(1+('Scenario Input'!$AG$15/100)) -> 57.53620668 | F68: =E68*(1+('Scenario Input'!$AJ$15/100)) -> 58.87587384 | G68: =F68*(1+('Scenario Input'!$AM$15/100)) -> 60.14893126 | H68: =G68*(1+('Scenario Input'!$AP$15/100)) -> 61.36350393 | I68: =H68*(1+('Scenario Input'!$AS$15/100)) -> 62.60260217
A69: CWS_Westlake | B69: 56.87 | C69: =B69*(1+('Scenario Input'!$AA$15/100)) -> 57.54743861 | D69: =C69*(1+('Scenario Input'!$AD$15/100)) -> 58.65495566 | E69: =D69*(1+('Scenario Input'!$AG$15/100)) -> 60.1154524 | F69: =E69*(1+('Scenario Input'!$AJ$15/100)) -> 61.51517445 | G69: =F69*(1+('Scenario Input'!$AM$15/100)) -> 62.84530077 | H69: =G69*(1+('Scenario Input'!$AP$15/100)) -> 64.11432057 | I69: =H69*(1+('Scenario Input'!$AS$15/100)) -> 65.40896538
A70: CWS_LA_Valley | B70: 56.9 | C70: =B70*(1+('Scenario Input'!$AA$15/100)) -> 57.57779597 | D70: =C70*(1+('Scenario Input'!$AD$15/100)) -> 58.68589726 | E70: =D70*(1+('Scenario Input'!$AG$15/100)) -> 60.14716444 | F70: =E70*(1+('Scenario Input'!$AJ$15/100)) -> 61.54762486 | G70: =F70*(1+('Scenario Input'!$AM$15/100)) -> 62.87845285 | H70: =G70*(1+('Scenario Input'!$AP$15/100)) -> 64.14814209 | I70: =H70*(1+('Scenario Input'!$AS$15/100)) -> 65.44346984
A71: CWS_LA_Valley | B71: 56.9 | C71: =B71*(1+('Scenario Input'!$AA$15/100)) -> 57.57779597 | D71: =C71*(1+('Scenario Input'!$AD$15/100)) -> 58.68589726 | E71: =D71*(1+('Scenario Input'!$AG$15/100)) -> 60.14716444 | F71: =E71*(1+('Scenario Input'!$AJ$15/100)) -> 61.54762486 | G71: =F71*(1+('Scenario Input'!$AM$15/100)) -> 62.87845285 | H71: =G71*(1+('Scenario Input'!$AP$15/100)) -> 64.14814209 | I71: =H71*(1+('Scenario Input'!$AS$15/100)) -> 65.44346984
A72: CWS_LA_Valley | B72: 56.9 | C72: =B72*(1+('Scenario Input'!$AA$15/100)) -> 57.57779597 | D72: =C72*(1+('Scenario Input'!$AD$15/100)) -> 58.68589726 | E72: =D72*(1+('Scenario Input'!$AG$15/100)) -> 60.14716444 | F72: =E72*(1+('Scenario Input'!$AJ$15/100)) -> 61.54762486 | G72: =F72*(1+('Scenario Input'!$AM$15/100)) -> 62.87845285 | H72: =G72*(1+('Scenario Input'!$AP$15/100)) -> 64.14814209 | I72: =H72*(1+('Scenario Input'!$AS$15/100)) -> 65.44346984
A73: CWS_LA_Valley | B73: 56.9 | C73: =B73*(1+('Scenario Input'!$AA$15/100)) -> 57.57779597 | D73: =C73*(1+('Scenario Input'!$AD$15/100)) -> 58.68589726 | E73: =D73*(1+('Scenario Input'!$AG$15/100)) -> 60.14716444 | F73: =E73*(1+('Scenario Input'!$AJ$15/100)) -> 61.54762486 | G73: =F73*(1+('Scenario Input'!$AM$15/100)) -> 62.87845285 | H73: =G73*(1+('Scenario Input'!$AP$15/100)) -> 64.14814209 | I73: =H73*(1+('Scenario Input'!$AS$15/100)) -> 65.44346984
A74: CWS_LA_Valley | B74: 56.9 | C74: =B74*(1+('Scenario Input'!$AA$15/100)) -> 57.57779597 | D74: =C74*(1+('Scenario Input'!$AD$15/100)) -> 58.68589726 | E74: =D74*(1+('Scenario Input'!$AG$15/100)) -> 60.14716444 | F74: =E74*(1+('Scenario Input'!$AJ$15/100)) -> 61.54762486 | G74: =F74*(1+('Scenario Input'!$AM$15/100)) -> 62.87845285 | H74: =G74*(1+('Scenario Input'!$AP$15/100)) -> 64.14814209 | I74: =H74*(1+('Scenario Input'!$AS$15/100)) -> 65.44346984
A75: CWS_BearGulch | B75: 68.42 | C75: =B75*(1+('Scenario Input'!$AA$15/100)) -> 69.23502285 | D75: =C75*(1+('Scenario Input'!$AD$15/100)) -> 70.56747083 | E75: =D75*(1+('Scenario Input'!$AG$15/100)) -> 72.32458683 | F75: =E75*(1+('Scenario Input'!$AJ$15/100)) -> 74.00858512 | G75: =F75*(1+('Scenario Input'!$AM$15/100)) -> 75.60885315 | H75: =G75*(1+('Scenario Input'!$AP$15/100)) -> 77.13560424 | I75: =H75*(1+('Scenario Input'!$AS$15/100)) -> 78.69318465
A76: CWS_Bakersfield | B76: 30.52 | C76: =B76*(1+('Scenario Input'!$AA$15/100)) -> 30.88355594 | D76: =C76*(1+('Scenario Input'!$AD$15/100)) -> 31.47791888 | E76: =D76*(1+('Scenario Input'!$AG$15/100)) -> 32.26171281 | F76: =E76*(1+('Scenario Input'!$AJ$15/100)) -> 33.01289123 | G76: =F76*(1+('Scenario Input'!$AM$15/100)) -> 33.72672023 | H76: =G76*(1+('Scenario Input'!$AP$15/100)) -> 34.40775565 | I76: =H76*(1+('Scenario Input'!$AS$15/100)) -> 35.10254305
A77: CWS_Bakersfield | B77: 30.52 | C77: =B77*(1+('Scenario Input'!$AA$15/100)) -> 30.88355594 | D77: =C77*(1+('Scenario Input'!$AD$15/100)) -> 31.47791888 | E77: =D77*(1+('Scenario Input'!$AG$15/100)) -> 32.26171281 | F77: =E77*(1+('Scenario Input'!$AJ$15/100)) -> 33.01289123 | G77: =F77*(1+('Scenario Input'!$AM$15/100)) -> 33.72672023 | H77: =G77*(1+('Scenario Input'!$AP$15/100)) -> 34.40775565 | I77: =H77*(1+('Scenario Input'!$AS$15/100)) -> 35.10254305
A78: CWS_Chico | B78: 26.03 | C78: =B78*(1+('Scenario Input'!$AA$15/100)) -> 26.34007081 | D78: =C78*(1+('Scenario Input'!$AD$15/100)) -> 26.84699307 | E78: =D78*(1+('Scenario Input'!$AG$15/100)) -> 27.51547786 | F78: =E78*(1+('Scenario Input'!$AJ$15/100)) -> 28.15614543 | G78: =F78*(1+('Scenario Input'!$AM$15/100)) -> 28.76495831 | H78: =G78*(1+('Scenario Input'!$AP$15/100)) -> 29.34580208 | I78: =H78*(1+('Scenario Input'!$AS$15/100)) -> 29.93837469
A79: CWS_Chico | B79: 26.03 | C79: =B79*(1+('Scenario Input'!$AA$15/100)) -> 26.34007081 | D79: =C79*(1+('Scenario Input'!$AD$15/100)) -> 26.84699307 | E79: =D79*(1+('Scenario Input'!$AG$15/100)) -> 27.51547786 | F79: =E79*(1+('Scenario Input'!$AJ$15/100)) -> 28.15614543 | G79: =F79*(1+('Scenario Input'!$AM$15/100)) -> 28.76495831 | H79: =G79*(1+('Scenario Input'!$AP$15/100)) -> 29.34580208 | I79: =H79*(1+('Scenario Input'!$AS$15/100)) -> 29.93837469
A80: CWS_Dixon | B80: 53.75 | C80: =B80*(1+('Scenario Input'!$AA$15/100)) -> 54.39027299 | D80: =C80*(1+('Scenario Input'!$AD$15/100)) -> 55.43702948 | E80: =D80*(1+('Scenario Input'!$AG$15/100)) -> 56.8174005 | F80: =E80*(1+('Scenario Input'!$AJ$15/100)) -> 58.14033104 | G80: =F80*(1+('Scenario Input'!$AM$15/100)) -> 59.39748402 | H80: =G80*(1+('Scenario Input'!$AP$15/100)) -> 60.5968829 | I80: =H80*(1+('Scenario Input'!$AS$15/100)) -> 61.82050095
A81: CWS_Dominguez | B81: 40.53 | C81: =B81*(1+('Scenario Input'!$AA$15/100)) -> 41.01279562 | D81: =C81*(1+('Scenario Input'!$AD$15/100)) -> 41.8020987 | E81: =D81*(1+('Scenario Input'!$AG$15/100)) -> 42.84296265 | F81: =E81*(1+('Scenario Input'!$AJ$15/100)) -> 43.84051381 | G81: =F81*(1+('Scenario Input'!$AM$15/100)) -> 44.78846563 | H81: =G81*(1+('Scenario Input'!$AP$15/100)) -> 45.69286817 | I81: =H81*(1+('Scenario Input'!$AS$15/100)) -> 46.61553309
A82: CWS_EastLA | B82: 43.62 | C82: =B82*(1+('Scenario Input'!$AA$15/100)) -> 44.13960387 | D82: =C82*(1+('Scenario Input'!$AD$15/100)) -> 44.98908328 | E82: =D82*(1+('Scenario Input'!$AG$15/100)) -> 46.10930251 | F82: =E82*(1+('Scenario Input'!$AJ$15/100)) -> 47.18290679 | G82: =F82*(1+('Scenario Input'!$AM$15/100)) -> 48.20313029 | H82: =G82*(1+('Scenario Input'!$AP$15/100)) -> 49.17648432 | I82: =H82*(1+('Scenario Input'!$AS$15/100)) -> 50.16949305
A83: CWS_HermosaRedondo | B83: 43.03 | C83: =B83*(1+('Scenario Input'!$AA$15/100)) -> 43.54257576 | D83: =C83*(1+('Scenario Input'!$AD$15/100)) -> 44.38056518 | E83: =D83*(1+('Scenario Input'!$AG$15/100)) -> 45.48563244 | F83: =E83*(1+('Scenario Input'!$AJ$15/100)) -> 46.54471525 | G83: =F83*(1+('Scenario Input'!$AM$15/100)) -> 47.5511393 | H83: =G83*(1+('Scenario Input'!$AP$15/100)) -> 48.51132784 | I83: =H83*(1+('Scenario Input'!$AS$15/100)) -> 49.49090523
A84: CWS_Monterey | B84: 40.42 | C84: =B84*(1+('Scenario Input'!$AA$15/100)) -> 40.90148529 | D84: =C84*(1+('Scenario Input'!$AD$15/100)) -> 41.68864617 | E84: =D84*(1+('Scenario Input'!$AG$15/100)) -> 42.72668518 | F84: =E84*(1+('Scenario Input'!$AJ$15/100)) -> 43.72152895 | G84: =F84*(1+('Scenario Input'!$AM$15/100)) -> 44.66690798 | H84: =G84*(1+('Scenario Input'!$AP$15/100)) -> 45.56885594 | I84: =H84*(1+('Scenario Input'!$AS$15/100)) -> 46.48901672
A85: CWS_KernValley | B85: 96.76 | C85: =B85*(1+('Scenario Input'!$AA$15/100)) -> 97.91261051 | D85: =C85*(1+('Scenario Input'!$AD$15/100)) -> 99.79696694 | E85: =D85*(1+('Scenario Input'!$AG$15/100)) -> 102.2818916 | F85: =E85*(1+('Scenario Input'!$AJ$15/100)) -> 104.6634127 | G85: =F85*(1+('Scenario Input'!$AM$15/100)) -> 106.9265219 | H85: =G85*(1+('Scenario Input'!$AP$15/100)) -> 109.0856631 | I85: =H85*(1+('Scenario Input'!$AS$15/100)) -> 111.2884032
A86: CWS_KernValley | B86: 96.76 | C86: =B86*(1+('Scenario Input'!$AA$15/100)) -> 97.91261051 | D86: =C86*(1+('Scenario Input'!$AD$15/100)) -> 99.79696694 | E86: =D86*(1+('Scenario Input'!$AG$15/100)) -> 102.2818916 | F86: =E86*(1+('Scenario Input'!$AJ$15/100)) -> 104.6634127 | G86: =F86*(1+('Scenario Input'!$AM$15/100)) -> 106.9265219 | H86: =G86*(1+('Scenario Input'!$AP$15/100)) -> 109.0856631 | I86: =H86*(1+('Scenario Input'!$AS$15/100)) -> 111.2884032
A87: CWS_KernValley | B87: 96.76 | C87: =B87*(1+('Scenario Input'!$AA$15/100)) -> 97.91261051 | D87: =C87*(1+('Scenario Input'!$AD$15/100)) -> 99.79696694 | E87: =D87*(1+('Scenario Input'!$AG$15/100)) -> 102.2818916 | F87: =E87*(1+('Scenario Input'!$AJ$15/100)) -> 104.6634127 | G87: =F87*(1+('Scenario Input'!$AM$15/100)) -> 106.9265219 | H87: =G87*(1+('Scenario Input'!$AP$15/100)) -> 109.0856631 | I87: =H87*(1+('Scenario Input'!$AS$15/100)) -> 111.2884032
A88: CWS_KernValley | B88: 96.76 | C88: =B88*(1+('Scenario Input'!$AA$15/100)) -> 97.91261051 | D88: =C88*(1+('Scenario Input'!$AD$15/100)) -> 99.79696694 | E88: =D88*(1+('Scenario Input'!$AG$15/100)) -> 102.2818916 | F88: =E88*(1+('Scenario Input'!$AJ$15/100)) -> 104.6634127 | G88: =F88*(1+('Scenario Input'!$AM$15/100)) -> 106.9265219 | H88: =G88*(1+('Scenario Input'!$AP$15/100)) -> 109.0856631 | I88: =H88*(1+('Scenario Input'!$AS$15/100)) -> 111.2884032
A89: CWS_KernValley | B89: 96.76 | C89: =B89*(1+('Scenario Input'!$AA$15/100)) -> 97.91261051 | D89: =C89*(1+('Scenario Input'!$AD$15/100)) -> 99.79696694 | E89: =D89*(1+('Scenario Input'!$AG$15/100)) -> 102.2818916 | F89: =E89*(1+('Scenario Input'!$AJ$15/100)) -> 104.6634127 | G89: =F89*(1+('Scenario Input'!$AM$15/100)) -> 106.9265219 | H89: =G89*(1+('Scenario Input'!$AP$15/100)) -> 109.0856631 | I89: =H89*(1+('Scenario Input'!$AS$15/100)) -> 111.2884032
A90: CWS_KernValley | B90: 96.76 | C90: =B90*(1+('Scenario Input'!$AA$15/100)) -> 97.91261051 | D90: =C90*(1+('Scenario Input'!$AD$15/100)) -> 99.79696694 | E90: =D90*(1+('Scenario Input'!$AG$15/100)) -> 102.2818916 | F90: =E90*(1+('Scenario Input'!$AJ$15/100)) -> 104.6634127 | G90: =F90*(1+('Scenario Input'!$AM$15/100)) -> 106.9265219 | H90: =G90*(1+('Scenario Input'!$AP$15/100)) -> 109.0856631 | I90: =H90*(1+('Scenario Input'!$AS$15/100)) -> 111.2884032
A91: CWS_KernValley | B91: 96.76 | C91: =B91*(1+('Scenario Input'!$AA$15/100)) -> 97.91261051 | D91: =C91*(1+('Scenario Input'!$AD$15/100)) -> 99.79696694 | E91: =D91*(1+('Scenario Input'!$AG$15/100)) -> 102.2818916 | F91: =E91*(1+('Scenario Input'!$AJ$15/100)) -> 104.6634127 | G91: =F91*(1+('Scenario Input'!$AM$15/100)) -> 106.9265219 | H91: =G91*(1+('Scenario Input'!$AP$15/100)) -> 109.0856631 | I91: =H91*(1+('Scenario Input'!$AS$15/100)) -> 111.2884032
A92: CWS_KernValley | B92: 96.76 | C92: =B92*(1+('Scenario Input'!$AA$15/100)) -> 97.91261051 | D92: =C92*(1+('Scenario Input'!$AD$15/100)) -> 99.79696694 | E92: =D92*(1+('Scenario Input'!$AG$15/100)) -> 102.2818916 | F92: =E92*(1+('Scenario Input'!$AJ$15/100)) -> 104.6634127 | G92: =F92*(1+('Scenario Input'!$AM$15/100)) -> 106.9265219 | H92: =G92*(1+('Scenario Input'!$AP$15/100)) -> 109.0856631 | I92: =H92*(1+('Scenario Input'!$AS$15/100)) -> 111.2884032
A93: CWS_KernValley | B93: 96.76 | C93: =B93*(1+('Scenario Input'!$AA$15/100)) -> 97.91261051 | D93: =C93*(1+('Scenario Input'!$AD$15/100)) -> 99.79696694 | E93: =D93*(1+('Scenario Input'!$AG$15/100)) -> 102.2818916 | F93: =E93*(1+('Scenario Input'!$AJ$15/100)) -> 104.6634127 | G93: =F93*(1+('Scenario Input'!$AM$15/100)) -> 106.9265219 | H93: =G93*(1+('Scenario Input'!$AP$15/100)) -> 109.0856631 | I93: =H93*(1+('Scenario Input'!$AS$15/100)) -> 111.2884032
A94: CWS_KernValley | B94: 96.76 | C94: =B94*(1+('Scenario Input'!$AA$15/100)) -> 97.91261051 | D94: =C94*(1+('Scenario Input'!$AD$15/100)) -> 99.79696694 | E94: =D94*(1+('Scenario Input'!$AG$15/100)) -> 102.2818916 | F94: =E94*(1+('Scenario Input'!$AJ$15/100)) -> 104.6634127 | G94: =F94*(1+('Scenario Input'!$AM$15/100)) -> 106.9265219 | H94: =G94*(1+('Scenario Input'!$AP$15/100)) -> 109.0856631 | I94: =H94*(1+('Scenario Input'!$AS$15/100)) -> 111.2884032
A95: CWS_KernValley | B95: 96.76 | C95: =B95*(1+('Scenario Input'!$AA$15/100)) -> 97.91261051 | D95: =C95*(1+('Scenario Input'!$AD$15/100)) -> 99.79696694 | E95: =D95*(1+('Scenario Input'!$AG$15/100)) -> 102.2818916 | F95: =E95*(1+('Scenario Input'!$AJ$15/100)) -> 104.6634127 | G95: =F95*(1+('Scenario Input'!$AM$15/100)) -> 106.9265219 | H95: =G95*(1+('Scenario Input'!$AP$15/100)) -> 109.0856631 | I95: =H95*(1+('Scenario Input'!$AS$15/100)) -> 111.2884032
A96: CWS_LosAltos | B96: 53.84 | C96: =B96*(1+('Scenario Input'!$AA$15/100)) -> 54.48134508 | D96: =C96*(1+('Scenario Input'!$AD$15/100)) -> 55.52985428 | E96: =D96*(1+('Scenario Input'!$AG$15/100)) -> 56.91253661 | F96: =E96*(1+('Scenario Input'!$AJ$15/100)) -> 58.2376823 | G96: =F96*(1+('Scenario Input'!$AM$15/100)) -> 59.49694027 | H96: =G96*(1+('Scenario Input'!$AP$15/100)) -> 60.69834745 | I96: =H96*(1+('Scenario Input'!$AS$15/100)) -> 61.92401435
A97: CWS_Livermore | B97: 44.47 | C97: =B97*(1+('Scenario Input'!$AA$15/100)) -> 44.99972912 | D97: =C97*(1+('Scenario Input'!$AD$15/100)) -> 45.86576188 | E97: =D97*(1+('Scenario Input'!$AG$15/100)) -> 47.00781024 | F97: =E97*(1+('Scenario Input'!$AJ$15/100)) -> 48.10233528 | G97: =F97*(1+('Scenario Input'!$AM$15/100)) -> 49.14243934 | H97: =G97*(1+('Scenario Input'!$AP$15/100)) -> 50.13476061 | I97: =H97*(1+('Scenario Input'!$AS$15/100)) -> 51.14711958
A98: CWS_Marysville | B98: 41.98 | C98: =B98*(1+('Scenario Input'!$AA$15/100)) -> 42.4800681 | D98: =C98*(1+('Scenario Input'!$AD$15/100)) -> 43.29760926 | E98: =D98*(1+('Scenario Input'!$AG$15/100)) -> 44.37571113 | F98: =E98*(1+('Scenario Input'!$AJ$15/100)) -> 45.40895065 | G98: =F98*(1+('Scenario Input'!$AM$15/100)) -> 46.39081636 | H98: =G98*(1+('Scenario Input'!$AP$15/100)) -> 47.32757478 | I98: =H98*(1+('Scenario Input'!$AS$15/100)) -> 48.28324893
A99: CWS_Oroville | B99: 52.58 | C99: =B99*(1+('Scenario Input'!$AA$15/100)) -> 53.20633589 | D99: =C99*(1+('Scenario Input'!$AD$15/100)) -> 54.23030717 | E99: =D99*(1+('Scenario Input'!$AG$15/100)) -> 55.58063104 | F99: =E99*(1+('Scenario Input'!$AJ$15/100)) -> 56.87476477 | G99: =F99*(1+('Scenario Input'!$AM$15/100)) -> 58.10455274 | H99: =G99*(1+('Scenario Input'!$AP$15/100)) -> 59.27784378 | I99: =H99*(1+('Scenario Input'!$AS$15/100)) -> 60.47482679
A100: CWS_LA_Valley | B100: 56.9 | C100: =B100*(1+('Scenario Input'!$AA$15/100)) -> 57.57779597 | D100: =C100*(1+('Scenario Input'!$AD$15/100)) -> 58.68589726 | E100: =D100*(1+('Scenario Input'!$AG$15/100)) -> 60.14716444 | F100: =E100*(1+('Scenario Input'!$AJ$15/100)) -> 61.54762486 | G100: =F100*(1+('Scenario Input'!$AM$15/100)) -> 62.87845285 | H100: =G100*(1+('Scenario Input'!$AP$15/100)) -> 64.14814209 | I100: =H100*(1+('Scenario Input'!$AS$15/100)) -> 65.44346984
A101: CWS_Bay_Area | B101: 30.52 | C101: =B101*(1+('Scenario Input'!$AA$15/100)) -> 30.88355594 | D101: =C101*(1+('Scenario Input'!$AD$15/100)) -> 31.47791888 | E101: =D101*(1+('Scenario Input'!$AG$15/100)) -> 32.26171281 | F101: =E101*(1+('Scenario Input'!$AJ$15/100)) -> 33.01289123 | G101: =F101*(1+('Scenario Input'!$AM$15/100)) -> 33.72672023 | H101: =G101*(1+('Scenario Input'!$AP$15/100)) -> 34.40775565 | I101: =H101*(1+('Scenario Input'!$AS$15/100)) -> 35.10254305
A102: CWS_Bay_Area | B102: 30.52 | C102: =B102*(1+('Scenario Input'!$AA$15/100)) -> 30.88355594 | D102: =C102*(1+('Scenario Input'!$AD$15/100)) -> 31.47791888 | E102: =D102*(1+('Scenario Input'!$AG$15/100)) -> 32.26171281 | F102: =E102*(1+('Scenario Input'!$AJ$15/100)) -> 33.01289123 | G102: =F102*(1+('Scenario Input'!$AM$15/100)) -> 33.72672023 | H102: =G102*(1+('Scenario Input'!$AP$15/100)) -> 34.40775565 | I102: =H102*(1+('Scenario Input'!$AS$15/100)) -> 35.10254305
A103: CWS_Bay_Area | B103: 30.52 | C103: =B103*(1+('Scenario Input'!$AA$15/100)) -> 30.88355594 | D103: =C103*(1+('Scenario Input'!$AD$15/100)) -> 31.47791888 | E103: =D103*(1+('Scenario Input'!$AG$15/100)) -> 32.26171281 | F103: =E103*(1+('Scenario Input'!$AJ$15/100)) -> 33.01289123 | G103: =F103*(1+('Scenario Input'!$AM$15/100)) -> 33.72672023 | H103: =G103*(1+('Scenario Input'!$AP$15/100)) -> 34.40775565 | I103: =H103*(1+('Scenario Input'!$AS$15/100)) -> 35.10254305
A104: CWS_Bay_Area | B104: 30.52 | C104: =B104*(1+('Scenario Input'!$AA$15/100)) -> 30.88355594 | D104: =C104*(1+('Scenario Input'!$AD$15/100)) -> 31.47791888 | E104: =D104*(1+('Scenario Input'!$AG$15/100)) -> 32.26171281 | F104: =E104*(1+('Scenario Input'!$AJ$15/100)) -> 33.01289123 | G104: =F104*(1+('Scenario Input'!$AM$15/100)) -> 33.72672023 | H104: =G104*(1+('Scenario Input'!$AP$15/100)) -> 34.40775565 | I104: =H104*(1+('Scenario Input'!$AS$15/100)) -> 35.10254305
A105: CWS_Bay_Area | B105: 30.52 | C105: =B105*(1+('Scenario Input'!$AA$15/100)) -> 30.88355594 | D105: =C105*(1+('Scenario Input'!$AD$15/100)) -> 31.47791888 | E105: =D105*(1+('Scenario Input'!$AG$15/100)) -> 32.26171281 | F105: =E105*(1+('Scenario Input'!$AJ$15/100)) -> 33.01289123 | G105: =F105*(1+('Scenario Input'!$AM$15/100)) -> 33.72672023 | H105: =G105*(1+('Scenario Input'!$AP$15/100)) -> 34.40775565 | I105: =H105*(1+('Scenario Input'!$AS$15/100)) -> 35.10254305
A106: CWS_Bay_Area | B106: 30.52 | C106: =B106*(1+('Scenario Input'!$AA$15/100)) -> 30.88355594 | D106: =C106*(1+('Scenario Input'!$AD$15/100)) -> 31.47791888 | E106: =D106*(1+('Scenario Input'!$AG$15/100)) -> 32.26171281 | F106: =E106*(1+('Scenario Input'!$AJ$15/100)) -> 33.01289123 | G106: =F106*(1+('Scenario Input'!$AM$15/100)) -> 33.72672023 | H106: =G106*(1+('Scenario Input'!$AP$15/100)) -> 34.40775565 | I106: =H106*(1+('Scenario Input'!$AS$15/100)) -> 35.10254305
A107: CWS_Bay_Area | B107: 30.52 | C107: =B107*(1+('Scenario Input'!$AA$15/100)) -> 30.88355594 | D107: =C107*(1+('Scenario Input'!$AD$15/100)) -> 31.47791888 | E107: =D107*(1+('Scenario Input'!$AG$15/100)) -> 32.26171281 | F107: =E107*(1+('Scenario Input'!$AJ$15/100)) -> 33.01289123 | G107: =F107*(1+('Scenario Input'!$AM$15/100)) -> 33.72672023 | H107: =G107*(1+('Scenario Input'!$AP$15/100)) -> 34.40775565 | I107: =H107*(1+('Scenario Input'!$AS$15/100)) -> 35.10254305
A108: CWS_Selma | B108: 35.39 | C108: =B108*(1+('Scenario Input'!$AA$15/100)) -> 35.81156765 | D108: =C108*(1+('Scenario Input'!$AD$15/100)) -> 36.5007716 | E108: =D108*(1+('Scenario Input'!$AG$15/100)) -> 37.40963356 | F108: =E108*(1+('Scenario Input'!$AJ$15/100)) -> 38.28067564 | G108: =F108*(1+('Scenario Input'!$AM$15/100)) -> 39.10840855 | H108: =G108*(1+('Scenario Input'!$AP$15/100)) -> 39.89811509 | I108: =H108*(1+('Scenario Input'!$AS$15/100)) -> 40.70376798
A109: CWS_Monterey | B109: 40.42 | C109: =B109*(1+('Scenario Input'!$AA$15/100)) -> 40.90148529 | D109: =C109*(1+('Scenario Input'!$AD$15/100)) -> 41.68864617 | E109: =D109*(1+('Scenario Input'!$AG$15/100)) -> 42.72668518 | F109: =E109*(1+('Scenario Input'!$AJ$15/100)) -> 43.72152895 | G109: =F109*(1+('Scenario Input'!$AM$15/100)) -> 44.66690798 | H109: =G109*(1+('Scenario Input'!$AP$15/100)) -> 45.56885594 | I109: =H109*(1+('Scenario Input'!$AS$15/100)) -> 46.48901672
A110: CWS_Monterey | B110: 40.42 | C110: =B110*(1+('Scenario Input'!$AA$15/100)) -> 40.90148529 | D110: =C110*(1+('Scenario Input'!$AD$15/100)) -> 41.68864617 | E110: =D110*(1+('Scenario Input'!$AG$15/100)) -> 42.72668518 | F110: =E110*(1+('Scenario Input'!$AJ$15/100)) -> 43.72152895 | G110: =F110*(1+('Scenario Input'!$AM$15/100)) -> 44.66690798 | H110: =G110*(1+('Scenario Input'!$AP$15/100)) -> 45.56885594 | I110: =H110*(1+('Scenario Input'!$AS$15/100)) -> 46.48901672
A111: CWS_Monterey | B111: 40.42 | C111: =B111*(1+('Scenario Input'!$AA$15/100)) -> 40.90148529 | D111: =C111*(1+('Scenario Input'!$AD$15/100)) -> 41.68864617 | E111: =D111*(1+('Scenario Input'!$AG$15/100)) -> 42.72668518 | F111: =E111*(1+('Scenario Input'!$AJ$15/100)) -> 43.72152895 | G111: =F111*(1+('Scenario Input'!$AM$15/100)) -> 44.66690798 | H111: =G111*(1+('Scenario Input'!$AP$15/100)) -> 45.56885594 | I111: =H111*(1+('Scenario Input'!$AS$15/100)) -> 46.48901672
A112: CWS_Monterey | B112: 40.42 | C112: =B112*(1+('Scenario Input'!$AA$15/100)) -> 40.90148529 | D112: =C112*(1+('Scenario Input'!$AD$15/100)) -> 41.68864617 | E112: =D112*(1+('Scenario Input'!$AG$15/100)) -> 42.72668518 | F112: =E112*(1+('Scenario Input'!$AJ$15/100)) -> 43.72152895 | G112: =F112*(1+('Scenario Input'!$AM$15/100)) -> 44.66690798 | H112: =G112*(1+('Scenario Input'!$AP$15/100)) -> 45.56885594 | I112: =H112*(1+('Scenario Input'!$AS$15/100)) -> 46.48901672
A113: CWS_Monterey | B113: 40.42 | C113: =B113*(1+('Scenario Input'!$AA$15/100)) -> 40.90148529 | D113: =C113*(1+('Scenario Input'!$AD$15/100)) -> 41.68864617 | E113: =D113*(1+('Scenario Input'!$AG$15/100)) -> 42.72668518 | F113: =E113*(1+('Scenario Input'!$AJ$15/100)) -> 43.72152895 | G113: =F113*(1+('Scenario Input'!$AM$15/100)) -> 44.66690798 | H113: =G113*(1+('Scenario Input'!$AP$15/100)) -> 45.56885594 | I113: =H113*(1+('Scenario Input'!$AS$15/100)) -> 46.48901672
A114: CWS_SanMateo | B114: 30.52 | C114: =B114*(1+('Scenario Input'!$AA$15/100)) -> 30.88355594 | D114: =C114*(1+('Scenario Input'!$AD$15/100)) -> 31.47791888 | E114: =D114*(1+('Scenario Input'!$AG$15/100)) -> 32.26171281 | F114: =E114*(1+('Scenario Input'!$AJ$15/100)) -> 33.01289123 | G114: =F114*(1+('Scenario Input'!$AM$15/100)) -> 33.72672023 | H114: =G114*(1+('Scenario Input'!$AP$15/100)) -> 34.40775565 | I114: =H114*(1+('Scenario Input'!$AS$15/100)) -> 35.10254305
A115: CWS_Bay_Area | B115: 30.52 | C115: =B115*(1+('Scenario Input'!$AA$15/100)) -> 30.88355594 | D115: =C115*(1+('Scenario Input'!$AD$15/100)) -> 31.47791888 | E115: =D115*(1+('Scenario Input'!$AG$15/100)) -> 32.26171281 | F115: =E115*(1+('Scenario Input'!$AJ$15/100)) -> 33.01289123 | G115: =F115*(1+('Scenario Input'!$AM$15/100)) -> 33.72672023 | H115: =G115*(1+('Scenario Input'!$AP$15/100)) -> 34.40775565 | I115: =H115*(1+('Scenario Input'!$AS$15/100)) -> 35.10254305
A116: CWS_Stockton | B116: 40.99 | C116: =B116*(1+('Scenario Input'!$AA$15/100)) -> 41.47827516 | D116: =C116*(1+('Scenario Input'!$AD$15/100)) -> 42.27653653 | E116: =D116*(1+('Scenario Input'!$AG$15/100)) -> 43.32921389 | F116: =E116*(1+('Scenario Input'!$AJ$15/100)) -> 44.33808687 | G116: =F116*(1+('Scenario Input'!$AM$15/100)) -> 45.29679758 | H116: =G116*(1+('Scenario Input'!$AP$15/100)) -> 46.21146475 | I116: =H116*(1+('Scenario Input'!$AS$15/100)) -> 47.14460156
A117: SGVWC_Fontana | B117: 40.36 | C117: =B117*(1+('Scenario Input'!$AA$15/100)) -> 40.84077057 | D117: =C117*(1+('Scenario Input'!$AD$15/100)) -> 41.62676298 | E117: =D117*(1+('Scenario Input'!$AG$15/100)) -> 42.6632611 | F117: =E117*(1+('Scenario Input'!$AJ$15/100)) -> 43.65662811 | G117: =F117*(1+('Scenario Input'!$AM$15/100)) -> 44.60060382 | H117: =G117*(1+('Scenario Input'!$AP$15/100)) -> 45.50121291 | I117: =H117*(1+('Scenario Input'!$AS$15/100)) -> 46.42000778
A118: SGVWC_Fontana | B118: 40.36 | C118: =B118*(1+('Scenario Input'!$AA$15/100)) -> 40.84077057 | D118: =C118*(1+('Scenario Input'!$AD$15/100)) -> 41.62676298 | E118: =D118*(1+('Scenario Input'!$AG$15/100)) -> 42.6632611 | F118: =E118*(1+('Scenario Input'!$AJ$15/100)) -> 43.65662811 | G118: =F118*(1+('Scenario Input'!$AM$15/100)) -> 44.60060382 | H118: =G118*(1+('Scenario Input'!$AP$15/100)) -> 45.50121291 | I118: =H118*(1+('Scenario Input'!$AS$15/100)) -> 46.42000778
A119: SGVWC_LA | B119: 44.42 | C119: =B119*(1+('Scenario Input'!$AA$15/100)) -> 44.94913351 | D119: =C119*(1+('Scenario Input'!$AD$15/100)) -> 45.81419255 | E119: =D119*(1+('Scenario Input'!$AG$15/100)) -> 46.95495684 | F119: =E119*(1+('Scenario Input'!$AJ$15/100)) -> 48.04825126 | G119: =F119*(1+('Scenario Input'!$AM$15/100)) -> 49.08718586 | H119: =G119*(1+('Scenario Input'!$AP$15/100)) -> 50.07839141 | I119: =H119*(1+('Scenario Input'!$AS$15/100)) -> 51.08961213
A120: SGVWC_LA | B120: 44.42 | C120: =B120*(1+('Scenario Input'!$AA$15/100)) -> 44.94913351 | D120: =C120*(1+('Scenario Input'!$AD$15/100)) -> 45.81419255 | E120: =D120*(1+('Scenario Input'!$AG$15/100)) -> 46.95495684 | F120: =E120*(1+('Scenario Input'!$AJ$15/100)) -> 48.04825126 | G120: =F120*(1+('Scenario Input'!$AM$15/100)) -> 49.08718586 | H120: =G120*(1+('Scenario Input'!$AP$15/100)) -> 50.07839141 | I120: =H120*(1+('Scenario Input'!$AS$15/100)) -> 51.08961213
A121: CalAm_Sac | B121: 39.28 | C121: =B121*(1+('Scenario Input'!$AA$15/100)) -> 39.74790555 | D121: =C121*(1+('Scenario Input'!$AD$15/100)) -> 40.51286545 | E121: =D121*(1+('Scenario Input'!$AG$15/100)) -> 41.52162775 | F121: =E121*(1+('Scenario Input'!$AJ$15/100)) -> 42.48841309 | G121: =F121*(1+('Scenario Input'!$AM$15/100)) -> 43.40712879 | H121: =G121*(1+('Scenario Input'!$AP$15/100)) -> 44.28363833 | I121: =H121*(1+('Scenario Input'!$AS$15/100)) -> 45.17784702
A122: CalAm_Sac | B122: 39.28 | C122: =B122*(1+('Scenario Input'!$AA$15/100)) -> 39.74790555 | D122: =C122*(1+('Scenario Input'!$AD$15/100)) -> 40.51286545 | E122: =D122*(1+('Scenario Input'!$AG$15/100)) -> 41.52162775 | F122: =E122*(1+('Scenario Input'!$AJ$15/100)) -> 42.48841309 | G122: =F122*(1+('Scenario Input'!$AM$15/100)) -> 43.40712879 | H122: =G122*(1+('Scenario Input'!$AP$15/100)) -> 44.28363833 | I122: =H122*(1+('Scenario Input'!$AS$15/100)) -> 45.17784702
A123: CalAm_Sac | B123: 39.28 | C123: =B123*(1+('Scenario Input'!$AA$15/100)) -> 39.74790555 | D123: =C123*(1+('Scenario Input'!$AD$15/100)) -> 40.51286545 | E123: =D123*(1+('Scenario Input'!$AG$15/100)) -> 41.52162775 | F123: =E123*(1+('Scenario Input'!$AJ$15/100)) -> 42.48841309 | G123: =F123*(1+('Scenario Input'!$AM$15/100)) -> 43.40712879 | H123: =G123*(1+('Scenario Input'!$AP$15/100)) -> 44.28363833 | I123: =H123*(1+('Scenario Input'!$AS$15/100)) -> 45.17784702
A124: CalAm_Sac | B124: 39.28 | C124: =B124*(1+('Scenario Input'!$AA$15/100)) -> 39.74790555 | D124: =C124*(1+('Scenario Input'!$AD$15/100)) -> 40.51286545 | E124: =D124*(1+('Scenario Input'!$AG$15/100)) -> 41.52162775 | F124: =E124*(1+('Scenario Input'!$AJ$15/100)) -> 42.48841309 | G124: =F124*(1+('Scenario Input'!$AM$15/100)) -> 43.40712879 | H124: =G124*(1+('Scenario Input'!$AP$15/100)) -> 44.28363833 | I124: =H124*(1+('Scenario Input'!$AS$15/100)) -> 45.17784702
A125: CalAm_Sac | B125: 39.28 | C125: =B125*(1+('Scenario Input'!$AA$15/100)) -> 39.74790555 | D125: =C125*(1+('Scenario Input'!$AD$15/100)) -> 40.51286545 | E125: =D125*(1+('Scenario Input'!$AG$15/100)) -> 41.52162775 | F125: =E125*(1+('Scenario Input'!$AJ$15/100)) -> 42.48841309 | G125: =F125*(1+('Scenario Input'!$AM$15/100)) -> 43.40712879 | H125: =G125*(1+('Scenario Input'!$AP$15/100)) -> 44.28363833 | I125: =H125*(1+('Scenario Input'!$AS$15/100)) -> 45.17784702
A126: CalAm_Sac | B126: 39.28 | C126: =B126*(1+('Scenario Input'!$AA$15/100)) -> 39.74790555 | D126: =C126*(1+('Scenario Input'!$AD$15/100)) -> 40.51286545 | E126: =D126*(1+('Scenario Input'!$AG$15/100)) -> 41.52162775 | F126: =E126*(1+('Scenario Input'!$AJ$15/100)) -> 42.48841309 | G126: =F126*(1+('Scenario Input'!$AM$15/100)) -> 43.40712879 | H126: =G126*(1+('Scenario Input'!$AP$15/100)) -> 44.28363833 | I126: =H126*(1+('Scenario Input'!$AS$15/100)) -> 45.17784702
A127: CalAm_Sac | B127: 39.28 | C127: =B127*(1+('Scenario Input'!$AA$15/100)) -> 39.74790555 | D127: =C127*(1+('Scenario Input'!$AD$15/100)) -> 40.51286545 | E127: =D127*(1+('Scenario Input'!$AG$15/100)) -> 41.52162775 | F127: =E127*(1+('Scenario Input'!$AJ$15/100)) -> 42.48841309 | G127: =F127*(1+('Scenario Input'!$AM$15/100)) -> 43.40712879 | H127: =G127*(1+('Scenario Input'!$AP$15/100)) -> 44.28363833 | I127: =H127*(1+('Scenario Input'!$AS$15/100)) -> 45.17784702
A128: CalAm_Sac | B128: 39.28 | C128: =B128*(1+('Scenario Input'!$AA$15/100)) -> 39.74790555 | D128: =C128*(1+('Scenario Input'!$AD$15/100)) -> 40.51286545 | E128: =D128*(1+('Scenario Input'!$AG$15/100)) -> 41.52162775 | F128: =E128*(1+('Scenario Input'!$AJ$15/100)) -> 42.48841309 | G128: =F128*(1+('Scenario Input'!$AM$15/100)) -> 43.40712879 | H128: =G128*(1+('Scenario Input'!$AP$15/100)) -> 44.28363833 | I128: =H128*(1+('Scenario Input'!$AS$15/100)) -> 45.17784702
A129: CalAm_Sac | B129: 39.28 | C129: =B129*(1+('Scenario Input'!$AA$15/100)) -> 39.74790555 | D129: =C129*(1+('Scenario Input'!$AD$15/100)) -> 40.51286545 | E129: =D129*(1+('Scenario Input'!$AG$15/100)) -> 41.52162775 | F129: =E129*(1+('Scenario Input'!$AJ$15/100)) -> 42.48841309 | G129: =F129*(1+('Scenario Input'!$AM$15/100)) -> 43.40712879 | H129: =G129*(1+('Scenario Input'!$AP$15/100)) -> 44.28363833 | I129: =H129*(1+('Scenario Input'!$AS$15/100)) -> 45.17784702
A130: CalAm_Sac | B130: 39.28 | C130: =B130*(1+('Scenario Input'!$AA$15/100)) -> 39.74790555 | D130: =C130*(1+('Scenario Input'!$AD$15/100)) -> 40.51286545 | E130: =D130*(1+('Scenario Input'!$AG$15/100)) -> 41.52162775 | F130: =E130*(1+('Scenario Input'!$AJ$15/100)) -> 42.48841309 | G130: =F130*(1+('Scenario Input'!$AM$15/100)) -> 43.40712879 | H130: =G130*(1+('Scenario Input'!$AP$15/100)) -> 44.28363833 | I130: =H130*(1+('Scenario Input'!$AS$15/100)) -> 45.17784702
A131: CalAm_Sac | B131: 39.28 | C131: =B131*(1+('Scenario Input'!$AA$15/100)) -> 39.74790555 | D131: =C131*(1+('Scenario Input'!$AD$15/100)) -> 40.51286545 | E131: =D131*(1+('Scenario Input'!$AG$15/100)) -> 41.52162775 | F131: =E131*(1+('Scenario Input'!$AJ$15/100)) -> 42.48841309 | G131: =F131*(1+('Scenario Input'!$AM$15/100)) -> 43.40712879 | H131: =G131*(1+('Scenario Input'!$AP$15/100)) -> 44.28363833 | I131: =H131*(1+('Scenario Input'!$AS$15/100)) -> 45.17784702
A132: CalAm_MEAD | B132: 29.17 | C132: =B132*(1+('Scenario Input'!$AA$15/100)) -> 29.51747466 | D132: =C132*(1+('Scenario Input'!$AD$15/100)) -> 30.08554698 | E132: =D132*(1+('Scenario Input'!$AG$15/100)) -> 30.83467112 | F132: =E132*(1+('Scenario Input'!$AJ$15/100)) -> 31.55262245 | G132: =F132*(1+('Scenario Input'!$AM$15/100)) -> 32.23487644 | H132: =G132*(1+('Scenario Input'!$AP$15/100)) -> 32.88578743 | I132: =H132*(1+('Scenario Input'!$AS$15/100)) -> 33.5498421
A133: CalAm_MON | B133: 95.91 | C133: =B133*(1+('Scenario Input'!$AA$15/100)) -> 97.05248526 | D133: =C133*(1+('Scenario Input'!$AD$15/100)) -> 98.92028833 | E133: =D133*(1+('Scenario Input'!$AG$15/100)) -> 101.3833839 | F133: =E133*(1+('Scenario Input'!$AJ$15/100)) -> 103.7439842 | G133: =F133*(1+('Scenario Input'!$AM$15/100)) -> 105.9872129 | H133: =G133*(1+('Scenario Input'!$AP$15/100)) -> 108.1273868 | I133: =H133*(1+('Scenario Input'!$AS$15/100)) -> 110.3107767
A134: CalAm_MON | B134: 95.91 | C134: =B134*(1+('Scenario Input'!$AA$15/100)) -> 97.05248526 | D134: =C134*(1+('Scenario Input'!$AD$15/100)) -> 98.92028833 | E134: =D134*(1+('Scenario Input'!$AG$15/100)) -> 101.3833839 | F134: =E134*(1+('Scenario Input'!$AJ$15/100)) -> 103.7439842 | G134: =F134*(1+('Scenario Input'!$AM$15/100)) -> 105.9872129 | H134: =G134*(1+('Scenario Input'!$AP$15/100)) -> 108.1273868 | I134: =H134*(1+('Scenario Input'!$AS$15/100)) -> 110.3107767
A135: CalAm_MON | B135: 95.91 | C135: =B135*(1+('Scenario Input'!$AA$15/100)) -> 97.05248526 | D135: =C135*(1+('Scenario Input'!$AD$15/100)) -> 98.92028833 | E135: =D135*(1+('Scenario Input'!$AG$15/100)) -> 101.3833839 | F135: =E135*(1+('Scenario Input'!$AJ$15/100)) -> 103.7439842 | G135: =F135*(1+('Scenario Input'!$AM$15/100)) -> 105.9872129 | H135: =G135*(1+('Scenario Input'!$AP$15/100)) -> 108.1273868 | I135: =H135*(1+('Scenario Input'!$AS$15/100)) -> 110.3107767
A136: CalAm_MON | B136: 95.91 | C136: =B136*(1+('Scenario Input'!$AA$15/100)) -> 97.05248526 | D136: =C136*(1+('Scenario Input'!$AD$15/100)) -> 98.92028833 | E136: =D136*(1+('Scenario Input'!$AG$15/100)) -> 101.3833839 | F136: =E136*(1+('Scenario Input'!$AJ$15/100)) -> 103.7439842 | G136: =F136*(1+('Scenario Input'!$AM$15/100)) -> 105.9872129 | H136: =G136*(1+('Scenario Input'!$AP$15/100)) -> 108.1273868 | I136: =H136*(1+('Scenario Input'!$AS$15/100)) -> 110.3107767
A137: CalAm_MON | B137: 95.91 | C137: =B137*(1+('Scenario Input'!$AA$15/100)) -> 97.05248526 | D137: =C137*(1+('Scenario Input'!$AD$15/100)) -> 98.92028833 | E137: =D137*(1+('Scenario Input'!$AG$15/100)) -> 101.3833839 | F137: =E137*(1+('Scenario Input'!$AJ$15/100)) -> 103.7439842 | G137: =F137*(1+('Scenario Input'!$AM$15/100)) -> 105.9872129 | H137: =G137*(1+('Scenario Input'!$AP$15/100)) -> 108.1273868 | I137: =H137*(1+('Scenario Input'!$AS$15/100)) -> 110.3107767
A138: CalAm_MON | B138: 95.91 | C138: =B138*(1+('Scenario Input'!$AA$15/100)) -> 97.05248526 | D138: =C138*(1+('Scenario Input'!$AD$15/100)) -> 98.92028833 | E138: =D138*(1+('Scenario Input'!$AG$15/100)) -> 101.3833839 | F138: =E138*(1+('Scenario Input'!$AJ$15/100)) -> 103.7439842 | G138: =F138*(1+('Scenario Input'!$AM$15/100)) -> 105.9872129 | H138: =G138*(1+('Scenario Input'!$AP$15/100)) -> 108.1273868 | I138: =H138*(1+('Scenario Input'!$AS$15/100)) -> 110.3107767
A139: CalAm_CHA | B139: 33.23 | C139: =B139*(1+('Scenario Input'!$AA$15/100)) -> 33.62583761 | D139: =C139*(1+('Scenario Input'!$AD$15/100)) -> 34.27297655 | E139: =D139*(1+('Scenario Input'!$AG$15/100)) -> 35.12636686 | F139: =E139*(1+('Scenario Input'!$AJ$15/100)) -> 35.94424559 | G139: =F139*(1+('Scenario Input'!$AM$15/100)) -> 36.72145849 | H139: =G139*(1+('Scenario Input'!$AP$15/100)) -> 37.46296593 | I139: =H139*(1+('Scenario Input'!$AS$15/100)) -> 38.21944645
A140: CalAm_MON | B140: 95.91 | C140: =B140*(1+('Scenario Input'!$AA$15/100)) -> 97.05248526 | D140: =C140*(1+('Scenario Input'!$AD$15/100)) -> 98.92028833 | E140: =D140*(1+('Scenario Input'!$AG$15/100)) -> 101.3833839 | F140: =E140*(1+('Scenario Input'!$AJ$15/100)) -> 103.7439842 | G140: =F140*(1+('Scenario Input'!$AM$15/100)) -> 105.9872129 | H140: =G140*(1+('Scenario Input'!$AP$15/100)) -> 108.1273868 | I140: =H140*(1+('Scenario Input'!$AS$15/100)) -> 110.3107767
A141: CalAm_MON | B141: 95.91 | C141: =B141*(1+('Scenario Input'!$AA$15/100)) -> 97.05248526 | D141: =C141*(1+('Scenario Input'!$AD$15/100)) -> 98.92028833 | E141: =D141*(1+('Scenario Input'!$AG$15/100)) -> 101.3833839 | F141: =E141*(1+('Scenario Input'!$AJ$15/100)) -> 103.7439842 | G141: =F141*(1+('Scenario Input'!$AM$15/100)) -> 105.9872129 | H141: =G141*(1+('Scenario Input'!$AP$15/100)) -> 108.1273868 | I141: =H141*(1+('Scenario Input'!$AS$15/100)) -> 110.3107767
A142: CalAm_GAR | B142: 111.28 | C142: =B142*(1+('Scenario Input'!$AA$15/100)) -> 112.6055736 | D142: =C142*(1+('Scenario Input'!$AD$15/100)) -> 114.7727003 | E142: =D142*(1+('Scenario Input'!$AG$15/100)) -> 117.6305177 | F142: =E142*(1+('Scenario Input'!$AJ$15/100)) -> 120.3694147 | G142: =F142*(1+('Scenario Input'!$AM$15/100)) -> 122.9721306 | H142: =G142*(1+('Scenario Input'!$AP$15/100)) -> 125.4552768 | I142: =H142*(1+('Scenario Input'!$AS$15/100)) -> 127.9885646
A143: CalAm_MON | B143: 95.91 | C143: =B143*(1+('Scenario Input'!$AA$15/100)) -> 97.05248526 | D143: =C143*(1+('Scenario Input'!$AD$15/100)) -> 98.92028833 | E143: =D143*(1+('Scenario Input'!$AG$15/100)) -> 101.3833839 | F143: =E143*(1+('Scenario Input'!$AJ$15/100)) -> 103.7439842 | G143: =F143*(1+('Scenario Input'!$AM$15/100)) -> 105.9872129 | H143: =G143*(1+('Scenario Input'!$AP$15/100)) -> 108.1273868 | I143: =H143*(1+('Scenario Input'!$AS$15/100)) -> 110.3107767
A144: CalAm_MON | B144: 95.91 | C144: =B144*(1+('Scenario Input'!$AA$15/100)) -> 97.05248526 | D144: =C144*(1+('Scenario Input'!$AD$15/100)) -> 98.92028833 | E144: =D144*(1+('Scenario Input'!$AG$15/100)) -> 101.3833839 | F144: =E144*(1+('Scenario Input'!$AJ$15/100)) -> 103.7439842 | G144: =F144*(1+('Scenario Input'!$AM$15/100)) -> 105.9872129 | H144: =G144*(1+('Scenario Input'!$AP$15/100)) -> 108.1273868 | I144: =H144*(1+('Scenario Input'!$AS$15/100)) -> 110.3107767
A145: CalAm_MON | B145: 95.91 | C145: =B145*(1+('Scenario Input'!$AA$15/100)) -> 97.05248526 | D145: =C145*(1+('Scenario Input'!$AD$15/100)) -> 98.92028833 | E145: =D145*(1+('Scenario Input'!$AG$15/100)) -> 101.3833839 | F145: =E145*(1+('Scenario Input'!$AJ$15/100)) -> 103.7439842 | G145: =F145*(1+('Scenario Input'!$AM$15/100)) -> 105.9872129 | H145: =G145*(1+('Scenario Input'!$AP$15/100)) -> 108.1273868 | I145: =H145*(1+('Scenario Input'!$AS$15/100)) -> 110.3107767
A146: CalAm_MON | B146: 95.91 | C146: =B146*(1+('Scenario Input'!$AA$15/100)) -> 97.05248526 | D146: =C146*(1+('Scenario Input'!$AD$15/100)) -> 98.92028833 | E146: =D146*(1+('Scenario Input'!$AG$15/100)) -> 101.3833839 | F146: =E146*(1+('Scenario Input'!$AJ$15/100)) -> 103.7439842 | G146: =F146*(1+('Scenario Input'!$AM$15/100)) -> 105.9872129 | H146: =G146*(1+('Scenario Input'!$AP$15/100)) -> 108.1273868 | I146: =H146*(1+('Scenario Input'!$AS$15/100)) -> 110.3107767
A147: CalAm_RL | B147: 45.28 | C147: =B147*(1+('Scenario Input'!$AA$15/100)) -> 45.81937788 | D147: =C147*(1+('Scenario Input'!$AD$15/100)) -> 46.70118502 | E147: =D147*(1+('Scenario Input'!$AG$15/100)) -> 47.86403525 | F147: =E147*(1+('Scenario Input'!$AJ$15/100)) -> 48.97849655 | G147: =F147*(1+('Scenario Input'!$AM$15/100)) -> 50.03754561 | H147: =G147*(1+('Scenario Input'!$AP$15/100)) -> 51.04794154 | I147: =H147*(1+('Scenario Input'!$AS$15/100)) -> 52.07874015
A148: CalAm_MON | B148: 95.91 | C148: =B148*(1+('Scenario Input'!$AA$15/100)) -> 97.05248526 | D148: =C148*(1+('Scenario Input'!$AD$15/100)) -> 98.92028833 | E148: =D148*(1+('Scenario Input'!$AG$15/100)) -> 101.3833839 | F148: =E148*(1+('Scenario Input'!$AJ$15/100)) -> 103.7439842 | G148: =F148*(1+('Scenario Input'!$AM$15/100)) -> 105.9872129 | H148: =G148*(1+('Scenario Input'!$AP$15/100)) -> 108.1273868 | I148: =H148*(1+('Scenario Input'!$AS$15/100)) -> 110.3107767
A149: CalAm_AMB | B149: 54.32 | C149: =B149*(1+('Scenario Input'!$AA$15/100)) -> 54.96706286 | D149: =C149*(1+('Scenario Input'!$AD$15/100)) -> 56.02491984 | E149: =D149*(1+('Scenario Input'!$AG$15/100)) -> 57.41992921 | F149: =E149*(1+('Scenario Input'!$AJ$15/100)) -> 58.75688897 | G149: =F149*(1+('Scenario Input'!$AM$15/100)) -> 60.02737362 | H149: =G149*(1+('Scenario Input'!$AP$15/100)) -> 61.23949171 | I149: =H149*(1+('Scenario Input'!$AS$15/100)) -> 62.4760858
A150: CalAm_TORO | B150: 52.54 | C150: =B150*(1+('Scenario Input'!$AA$15/100)) -> 53.16585941 | D150: =C150*(1+('Scenario Input'!$AD$15/100)) -> 54.1890517 | E150: =D150*(1+('Scenario Input'!$AG$15/100)) -> 55.53834832 | F150: =E150*(1+('Scenario Input'!$AJ$15/100)) -> 56.83149755 | G150: =F150*(1+('Scenario Input'!$AM$15/100)) -> 58.06034996 | H150: =G150*(1+('Scenario Input'!$AP$15/100)) -> 59.23274842 | I150: =H150*(1+('Scenario Input'!$AS$15/100)) -> 60.42882084
A151: CalAm_SM | B151: 31.07 | C151: =B151*(1+('Scenario Input'!$AA$15/100)) -> 31.44010757 | D151: =C151*(1+('Scenario Input'!$AD$15/100)) -> 32.04518151 | E151: =D151*(1+('Scenario Input'!$AG$15/100)) -> 32.84310016 | F151: =E151*(1+('Scenario Input'!$AJ$15/100)) -> 33.60781554 | G151: =F151*(1+('Scenario Input'!$AM$15/100)) -> 34.33450844 | H151: =G151*(1+('Scenario Input'!$AP$15/100)) -> 35.02781678 | I151: =H151*(1+('Scenario Input'!$AS$15/100)) -> 35.73512492
A152: CalAm_BH | B152: 40.44 | C152: =B152*(1+('Scenario Input'!$AA$15/100)) -> 40.92172353 | D152: =C152*(1+('Scenario Input'!$AD$15/100)) -> 41.7092739 | E152: =D152*(1+('Scenario Input'!$AG$15/100)) -> 42.74782654 | F152: =E152*(1+('Scenario Input'!$AJ$15/100)) -> 43.74316256 | G152: =F152*(1+('Scenario Input'!$AM$15/100)) -> 44.68900937 | H152: =G152*(1+('Scenario Input'!$AP$15/100)) -> 45.59140362 | I152: =H152*(1+('Scenario Input'!$AS$15/100)) -> 46.51201969
A153: CalAm_VEN | B153: 34.35 | C153: =B153*(1+('Scenario Input'!$AA$15/100)) -> 34.75917911 | D153: =C153*(1+('Scenario Input'!$AD$15/100)) -> 35.42812954 | E153: =D153*(1+('Scenario Input'!$AG$15/100)) -> 36.31028292 | F153: =E153*(1+('Scenario Input'!$AJ$15/100)) -> 37.15572784 | G153: =F153*(1+('Scenario Input'!$AM$15/100)) -> 37.9591363 | H153: =G153*(1+('Scenario Input'!$AP$15/100)) -> 38.72563586 | I153: =H153*(1+('Scenario Input'!$AS$15/100)) -> 39.50761317
A154: CalAm_VEN | B154: 34.35 | C154: =B154*(1+('Scenario Input'!$AA$15/100)) -> 34.75917911 | D154: =C154*(1+('Scenario Input'!$AD$15/100)) -> 35.42812954 | E154: =D154*(1+('Scenario Input'!$AG$15/100)) -> 36.31028292 | F154: =E154*(1+('Scenario Input'!$AJ$15/100)) -> 37.15572784 | G154: =F154*(1+('Scenario Input'!$AM$15/100)) -> 37.9591363 | H154: =G154*(1+('Scenario Input'!$AP$15/100)) -> 38.72563586 | I154: =H154*(1+('Scenario Input'!$AS$15/100)) -> 39.50761317
A155: CalAm_SM | B155: 31.07 | C155: =B155*(1+('Scenario Input'!$AA$15/100)) -> 31.44010757 | D155: =C155*(1+('Scenario Input'!$AD$15/100)) -> 32.04518151 | E155: =D155*(1+('Scenario Input'!$AG$15/100)) -> 32.84310016 | F155: =E155*(1+('Scenario Input'!$AJ$15/100)) -> 33.60781554 | G155: =F155*(1+('Scenario Input'!$AM$15/100)) -> 34.33450844 | H155: =G155*(1+('Scenario Input'!$AP$15/100)) -> 35.02781678 | I155: =H155*(1+('Scenario Input'!$AS$15/100)) -> 35.73512492
A156: CalAm_SAN | B156: 46.24 | C156: =B156*(1+('Scenario Input'!$AA$15/100)) -> 46.79081345 | D156: =C156*(1+('Scenario Input'!$AD$15/100)) -> 47.69131615 | E156: =D156*(1+('Scenario Input'!$AG$15/100)) -> 48.87882045 | F156: =E156*(1+('Scenario Input'!$AJ$15/100)) -> 50.01690991 | G156: =F156*(1+('Scenario Input'!$AM$15/100)) -> 51.0984123 | H156: =G156*(1+('Scenario Input'!$AP$15/100)) -> 52.13023005 | I156: =H156*(1+('Scenario Input'!$AS$15/100)) -> 53.18288305
A157: CalAm_DT | B157: 36.47 | C157: =B157*(1+('Scenario Input'!$AA$15/100)) -> 36.90443267 | D157: =C157*(1+('Scenario Input'!$AD$15/100)) -> 37.61466912 | E157: =D157*(1+('Scenario Input'!$AG$15/100)) -> 38.55126691 | F157: =E157*(1+('Scenario Input'!$AJ$15/100)) -> 39.44889066 | G157: =F157*(1+('Scenario Input'!$AM$15/100)) -> 40.30188358 | H157: =G157*(1+('Scenario Input'!$AP$15/100)) -> 41.11568966 | I157: =H157*(1+('Scenario Input'!$AS$15/100)) -> 41.94592874
A158: CalAm_RIO | B158: 62.07 | C158: =B158*(1+('Scenario Input'!$AA$15/100)) -> 62.8093813 | D158: =C158*(1+('Scenario Input'!$AD$15/100)) -> 64.01816595 | E158: =D158*(1+('Scenario Input'!$AG$15/100)) -> 65.61220556 | F158: =E158*(1+('Scenario Input'!$AJ$15/100)) -> 67.13991345 | G158: =F158*(1+('Scenario Input'!$AM$15/100)) -> 68.59166201 | H158: =G158*(1+('Scenario Input'!$AP$15/100)) -> 69.97671668 | I158: =H158*(1+('Scenario Input'!$AS$15/100)) -> 71.38973942
A159: CalAm_LKD | B159: 68.1 | C159: =B159*(1+('Scenario Input'!$AA$15/100)) -> 68.91121099 | D159: =C159*(1+('Scenario Input'!$AD$15/100)) -> 70.23742712 | E159: =D159*(1+('Scenario Input'!$AG$15/100)) -> 71.9863251 | F159: =E159*(1+('Scenario Input'!$AJ$15/100)) -> 73.66244733 | G159: =F159*(1+('Scenario Input'!$AM$15/100)) -> 75.25523092 | H159: =G159*(1+('Scenario Input'!$AP$15/100)) -> 76.77484141 | I159: =H159*(1+('Scenario Input'!$AS$15/100)) -> 78.32513702
A160: CA1503226 | B160: 143.2 | C160: =B160*(1+('Scenario Input'!$AA$15/100)) -> 144.9058064 | D160: =C160*(1+('Scenario Input'!$AD$15/100)) -> 147.6945604 | E160: =D160*(1+('Scenario Input'!$AG$15/100)) -> 151.3721256 | F160: =E160*(1+('Scenario Input'!$AJ$15/100)) -> 154.8966587 | G160: =F160*(1+('Scenario Input'!$AM$15/100)) -> 158.2459481 | H160: =G160*(1+('Scenario Input'!$AP$15/100)) -> 161.4413699 | I160: =H160*(1+('Scenario Input'!$AS$15/100)) -> 164.701316
A161: CA4110013 | B161: 72.64 | C161: =B161*(1+('Scenario Input'!$AA$15/100)) -> 73.50529172 | D161: =C161*(1+('Scenario Input'!$AD$15/100)) -> 74.91992226 | E161: =D161*(1+('Scenario Input'!$AG$15/100)) -> 76.78541344 | F161: =E161*(1+('Scenario Input'!$AJ$15/100)) -> 78.57327715 | G161: =F161*(1+('Scenario Input'!$AM$15/100)) -> 80.27224631 | H161: =G161*(1+('Scenario Input'!$AP$15/100)) -> 81.89316417 | I161: =H161*(1+('Scenario Input'!$AS$15/100)) -> 83.54681282
A162: CA3600345 | B162: 55 | C162: =B162*(1+('Scenario Input'!$AA$15/100)) -> 55.65516306 | D162: =C162*(1+('Scenario Input'!$AD$15/100)) -> 56.72626273 | E162: =D162*(1+('Scenario Input'!$AG$15/100)) -> 58.1387354 | F162: =E162*(1+('Scenario Input'!$AJ$15/100)) -> 59.49243177 | G162: =F162*(1+('Scenario Input'!$AM$15/100)) -> 60.77882086 | H162: =G162*(1+('Scenario Input'!$AP$15/100)) -> 62.00611274 | I162: =H162*(1+('Scenario Input'!$AS$15/100)) -> 63.25818702
A163: CA1010044 | B163: 32.99 | C163: =B163*(1+('Scenario Input'!$AA$15/100)) -> 33.38297872 | D163: =C163*(1+('Scenario Input'!$AD$15/100)) -> 34.02544377 | E163: =D163*(1+('Scenario Input'!$AG$15/100)) -> 34.87267056 | F163: =E163*(1+('Scenario Input'!$AJ$15/100)) -> 35.68464225 | G163: =F163*(1+('Scenario Input'!$AM$15/100)) -> 36.45624182 | H163: =G163*(1+('Scenario Input'!$AP$15/100)) -> 37.1923938 | I163: =H163*(1+('Scenario Input'!$AS$15/100)) -> 37.94341072
A164: CA2000538 | B164: 90 | C164: =B164*(1+('Scenario Input'!$AA$15/100)) -> 91.07208501 | D164: =C164*(1+('Scenario Input'!$AD$15/100)) -> 92.82479355 | E164: =D164*(1+('Scenario Input'!$AG$15/100)) -> 95.13611247 | F164: =E164*(1+('Scenario Input'!$AJ$15/100)) -> 97.35125198 | G164: =F164*(1+('Scenario Input'!$AM$15/100)) -> 99.45625231 | H164: =G164*(1+('Scenario Input'!$AP$15/100)) -> 101.4645481 | I164: =H164*(1+('Scenario Input'!$AS$15/100)) -> 103.5133969
A165: CA2710011 | B165: 122.23 | C165: =B165*(1+('Scenario Input'!$AA$15/100)) -> 123.6860106 | D165: =C165*(1+('Scenario Input'!$AD$15/100)) -> 126.0663835 | E165: =D165*(1+('Scenario Input'!$AG$15/100)) -> 129.2054114 | F165: =E165*(1+('Scenario Input'!$AJ$15/100)) -> 132.213817 | G165: =F165*(1+('Scenario Input'!$AM$15/100)) -> 135.0726413 | H165: =G165*(1+('Scenario Input'!$AP$15/100)) -> 137.8001302 | I165: =H165*(1+('Scenario Input'!$AS$15/100)) -> 140.5826945
A166: CA2701515 | B166: 48.34 | C166: =B166*(1+('Scenario Input'!$AA$15/100)) -> 48.91582877 | D166: =C166*(1+('Scenario Input'!$AD$15/100)) -> 49.857228 | E166: =D166*(1+('Scenario Input'!$AG$15/100)) -> 51.09866307 | F166: =E166*(1+('Scenario Input'!$AJ$15/100)) -> 52.28843912 | G166: =F166*(1+('Scenario Input'!$AM$15/100)) -> 53.41905819 | H166: =G166*(1+('Scenario Input'!$AP$15/100)) -> 54.49773618 | I166: =H166*(1+('Scenario Input'!$AS$15/100)) -> 55.59819565
A167: CA3901092 | B167: 65 | C167: =B167*(1+('Scenario Input'!$AA$15/100)) -> 65.77428362 | D167: =C167*(1+('Scenario Input'!$AD$15/100)) -> 67.04012868 | E167: =D167*(1+('Scenario Input'!$AG$15/100)) -> 68.70941456 | F167: =E167*(1+('Scenario Input'!$AJ$15/100)) -> 70.30923754 | G167: =F167*(1+('Scenario Input'!$AM$15/100)) -> 71.82951556 | H167: =G167*(1+('Scenario Input'!$AP$15/100)) -> 73.27995142 | I167: =H167*(1+('Scenario Input'!$AS$15/100)) -> 74.75967557
A168: CA2000511 | B168: 141.54 | C168: =B168*(1+('Scenario Input'!$AA$15/100)) -> 143.2260324 | D168: =C168*(1+('Scenario Input'!$AD$15/100)) -> 145.9824587 | E168: =D168*(1+('Scenario Input'!$AG$15/100)) -> 149.6173929 | F168: =E168*(1+('Scenario Input'!$AJ$15/100)) -> 153.1010689 | G168: =F168*(1+('Scenario Input'!$AM$15/100)) -> 156.4115328 | H168: =G168*(1+('Scenario Input'!$AP$15/100)) -> 159.5699127 | I168: =H168*(1+('Scenario Input'!$AS$15/100)) -> 162.7920689
A169: CA1000018 | B169: 48.47 | C169: =B169*(1+('Scenario Input'!$AA$15/100)) -> 49.04737734 | D169: =C169*(1+('Scenario Input'!$AD$15/100)) -> 49.99130826 | E169: =D169*(1+('Scenario Input'!$AG$15/100)) -> 51.2360819 | F169: =E169*(1+('Scenario Input'!$AJ$15/100)) -> 52.42905759 | G169: =F169*(1+('Scenario Input'!$AM$15/100)) -> 53.56271722 | H169: =G169*(1+('Scenario Input'!$AP$15/100)) -> 54.64429608 | I169: =H169*(1+('Scenario Input'!$AS$15/100)) -> 55.747715
A170: CA5610022 | B170: 37.49 | C170: =B170*(1+('Scenario Input'!$AA$15/100)) -> 37.93658297 | D170: =C170*(1+('Scenario Input'!$AD$15/100)) -> 38.66668345 | E170: =D170*(1+('Scenario Input'!$AG$15/100)) -> 39.62947618 | F170: =E170*(1+('Scenario Input'!$AJ$15/100)) -> 40.55220485 | G170: =F170*(1+('Scenario Input'!$AM$15/100)) -> 41.42905444 | H170: =G170*(1+('Scenario Input'!$AP$15/100)) -> 42.26562121 | I170: =H170*(1+('Scenario Input'!$AS$15/100)) -> 43.11908057
A171: CA1910149 | B171: 62.3 | C171: =B171*(1+('Scenario Input'!$AA$15/100)) -> 63.04212107 | D171: =C171*(1+('Scenario Input'!$AD$15/100)) -> 64.25538487 | E171: =D171*(1+('Scenario Input'!$AG$15/100)) -> 65.85533119 | F171: =E171*(1+('Scenario Input'!$AJ$15/100)) -> 67.38869998 | G171: =F171*(1+('Scenario Input'!$AM$15/100)) -> 68.84582799 | H171: =G171*(1+('Scenario Input'!$AP$15/100)) -> 70.23601497 | I171: =H171*(1+('Scenario Input'!$AS$15/100)) -> 71.65427366
A172: CA1510018 | B172: 41.89 | C172: =B172*(1+('Scenario Input'!$AA$15/100)) -> 42.38899601 | D172: =C172*(1+('Scenario Input'!$AD$15/100)) -> 43.20478447 | E172: =D172*(1+('Scenario Input'!$AG$15/100)) -> 44.28057501 | F172: =E172*(1+('Scenario Input'!$AJ$15/100)) -> 45.31159939 | G172: =F172*(1+('Scenario Input'!$AM$15/100)) -> 46.29136011 | H172: =G172*(1+('Scenario Input'!$AP$15/100)) -> 47.22611023 | I172: =H172*(1+('Scenario Input'!$AS$15/100)) -> 48.17973553
A173: CA3710006 | B173: 108.09 | C173: =B173*(1+('Scenario Input'!$AA$15/100)) -> 109.3775741 | D173: =C173*(1+('Scenario Input'!$AD$15/100)) -> 111.4825771 | E173: =D173*(1+('Scenario Input'!$AG$15/100)) -> 114.2584711 | F173: =E173*(1+('Scenario Input'!$AJ$15/100)) -> 116.9188536 | G173: =F173*(1+('Scenario Input'!$AM$15/100)) -> 119.446959 | H173: =G173*(1+('Scenario Input'!$AP$15/100)) -> 121.8589223 | I173: =H173*(1+('Scenario Input'!$AS$15/100)) -> 124.3195897
A174: CA5510001 | B174: 66.9 | C174: =B174*(1+('Scenario Input'!$AA$15/100)) -> 67.69691653 | D174: =C174*(1+('Scenario Input'!$AD$15/100)) -> 68.99976321 | E174: =D174*(1+('Scenario Input'!$AG$15/100)) -> 70.7178436 | F174: =E174*(1+('Scenario Input'!$AJ$15/100)) -> 72.36443064 | G174: =F174*(1+('Scenario Input'!$AM$15/100)) -> 73.92914755 | H174: =G174*(1+('Scenario Input'!$AP$15/100)) -> 75.42198077 | I174: =H174*(1+('Scenario Input'!$AS$15/100)) -> 76.94495839
A175: CA2702140 | B175: 75 | C175: =B175*(1+('Scenario Input'!$AA$15/100)) -> 75.89340418 | D175: =C175*(1+('Scenario Input'!$AD$15/100)) -> 77.35399463 | E175: =D175*(1+('Scenario Input'!$AG$15/100)) -> 79.28009372 | F175: =E175*(1+('Scenario Input'!$AJ$15/100)) -> 81.12604332 | G175: =F175*(1+('Scenario Input'!$AM$15/100)) -> 82.88021026 | H175: =G175*(1+('Scenario Input'!$AP$15/100)) -> 84.5537901 | I175: =H175*(1+('Scenario Input'!$AS$15/100)) -> 86.26116412
A176: CA2710017 | B176: 65.98 | C176: =B176*(1+('Scenario Input'!$AA$15/100)) -> 66.76595743 | D176: =C176*(1+('Scenario Input'!$AD$15/100)) -> 68.05088754 | E176: =D176*(1+('Scenario Input'!$AG$15/100)) -> 69.74534112 | F176: =E176*(1+('Scenario Input'!$AJ$15/100)) -> 71.36928451 | G176: =F176*(1+('Scenario Input'!$AM$15/100)) -> 72.91248364 | H176: =G176*(1+('Scenario Input'!$AP$15/100)) -> 74.38478761 | I176: =H176*(1+('Scenario Input'!$AS$15/100)) -> 75.88682145
A177: CA4900611 | B177: 61.1 | C177: =B177*(1+('Scenario Input'!$AA$15/100)) -> 61.8278266 | D177: =C177*(1+('Scenario Input'!$AD$15/100)) -> 63.01772096 | E177: =D177*(1+('Scenario Input'!$AG$15/100)) -> 64.58684969 | F177: =E177*(1+('Scenario Input'!$AJ$15/100)) -> 66.09068329 | G177: =F177*(1+('Scenario Input'!$AM$15/100)) -> 67.51974463 | H177: =G177*(1+('Scenario Input'!$AP$15/100)) -> 68.88315433 | I177: =H177*(1+('Scenario Input'!$AS$15/100)) -> 70.27409503
A178: CA1000424 | B178: 55.8 | C178: =B178*(1+('Scenario Input'!$AA$15/100)) -> 56.46469271 | D178: =C178*(1+('Scenario Input'!$AD$15/100)) -> 57.551372 | E178: =D178*(1+('Scenario Input'!$AG$15/100)) -> 58.98438973 | F178: =E178*(1+('Scenario Input'!$AJ$15/100)) -> 60.35777623 | G178: =F178*(1+('Scenario Input'!$AM$15/100)) -> 61.66287644 | H178: =G178*(1+('Scenario Input'!$AP$15/100)) -> 62.90801983 | I178: =H178*(1+('Scenario Input'!$AS$15/100)) -> 64.1783061
A179: CA3910017 | B179: 20 | C179: =B179*(1+('Scenario Input'!$AA$15/100)) -> 20.23824111 | D179: =C179*(1+('Scenario Input'!$AD$15/100)) -> 20.6277319 | E179: =D179*(1+('Scenario Input'!$AG$15/100)) -> 21.14135833 | F179: =E179*(1+('Scenario Input'!$AJ$15/100)) -> 21.63361155 | G179: =F179*(1+('Scenario Input'!$AM$15/100)) -> 22.1013894 | H179: =G179*(1+('Scenario Input'!$AP$15/100)) -> 22.54767736 | I179: =H179*(1+('Scenario Input'!$AS$15/100)) -> 23.0029771
A180: CA0910003 | B180: 232.77 | C180: =B180*(1+('Scenario Input'!$AA$15/100)) -> 235.5427692 | D180: =C180*(1+('Scenario Input'!$AD$15/100)) -> 240.0758577 | E180: =D180*(1+('Scenario Input'!$AG$15/100)) -> 246.0536989 | F180: =E180*(1+('Scenario Input'!$AJ$15/100)) -> 251.782788 | G180: =F180*(1+('Scenario Input'!$AM$15/100)) -> 257.2270206 | H180: =G180*(1+('Scenario Input'!$AP$15/100)) -> 262.4211429 | I180: =H180*(1+('Scenario Input'!$AS$15/100)) -> 267.720149
A181: CA1800503 | B181: 114.87 | C181: =B181*(1+('Scenario Input'!$AA$15/100)) -> 116.2383378 | D181: =C181*(1+('Scenario Input'!$AD$15/100)) -> 118.4753782 | E181: =D181*(1+('Scenario Input'!$AG$15/100)) -> 121.4253915 | F181: =E181*(1+('Scenario Input'!$AJ$15/100)) -> 124.2526479 | G181: =F181*(1+('Scenario Input'!$AM$15/100)) -> 126.93933 | H181: =G181*(1+('Scenario Input'!$AP$15/100)) -> 129.5025849 | I181: =H181*(1+('Scenario Input'!$AS$15/100)) -> 132.117599
A182: CA5200014 | B182: 30 | C182: =B182*(1+('Scenario Input'!$AA$15/100)) -> 30.35736167 | D182: =C182*(1+('Scenario Input'!$AD$15/100)) -> 30.94159785 | E182: =D182*(1+('Scenario Input'!$AG$15/100)) -> 31.71203749 | F182: =E182*(1+('Scenario Input'!$AJ$15/100)) -> 32.45041733 | G182: =F182*(1+('Scenario Input'!$AM$15/100)) -> 33.1520841 | H182: =G182*(1+('Scenario Input'!$AP$15/100)) -> 33.82151604 | I182: =H182*(1+('Scenario Input'!$AS$15/100)) -> 34.50446565
A183: CA3710041 | B183: 80.9 | C183: =B183*(1+('Scenario Input'!$AA$15/100)) -> 81.8636853 | D183: =C183*(1+('Scenario Input'!$AD$15/100)) -> 83.43917554 | E183: =D183*(1+('Scenario Input'!$AG$15/100)) -> 85.51679443 | F183: =E183*(1+('Scenario Input'!$AJ$15/100)) -> 87.50795872 | G183: =F183*(1+('Scenario Input'!$AM$15/100)) -> 89.40012014 | H183: =G183*(1+('Scenario Input'!$AP$15/100)) -> 91.20535492 | I183: =H183*(1+('Scenario Input'!$AS$15/100)) -> 93.04704236
A184: CA1900075 | B184: 52.39 | C184: =B184*(1+('Scenario Input'!$AA$15/100)) -> 53.0140726 | D184: =C184*(1+('Scenario Input'!$AD$15/100)) -> 54.03434371 | E184: =D184*(1+('Scenario Input'!$AG$15/100)) -> 55.37978813 | F184: =E184*(1+('Scenario Input'!$AJ$15/100)) -> 56.66924546 | G184: =F184*(1+('Scenario Input'!$AM$15/100)) -> 57.89458954 | H184: =G184*(1+('Scenario Input'!$AP$15/100)) -> 59.06364084 | I184: =H184*(1+('Scenario Input'!$AS$15/100)) -> 60.25629851
A185: CA3200509 | B185: 35 | C185: =B185*(1+('Scenario Input'!$AA$15/100)) -> 35.41692195 | D185: =C185*(1+('Scenario Input'!$AD$15/100)) -> 36.09853083 | E185: =D185*(1+('Scenario Input'!$AG$15/100)) -> 36.99737707 | F185: =E185*(1+('Scenario Input'!$AJ$15/100)) -> 37.85882021 | G185: =F185*(1+('Scenario Input'!$AM$15/100)) -> 38.67743146 | H185: =G185*(1+('Scenario Input'!$AP$15/100)) -> 39.45843538 | I185: =H185*(1+('Scenario Input'!$AS$15/100)) -> 40.25520992
A186: CA3410023 | B186: 42.37 | C186: =B186*(1+('Scenario Input'!$AA$15/100)) -> 42.8747138 | D186: =C186*(1+('Scenario Input'!$AD$15/100)) -> 43.69985003 | E186: =D186*(1+('Scenario Input'!$AG$15/100)) -> 44.78796761 | F186: =E186*(1+('Scenario Input'!$AJ$15/100)) -> 45.83080607 | G186: =F186*(1+('Scenario Input'!$AM$15/100)) -> 46.82179345 | H186: =G186*(1+('Scenario Input'!$AP$15/100)) -> 47.76725448 | I186: =H186*(1+('Scenario Input'!$AS$15/100)) -> 48.73180698
A187: CA2300596 | B187: 92 | C187: =B187*(1+('Scenario Input'!$AA$15/100)) -> 93.09590912 | D187: =C187*(1+('Scenario Input'!$AD$15/100)) -> 94.88756674 | E187: =D187*(1+('Scenario Input'!$AG$15/100)) -> 97.2502483 | F187: =E187*(1+('Scenario Input'!$AJ$15/100)) -> 99.51461314 | G187: =F187*(1+('Scenario Input'!$AM$15/100)) -> 101.6663913 | H187: =G187*(1+('Scenario Input'!$AP$15/100)) -> 103.7193159 | I187: =H187*(1+('Scenario Input'!$AS$15/100)) -> 105.8136947
A188: CA5410006 | B188: 26.76 | C188: =B188*(1+('Scenario Input'!$AA$15/100)) -> 27.07876661 | D188: =C188*(1+('Scenario Input'!$AD$15/100)) -> 27.59990528 | E188: =D188*(1+('Scenario Input'!$AG$15/100)) -> 28.28713744 | F188: =E188*(1+('Scenario Input'!$AJ$15/100)) -> 28.94577226 | G188: =F188*(1+('Scenario Input'!$AM$15/100)) -> 29.57165902 | H188: =G188*(1+('Scenario Input'!$AP$15/100)) -> 30.16879231 | I188: =H188*(1+('Scenario Input'!$AS$15/100)) -> 30.77798336
A189: CA3310026 | B189: 97.2 | C189: =B189*(1+('Scenario Input'!$AA$15/100)) -> 98.35785181 | D189: =C189*(1+('Scenario Input'!$AD$15/100)) -> 100.250777 | E189: =D189*(1+('Scenario Input'!$AG$15/100)) -> 102.7470015 | F189: =E189*(1+('Scenario Input'!$AJ$15/100)) -> 105.1393521 | G189: =F189*(1+('Scenario Input'!$AM$15/100)) -> 107.4127525 | H189: =G189*(1+('Scenario Input'!$AP$15/100)) -> 109.581712 | I189: =H189*(1+('Scenario Input'!$AS$15/100)) -> 111.7944687
A190: CA2610004 | B190: 63.24 | C190: =B190*(1+('Scenario Input'!$AA$15/100)) -> 63.9933184 | D190: =C190*(1+('Scenario Input'!$AD$15/100)) -> 65.22488827 | E190: =D190*(1+('Scenario Input'!$AG$15/100)) -> 66.84897503 | F190: =E190*(1+('Scenario Input'!$AJ$15/100)) -> 68.40547973 | G190: =F190*(1+('Scenario Input'!$AM$15/100)) -> 69.88459329 | H190: =G190*(1+('Scenario Input'!$AP$15/100)) -> 71.29575581 | I190: =H190*(1+('Scenario Input'!$AS$15/100)) -> 72.73541358
A191: CA4510011 | B191: 34.99 | C191: =B191*(1+('Scenario Input'!$AA$15/100)) -> 35.40680283 | D191: =C191*(1+('Scenario Input'!$AD$15/100)) -> 36.08821696 | E191: =D191*(1+('Scenario Input'!$AG$15/100)) -> 36.98680639 | F191: =E191*(1+('Scenario Input'!$AJ$15/100)) -> 37.84800341 | G191: =F191*(1+('Scenario Input'!$AM$15/100)) -> 38.66638076 | H191: =G191*(1+('Scenario Input'!$AP$15/100)) -> 39.44716154 | I191: =H191*(1+('Scenario Input'!$AS$15/100)) -> 40.24370843
A192: CA1500544 | B192: 65 | C192: =B192*(1+('Scenario Input'!$AA$15/100)) -> 65.77428362 | D192: =C192*(1+('Scenario Input'!$AD$15/100)) -> 67.04012868 | E192: =D192*(1+('Scenario Input'!$AG$15/100)) -> 68.70941456 | F192: =E192*(1+('Scenario Input'!$AJ$15/100)) -> 70.30923754 | G192: =F192*(1+('Scenario Input'!$AM$15/100)) -> 71.82951556 | H192: =G192*(1+('Scenario Input'!$AP$15/100)) -> 73.27995142 | I192: =H192*(1+('Scenario Input'!$AS$15/100)) -> 74.75967557
A193: CA3310030 | B193: 51.96 | C193: =B193*(1+('Scenario Input'!$AA$15/100)) -> 52.57895041 | D193: =C193*(1+('Scenario Input'!$AD$15/100)) -> 53.59084748 | E193: =D193*(1+('Scenario Input'!$AG$15/100)) -> 54.92524893 | F193: =E193*(1+('Scenario Input'!$AJ$15/100)) -> 56.20412281 | G193: =F193*(1+('Scenario Input'!$AM$15/100)) -> 57.41940967 | H193: =G193*(1+('Scenario Input'!$AP$15/100)) -> 58.57886578 | I193: =H193*(1+('Scenario Input'!$AS$15/100)) -> 59.7617345
A194: CA4100503 | B194: 208 | C194: =B194*(1+('Scenario Input'!$AA$15/100)) -> 210.4777076 | D194: =C194*(1+('Scenario Input'!$AD$15/100)) -> 214.5284118 | E194: =D194*(1+('Scenario Input'!$AG$15/100)) -> 219.8701266 | F194: =E194*(1+('Scenario Input'!$AJ$15/100)) -> 224.9895601 | G194: =F194*(1+('Scenario Input'!$AM$15/100)) -> 229.8544498 | H194: =G194*(1+('Scenario Input'!$AP$15/100)) -> 234.4958445 | I194: =H194*(1+('Scenario Input'!$AS$15/100)) -> 239.2309618
A195: CA2110006 | B195: 54.04 | C195: =B195*(1+('Scenario Input'!$AA$15/100)) -> 54.68372749 | D195: =C195*(1+('Scenario Input'!$AD$15/100)) -> 55.7361316 | E195: =D195*(1+('Scenario Input'!$AG$15/100)) -> 57.1239502 | F195: =E195*(1+('Scenario Input'!$AJ$15/100)) -> 58.45401841 | G195: =F195*(1+('Scenario Input'!$AM$15/100)) -> 59.71795417 | H195: =G195*(1+('Scenario Input'!$AP$15/100)) -> 60.92382422 | I195: =H195*(1+('Scenario Input'!$AS$15/100)) -> 62.15404412
A196: CA3010097 | B196: 40 | C196: =B196*(1+('Scenario Input'!$AA$15/100)) -> 40.47648223 | D196: =C196*(1+('Scenario Input'!$AD$15/100)) -> 41.2554638 | E196: =D196*(1+('Scenario Input'!$AG$15/100)) -> 42.28271665 | F196: =E196*(1+('Scenario Input'!$AJ$15/100)) -> 43.2672231 | G196: =F196*(1+('Scenario Input'!$AM$15/100)) -> 44.20277881 | H196: =G196*(1+('Scenario Input'!$AP$15/100)) -> 45.09535472 | I196: =H196*(1+('Scenario Input'!$AS$15/100)) -> 46.0059542
A197: CA4900630 | B197: 18 | C197: =B197*(1+('Scenario Input'!$AA$15/100)) -> 18.214417 | D197: =C197*(1+('Scenario Input'!$AD$15/100)) -> 18.56495871 | E197: =D197*(1+('Scenario Input'!$AG$15/100)) -> 19.02722249 | F197: =E197*(1+('Scenario Input'!$AJ$15/100)) -> 19.4702504 | G197: =F197*(1+('Scenario Input'!$AM$15/100)) -> 19.89125046 | H197: =G197*(1+('Scenario Input'!$AP$15/100)) -> 20.29290962 | I197: =H197*(1+('Scenario Input'!$AS$15/100)) -> 20.70267939
A198: CA1010053 | B198: 26 | C198: =B198*(1+('Scenario Input'!$AA$15/100)) -> 26.30971345 | D198: =C198*(1+('Scenario Input'!$AD$15/100)) -> 26.81605147 | E198: =D198*(1+('Scenario Input'!$AG$15/100)) -> 27.48376582 | F198: =E198*(1+('Scenario Input'!$AJ$15/100)) -> 28.12369502 | G198: =F198*(1+('Scenario Input'!$AM$15/100)) -> 28.73180622 | H198: =G198*(1+('Scenario Input'!$AP$15/100)) -> 29.31198057 | I198: =H198*(1+('Scenario Input'!$AS$15/100)) -> 29.90387023
A199: CA4810012 | B199: 119.16 | C199: =B199*(1+('Scenario Input'!$AA$15/100)) -> 120.5794406 | D199: =C199*(1+('Scenario Input'!$AD$15/100)) -> 122.9000267 | E199: =D199*(1+('Scenario Input'!$AG$15/100)) -> 125.9602129 | F199: =E199*(1+('Scenario Input'!$AJ$15/100)) -> 128.8930576 | G199: =F199*(1+('Scenario Input'!$AM$15/100)) -> 131.6800781 | H199: =G199*(1+('Scenario Input'!$AP$15/100)) -> 134.3390617 | I199: =H199*(1+('Scenario Input'!$AS$15/100)) -> 137.0517376
A200: CA3910011 | B200: 111.6 | C200: =B200*(1+('Scenario Input'!$AA$15/100)) -> 112.9293854 | D200: =C200*(1+('Scenario Input'!$AD$15/100)) -> 115.102744 | E200: =D200*(1+('Scenario Input'!$AG$15/100)) -> 117.9687795 | F200: =E200*(1+('Scenario Input'!$AJ$15/100)) -> 120.7155525 | G200: =F200*(1+('Scenario Input'!$AM$15/100)) -> 123.3257529 | H200: =G200*(1+('Scenario Input'!$AP$15/100)) -> 125.8160397 | I200: =H200*(1+('Scenario Input'!$AS$15/100)) -> 128.3566122
... 1717 more rows

Sheet Comm Input
A1: Communications ID | B1: Communication Provider Names (Broadband, Voice) | C1: 2019 Essential Usage Bill ($/month) | D1: 2020 Essential Usage Bill ($/month) | E1: 2021 Essential Usage Bill ($/month) | F1: 2022 Essential Usage Bill ($/month) | G1: 2023 Essential Usage Bill ($/month) | H1: 2024 Essential Usage Bill ($/month) | I1: 2025 Essential Usage Bill ($/month) | J1: 2026 Essential Usage Bill ($/month)
A2: 1 | B2: , AT&T California | C2: 27 | D2: =C2*(1+('Scenario Input'!$AA$15/100)) -> 27.3216255 | E2: =D2*(1+('Scenario Input'!$AD$15/100)) -> 27.84743807 | F2: =E2*(1+('Scenario Input'!$AG$15/100)) -> 28.54083374 | G2: =F2*(1+('Scenario Input'!$AJ$15/100)) -> 29.20537559 | H2: =G2*(1+('Scenario Input'!$AM$15/100)) -> 29.83687569 | I2: =H2*(1+('Scenario Input'!$AP$15/100)) -> 30.43936443 | J2: =I2*(1+('Scenario Input'!$AS$15/100)) -> 31.05401908
A3: 2 | B3: , Cal-Ore | C3: 25 | D3: =C3*(1+('Scenario Input'!$AA$15/100)) -> 25.29780139 | E3: =D3*(1+('Scenario Input'!$AD$15/100)) -> 25.78466488 | F3: =E3*(1+('Scenario Input'!$AG$15/100)) -> 26.42669791 | G3: =F3*(1+('Scenario Input'!$AJ$15/100)) -> 27.04201444 | H3: =G3*(1+('Scenario Input'!$AM$15/100)) -> 27.62673675 | I3: =H3*(1+('Scenario Input'!$AP$15/100)) -> 28.1845967 | J3: =I3*(1+('Scenario Input'!$AS$15/100)) -> 28.75372137
A4: 3 | B4: , Calaveras | C4: 25 | D4: =C4*(1+('Scenario Input'!$AA$15/100)) -> 25.29780139 | E4: =D4*(1+('Scenario Input'!$AD$15/100)) -> 25.78466488 | F4: =E4*(1+('Scenario Input'!$AG$15/100)) -> 26.42669791 | G4: =F4*(1+('Scenario Input'!$AJ$15/100)) -> 27.04201444 | H4: =G4*(1+('Scenario Input'!$AM$15/100)) -> 27.62673675 | I4: =H4*(1+('Scenario Input'!$AP$15/100)) -> 28.1845967 | J4: =I4*(1+('Scenario Input'!$AS$15/100)) -> 28.75372137
A5: 4 | B5: , Ducor | C5: 22.63 | D5: =C5*(1+('Scenario Input'!$AA$15/100)) -> 22.89956982 | E5: =D5*(1+('Scenario Input'!$AD$15/100)) -> 23.34027865 | F5: =E5*(1+('Scenario Input'!$AG$15/100)) -> 23.92144695 | G5: =F5*(1+('Scenario Input'!$AJ$15/100)) -> 24.47843147 | H5: =G5*(1+('Scenario Input'!$AM$15/100)) -> 25.00772211 | I5: =H5*(1+('Scenario Input'!$AP$15/100)) -> 25.51269693 | J5: =I5*(1+('Scenario Input'!$AS$15/100)) -> 26.02786859
A6: 5 | B6: , Foresthill | C6: 22.63 | D6: =C6*(1+('Scenario Input'!$AA$15/100)) -> 22.89956982 | E6: =D6*(1+('Scenario Input'!$AD$15/100)) -> 23.34027865 | F6: =E6*(1+('Scenario Input'!$AG$15/100)) -> 23.92144695 | G6: =F6*(1+('Scenario Input'!$AJ$15/100)) -> 24.47843147 | H6: =G6*(1+('Scenario Input'!$AM$15/100)) -> 25.00772211 | I6: =H6*(1+('Scenario Input'!$AP$15/100)) -> 25.51269693 | J6: =I6*(1+('Scenario Input'!$AS$15/100)) -> 26.02786859
A7: 6 | B7: , Frontier | C7: 22.25 | D7: =C7*(1+('Scenario Input'!$AA$15/100)) -> 22.51504324 | E7: =D7*(1+('Scenario Input'!$AD$15/100)) -> 22.94835174 | F7: =E7*(1+('Scenario Input'!$AG$15/100)) -> 23.51976114 | G7: =F7*(1+('Scenario Input'!$AJ$15/100)) -> 24.06739285 | H7: =G7*(1+('Scenario Input'!$AM$15/100)) -> 24.58779571 | I7: =H7*(1+('Scenario Input'!$AP$15/100)) -> 25.08429106 | J7: =I7*(1+('Scenario Input'!$AS$15/100)) -> 25.59081202
A8: 7 | B8: , Frontier - Citizens | C8: 21.75 | D8: =C8*(1+('Scenario Input'!$AA$15/100)) -> 22.00908721 | E8: =D8*(1+('Scenario Input'!$AD$15/100)) -> 22.43265844 | F8: =E8*(1+('Scenario Input'!$AG$15/100)) -> 22.99122718 | G8: =F8*(1+('Scenario Input'!$AJ$15/100)) -> 23.52655256 | H8: =G8*(1+('Scenario Input'!$AM$15/100)) -> 24.03526098 | I8: =H8*(1+('Scenario Input'!$AP$15/100)) -> 24.52059913 | J8: =I8*(1+('Scenario Input'!$AS$15/100)) -> 25.01573759
A9: 8 | B9: , Kerman | C9: 22.58 | D9: =C9*(1+('Scenario Input'!$AA$15/100)) -> 22.84897422 | E9: =D9*(1+('Scenario Input'!$AD$15/100)) -> 23.28870932 | F9: =E9*(1+('Scenario Input'!$AG$15/100)) -> 23.86859355 | G9: =F9*(1+('Scenario Input'!$AJ$15/100)) -> 24.42434744 | H9: =G9*(1+('Scenario Input'!$AM$15/100)) -> 24.95246864 | I9: =H9*(1+('Scenario Input'!$AP$15/100)) -> 25.45632774 | J9: =I9*(1+('Scenario Input'!$AS$15/100)) -> 25.97036114
A10: 9 | B10: , Pinnacles | C10: 22.13 | D10: =C10*(1+('Scenario Input'!$AA$15/100)) -> 22.39361379 | E10: =D10*(1+('Scenario Input'!$AD$15/100)) -> 22.82458535 | F10: =E10*(1+('Scenario Input'!$AG$15/100)) -> 23.39291299 | G10: =F10*(1+('Scenario Input'!$AJ$15/100)) -> 23.93759118 | H10: =G10*(1+('Scenario Input'!$AM$15/100)) -> 24.45518737 | I10: =H10*(1+('Scenario Input'!$AP$15/100)) -> 24.949005 | J10: =I10*(1+('Scenario Input'!$AS$15/100)) -> 25.45279416
A11: 10 | B11: , Ponderosa | C11: 25 | D11: =C11*(1+('Scenario Input'!$AA$15/100)) -> 25.29780139 | E11: =D11*(1+('Scenario Input'!$AD$15/100)) -> 25.78466488 | F11: =E11*(1+('Scenario Input'!$AG$15/100)) -> 26.42669791 | G11: =F11*(1+('Scenario Input'!$AJ$15/100)) -> 27.04201444 | H11: =G11*(1+('Scenario Input'!$AM$15/100)) -> 27.62673675 | I11: =H11*(1+('Scenario Input'!$AP$15/100)) -> 28.1845967 | J11: =I11*(1+('Scenario Input'!$AS$15/100)) -> 28.75372137
A12: 11 | B12: , Sierra | C12: 25 | D12: =C12*(1+('Scenario Input'!$AA$15/100)) -> 25.29780139 | E12: =D12*(1+('Scenario Input'!$AD$15/100)) -> 25.78466488 | F12: =E12*(1+('Scenario Input'!$AG$15/100)) -> 26.42669791 | G12: =F12*(1+('Scenario Input'!$AJ$15/100)) -> 27.04201444 | H12: =G12*(1+('Scenario Input'!$AM$15/100)) -> 27.62673675 | I12: =H12*(1+('Scenario Input'!$AP$15/100)) -> 28.1845967 | J12: =I12*(1+('Scenario Input'!$AS$15/100)) -> 28.75372137
A13: 12 | B13: , Siskiyou | C13: 24 | D13: =C13*(1+('Scenario Input'!$AA$15/100)) -> 24.28588934 | E13: =D13*(1+('Scenario Input'!$AD$15/100)) -> 24.75327828 | F13: =E13*(1+('Scenario Input'!$AG$15/100)) -> 25.36962999 | G13: =F13*(1+('Scenario Input'!$AJ$15/100)) -> 25.96033386 | H13: =G13*(1+('Scenario Input'!$AM$15/100)) -> 26.52166728 | I13: =H13*(1+('Scenario Input'!$AP$15/100)) -> 27.05721283 | J13: =I13*(1+('Scenario Input'!$AS$15/100)) -> 27.60357252
A14: 13 | B14: , Surewest | C14: 23.22 | D14: =C14*(1+('Scenario Input'!$AA$15/100)) -> 23.49659793 | E14: =D14*(1+('Scenario Input'!$AD$15/100)) -> 23.94879674 | F14: =E14*(1+('Scenario Input'!$AG$15/100)) -> 24.54511702 | G14: =F14*(1+('Scenario Input'!$AJ$15/100)) -> 25.11662301 | H14: =G14*(1+('Scenario Input'!$AM$15/100)) -> 25.6597131 | I14: =H14*(1+('Scenario Input'!$AP$15/100)) -> 26.17785341 | J14: =I14*(1+('Scenario Input'!$AS$15/100)) -> 26.70645641
A15: 14 | B15: , TDS Telecom | C15: 16.05 | D15: =C15*(1+('Scenario Input'!$AA$15/100)) -> 16.24118849 | E15: =D15*(1+('Scenario Input'!$AD$15/100)) -> 16.55375485 | F15: =E15*(1+('Scenario Input'!$AG$15/100)) -> 16.96594006 | G15: =F15*(1+('Scenario Input'!$AJ$15/100)) -> 17.36097327 | H15: =G15*(1+('Scenario Input'!$AM$15/100)) -> 17.736365 | I15: =H15*(1+('Scenario Input'!$AP$15/100)) -> 18.09451108 | J15: =I15*(1+('Scenario Input'!$AS$15/100)) -> 18.45988912
A16: 15 | B16: , TDS Telecom | C16: 17.5 | D16: =C16*(1+('Scenario Input'!$AA$15/100)) -> 17.70846097 | E16: =D16*(1+('Scenario Input'!$AD$15/100)) -> 18.04926541 | F16: =E16*(1+('Scenario Input'!$AG$15/100)) -> 18.49868854 | G16: =F16*(1+('Scenario Input'!$AJ$15/100)) -> 18.92941011 | H16: =G16*(1+('Scenario Input'!$AM$15/100)) -> 19.33871573 | I16: =H16*(1+('Scenario Input'!$AP$15/100)) -> 19.72921769 | J16: =I16*(1+('Scenario Input'!$AS$15/100)) -> 20.12760496
A17: 16 | B17: , TDS Telecom - Horn | C17: 16.05 | D17: =C17*(1+('Scenario Input'!$AA$15/100)) -> 16.24118849 | E17: =D17*(1+('Scenario Input'!$AD$15/100)) -> 16.55375485 | F17: =E17*(1+('Scenario Input'!$AG$15/100)) -> 16.96594006 | G17: =F17*(1+('Scenario Input'!$AJ$15/100)) -> 17.36097327 | H17: =G17*(1+('Scenario Input'!$AM$15/100)) -> 17.736365 | I17: =H17*(1+('Scenario Input'!$AP$15/100)) -> 18.09451108 | J17: =I17*(1+('Scenario Input'!$AS$15/100)) -> 18.45988912
A18: 17 | B18: , TDS Telecom - HV | C18: 16.85 | D18: =C18*(1+('Scenario Input'!$AA$15/100)) -> 17.05071814 | E18: =D18*(1+('Scenario Input'!$AD$15/100)) -> 17.37886413 | F18: =E18*(1+('Scenario Input'!$AG$15/100)) -> 17.81159439 | G18: =F18*(1+('Scenario Input'!$AJ$15/100)) -> 18.22631773 | H18: =G18*(1+('Scenario Input'!$AM$15/100)) -> 18.62042057 | I18: =H18*(1+('Scenario Input'!$AP$15/100)) -> 18.99641817 | J18: =I18*(1+('Scenario Input'!$AS$15/100)) -> 19.38000821
A19: 18 | B19: , Volcano | C19: 24 | D19: =C19*(1+('Scenario Input'!$AA$15/100)) -> 24.28588934 | E19: =D19*(1+('Scenario Input'!$AD$15/100)) -> 24.75327828 | F19: =E19*(1+('Scenario Input'!$AG$15/100)) -> 25.36962999 | G19: =F19*(1+('Scenario Input'!$AJ$15/100)) -> 25.96033386 | H19: =G19*(1+('Scenario Input'!$AM$15/100)) -> 26.52166728 | I19: =H19*(1+('Scenario Input'!$AP$15/100)) -> 27.05721283 | J19: =I19*(1+('Scenario Input'!$AS$15/100)) -> 27.60357252
A20: 19 | B20: Aan Chuuphan, | C20: 84 | D20: =C20*(1+('Scenario Input'!$AA$15/100)) -> 85.00061268 | E20: =D20*(1+('Scenario Input'!$AD$15/100)) -> 86.63647398 | F20: =E20*(1+('Scenario Input'!$AG$15/100)) -> 88.79370497 | G20: =F20*(1+('Scenario Input'!$AJ$15/100)) -> 90.86116852 | H20: =G20*(1+('Scenario Input'!$AM$15/100)) -> 92.82583549 | I20: =H20*(1+('Scenario Input'!$AP$15/100)) -> 94.70024491 | J20: =I20*(1+('Scenario Input'!$AS$15/100)) -> 96.61250381
A21: 20 | B21: Aan Chuuphan, Frontier | C21: 106.25 | D21: =C21*(1+('Scenario Input'!$AA$15/100)) -> 107.5156559 | E21: =D21*(1+('Scenario Input'!$AD$15/100)) -> 109.5848257 | F21: =E21*(1+('Scenario Input'!$AG$15/100)) -> 112.3134661 | G21: =F21*(1+('Scenario Input'!$AJ$15/100)) -> 114.9285614 | H21: =G21*(1+('Scenario Input'!$AM$15/100)) -> 117.4136312 | I21: =H21*(1+('Scenario Input'!$AP$15/100)) -> 119.784536 | J21: =I21*(1+('Scenario Input'!$AS$15/100)) -> 122.2033158
A22: 21 | B22: Access Media Holdings LLC, Frontier | C22: 62.24 | D22: =C22*(1+('Scenario Input'!$AA$15/100)) -> 62.98140635 | E22: =D22*(1+('Scenario Input'!$AD$15/100)) -> 64.19350167 | F22: =E22*(1+('Scenario Input'!$AG$15/100)) -> 65.79190711 | G22: =F22*(1+('Scenario Input'!$AJ$15/100)) -> 67.32379915 | H22: =G22*(1+('Scenario Input'!$AM$15/100)) -> 68.77952382 | I22: =H22*(1+('Scenario Input'!$AP$15/100)) -> 70.16837194 | J22: =I22*(1+('Scenario Input'!$AS$15/100)) -> 71.58526473
A23: 22 | B23: AeroSurf, AT&T California | C23: 126.95 | D23: =C23*(1+('Scenario Input'!$AA$15/100)) -> 128.4622355 | E23: =D23*(1+('Scenario Input'!$AD$15/100)) -> 130.9345282 | F23: =E23*(1+('Scenario Input'!$AG$15/100)) -> 134.194772 | G23: =F23*(1+('Scenario Input'!$AJ$15/100)) -> 137.3193493 | H23: =G23*(1+('Scenario Input'!$AM$15/100)) -> 140.2885692 | I23: =H23*(1+('Scenario Input'!$AP$15/100)) -> 143.121382 | J23: =I23*(1+('Scenario Input'!$AS$15/100)) -> 146.0113971
A24: 23 | B24: AeroSurf, Frontier | C24: 122.2 | D24: =C24*(1+('Scenario Input'!$AA$15/100)) -> 123.6556532 | E24: =D24*(1+('Scenario Input'!$AD$15/100)) -> 126.0354419 | F24: =E24*(1+('Scenario Input'!$AG$15/100)) -> 129.1736994 | G24: =F24*(1+('Scenario Input'!$AJ$15/100)) -> 132.1813666 | H24: =G24*(1+('Scenario Input'!$AM$15/100)) -> 135.0394893 | I24: =H24*(1+('Scenario Input'!$AP$15/100)) -> 137.7663087 | J24: =I24*(1+('Scenario Input'!$AS$15/100)) -> 140.5481901
A25: 24 | B25: AFES Network Services LLC, AT&T California | C25: 827 | D25: =C25*(1+('Scenario Input'!$AA$15/100)) -> 836.85127 | E25: =D25*(1+('Scenario Input'!$AD$15/100)) -> 852.9567141 | F25: =E25*(1+('Scenario Input'!$AG$15/100)) -> 874.1951668 | G25: =F25*(1+('Scenario Input'!$AJ$15/100)) -> 894.5498376 | H25: =G25*(1+('Scenario Input'!$AM$15/100)) -> 913.8924518 | I25: =H25*(1+('Scenario Input'!$AP$15/100)) -> 932.3464588 | J25: =I25*(1+('Scenario Input'!$AS$15/100)) -> 951.173103
A26: 25 | B26: AFES Network Services LLC, Frontier | C26: 822.25 | D26: =C26*(1+('Scenario Input'!$AA$15/100)) -> 832.0446878 | E26: =D26*(1+('Scenario Input'!$AD$15/100)) -> 848.0576278 | F26: =E26*(1+('Scenario Input'!$AG$15/100)) -> 869.1740942 | G26: =F26*(1+('Scenario Input'!$AJ$15/100)) -> 889.4118549 | H26: =G26*(1+('Scenario Input'!$AM$15/100)) -> 908.6433718 | I26: =H26*(1+('Scenario Input'!$AP$15/100)) -> 926.9913854 | J26: =I26*(1+('Scenario Input'!$AS$15/100)) -> 945.7098959
A27: 26 | B27: AFES Network Services LLC, Frontier - Citizens | C27: 821.75 | D27: =C27*(1+('Scenario Input'!$AA$15/100)) -> 831.5387318 | E27: =D27*(1+('Scenario Input'!$AD$15/100)) -> 847.5419345 | F27: =E27*(1+('Scenario Input'!$AG$15/100)) -> 868.6455602 | G27: =F27*(1+('Scenario Input'!$AJ$15/100)) -> 888.8710146 | H27: =G27*(1+('Scenario Input'!$AM$15/100)) -> 908.0908371 | I27: =H27*(1+('Scenario Input'!$AP$15/100)) -> 926.4276935 | J27: =I27*(1+('Scenario Input'!$AS$15/100)) -> 945.1348215
A28: 27 | B28: Antelecom Inc., AT&T California | C28: 90.95 | D28: =C28*(1+('Scenario Input'!$AA$15/100)) -> 92.03340146 | E28: =D28*(1+('Scenario Input'!$AD$15/100)) -> 93.80461082 | F28: =E28*(1+('Scenario Input'!$AG$15/100)) -> 96.14032699 | G28: =F28*(1+('Scenario Input'!$AJ$15/100)) -> 98.37884853 | H28: =G28*(1+('Scenario Input'!$AM$15/100)) -> 100.5060683 | I28: =H28*(1+('Scenario Input'!$AP$15/100)) -> 102.5355628 | J28: =I28*(1+('Scenario Input'!$AS$15/100)) -> 104.6060384
A29: 28 | B29: Antelecom Inc., Frontier | C29: 86.2 | D29: =C29*(1+('Scenario Input'!$AA$15/100)) -> 87.2268192 | E29: =D29*(1+('Scenario Input'!$AD$15/100)) -> 88.90552449 | F29: =E29*(1+('Scenario Input'!$AG$15/100)) -> 91.11925438 | G29: =F29*(1+('Scenario Input'!$AJ$15/100)) -> 93.24086579 | H29: =G29*(1+('Scenario Input'!$AM$15/100)) -> 95.25698833 | I29: =H29*(1+('Scenario Input'!$AP$15/100)) -> 97.18048942 | J29: =I29*(1+('Scenario Input'!$AS$15/100)) -> 99.14283129
A30: 29 | B30: Applied Technology Group Inc, | C30: 352 | D30: =C30*(1+('Scenario Input'!$AA$15/100)) -> 356.1930436 | E30: =D30*(1+('Scenario Input'!$AD$15/100)) -> 363.0480815 | F30: =E30*(1+('Scenario Input'!$AG$15/100)) -> 372.0879065 | G30: =F30*(1+('Scenario Input'!$AJ$15/100)) -> 380.7515633 | H30: =G30*(1+('Scenario Input'!$AM$15/100)) -> 388.9844535 | I30: =H30*(1+('Scenario Input'!$AP$15/100)) -> 396.8391215 | J30: =I30*(1+('Scenario Input'!$AS$15/100)) -> 404.8523969
A31: 30 | B31: Applied Technology Group Inc, AT&T California | C31: 379 | D31: =C31*(1+('Scenario Input'!$AA$15/100)) -> 383.5146691 | E31: =D31*(1+('Scenario Input'!$AD$15/100)) -> 390.8955195 | F31: =E31*(1+('Scenario Input'!$AG$15/100)) -> 400.6287403 | G31: =F31*(1+('Scenario Input'!$AJ$15/100)) -> 409.9569389 | H31: =G31*(1+('Scenario Input'!$AM$15/100)) -> 418.8213292 | I31: =H31*(1+('Scenario Input'!$AP$15/100)) -> 427.2784859 | J31: =I31*(1+('Scenario Input'!$AS$15/100)) -> 435.906416
A32: 31 | B32: Applied Technology Group Inc, Frontier | C32: 374.25 | D32: =C32*(1+('Scenario Input'!$AA$15/100)) -> 378.7080868 | E32: =D32*(1+('Scenario Input'!$AD$15/100)) -> 385.9964332 | F32: =E32*(1+('Scenario Input'!$AG$15/100)) -> 395.6076677 | G32: =F32*(1+('Scenario Input'!$AJ$15/100)) -> 404.8189562 | H32: =G32*(1+('Scenario Input'!$AM$15/100)) -> 413.5722492 | I32: =H32*(1+('Scenario Input'!$AP$15/100)) -> 421.9234126 | J32: =I32*(1+('Scenario Input'!$AS$15/100)) -> 430.4432089
A33: 32 | B33: AT&T Service, Inc., | C33: 50 | D33: =C33*(1+('Scenario Input'!$AA$15/100)) -> 50.59560278 | E33: =D33*(1+('Scenario Input'!$AD$15/100)) -> 51.56932975 | F33: =E33*(1+('Scenario Input'!$AG$15/100)) -> 52.85339581 | G33: =F33*(1+('Scenario Input'!$AJ$15/100)) -> 54.08402888 | H33: =G33*(1+('Scenario Input'!$AM$15/100)) -> 55.25347351 | I33: =H33*(1+('Scenario Input'!$AP$15/100)) -> 56.3691934 | J33: =I33*(1+('Scenario Input'!$AS$15/100)) -> 57.50744275
A34: 33 | B34: AT&T Service, Inc., AT&T California | C34: 77 | D34: =C34*(1+('Scenario Input'!$AA$15/100)) -> 77.91722829 | E34: =D34*(1+('Scenario Input'!$AD$15/100)) -> 79.41676782 | F34: =E34*(1+('Scenario Input'!$AG$15/100)) -> 81.39422955 | G34: =F34*(1+('Scenario Input'!$AJ$15/100)) -> 83.28940447 | H34: =G34*(1+('Scenario Input'!$AM$15/100)) -> 85.0903492 | I34: =H34*(1+('Scenario Input'!$AP$15/100)) -> 86.80855783 | J34: =I34*(1+('Scenario Input'!$AS$15/100)) -> 88.56146183
A35: 34 | B35: AT&T Service, Inc., AT&T California | C35: 77 | D35: =C35*(1+('Scenario Input'!$AA$15/100)) -> 77.91722829 | E35: =D35*(1+('Scenario Input'!$AD$15/100)) -> 79.41676782 | F35: =E35*(1+('Scenario Input'!$AG$15/100)) -> 81.39422955 | G35: =F35*(1+('Scenario Input'!$AJ$15/100)) -> 83.28940447 | H35: =G35*(1+('Scenario Input'!$AM$15/100)) -> 85.0903492 | I35: =H35*(1+('Scenario Input'!$AP$15/100)) -> 86.80855783 | J35: =I35*(1+('Scenario Input'!$AS$15/100)) -> 88.56146183
A36: 35 | B36: AT&T Service, Inc., Ducor | C36: 72.63 | D36: =C36*(1+('Scenario Input'!$AA$15/100)) -> 73.4951726 | E36: =D36*(1+('Scenario Input'!$AD$15/100)) -> 74.9096084 | F36: =E36*(1+('Scenario Input'!$AG$15/100)) -> 76.77484276 | G36: =F36*(1+('Scenario Input'!$AJ$15/100)) -> 78.56246035 | H36: =G36*(1+('Scenario Input'!$AM$15/100)) -> 80.26119562 | I36: =H36*(1+('Scenario Input'!$AP$15/100)) -> 81.88189033 | J36: =I36*(1+('Scenario Input'!$AS$15/100)) -> 83.53531133
A37: 36 | B37: AT&T Service, Inc., Frontier | C37: 72.25 | D37: =C37*(1+('Scenario Input'!$AA$15/100)) -> 73.11064602 | E37: =D37*(1+('Scenario Input'!$AD$15/100)) -> 74.51768149 | F37: =E37*(1+('Scenario Input'!$AG$15/100)) -> 76.37315695 | G37: =F37*(1+('Scenario Input'!$AJ$15/100)) -> 78.15142173 | H37: =G37*(1+('Scenario Input'!$AM$15/100)) -> 79.84126922 | I37: =H37*(1+('Scenario Input'!$AP$15/100)) -> 81.45348446 | J37: =I37*(1+('Scenario Input'!$AS$15/100)) -> 83.09825477
A38: 37 | B38: AT&T Service, Inc., Frontier - Citizens | C38: 71.75 | D38: =C38*(1+('Scenario Input'!$AA$15/100)) -> 72.60469 | E38: =D38*(1+('Scenario Input'!$AD$15/100)) -> 74.00198819 | F38: =E38*(1+('Scenario Input'!$AG$15/100)) -> 75.84462299 | G38: =F38*(1+('Scenario Input'!$AJ$15/100)) -> 77.61058144 | H38: =G38*(1+('Scenario Input'!$AM$15/100)) -> 79.28873448 | I38: =H38*(1+('Scenario Input'!$AP$15/100)) -> 80.88979252 | J38: =I38*(1+('Scenario Input'!$AS$15/100)) -> 82.52318034
A39: 38 | B39: AT&T Service, Inc., Ponderosa | C39: 75 | D39: =C39*(1+('Scenario Input'!$AA$15/100)) -> 75.89340418 | E39: =D39*(1+('Scenario Input'!$AD$15/100)) -> 77.35399463 | F39: =E39*(1+('Scenario Input'!$AG$15/100)) -> 79.28009372 | G39: =F39*(1+('Scenario Input'!$AJ$15/100)) -> 81.12604332 | H39: =G39*(1+('Scenario Input'!$AM$15/100)) -> 82.88021026 | I39: =H39*(1+('Scenario Input'!$AP$15/100)) -> 84.5537901 | J39: =I39*(1+('Scenario Input'!$AS$15/100)) -> 86.26116412
A40: 39 | B40: AT&T Service, Inc., Surewest | C40: 73.22 | D40: =C40*(1+('Scenario Input'!$AA$15/100)) -> 74.09220072 | E40: =D40*(1+('Scenario Input'!$AD$15/100)) -> 75.51812649 | F40: =E40*(1+('Scenario Input'!$AG$15/100)) -> 77.39851283 | G40: =F40*(1+('Scenario Input'!$AJ$15/100)) -> 79.20065189 | H40: =G40*(1+('Scenario Input'!$AM$15/100)) -> 80.91318661 | I40: =H40*(1+('Scenario Input'!$AP$15/100)) -> 82.54704681 | J40: =I40*(1+('Scenario Input'!$AS$15/100)) -> 84.21389916
A41: 40 | B41: AT&T Service, Inc., Volcano | C41: 74 | D41: =C41*(1+('Scenario Input'!$AA$15/100)) -> 74.88149212 | E41: =D41*(1+('Scenario Input'!$AD$15/100)) -> 76.32260803 | F41: =E41*(1+('Scenario Input'!$AG$15/100)) -> 78.22302581 | G41: =F41*(1+('Scenario Input'!$AJ$15/100)) -> 80.04436274 | H41: =G41*(1+('Scenario Input'!$AM$15/100)) -> 81.77514079 | I41: =H41*(1+('Scenario Input'!$AP$15/100)) -> 83.42640623 | J41: =I41*(1+('Scenario Input'!$AS$15/100)) -> 85.11101526
A42: 41 | B42: AVISP, | C42: 599 | D42: =C42*(1+('Scenario Input'!$AA$15/100)) -> 606.1353214 | E42: =D42*(1+('Scenario Input'!$AD$15/100)) -> 617.8005704 | F42: =E42*(1+('Scenario Input'!$AG$15/100)) -> 633.1836819 | G42: =F42*(1+('Scenario Input'!$AJ$15/100)) -> 647.926666 | H42: =G42*(1+('Scenario Input'!$AM$15/100)) -> 661.9366126 | I42: =H42*(1+('Scenario Input'!$AP$15/100)) -> 675.3029369 | J42: =I42*(1+('Scenario Input'!$AS$15/100)) -> 688.9391641
A43: 42 | B43: AVISP, AT&T California | C43: 626 | D43: =C43*(1+('Scenario Input'!$AA$15/100)) -> 633.4569469 | E43: =D43*(1+('Scenario Input'!$AD$15/100)) -> 645.6480085 | F43: =E43*(1+('Scenario Input'!$AG$15/100)) -> 661.7245156 | G43: =F43*(1+('Scenario Input'!$AJ$15/100)) -> 677.1320416 | H43: =G43*(1+('Scenario Input'!$AM$15/100)) -> 691.7734883 | I43: =H43*(1+('Scenario Input'!$AP$15/100)) -> 705.7423013 | J43: =I43*(1+('Scenario Input'!$AS$15/100)) -> 719.9931832
A44: 43 | B44: Ayera Technologies Inc, AT&T California | C44: 76 | D44: =C44*(1+('Scenario Input'!$AA$15/100)) -> 76.90531623 | E44: =D44*(1+('Scenario Input'!$AD$15/100)) -> 78.38538122 | F44: =E44*(1+('Scenario Input'!$AG$15/100)) -> 80.33716164 | G44: =F44*(1+('Scenario Input'!$AJ$15/100)) -> 82.20772389 | H44: =G44*(1+('Scenario Input'!$AM$15/100)) -> 83.98527973 | I44: =H44*(1+('Scenario Input'!$AP$15/100)) -> 85.68117396 | J44: =I44*(1+('Scenario Input'!$AS$15/100)) -> 87.41131297
A45: 44 | B45: Ayera Technologies Inc, Frontier | C45: 71.25 | D45: =C45*(1+('Scenario Input'!$AA$15/100)) -> 72.09873397 | E45: =D45*(1+('Scenario Input'!$AD$15/100)) -> 73.4862949 | F45: =E45*(1+('Scenario Input'!$AG$15/100)) -> 75.31608904 | G45: =F45*(1+('Scenario Input'!$AJ$15/100)) -> 77.06974115 | H45: =G45*(1+('Scenario Input'!$AM$15/100)) -> 78.73619975 | I45: =H45*(1+('Scenario Input'!$AP$15/100)) -> 80.32610059 | J45: =I45*(1+('Scenario Input'!$AS$15/100)) -> 81.94810591
A46: 45 | B46: Cal-Ore Communications Inc., | C46: 69.95 | D46: =C46*(1+('Scenario Input'!$AA$15/100)) -> 70.78324829 | E46: =D46*(1+('Scenario Input'!$AD$15/100)) -> 72.14549232 | F46: =E46*(1+('Scenario Input'!$AG$15/100)) -> 73.94190075 | G46: =F46*(1+('Scenario Input'!$AJ$15/100)) -> 75.6635564 | H46: =G46*(1+('Scenario Input'!$AM$15/100)) -> 77.29960944 | I46: =H46*(1+('Scenario Input'!$AP$15/100)) -> 78.86050156 | J46: =I46*(1+('Scenario Input'!$AS$15/100)) -> 80.4529124
A47: 46 | B47: Cal-Ore Communications Inc., AT&T California | C47: 96.95 | D47: =C47*(1+('Scenario Input'!$AA$15/100)) -> 98.1048738 | E47: =D47*(1+('Scenario Input'!$AD$15/100)) -> 99.99293039 | F47: =E47*(1+('Scenario Input'!$AG$15/100)) -> 102.4827345 | G47: =F47*(1+('Scenario Input'!$AJ$15/100)) -> 104.868932 | H47: =G47*(1+('Scenario Input'!$AM$15/100)) -> 107.1364851 | I47: =H47*(1+('Scenario Input'!$AP$15/100)) -> 109.299866 | J47: =I47*(1+('Scenario Input'!$AS$15/100)) -> 111.5069315
A48: 47 | B48: Cal-Ore Communications Inc., Cal-Ore | C48: 94.95 | D48: =C48*(1+('Scenario Input'!$AA$15/100)) -> 96.08104969 | E48: =D48*(1+('Scenario Input'!$AD$15/100)) -> 97.9301572 | F48: =E48*(1+('Scenario Input'!$AG$15/100)) -> 100.3685987 | G48: =F48*(1+('Scenario Input'!$AJ$15/100)) -> 102.7055708 | H48: =G48*(1+('Scenario Input'!$AM$15/100)) -> 104.9263462 | I48: =H48*(1+('Scenario Input'!$AP$15/100)) -> 107.0450983 | J48: =I48*(1+('Scenario Input'!$AS$15/100)) -> 109.2066338
A49: 48 | B49: Cal-Ore Communications Inc.,70, | C49: 99.95 | D49: =C49*(1+('Scenario Input'!$AA$15/100)) -> 101.14061 | E49: =D49*(1+('Scenario Input'!$AD$15/100)) -> 103.0870902 | F49: =E49*(1+('Scenario Input'!$AG$15/100)) -> 105.6539382 | G49: =F49*(1+('Scenario Input'!$AJ$15/100)) -> 108.1139737 | H49: =G49*(1+('Scenario Input'!$AM$15/100)) -> 110.4516935 | I49: =H49*(1+('Scenario Input'!$AP$15/100)) -> 112.6820176 | J49: =I49*(1+('Scenario Input'!$AS$15/100)) -> 114.957378
A50: 49 | B50: Cal-Ore Communications Inc.,70, AT&T California | C50: 126.95 | D50: =C50*(1+('Scenario Input'!$AA$15/100)) -> 128.4622355 | E50: =D50*(1+('Scenario Input'!$AD$15/100)) -> 130.9345282 | F50: =E50*(1+('Scenario Input'!$AG$15/100)) -> 134.194772 | G50: =F50*(1+('Scenario Input'!$AJ$15/100)) -> 137.3193493 | H50: =G50*(1+('Scenario Input'!$AM$15/100)) -> 140.2885692 | I50: =H50*(1+('Scenario Input'!$AP$15/100)) -> 143.121382 | J50: =I50*(1+('Scenario Input'!$AS$15/100)) -> 146.0113971
A51: 50 | B51: Cal-Ore Communications Inc.,70, Cal-Ore | C51: 124.95 | D51: =C51*(1+('Scenario Input'!$AA$15/100)) -> 126.4384114 | E51: =D51*(1+('Scenario Input'!$AD$15/100)) -> 128.871755 | F51: =E51*(1+('Scenario Input'!$AG$15/100)) -> 132.0806361 | G51: =F51*(1+('Scenario Input'!$AJ$15/100)) -> 135.1559882 | H51: =G51*(1+('Scenario Input'!$AM$15/100)) -> 138.0784303 | I51: =H51*(1+('Scenario Input'!$AP$15/100)) -> 140.8666143 | J51: =I51*(1+('Scenario Input'!$AS$15/100)) -> 143.7110994
A52: 51 | B52: Cal.net Inc., | C52: 99.95 | D52: =C52*(1+('Scenario Input'!$AA$15/100)) -> 101.14061 | E52: =D52*(1+('Scenario Input'!$AD$15/100)) -> 103.0870902 | F52: =E52*(1+('Scenario Input'!$AG$15/100)) -> 105.6539382 | G52: =F52*(1+('Scenario Input'!$AJ$15/100)) -> 108.1139737 | H52: =G52*(1+('Scenario Input'!$AM$15/100)) -> 110.4516935 | I52: =H52*(1+('Scenario Input'!$AP$15/100)) -> 112.6820176 | J52: =I52*(1+('Scenario Input'!$AS$15/100)) -> 114.957378
A53: 52 | B53: Cal.net Inc., AT&T California | C53: 126.95 | D53: =C53*(1+('Scenario Input'!$AA$15/100)) -> 128.4622355 | E53: =D53*(1+('Scenario Input'!$AD$15/100)) -> 130.9345282 | F53: =E53*(1+('Scenario Input'!$AG$15/100)) -> 134.194772 | G53: =F53*(1+('Scenario Input'!$AJ$15/100)) -> 137.3193493 | H53: =G53*(1+('Scenario Input'!$AM$15/100)) -> 140.2885692 | I53: =H53*(1+('Scenario Input'!$AP$15/100)) -> 143.121382 | J53: =I53*(1+('Scenario Input'!$AS$15/100)) -> 146.0113971
A54: 53 | B54: Cal.net Inc., Calaveras | C54: 124.95 | D54: =C54*(1+('Scenario Input'!$AA$15/100)) -> 126.4384114 | E54: =D54*(1+('Scenario Input'!$AD$15/100)) -> 128.871755 | F54: =E54*(1+('Scenario Input'!$AG$15/100)) -> 132.0806361 | G54: =F54*(1+('Scenario Input'!$AJ$15/100)) -> 135.1559882 | H54: =G54*(1+('Scenario Input'!$AM$15/100)) -> 138.0784303 | I54: =H54*(1+('Scenario Input'!$AP$15/100)) -> 140.8666143 | J54: =I54*(1+('Scenario Input'!$AS$15/100)) -> 143.7110994
A55: 54 | B55: Cal.net Inc., Frontier | C55: 122.2 | D55: =C55*(1+('Scenario Input'!$AA$15/100)) -> 123.6556532 | E55: =D55*(1+('Scenario Input'!$AD$15/100)) -> 126.0354419 | F55: =E55*(1+('Scenario Input'!$AG$15/100)) -> 129.1736994 | G55: =F55*(1+('Scenario Input'!$AJ$15/100)) -> 132.1813666 | H55: =G55*(1+('Scenario Input'!$AM$15/100)) -> 135.0394893 | I55: =H55*(1+('Scenario Input'!$AP$15/100)) -> 137.7663087 | J55: =I55*(1+('Scenario Input'!$AS$15/100)) -> 140.5481901
A56: 55 | B56: Cal.net Inc., Frontier - Citizens | C56: 121.7 | D56: =C56*(1+('Scenario Input'!$AA$15/100)) -> 123.1496972 | E56: =D56*(1+('Scenario Input'!$AD$15/100)) -> 125.5197486 | F56: =E56*(1+('Scenario Input'!$AG$15/100)) -> 128.6451654 | G56: =F56*(1+('Scenario Input'!$AJ$15/100)) -> 131.6405263 | H56: =G56*(1+('Scenario Input'!$AM$15/100)) -> 134.4869545 | I56: =H56*(1+('Scenario Input'!$AP$15/100)) -> 137.2026167 | J56: =I56*(1+('Scenario Input'!$AS$15/100)) -> 139.9731156
A57: 56 | B57: Cal.net Inc., Surewest | C57: 123.17 | D57: =C57*(1+('Scenario Input'!$AA$15/100)) -> 124.6372079 | E57: =D57*(1+('Scenario Input'!$AD$15/100)) -> 127.0358869 | F57: =E57*(1+('Scenario Input'!$AG$15/100)) -> 130.1990553 | G57: =F57*(1+('Scenario Input'!$AJ$15/100)) -> 133.2305967 | H57: =G57*(1+('Scenario Input'!$AM$15/100)) -> 136.1114066 | I57: =H57*(1+('Scenario Input'!$AP$15/100)) -> 138.859871 | J57: =I57*(1+('Scenario Input'!$AS$15/100)) -> 141.6638345
A58: 57 | B58: Cal.net Inc., Volcano | C58: 123.95 | D58: =C58*(1+('Scenario Input'!$AA$15/100)) -> 125.4264993 | E58: =D58*(1+('Scenario Input'!$AD$15/100)) -> 127.8403685 | F58: =E58*(1+('Scenario Input'!$AG$15/100)) -> 131.0235682 | G58: =F58*(1+('Scenario Input'!$AJ$15/100)) -> 134.0743076 | H58: =G58*(1+('Scenario Input'!$AM$15/100)) -> 136.9733608 | I58: =H58*(1+('Scenario Input'!$AP$15/100)) -> 139.7392304 | J58: =I58*(1+('Scenario Input'!$AS$15/100)) -> 142.5609506
A59: 58 | B59: CalDSL, AT&T California | C59: 117 | D59: =C59*(1+('Scenario Input'!$AA$15/100)) -> 118.3937105 | E59: =D59*(1+('Scenario Input'!$AD$15/100)) -> 120.6722316 | F59: =E59*(1+('Scenario Input'!$AG$15/100)) -> 123.6769462 | G59: =F59*(1+('Scenario Input'!$AJ$15/100)) -> 126.5566276 | H59: =G59*(1+('Scenario Input'!$AM$15/100)) -> 129.293128 | I59: =H59*(1+('Scenario Input'!$AP$15/100)) -> 131.9039125 | J59: =I59*(1+('Scenario Input'!$AS$15/100)) -> 134.567416
A60: 59 | B60: CalDSL, Calaveras | C60: 115 | D60: =C60*(1+('Scenario Input'!$AA$15/100)) -> 116.3698864 | E60: =D60*(1+('Scenario Input'!$AD$15/100)) -> 118.6094584 | F60: =E60*(1+('Scenario Input'!$AG$15/100)) -> 121.5628104 | G60: =F60*(1+('Scenario Input'!$AJ$15/100)) -> 124.3932664 | H60: =G60*(1+('Scenario Input'!$AM$15/100)) -> 127.0829891 | I60: =H60*(1+('Scenario Input'!$AP$15/100)) -> 129.6491448 | J60: =I60*(1+('Scenario Input'!$AS$15/100)) -> 132.2671183
A61: 60 | B61: CalDSL, Frontier | C61: 112.25 | D61: =C61*(1+('Scenario Input'!$AA$15/100)) -> 113.5871283 | E61: =D61*(1+('Scenario Input'!$AD$15/100)) -> 115.7731453 | F61: =E61*(1+('Scenario Input'!$AG$15/100)) -> 118.6558736 | G61: =F61*(1+('Scenario Input'!$AJ$15/100)) -> 121.4186448 | H61: =G61*(1+('Scenario Input'!$AM$15/100)) -> 124.044048 | I61: =H61*(1+('Scenario Input'!$AP$15/100)) -> 126.5488392 | J61: =I61*(1+('Scenario Input'!$AS$15/100)) -> 129.104209
A62: 61 | B62: CalNeva Broadband, | C62: 65 | D62: =C62*(1+('Scenario Input'!$AA$15/100)) -> 65.77428362 | E62: =D62*(1+('Scenario Input'!$AD$15/100)) -> 67.04012868 | F62: =E62*(1+('Scenario Input'!$AG$15/100)) -> 68.70941456 | G62: =F62*(1+('Scenario Input'!$AJ$15/100)) -> 70.30923754 | H62: =G62*(1+('Scenario Input'!$AM$15/100)) -> 71.82951556 | I62: =H62*(1+('Scenario Input'!$AP$15/100)) -> 73.27995142 | J62: =I62*(1+('Scenario Input'!$AS$15/100)) -> 74.75967557
A63: 62 | B63: CalNeva Broadband, AT&T California | C63: 92 | D63: =C63*(1+('Scenario Input'!$AA$15/100)) -> 93.09590912 | E63: =D63*(1+('Scenario Input'!$AD$15/100)) -> 94.88756674 | F63: =E63*(1+('Scenario Input'!$AG$15/100)) -> 97.2502483 | G63: =F63*(1+('Scenario Input'!$AJ$15/100)) -> 99.51461314 | H63: =G63*(1+('Scenario Input'!$AM$15/100)) -> 101.6663913 | I63: =H63*(1+('Scenario Input'!$AP$15/100)) -> 103.7193159 | J63: =I63*(1+('Scenario Input'!$AS$15/100)) -> 105.8136947
A64: 63 | B64: CalNeva Broadband, Frontier | C64: 87.25 | D64: =C64*(1+('Scenario Input'!$AA$15/100)) -> 88.28932686 | E64: =D64*(1+('Scenario Input'!$AD$15/100)) -> 89.98848042 | F64: =E64*(1+('Scenario Input'!$AG$15/100)) -> 92.2291757 | G64: =F64*(1+('Scenario Input'!$AJ$15/100)) -> 94.37663039 | H64: =G64*(1+('Scenario Input'!$AM$15/100)) -> 96.41731127 | I64: =H64*(1+('Scenario Input'!$AP$15/100)) -> 98.36424248 | J64: =I64*(1+('Scenario Input'!$AS$15/100)) -> 100.3504876
A65: 64 | B65: Catalina Broadband Solutions, | C65: 79.95 | D65: =C65*(1+('Scenario Input'!$AA$15/100)) -> 80.90236885 | E65: =D65*(1+('Scenario Input'!$AD$15/100)) -> 82.45935827 | F65: =E65*(1+('Scenario Input'!$AG$15/100)) -> 84.51257991 | G65: =F65*(1+('Scenario Input'!$AJ$15/100)) -> 86.48036218 | H65: =G65*(1+('Scenario Input'!$AM$15/100)) -> 88.35030414 | I65: =H65*(1+('Scenario Input'!$AP$15/100)) -> 90.13434024 | J65: =I65*(1+('Scenario Input'!$AS$15/100)) -> 91.95440095
A66: 65 | B66: Central Coast Internet, | C66: 159.95 | D66: =C66*(1+('Scenario Input'!$AA$15/100)) -> 161.8553333 | E66: =D66*(1+('Scenario Input'!$AD$15/100)) -> 164.9702859 | F66: =E66*(1+('Scenario Input'!$AG$15/100)) -> 169.0780132 | G66: =F66*(1+('Scenario Input'!$AJ$15/100)) -> 173.0148084 | H66: =G66*(1+('Scenario Input'!$AM$15/100)) -> 176.7558618 | I66: =H66*(1+('Scenario Input'!$AP$15/100)) -> 180.3250497 | J66: =I66*(1+('Scenario Input'!$AS$15/100)) -> 183.9663093
A67: 66 | B67: Central Coast Internet, AT&T California | C67: 186.95 | D67: =C67*(1+('Scenario Input'!$AA$15/100)) -> 189.1769588 | E67: =D67*(1+('Scenario Input'!$AD$15/100)) -> 192.8177239 | F67: =E67*(1+('Scenario Input'!$AG$15/100)) -> 197.618847 | G67: =F67*(1+('Scenario Input'!$AJ$15/100)) -> 202.220184 | H67: =G67*(1+('Scenario Input'!$AM$15/100)) -> 206.5927374 | I67: =H67*(1+('Scenario Input'!$AP$15/100)) -> 210.7644141 | J67: =I67*(1+('Scenario Input'!$AS$15/100)) -> 215.0203284
A68: 67 | B68: Central Coast Internet, Frontier | C68: 182.2 | D68: =C68*(1+('Scenario Input'!$AA$15/100)) -> 184.3703765 | E68: =D68*(1+('Scenario Input'!$AD$15/100)) -> 187.9186376 | F68: =E68*(1+('Scenario Input'!$AG$15/100)) -> 192.5977743 | G68: =F68*(1+('Scenario Input'!$AJ$15/100)) -> 197.0822012 | H68: =G68*(1+('Scenario Input'!$AM$15/100)) -> 201.3436575 | I68: =H68*(1+('Scenario Input'!$AP$15/100)) -> 205.4093407 | J68: =I68*(1+('Scenario Input'!$AS$15/100)) -> 209.5571214
A69: 68 | B69: Charter Communications Inc, | C69: 69.99 | D69: =C69*(1+('Scenario Input'!$AA$15/100)) -> 70.82372478 | E69: =D69*(1+('Scenario Input'!$AD$15/100)) -> 72.18674779 | F69: =E69*(1+('Scenario Input'!$AG$15/100)) -> 73.98418346 | G69: =F69*(1+('Scenario Input'!$AJ$15/100)) -> 75.70682362 | H69: =G69*(1+('Scenario Input'!$AM$15/100)) -> 77.34381222 | I69: =H69*(1+('Scenario Input'!$AP$15/100)) -> 78.90559692 | J69: =I69*(1+('Scenario Input'!$AS$15/100)) -> 80.49891835
A70: 69 | B70: Charter Communications Inc, AT&T California | C70: 96.99 | D70: =C70*(1+('Scenario Input'!$AA$15/100)) -> 98.14535028 | E70: =D70*(1+('Scenario Input'!$AD$15/100)) -> 100.0341859 | F70: =E70*(1+('Scenario Input'!$AG$15/100)) -> 102.5250172 | G70: =F70*(1+('Scenario Input'!$AJ$15/100)) -> 104.9121992 | H70: =G70*(1+('Scenario Input'!$AM$15/100)) -> 107.1806879 | I70: =H70*(1+('Scenario Input'!$AP$15/100)) -> 109.3449614 | J70: =I70*(1+('Scenario Input'!$AS$15/100)) -> 111.5529374
A71: 70 | B71: Charter Communications Inc, Frontier | C71: 92.24 | D71: =C71*(1+('Scenario Input'!$AA$15/100)) -> 93.33876802 | E71: =D71*(1+('Scenario Input'!$AD$15/100)) -> 95.13509953 | F71: =E71*(1+('Scenario Input'!$AG$15/100)) -> 97.5039446 | G71: =F71*(1+('Scenario Input'!$AJ$15/100)) -> 99.77421647 | H71: =G71*(1+('Scenario Input'!$AM$15/100)) -> 101.9316079 | I71: =H71*(1+('Scenario Input'!$AP$15/100)) -> 103.989888 | J71: =I71*(1+('Scenario Input'!$AS$15/100)) -> 106.0897304
A72: 71 | B72: Charter Communications Inc, TDS Telecom | C72: 87.49 | D72: =C72*(1+('Scenario Input'!$AA$15/100)) -> 88.53218575 | E72: =D72*(1+('Scenario Input'!$AD$15/100)) -> 90.2360132 | F72: =E72*(1+('Scenario Input'!$AG$15/100)) -> 92.482872 | G72: =F72*(1+('Scenario Input'!$AJ$15/100)) -> 94.63623373 | H72: =G72*(1+('Scenario Input'!$AM$15/100)) -> 96.68252794 | I72: =H72*(1+('Scenario Input'!$AP$15/100)) -> 98.63481461 | J72: =I72*(1+('Scenario Input'!$AS$15/100)) -> 100.6265233
A73: 72 | B73: City of Lompoc (LompocNet), Frontier | C73: 58.24 | D73: =C73*(1+('Scenario Input'!$AA$15/100)) -> 58.93375812 | E73: =D73*(1+('Scenario Input'!$AD$15/100)) -> 60.06795529 | F73: =E73*(1+('Scenario Input'!$AG$15/100)) -> 61.56363545 | G73: =F73*(1+('Scenario Input'!$AJ$15/100)) -> 62.99707684 | H73: =G73*(1+('Scenario Input'!$AM$15/100)) -> 64.35924594 | I73: =H73*(1+('Scenario Input'!$AP$15/100)) -> 65.65883647 | J73: =I73*(1+('Scenario Input'!$AS$15/100)) -> 66.98466931
A74: 73 | B74: ColfaxNet, | C74: 150 | D74: =C74*(1+('Scenario Input'!$AA$15/100)) -> 151.7868084 | E74: =D74*(1+('Scenario Input'!$AD$15/100)) -> 154.7079893 | F74: =E74*(1+('Scenario Input'!$AG$15/100)) -> 158.5601874 | G74: =F74*(1+('Scenario Input'!$AJ$15/100)) -> 162.2520866 | H74: =G74*(1+('Scenario Input'!$AM$15/100)) -> 165.7604205 | I74: =H74*(1+('Scenario Input'!$AP$15/100)) -> 169.1075802 | J74: =I74*(1+('Scenario Input'!$AS$15/100)) -> 172.5223282
A75: 74 | B75: ColfaxNet, AT&T California | C75: 177 | D75: =C75*(1+('Scenario Input'!$AA$15/100)) -> 179.1084339 | E75: =D75*(1+('Scenario Input'!$AD$15/100)) -> 182.5554273 | F75: =E75*(1+('Scenario Input'!$AG$15/100)) -> 187.1010212 | G75: =F75*(1+('Scenario Input'!$AJ$15/100)) -> 191.4574622 | H75: =G75*(1+('Scenario Input'!$AM$15/100)) -> 195.5972962 | I75: =H75*(1+('Scenario Input'!$AP$15/100)) -> 199.5469446 | J75: =I75*(1+('Scenario Input'!$AS$15/100)) -> 203.5763473
A76: 75 | B76: ColfaxNet, Foresthill | C76: 172.63 | D76: =C76*(1+('Scenario Input'!$AA$15/100)) -> 174.6863782 | E76: =D76*(1+('Scenario Input'!$AD$15/100)) -> 178.0482679 | F76: =E76*(1+('Scenario Input'!$AG$15/100)) -> 182.4816344 | G76: =F76*(1+('Scenario Input'!$AJ$15/100)) -> 186.7305181 | H76: =G76*(1+('Scenario Input'!$AM$15/100)) -> 190.7681426 | I76: =H76*(1+('Scenario Input'!$AP$15/100)) -> 194.6202771 | J76: =I76*(1+('Scenario Input'!$AS$15/100)) -> 198.5501968
A77: 76 | B77: ColfaxNet, Frontier | C77: 172.25 | D77: =C77*(1+('Scenario Input'!$AA$15/100)) -> 174.3018516 | E77: =D77*(1+('Scenario Input'!$AD$15/100)) -> 177.656341 | F77: =E77*(1+('Scenario Input'!$AG$15/100)) -> 182.0799486 | G77: =F77*(1+('Scenario Input'!$AJ$15/100)) -> 186.3194795 | H77: =G77*(1+('Scenario Input'!$AM$15/100)) -> 190.3482162 | I77: =H77*(1+('Scenario Input'!$AP$15/100)) -> 194.1918713 | J77: =I77*(1+('Scenario Input'!$AS$15/100)) -> 198.1131403
A78: 77 | B78: Com-Pair Services, | C78: 150 | D78: =C78*(1+('Scenario Input'!$AA$15/100)) -> 151.7868084 | E78: =D78*(1+('Scenario Input'!$AD$15/100)) -> 154.7079893 | F78: =E78*(1+('Scenario Input'!$AG$15/100)) -> 158.5601874 | G78: =F78*(1+('Scenario Input'!$AJ$15/100)) -> 162.2520866 | H78: =G78*(1+('Scenario Input'!$AM$15/100)) -> 165.7604205 | I78: =H78*(1+('Scenario Input'!$AP$15/100)) -> 169.1075802 | J78: =I78*(1+('Scenario Input'!$AS$15/100)) -> 172.5223282
A79: 78 | B79: Com-Pair Services, AT&T California | C79: 177 | D79: =C79*(1+('Scenario Input'!$AA$15/100)) -> 179.1084339 | E79: =D79*(1+('Scenario Input'!$AD$15/100)) -> 182.5554273 | F79: =E79*(1+('Scenario Input'!$AG$15/100)) -> 187.1010212 | G79: =F79*(1+('Scenario Input'!$AJ$15/100)) -> 191.4574622 | H79: =G79*(1+('Scenario Input'!$AM$15/100)) -> 195.5972962 | I79: =H79*(1+('Scenario Input'!$AP$15/100)) -> 199.5469446 | J79: =I79*(1+('Scenario Input'!$AS$15/100)) -> 203.5763473
A80: 79 | B80: Com-Pair Services, Ducor | C80: 172.63 | D80: =C80*(1+('Scenario Input'!$AA$15/100)) -> 174.6863782 | E80: =D80*(1+('Scenario Input'!$AD$15/100)) -> 178.0482679 | F80: =E80*(1+('Scenario Input'!$AG$15/100)) -> 182.4816344 | G80: =F80*(1+('Scenario Input'!$AJ$15/100)) -> 186.7305181 | H80: =G80*(1+('Scenario Input'!$AM$15/100)) -> 190.7681426 | I80: =H80*(1+('Scenario Input'!$AP$15/100)) -> 194.6202771 | J80: =I80*(1+('Scenario Input'!$AS$15/100)) -> 198.5501968
A81: 80 | B81: Com-Pair Services, Frontier | C81: 172.25 | D81: =C81*(1+('Scenario Input'!$AA$15/100)) -> 174.3018516 | E81: =D81*(1+('Scenario Input'!$AD$15/100)) -> 177.656341 | F81: =E81*(1+('Scenario Input'!$AG$15/100)) -> 182.0799486 | G81: =F81*(1+('Scenario Input'!$AJ$15/100)) -> 186.3194795 | H81: =G81*(1+('Scenario Input'!$AM$15/100)) -> 190.3482162 | I81: =H81*(1+('Scenario Input'!$AP$15/100)) -> 194.1918713 | J81: =I81*(1+('Scenario Input'!$AS$15/100)) -> 198.1131403
A82: 81 | B82: Com-Pair Services, Frontier - Citizens | C82: 171.75 | D82: =C82*(1+('Scenario Input'!$AA$15/100)) -> 173.7958956 | E82: =D82*(1+('Scenario Input'!$AD$15/100)) -> 177.1406477 | F82: =E82*(1+('Scenario Input'!$AG$15/100)) -> 181.5514146 | G82: =F82*(1+('Scenario Input'!$AJ$15/100)) -> 185.7786392 | H82: =G82*(1+('Scenario Input'!$AM$15/100)) -> 189.7956815 | I82: =H82*(1+('Scenario Input'!$AP$15/100)) -> 193.6281793 | J82: =I82*(1+('Scenario Input'!$AS$15/100)) -> 197.5380658
A83: 82 | B83: Com-Pair Services, TDS Telecom - HV | C83: 166.85 | D83: =C83*(1+('Scenario Input'!$AA$15/100)) -> 168.8375265 | E83: =D83*(1+('Scenario Input'!$AD$15/100)) -> 172.0868534 | F83: =E83*(1+('Scenario Input'!$AG$15/100)) -> 176.3717818 | G83: =F83*(1+('Scenario Input'!$AJ$15/100)) -> 180.4784044 | H83: =G83*(1+('Scenario Input'!$AM$15/100)) -> 184.3808411 | I83: =H83*(1+('Scenario Input'!$AP$15/100)) -> 188.1039984 | J83: =I83*(1+('Scenario Input'!$AS$15/100)) -> 191.9023364
A84: 83 | B84: Comcast, | C84: 50 | D84: =C84*(1+('Scenario Input'!$AA$15/100)) -> 50.59560278 | E84: =D84*(1+('Scenario Input'!$AD$15/100)) -> 51.56932975 | F84: =E84*(1+('Scenario Input'!$AG$15/100)) -> 52.85339581 | G84: =F84*(1+('Scenario Input'!$AJ$15/100)) -> 54.08402888 | H84: =G84*(1+('Scenario Input'!$AM$15/100)) -> 55.25347351 | I84: =H84*(1+('Scenario Input'!$AP$15/100)) -> 56.3691934 | J84: =I84*(1+('Scenario Input'!$AS$15/100)) -> 57.50744275
A85: 84 | B85: Comcast, AT&T California | C85: 77 | D85: =C85*(1+('Scenario Input'!$AA$15/100)) -> 77.91722829 | E85: =D85*(1+('Scenario Input'!$AD$15/100)) -> 79.41676782 | F85: =E85*(1+('Scenario Input'!$AG$15/100)) -> 81.39422955 | G85: =F85*(1+('Scenario Input'!$AJ$15/100)) -> 83.28940447 | H85: =G85*(1+('Scenario Input'!$AM$15/100)) -> 85.0903492 | I85: =H85*(1+('Scenario Input'!$AP$15/100)) -> 86.80855783 | J85: =I85*(1+('Scenario Input'!$AS$15/100)) -> 88.56146183
A86: 85 | B86: Comcast, Calaveras | C86: 75 | D86: =C86*(1+('Scenario Input'!$AA$15/100)) -> 75.89340418 | E86: =D86*(1+('Scenario Input'!$AD$15/100)) -> 77.35399463 | F86: =E86*(1+('Scenario Input'!$AG$15/100)) -> 79.28009372 | G86: =F86*(1+('Scenario Input'!$AJ$15/100)) -> 81.12604332 | H86: =G86*(1+('Scenario Input'!$AM$15/100)) -> 82.88021026 | I86: =H86*(1+('Scenario Input'!$AP$15/100)) -> 84.5537901 | J86: =I86*(1+('Scenario Input'!$AS$15/100)) -> 86.26116412
A87: 86 | B87: Comcast, Frontier | C87: 72.25 | D87: =C87*(1+('Scenario Input'!$AA$15/100)) -> 73.11064602 | E87: =D87*(1+('Scenario Input'!$AD$15/100)) -> 74.51768149 | F87: =E87*(1+('Scenario Input'!$AG$15/100)) -> 76.37315695 | G87: =F87*(1+('Scenario Input'!$AJ$15/100)) -> 78.15142173 | H87: =G87*(1+('Scenario Input'!$AM$15/100)) -> 79.84126922 | I87: =H87*(1+('Scenario Input'!$AP$15/100)) -> 81.45348446 | J87: =I87*(1+('Scenario Input'!$AS$15/100)) -> 83.09825477
A88: 87 | B88: Comcast, Frontier - Citizens | C88: 71.75 | D88: =C88*(1+('Scenario Input'!$AA$15/100)) -> 72.60469 | E88: =D88*(1+('Scenario Input'!$AD$15/100)) -> 74.00198819 | F88: =E88*(1+('Scenario Input'!$AG$15/100)) -> 75.84462299 | G88: =F88*(1+('Scenario Input'!$AJ$15/100)) -> 77.61058144 | H88: =G88*(1+('Scenario Input'!$AM$15/100)) -> 79.28873448 | I88: =H88*(1+('Scenario Input'!$AP$15/100)) -> 80.88979252 | J88: =I88*(1+('Scenario Input'!$AS$15/100)) -> 82.52318034
A89: 88 | B89: Comcast, Kerman | C89: 72.58 | D89: =C89*(1+('Scenario Input'!$AA$15/100)) -> 73.444577 | E89: =D89*(1+('Scenario Input'!$AD$15/100)) -> 74.85803907 | F89: =E89*(1+('Scenario Input'!$AG$15/100)) -> 76.72198936 | G89: =F89*(1+('Scenario Input'!$AJ$15/100)) -> 78.50837632 | H89: =G89*(1+('Scenario Input'!$AM$15/100)) -> 80.20594214 | I89: =H89*(1+('Scenario Input'!$AP$15/100)) -> 81.82552114 | J89: =I89*(1+('Scenario Input'!$AS$15/100)) -> 83.47780389
A90: 89 | B90: Comcast, Ponderosa | C90: 75 | D90: =C90*(1+('Scenario Input'!$AA$15/100)) -> 75.89340418 | E90: =D90*(1+('Scenario Input'!$AD$15/100)) -> 77.35399463 | F90: =E90*(1+('Scenario Input'!$AG$15/100)) -> 79.28009372 | G90: =F90*(1+('Scenario Input'!$AJ$15/100)) -> 81.12604332 | H90: =G90*(1+('Scenario Input'!$AM$15/100)) -> 82.88021026 | I90: =H90*(1+('Scenario Input'!$AP$15/100)) -> 84.5537901 | J90: =I90*(1+('Scenario Input'!$AS$15/100)) -> 86.26116412
A91: 90 | B91: Comcast, Sierra | C91: 75 | D91: =C91*(1+('Scenario Input'!$AA$15/100)) -> 75.89340418 | E91: =D91*(1+('Scenario Input'!$AD$15/100)) -> 77.35399463 | F91: =E91*(1+('Scenario Input'!$AG$15/100)) -> 79.28009372 | G91: =F91*(1+('Scenario Input'!$AJ$15/100)) -> 81.12604332 | H91: =G91*(1+('Scenario Input'!$AM$15/100)) -> 82.88021026 | I91: =H91*(1+('Scenario Input'!$AP$15/100)) -> 84.5537901 | J91: =I91*(1+('Scenario Input'!$AS$15/100)) -> 86.26116412
A92: 91 | B92: Comcast, Siskiyou | C92: 74 | D92: =C92*(1+('Scenario Input'!$AA$15/100)) -> 74.88149212 | E92: =D92*(1+('Scenario Input'!$AD$15/100)) -> 76.32260803 | F92: =E92*(1+('Scenario Input'!$AG$15/100)) -> 78.22302581 | G92: =F92*(1+('Scenario Input'!$AJ$15/100)) -> 80.04436274 | H92: =G92*(1+('Scenario Input'!$AM$15/100)) -> 81.77514079 | I92: =H92*(1+('Scenario Input'!$AP$15/100)) -> 83.42640623 | J92: =I92*(1+('Scenario Input'!$AS$15/100)) -> 85.11101526
A93: 92 | B93: Comcast, Surewest | C93: 73.22 | D93: =C93*(1+('Scenario Input'!$AA$15/100)) -> 74.09220072 | E93: =D93*(1+('Scenario Input'!$AD$15/100)) -> 75.51812649 | F93: =E93*(1+('Scenario Input'!$AG$15/100)) -> 77.39851283 | G93: =F93*(1+('Scenario Input'!$AJ$15/100)) -> 79.20065189 | H93: =G93*(1+('Scenario Input'!$AM$15/100)) -> 80.91318661 | I93: =H93*(1+('Scenario Input'!$AP$15/100)) -> 82.54704681 | J93: =I93*(1+('Scenario Input'!$AS$15/100)) -> 84.21389916
A94: 93 | B94: Comcast, TDS Telecom | C94: 67.5 | D94: =C94*(1+('Scenario Input'!$AA$15/100)) -> 68.30406376 | E94: =D94*(1+('Scenario Input'!$AD$15/100)) -> 69.61859516 | F94: =E94*(1+('Scenario Input'!$AG$15/100)) -> 71.35208435 | G94: =F94*(1+('Scenario Input'!$AJ$15/100)) -> 73.01343899 | H94: =G94*(1+('Scenario Input'!$AM$15/100)) -> 74.59218924 | I94: =H94*(1+('Scenario Input'!$AP$15/100)) -> 76.09841109 | J94: =I94*(1+('Scenario Input'!$AS$15/100)) -> 77.63504771
A95: 94 | B95: Comcast, Volcano | C95: 74 | D95: =C95*(1+('Scenario Input'!$AA$15/100)) -> 74.88149212 | E95: =D95*(1+('Scenario Input'!$AD$15/100)) -> 76.32260803 | F95: =E95*(1+('Scenario Input'!$AG$15/100)) -> 78.22302581 | G95: =F95*(1+('Scenario Input'!$AJ$15/100)) -> 80.04436274 | H95: =G95*(1+('Scenario Input'!$AM$15/100)) -> 81.77514079 | I95: =H95*(1+('Scenario Input'!$AP$15/100)) -> 83.42640623 | J95: =I95*(1+('Scenario Input'!$AS$15/100)) -> 85.11101526
A96: 95 | B96: Common Networks, AT&T California | C96: 61 | D96: =C96*(1+('Scenario Input'!$AA$15/100)) -> 61.7266354 | E96: =D96*(1+('Scenario Input'!$AD$15/100)) -> 62.9145823 | F96: =E96*(1+('Scenario Input'!$AG$15/100)) -> 64.48114289 | G96: =F96*(1+('Scenario Input'!$AJ$15/100)) -> 65.98251523 | H96: =G96*(1+('Scenario Input'!$AM$15/100)) -> 67.40923768 | I96: =H96*(1+('Scenario Input'!$AP$15/100)) -> 68.77041594 | J96: =I96*(1+('Scenario Input'!$AS$15/100)) -> 70.15908015
A97: 96 | B97: Conifer Communications, | C97: 175 | D97: =C97*(1+('Scenario Input'!$AA$15/100)) -> 177.0846097 | E97: =D97*(1+('Scenario Input'!$AD$15/100)) -> 180.4926541 | F97: =E97*(1+('Scenario Input'!$AG$15/100)) -> 184.9868854 | G97: =F97*(1+('Scenario Input'!$AJ$15/100)) -> 189.2941011 | H97: =G97*(1+('Scenario Input'!$AM$15/100)) -> 193.3871573 | I97: =H97*(1+('Scenario Input'!$AP$15/100)) -> 197.2921769 | J97: =I97*(1+('Scenario Input'!$AS$15/100)) -> 201.2760496
A98: 97 | B98: Conifer Communications, AT&T California | C98: 202 | D98: =C98*(1+('Scenario Input'!$AA$15/100)) -> 204.4062352 | E98: =D98*(1+('Scenario Input'!$AD$15/100)) -> 208.3400922 | F98: =E98*(1+('Scenario Input'!$AG$15/100)) -> 213.5277191 | G98: =F98*(1+('Scenario Input'!$AJ$15/100)) -> 218.4994767 | H98: =G98*(1+('Scenario Input'!$AM$15/100)) -> 223.224033 | I98: =H98*(1+('Scenario Input'!$AP$15/100)) -> 227.7315413 | J98: =I98*(1+('Scenario Input'!$AS$15/100)) -> 232.3300687
A99: 98 | B99: Conifer Communications, Calaveras | C99: 200 | D99: =C99*(1+('Scenario Input'!$AA$15/100)) -> 202.3824111 | E99: =D99*(1+('Scenario Input'!$AD$15/100)) -> 206.277319 | F99: =E99*(1+('Scenario Input'!$AG$15/100)) -> 211.4135833 | G99: =F99*(1+('Scenario Input'!$AJ$15/100)) -> 216.3361155 | H99: =G99*(1+('Scenario Input'!$AM$15/100)) -> 221.013894 | I99: =H99*(1+('Scenario Input'!$AP$15/100)) -> 225.4767736 | J99: =I99*(1+('Scenario Input'!$AS$15/100)) -> 230.029771
A100: 99 | B100: Conifer Communications, Frontier | C100: 197.25 | D100: =C100*(1+('Scenario Input'!$AA$15/100)) -> 199.599653 | E100: =D100*(1+('Scenario Input'!$AD$15/100)) -> 203.4410059 | F100: =E100*(1+('Scenario Input'!$AG$15/100)) -> 208.5066465 | G100: =F100*(1+('Scenario Input'!$AJ$15/100)) -> 213.3614939 | H100: =G100*(1+('Scenario Input'!$AM$15/100)) -> 217.974953 | I100: =H100*(1+('Scenario Input'!$AP$15/100)) -> 222.376468 | J100: =I100*(1+('Scenario Input'!$AS$15/100)) -> 226.8668616
A101: 100 | B101: Conifer Communications, Frontier - Citizens | C101: 196.75 | D101: =C101*(1+('Scenario Input'!$AA$15/100)) -> 199.093697 | E101: =D101*(1+('Scenario Input'!$AD$15/100)) -> 202.9253126 | F101: =E101*(1+('Scenario Input'!$AG$15/100)) -> 207.9781125 | G101: =F101*(1+('Scenario Input'!$AJ$15/100)) -> 212.8206536 | H101: =G101*(1+('Scenario Input'!$AM$15/100)) -> 217.4224183 | I101: =H101*(1+('Scenario Input'!$AP$15/100)) -> 221.812776 | J101: =I101*(1+('Scenario Input'!$AS$15/100)) -> 226.2917872
A102: 101 | B102: Conifer Communications, Sierra | C102: 200 | D102: =C102*(1+('Scenario Input'!$AA$15/100)) -> 202.3824111 | E102: =D102*(1+('Scenario Input'!$AD$15/100)) -> 206.277319 | F102: =E102*(1+('Scenario Input'!$AG$15/100)) -> 211.4135833 | G102: =F102*(1+('Scenario Input'!$AJ$15/100)) -> 216.3361155 | H102: =G102*(1+('Scenario Input'!$AM$15/100)) -> 221.013894 | I102: =H102*(1+('Scenario Input'!$AP$15/100)) -> 225.4767736 | J102: =I102*(1+('Scenario Input'!$AS$15/100)) -> 230.029771
A103: 102 | B103: Conifer Communications, TDS Telecom - Horn | C103: 191.05 | D103: =C103*(1+('Scenario Input'!$AA$15/100)) -> 193.3257982 | E103: =D103*(1+('Scenario Input'!$AD$15/100)) -> 197.046409 | F103: =E103*(1+('Scenario Input'!$AG$15/100)) -> 201.9528254 | G103: =F103*(1+('Scenario Input'!$AJ$15/100)) -> 206.6550743 | H103: =G103*(1+('Scenario Input'!$AM$15/100)) -> 211.1235223 | I103: =H103*(1+('Scenario Input'!$AP$15/100)) -> 215.386688 | J103: =I103*(1+('Scenario Input'!$AS$15/100)) -> 219.7359387
A104: 103 | B104: ConnectAnza, Frontier | C104: 71.25 | D104: =C104*(1+('Scenario Input'!$AA$15/100)) -> 72.09873397 | E104: =D104*(1+('Scenario Input'!$AD$15/100)) -> 73.4862949 | F104: =E104*(1+('Scenario Input'!$AG$15/100)) -> 75.31608904 | G104: =F104*(1+('Scenario Input'!$AJ$15/100)) -> 77.06974115 | H104: =G104*(1+('Scenario Input'!$AM$15/100)) -> 78.73619975 | I104: =H104*(1+('Scenario Input'!$AP$15/100)) -> 80.32610059 | J104: =I104*(1+('Scenario Input'!$AS$15/100)) -> 81.94810591
A105: 104 | B105: ConnectTo Communications, AT&T California | C105: 66.99 | D105: =C105*(1+('Scenario Input'!$AA$15/100)) -> 67.78798861 | E105: =D105*(1+('Scenario Input'!$AD$15/100)) -> 69.092588 | F105: =E105*(1+('Scenario Input'!$AG$15/100)) -> 70.81297971 | G105: =F105*(1+('Scenario Input'!$AJ$15/100)) -> 72.46178189 | H105: =G105*(1+('Scenario Input'!$AM$15/100)) -> 74.02860381 | I105: =H105*(1+('Scenario Input'!$AP$15/100)) -> 75.52344531 | J105: =I105*(1+('Scenario Input'!$AS$15/100)) -> 77.04847179
A106: 105 | B106: ConnectTo Communications, Frontier | C106: 62.24 | D106: =C106*(1+('Scenario Input'!$AA$15/100)) -> 62.98140635 | E106: =D106*(1+('Scenario Input'!$AD$15/100)) -> 64.19350167 | F106: =E106*(1+('Scenario Input'!$AG$15/100)) -> 65.79190711 | G106: =F106*(1+('Scenario Input'!$AJ$15/100)) -> 67.32379915 | H106: =G106*(1+('Scenario Input'!$AM$15/100)) -> 68.77952382 | I106: =H106*(1+('Scenario Input'!$AP$15/100)) -> 70.16837194 | J106: =I106*(1+('Scenario Input'!$AS$15/100)) -> 71.58526473
A107: 106 | B107: Consolidated Communications, AT&T California | C107: 83.95 | D107: =C107*(1+('Scenario Input'!$AA$15/100)) -> 84.95001707 | E107: =D107*(1+('Scenario Input'!$AD$15/100)) -> 86.58490465 | F107: =E107*(1+('Scenario Input'!$AG$15/100)) -> 88.74085157 | G107: =F107*(1+('Scenario Input'!$AJ$15/100)) -> 90.80708449 | H107: =G107*(1+('Scenario Input'!$AM$15/100)) -> 92.77058202 | I107: =H107*(1+('Scenario Input'!$AP$15/100)) -> 94.64387571 | J107: =I107*(1+('Scenario Input'!$AS$15/100)) -> 96.55499637
A108: 107 | B108: Consolidated Communications, Frontier - Citizens | C108: 78.7 | D108: =C108*(1+('Scenario Input'!$AA$15/100)) -> 79.63747878 | E108: =D108*(1+('Scenario Input'!$AD$15/100)) -> 81.17012503 | F108: =E108*(1+('Scenario Input'!$AG$15/100)) -> 83.19124501 | G108: =F108*(1+('Scenario Input'!$AJ$15/100)) -> 85.12826145 | H108: =G108*(1+('Scenario Input'!$AM$15/100)) -> 86.9689673 | I108: =H108*(1+('Scenario Input'!$AP$15/100)) -> 88.72511041 | J108: =I108*(1+('Scenario Input'!$AS$15/100)) -> 90.51671488
A109: 108 | B109: Consolidated Communications, Surewest | C109: 80.17 | D109: =C109*(1+('Scenario Input'!$AA$15/100)) -> 81.1249895 | E109: =D109*(1+('Scenario Input'!$AD$15/100)) -> 82.68626332 | F109: =E109*(1+('Scenario Input'!$AG$15/100)) -> 84.74513485 | G109: =F109*(1+('Scenario Input'!$AJ$15/100)) -> 86.7183319 | H109: =G109*(1+('Scenario Input'!$AM$15/100)) -> 88.59341942 | I109: =H109*(1+('Scenario Input'!$AP$15/100)) -> 90.38236469 | J109: =I109*(1+('Scenario Input'!$AS$15/100)) -> 92.2074337
A110: 109 | B110: Consolidated Smart Broadband Systems, LLC, | C110: 24.99 | D110: =C110*(1+('Scenario Input'!$AA$15/100)) -> 25.28768227 | E110: =D110*(1+('Scenario Input'!$AD$15/100)) -> 25.77435101 | F110: =E110*(1+('Scenario Input'!$AG$15/100)) -> 26.41612723 | G110: =F110*(1+('Scenario Input'!$AJ$15/100)) -> 27.03119763 | H110: =G110*(1+('Scenario Input'!$AM$15/100)) -> 27.61568606 | I110: =H110*(1+('Scenario Input'!$AP$15/100)) -> 28.17332286 | J110: =I110*(1+('Scenario Input'!$AS$15/100)) -> 28.74221988
A111: 110 | B111: Consolidated Smart Broadband Systems, LLC, AT&T California | C111: 51.99 | D111: =C111*(1+('Scenario Input'!$AA$15/100)) -> 52.60930777 | E111: =D111*(1+('Scenario Input'!$AD$15/100)) -> 53.62178908 | F111: =E111*(1+('Scenario Input'!$AG$15/100)) -> 54.95696097 | G111: =F111*(1+('Scenario Input'!$AJ$15/100)) -> 56.23657323 | H111: =G111*(1+('Scenario Input'!$AM$15/100)) -> 57.45256175 | I111: =H111*(1+('Scenario Input'!$AP$15/100)) -> 58.61268729 | J111: =I111*(1+('Scenario Input'!$AS$15/100)) -> 59.79623897
A112: 111 | B112: Consolidated Smart Broadband Systems, LLC, Frontier | C112: 47.24 | D112: =C112*(1+('Scenario Input'!$AA$15/100)) -> 47.80272551 | E112: =D112*(1+('Scenario Input'!$AD$15/100)) -> 48.72270275 | F112: =E112*(1+('Scenario Input'!$AG$15/100)) -> 49.93588837 | G112: =F112*(1+('Scenario Input'!$AJ$15/100)) -> 51.09859048 | H112: =G112*(1+('Scenario Input'!$AM$15/100)) -> 52.20348177 | I112: =H112*(1+('Scenario Input'!$AP$15/100)) -> 53.25761392 | J112: =I112*(1+('Scenario Input'!$AS$15/100)) -> 54.33303191
A113: 112 | B113: Cox Communications, | C113: 65.99 | D113: =C113*(1+('Scenario Input'!$AA$15/100)) -> 66.77607655 | E113: =D113*(1+('Scenario Input'!$AD$15/100)) -> 68.06120141 | F113: =E113*(1+('Scenario Input'!$AG$15/100)) -> 69.7559118 | G113: =F113*(1+('Scenario Input'!$AJ$15/100)) -> 71.38010131 | H113: =G113*(1+('Scenario Input'!$AM$15/100)) -> 72.92353434 | I113: =H113*(1+('Scenario Input'!$AP$15/100)) -> 74.39606145 | J113: =I113*(1+('Scenario Input'!$AS$15/100)) -> 75.89832294
A114: 113 | B114: Cox Communications, AT&T California | C114: 92.99 | D114: =C114*(1+('Scenario Input'!$AA$15/100)) -> 94.09770206 | E114: =D114*(1+('Scenario Input'!$AD$15/100)) -> 95.90863947 | F114: =E114*(1+('Scenario Input'!$AG$15/100)) -> 98.29674554 | G114: =F114*(1+('Scenario Input'!$AJ$15/100)) -> 100.5854769 | H114: =G114*(1+('Scenario Input'!$AM$15/100)) -> 102.76041 | I114: =H114*(1+('Scenario Input'!$AP$15/100)) -> 104.8354259 | J114: =I114*(1+('Scenario Input'!$AS$15/100)) -> 106.952342
A115: 114 | B115: Cox Communications, Frontier | C115: 88.24 | D115: =C115*(1+('Scenario Input'!$AA$15/100)) -> 89.29111979 | E115: =D115*(1+('Scenario Input'!$AD$15/100)) -> 91.00955315 | F115: =E115*(1+('Scenario Input'!$AG$15/100)) -> 93.27567293 | G115: =F115*(1+('Scenario Input'!$AJ$15/100)) -> 95.44749416 | H115: =G115*(1+('Scenario Input'!$AM$15/100)) -> 97.51133005 | I115: =H115*(1+('Scenario Input'!$AP$15/100)) -> 99.48035251 | J115: =I115*(1+('Scenario Input'!$AS$15/100)) -> 101.489135
A116: 115 | B116: Cruzio, AT&T California | C116: 101.95 | D116: =C116*(1+('Scenario Input'!$AA$15/100)) -> 103.1644341 | E116: =D116*(1+('Scenario Input'!$AD$15/100)) -> 105.1498634 | F116: =E116*(1+('Scenario Input'!$AG$15/100)) -> 107.7680741 | G116: =F116*(1+('Scenario Input'!$AJ$15/100)) -> 110.2773349 | H116: =G116*(1+('Scenario Input'!$AM$15/100)) -> 112.6618325 | I116: =H116*(1+('Scenario Input'!$AP$15/100)) -> 114.9367853 | J116: =I116*(1+('Scenario Input'!$AS$15/100)) -> 117.2576758
A117: 116 | B117: DigitalPath, Inc., | C117: 149.95 | D117: =C117*(1+('Scenario Input'!$AA$15/100)) -> 151.7362127 | E117: =D117*(1+('Scenario Input'!$AD$15/100)) -> 154.6564199 | F117: =E117*(1+('Scenario Input'!$AG$15/100)) -> 158.507334 | G117: =F117*(1+('Scenario Input'!$AJ$15/100)) -> 162.1980026 | H117: =G117*(1+('Scenario Input'!$AM$15/100)) -> 165.7051671 | I117: =H117*(1+('Scenario Input'!$AP$15/100)) -> 169.051211 | J117: =I117*(1+('Scenario Input'!$AS$15/100)) -> 172.4648208
A118: 117 | B118: DigitalPath, Inc., AT&T California | C118: 176.95 | D118: =C118*(1+('Scenario Input'!$AA$15/100)) -> 179.0578383 | E118: =D118*(1+('Scenario Input'!$AD$15/100)) -> 182.503858 | F118: =E118*(1+('Scenario Input'!$AG$15/100)) -> 187.0481678 | G118: =F118*(1+('Scenario Input'!$AJ$15/100)) -> 191.4033782 | H118: =G118*(1+('Scenario Input'!$AM$15/100)) -> 195.5420427 | I118: =H118*(1+('Scenario Input'!$AP$15/100)) -> 199.4905754 | J118: =I118*(1+('Scenario Input'!$AS$15/100)) -> 203.5188399
A119: 118 | B119: DigitalPath, Inc., Ducor | C119: 172.58 | D119: =C119*(1+('Scenario Input'!$AA$15/100)) -> 174.6357826 | E119: =D119*(1+('Scenario Input'!$AD$15/100)) -> 177.9966986 | F119: =E119*(1+('Scenario Input'!$AG$15/100)) -> 182.428781 | G119: =F119*(1+('Scenario Input'!$AJ$15/100)) -> 186.6764341 | H119: =G119*(1+('Scenario Input'!$AM$15/100)) -> 190.7128892 | I119: =H119*(1+('Scenario Input'!$AP$15/100)) -> 194.5639079 | J119: =I119*(1+('Scenario Input'!$AS$15/100)) -> 198.4926894
A120: 119 | B120: DigitalPath, Inc., Frontier | C120: 172.2 | D120: =C120*(1+('Scenario Input'!$AA$15/100)) -> 174.251256 | E120: =D120*(1+('Scenario Input'!$AD$15/100)) -> 177.6047717 | F120: =E120*(1+('Scenario Input'!$AG$15/100)) -> 182.0270952 | G120: =F120*(1+('Scenario Input'!$AJ$15/100)) -> 186.2653955 | H120: =G120*(1+('Scenario Input'!$AM$15/100)) -> 190.2929628 | I120: =H120*(1+('Scenario Input'!$AP$15/100)) -> 194.1355021 | J120: =I120*(1+('Scenario Input'!$AS$15/100)) -> 198.0556328
A121: 120 | B121: DigitalPath, Inc., Frontier - Citizens | C121: 171.7 | D121: =C121*(1+('Scenario Input'!$AA$15/100)) -> 173.7453 | E121: =D121*(1+('Scenario Input'!$AD$15/100)) -> 177.0890784 | F121: =E121*(1+('Scenario Input'!$AG$15/100)) -> 181.4985612 | G121: =F121*(1+('Scenario Input'!$AJ$15/100)) -> 185.7245552 | H121: =G121*(1+('Scenario Input'!$AM$15/100)) -> 189.740428 | I121: =H121*(1+('Scenario Input'!$AP$15/100)) -> 193.5718101 | J121: =I121*(1+('Scenario Input'!$AS$15/100)) -> 197.4805584
A122: 121 | B122: DigitalPath, Inc., Surewest | C122: 173.17 | D122: =C122*(1+('Scenario Input'!$AA$15/100)) -> 175.2328107 | E122: =D122*(1+('Scenario Input'!$AD$15/100)) -> 178.6052167 | F122: =E122*(1+('Scenario Input'!$AG$15/100)) -> 183.0524511 | G122: =F122*(1+('Scenario Input'!$AJ$15/100)) -> 187.3146256 | H122: =G122*(1+('Scenario Input'!$AM$15/100)) -> 191.3648801 | I122: =H122*(1+('Scenario Input'!$AP$15/100)) -> 195.2290644 | J122: =I122*(1+('Scenario Input'!$AS$15/100)) -> 199.1712772
A123: 122 | B123: DigitalPath, Inc., TDS Telecom - HV | C123: 166.8 | D123: =C123*(1+('Scenario Input'!$AA$15/100)) -> 168.7869309 | E123: =D123*(1+('Scenario Input'!$AD$15/100)) -> 172.0352841 | F123: =E123*(1+('Scenario Input'!$AG$15/100)) -> 176.3189284 | G123: =F123*(1+('Scenario Input'!$AJ$15/100)) -> 180.4243203 | H123: =G123*(1+('Scenario Input'!$AM$15/100)) -> 184.3255876 | I123: =H123*(1+('Scenario Input'!$AP$15/100)) -> 188.0476292 | J123: =I123*(1+('Scenario Input'!$AS$15/100)) -> 191.844829
A124: 123 | B124: Dillon Beach Internet Service, | C124: 50 | D124: =C124*(1+('Scenario Input'!$AA$15/100)) -> 50.59560278 | E124: =D124*(1+('Scenario Input'!$AD$15/100)) -> 51.56932975 | F124: =E124*(1+('Scenario Input'!$AG$15/100)) -> 52.85339581 | G124: =F124*(1+('Scenario Input'!$AJ$15/100)) -> 54.08402888 | H124: =G124*(1+('Scenario Input'!$AM$15/100)) -> 55.25347351 | I124: =H124*(1+('Scenario Input'!$AP$15/100)) -> 56.3691934 | J124: =I124*(1+('Scenario Input'!$AS$15/100)) -> 57.50744275
A125: 124 | B125: Dillon Beach Internet Service, AT&T California | C125: 77 | D125: =C125*(1+('Scenario Input'!$AA$15/100)) -> 77.91722829 | E125: =D125*(1+('Scenario Input'!$AD$15/100)) -> 79.41676782 | F125: =E125*(1+('Scenario Input'!$AG$15/100)) -> 81.39422955 | G125: =F125*(1+('Scenario Input'!$AJ$15/100)) -> 83.28940447 | H125: =G125*(1+('Scenario Input'!$AM$15/100)) -> 85.0903492 | I125: =H125*(1+('Scenario Input'!$AP$15/100)) -> 86.80855783 | J125: =I125*(1+('Scenario Input'!$AS$15/100)) -> 88.56146183
A126: 125 | B126: DM-Tech Internet, | C126: 109.95 | D126: =C126*(1+('Scenario Input'!$AA$15/100)) -> 111.2597305 | E126: =D126*(1+('Scenario Input'!$AD$15/100)) -> 113.4009561 | F126: =E126*(1+('Scenario Input'!$AG$15/100)) -> 116.2246174 | G126: =F126*(1+('Scenario Input'!$AJ$15/100)) -> 118.9307795 | H126: =G126*(1+('Scenario Input'!$AM$15/100)) -> 121.5023882 | I126: =H126*(1+('Scenario Input'!$AP$15/100)) -> 123.9558563 | J126: =I126*(1+('Scenario Input'!$AS$15/100)) -> 126.4588666
A127: 126 | B127: DM-Tech Internet, AT&T California | C127: 136.95 | D127: =C127*(1+('Scenario Input'!$AA$15/100)) -> 138.581356 | E127: =D127*(1+('Scenario Input'!$AD$15/100)) -> 141.2483942 | F127: =E127*(1+('Scenario Input'!$AG$15/100)) -> 144.7654511 | G127: =F127*(1+('Scenario Input'!$AJ$15/100)) -> 148.1361551 | H127: =G127*(1+('Scenario Input'!$AM$15/100)) -> 151.3392639 | I127: =H127*(1+('Scenario Input'!$AP$15/100)) -> 154.3952207 | J127: =I127*(1+('Scenario Input'!$AS$15/100)) -> 157.5128857
A128: 127 | B128: DM-Tech Internet, Ducor | C128: 132.58 | D128: =C128*(1+('Scenario Input'!$AA$15/100)) -> 134.1593003 | E128: =D128*(1+('Scenario Input'!$AD$15/100)) -> 136.7412348 | F128: =E128*(1+('Scenario Input'!$AG$15/100)) -> 140.1460643 | G128: =F128*(1+('Scenario Input'!$AJ$15/100)) -> 143.409211 | H128: =G128*(1+('Scenario Input'!$AM$15/100)) -> 146.5101104 | I128: =H128*(1+('Scenario Input'!$AP$15/100)) -> 149.4685532 | J128: =I128*(1+('Scenario Input'!$AS$15/100)) -> 152.4867352
A129: 128 | B129: eastsierra.net, Frontier | C129: 65.75 | D129: =C129*(1+('Scenario Input'!$AA$15/100)) -> 66.53321766 | E129: =D129*(1+('Scenario Input'!$AD$15/100)) -> 67.81366862 | F129: =E129*(1+('Scenario Input'!$AG$15/100)) -> 69.5022155 | G129: =F129*(1+('Scenario Input'!$AJ$15/100)) -> 71.12049797 | H129: =G129*(1+('Scenario Input'!$AM$15/100)) -> 72.65831766 | I129: =H129*(1+('Scenario Input'!$AP$15/100)) -> 74.12548932 | J129: =I129*(1+('Scenario Input'!$AS$15/100)) -> 75.62228721
A130: 129 | B130: Esparto Broadband, Inc., AT&T California | C130: 68 | D130: =C130*(1+('Scenario Input'!$AA$15/100)) -> 68.81001979 | E130: =D130*(1+('Scenario Input'!$AD$15/100)) -> 70.13428846 | F130: =E130*(1+('Scenario Input'!$AG$15/100)) -> 71.88061831 | G130: =F130*(1+('Scenario Input'!$AJ$15/100)) -> 73.55427927 | H130: =G130*(1+('Scenario Input'!$AM$15/100)) -> 75.14472397 | I130: =H130*(1+('Scenario Input'!$AP$15/100)) -> 76.66210302 | J130: =I130*(1+('Scenario Input'!$AS$15/100)) -> 78.21012213
A131: 130 | B131: Esparto Broadband, Inc., Frontier | C131: 63.25 | D131: =C131*(1+('Scenario Input'!$AA$15/100)) -> 64.00343752 | E131: =D131*(1+('Scenario Input'!$AD$15/100)) -> 65.23520214 | F131: =E131*(1+('Scenario Input'!$AG$15/100)) -> 66.85954571 | G131: =F131*(1+('Scenario Input'!$AJ$15/100)) -> 68.41629653 | H131: =G131*(1+('Scenario Input'!$AM$15/100)) -> 69.89564399 | I131: =H131*(1+('Scenario Input'!$AP$15/100)) -> 71.30702965 | J131: =I131*(1+('Scenario Input'!$AS$15/100)) -> 72.74691507
A132: 131 | B132: Etheric Networks, Inc., | C132: 139 | D132: =C132*(1+('Scenario Input'!$AA$15/100)) -> 140.6557757 | E132: =D132*(1+('Scenario Input'!$AD$15/100)) -> 143.3627367 | F132: =E132*(1+('Scenario Input'!$AG$15/100)) -> 146.9324404 | G132: =F132*(1+('Scenario Input'!$AJ$15/100)) -> 150.3536003 | H132: =G132*(1+('Scenario Input'!$AM$15/100)) -> 153.6046564 | I132: =H132*(1+('Scenario Input'!$AP$15/100)) -> 156.7063576 | J132: =I132*(1+('Scenario Input'!$AS$15/100)) -> 159.8706908
A133: 132 | B133: Etheric Networks, Inc., AT&T California | C133: 166 | D133: =C133*(1+('Scenario Input'!$AA$15/100)) -> 167.9774012 | E133: =D133*(1+('Scenario Input'!$AD$15/100)) -> 171.2101748 | F133: =E133*(1+('Scenario Input'!$AG$15/100)) -> 175.4732741 | G133: =F133*(1+('Scenario Input'!$AJ$15/100)) -> 179.5589759 | H133: =G133*(1+('Scenario Input'!$AM$15/100)) -> 183.441532 | I133: =H133*(1+('Scenario Input'!$AP$15/100)) -> 187.1457221 | J133: =I133*(1+('Scenario Input'!$AS$15/100)) -> 190.9247099
A134: 133 | B134: Etheric Networks, Inc., Frontier | C134: 161.25 | D134: =C134*(1+('Scenario Input'!$AA$15/100)) -> 163.170819 | E134: =D134*(1+('Scenario Input'!$AD$15/100)) -> 166.3110884 | F134: =E134*(1+('Scenario Input'!$AG$15/100)) -> 170.4522015 | G134: =F134*(1+('Scenario Input'!$AJ$15/100)) -> 174.4209931 | H134: =G134*(1+('Scenario Input'!$AM$15/100)) -> 178.1924521 | I134: =H134*(1+('Scenario Input'!$AP$15/100)) -> 181.7906487 | J134: =I134*(1+('Scenario Input'!$AS$15/100)) -> 185.4615029
A135: 134 | B135: FlashByte Digital, LLC, | C135: 99 | D135: =C135*(1+('Scenario Input'!$AA$15/100)) -> 100.1792935 | E135: =D135*(1+('Scenario Input'!$AD$15/100)) -> 102.1072729 | F135: =E135*(1+('Scenario Input'!$AG$15/100)) -> 104.6497237 | G135: =F135*(1+('Scenario Input'!$AJ$15/100)) -> 107.0863772 | H135: =G135*(1+('Scenario Input'!$AM$15/100)) -> 109.4018775 | I135: =H135*(1+('Scenario Input'!$AP$15/100)) -> 111.6110029 | J135: =I135*(1+('Scenario Input'!$AS$15/100)) -> 113.8647366
A136: 135 | B136: FlashByte Digital, LLC, Frontier | C136: 121.25 | D136: =C136*(1+('Scenario Input'!$AA$15/100)) -> 122.6943368 | E136: =D136*(1+('Scenario Input'!$AD$15/100)) -> 125.0556246 | F136: =E136*(1+('Scenario Input'!$AG$15/100)) -> 128.1694849 | G136: =F136*(1+('Scenario Input'!$AJ$15/100)) -> 131.15377 | H136: =G136*(1+('Scenario Input'!$AM$15/100)) -> 133.9896733 | I136: =H136*(1+('Scenario Input'!$AP$15/100)) -> 136.695294 | J136: =I136*(1+('Scenario Input'!$AS$15/100)) -> 139.4555487
A137: 136 | B137: Fort Mojave Telecommunications Inc, Frontier - Citizens | C137: 81.7 | D137: =C137*(1+('Scenario Input'!$AA$15/100)) -> 82.67321495 | E137: =D137*(1+('Scenario Input'!$AD$15/100)) -> 84.26428481 | F137: =E137*(1+('Scenario Input'!$AG$15/100)) -> 86.36244876 | G137: =F137*(1+('Scenario Input'!$AJ$15/100)) -> 88.37330319 | H137: =G137*(1+('Scenario Input'!$AM$15/100)) -> 90.28417571 | I137: =H137*(1+('Scenario Input'!$AP$15/100)) -> 92.10726201 | J137: =I137*(1+('Scenario Input'!$AS$15/100)) -> 93.96716145
A138: 137 | B138: FractalVision, AT&T California | C138: 202 | D138: =C138*(1+('Scenario Input'!$AA$15/100)) -> 204.4062352 | E138: =D138*(1+('Scenario Input'!$AD$15/100)) -> 208.3400922 | F138: =E138*(1+('Scenario Input'!$AG$15/100)) -> 213.5277191 | G138: =F138*(1+('Scenario Input'!$AJ$15/100)) -> 218.4994767 | H138: =G138*(1+('Scenario Input'!$AM$15/100)) -> 223.224033 | I138: =H138*(1+('Scenario Input'!$AP$15/100)) -> 227.7315413 | J138: =I138*(1+('Scenario Input'!$AS$15/100)) -> 232.3300687
A139: 138 | B139: FractalVision, Frontier | C139: 197.25 | D139: =C139*(1+('Scenario Input'!$AA$15/100)) -> 199.599653 | E139: =D139*(1+('Scenario Input'!$AD$15/100)) -> 203.4410059 | F139: =E139*(1+('Scenario Input'!$AG$15/100)) -> 208.5066465 | G139: =F139*(1+('Scenario Input'!$AJ$15/100)) -> 213.3614939 | H139: =G139*(1+('Scenario Input'!$AM$15/100)) -> 217.974953 | I139: =H139*(1+('Scenario Input'!$AP$15/100)) -> 222.376468 | J139: =I139*(1+('Scenario Input'!$AS$15/100)) -> 226.8668616
A140: 139 | B140: Frontier Communications, | C140: 50 | D140: =C140*(1+('Scenario Input'!$AA$15/100)) -> 50.59560278 | E140: =D140*(1+('Scenario Input'!$AD$15/100)) -> 51.56932975 | F140: =E140*(1+('Scenario Input'!$AG$15/100)) -> 52.85339581 | G140: =F140*(1+('Scenario Input'!$AJ$15/100)) -> 54.08402888 | H140: =G140*(1+('Scenario Input'!$AM$15/100)) -> 55.25347351 | I140: =H140*(1+('Scenario Input'!$AP$15/100)) -> 56.3691934 | J140: =I140*(1+('Scenario Input'!$AS$15/100)) -> 57.50744275
A141: 140 | B141: Frontier Communications, AT&T California | C141: 77 | D141: =C141*(1+('Scenario Input'!$AA$15/100)) -> 77.91722829 | E141: =D141*(1+('Scenario Input'!$AD$15/100)) -> 79.41676782 | F141: =E141*(1+('Scenario Input'!$AG$15/100)) -> 81.39422955 | G141: =F141*(1+('Scenario Input'!$AJ$15/100)) -> 83.28940447 | H141: =G141*(1+('Scenario Input'!$AM$15/100)) -> 85.0903492 | I141: =H141*(1+('Scenario Input'!$AP$15/100)) -> 86.80855783 | J141: =I141*(1+('Scenario Input'!$AS$15/100)) -> 88.56146183
A142: 141 | B142: Frontier Communications, Frontier | C142: 72.25 | D142: =C142*(1+('Scenario Input'!$AA$15/100)) -> 73.11064602 | E142: =D142*(1+('Scenario Input'!$AD$15/100)) -> 74.51768149 | F142: =E142*(1+('Scenario Input'!$AG$15/100)) -> 76.37315695 | G142: =F142*(1+('Scenario Input'!$AJ$15/100)) -> 78.15142173 | H142: =G142*(1+('Scenario Input'!$AM$15/100)) -> 79.84126922 | I142: =H142*(1+('Scenario Input'!$AP$15/100)) -> 81.45348446 | J142: =I142*(1+('Scenario Input'!$AS$15/100)) -> 83.09825477
A143: 142 | B143: Frontier Communications, Frontier - Citizens | C143: 71.75 | D143: =C143*(1+('Scenario Input'!$AA$15/100)) -> 72.60469 | E143: =D143*(1+('Scenario Input'!$AD$15/100)) -> 74.00198819 | F143: =E143*(1+('Scenario Input'!$AG$15/100)) -> 75.84462299 | G143: =F143*(1+('Scenario Input'!$AJ$15/100)) -> 77.61058144 | H143: =G143*(1+('Scenario Input'!$AM$15/100)) -> 79.28873448 | I143: =H143*(1+('Scenario Input'!$AP$15/100)) -> 80.88979252 | J143: =I143*(1+('Scenario Input'!$AS$15/100)) -> 82.52318034
A144: 143 | B144: Frontier Communications, Ponderosa | C144: 75 | D144: =C144*(1+('Scenario Input'!$AA$15/100)) -> 75.89340418 | E144: =D144*(1+('Scenario Input'!$AD$15/100)) -> 77.35399463 | F144: =E144*(1+('Scenario Input'!$AG$15/100)) -> 79.28009372 | G144: =F144*(1+('Scenario Input'!$AJ$15/100)) -> 81.12604332 | H144: =G144*(1+('Scenario Input'!$AM$15/100)) -> 82.88021026 | I144: =H144*(1+('Scenario Input'!$AP$15/100)) -> 84.5537901 | J144: =I144*(1+('Scenario Input'!$AS$15/100)) -> 86.26116412
A145: 144 | B145: Further Reach, | C145: 100 | D145: =C145*(1+('Scenario Input'!$AA$15/100)) -> 101.1912056 | E145: =D145*(1+('Scenario Input'!$AD$15/100)) -> 103.1386595 | F145: =E145*(1+('Scenario Input'!$AG$15/100)) -> 105.7067916 | G145: =F145*(1+('Scenario Input'!$AJ$15/100)) -> 108.1680578 | H145: =G145*(1+('Scenario Input'!$AM$15/100)) -> 110.506947 | I145: =H145*(1+('Scenario Input'!$AP$15/100)) -> 112.7383868 | J145: =I145*(1+('Scenario Input'!$AS$15/100)) -> 115.0148855
A146: 145 | B146: Further Reach, AT&T California | C146: 127 | D146: =C146*(1+('Scenario Input'!$AA$15/100)) -> 128.5128311 | E146: =D146*(1+('Scenario Input'!$AD$15/100)) -> 130.9860976 | F146: =E146*(1+('Scenario Input'!$AG$15/100)) -> 134.2476254 | G146: =F146*(1+('Scenario Input'!$AJ$15/100)) -> 137.3734334 | H146: =G146*(1+('Scenario Input'!$AM$15/100)) -> 140.3438227 | I146: =H146*(1+('Scenario Input'!$AP$15/100)) -> 143.1777512 | J146: =I146*(1+('Scenario Input'!$AS$15/100)) -> 146.0689046
A147: 146 | B147: Further Reach, Frontier | C147: 122.25 | D147: =C147*(1+('Scenario Input'!$AA$15/100)) -> 123.7062488 | E147: =D147*(1+('Scenario Input'!$AD$15/100)) -> 126.0870112 | F147: =E147*(1+('Scenario Input'!$AG$15/100)) -> 129.2265528 | G147: =F147*(1+('Scenario Input'!$AJ$15/100)) -> 132.2354506 | H147: =G147*(1+('Scenario Input'!$AM$15/100)) -> 135.0947427 | I147: =H147*(1+('Scenario Input'!$AP$15/100)) -> 137.8226779 | J147: =I147*(1+('Scenario Input'!$AS$15/100)) -> 140.6056975
A148: 147 | B148: GeoLinks, | C148: 306.86 | D148: =C148*(1+('Scenario Input'!$AA$15/100)) -> 310.5153334 | E148: =D148*(1+('Scenario Input'!$AD$15/100)) -> 316.4912906 | F148: =E148*(1+('Scenario Input'!$AG$15/100)) -> 324.3718608 | G148: =F148*(1+('Scenario Input'!$AJ$15/100)) -> 331.924502 | H148: =G148*(1+('Scenario Input'!$AM$15/100)) -> 339.1016176 | I148: =H148*(1+('Scenario Input'!$AP$15/100)) -> 345.9490137 | J148: =I148*(1+('Scenario Input'!$AS$15/100)) -> 352.9346776
A149: 148 | B149: GeoLinks, AT&T California | C149: 333.86 | D149: =C149*(1+('Scenario Input'!$AA$15/100)) -> 337.8369589 | E149: =D149*(1+('Scenario Input'!$AD$15/100)) -> 344.3387286 | F149: =E149*(1+('Scenario Input'!$AG$15/100)) -> 352.9126945 | G149: =F149*(1+('Scenario Input'!$AJ$15/100)) -> 361.1298776 | H149: =G149*(1+('Scenario Input'!$AM$15/100)) -> 368.9384933 | I149: =H149*(1+('Scenario Input'!$AP$15/100)) -> 376.3883782 | J149: =I149*(1+('Scenario Input'!$AS$15/100)) -> 383.9886967
A150: 149 | B150: GeoLinks, Frontier | C150: 329.11 | D150: =C150*(1+('Scenario Input'!$AA$15/100)) -> 333.0303766 | E150: =D150*(1+('Scenario Input'!$AD$15/100)) -> 339.4396423 | F150: =E150*(1+('Scenario Input'!$AG$15/100)) -> 347.8916219 | G150: =F150*(1+('Scenario Input'!$AJ$15/100)) -> 355.9918949 | H150: =G150*(1+('Scenario Input'!$AM$15/100)) -> 363.6894133 | I150: =H150*(1+('Scenario Input'!$AP$15/100)) -> 371.0333048 | J150: =I150*(1+('Scenario Input'!$AS$15/100)) -> 378.5254896
A151: 150 | B151: GeoLinks, Frontier - Citizens | C151: 328.61 | D151: =C151*(1+('Scenario Input'!$AA$15/100)) -> 332.5244206 | E151: =D151*(1+('Scenario Input'!$AD$15/100)) -> 338.923949 | F151: =E151*(1+('Scenario Input'!$AG$15/100)) -> 347.363088 | G151: =F151*(1+('Scenario Input'!$AJ$15/100)) -> 355.4510546 | H151: =G151*(1+('Scenario Input'!$AM$15/100)) -> 363.1368786 | I151: =H151*(1+('Scenario Input'!$AP$15/100)) -> 370.4696128 | J151: =I151*(1+('Scenario Input'!$AS$15/100)) -> 377.9504152
A152: 151 | B152: GeoLinks, Ponderosa | C152: 331.86 | D152: =C152*(1+('Scenario Input'!$AA$15/100)) -> 335.8131348 | E152: =D152*(1+('Scenario Input'!$AD$15/100)) -> 342.2759554 | F152: =E152*(1+('Scenario Input'!$AG$15/100)) -> 350.7985587 | G152: =F152*(1+('Scenario Input'!$AJ$15/100)) -> 358.9665165 | H152: =G152*(1+('Scenario Input'!$AM$15/100)) -> 366.7283544 | I152: =H152*(1+('Scenario Input'!$AP$15/100)) -> 374.1336104 | J152: =I152*(1+('Scenario Input'!$AS$15/100)) -> 381.688399
A153: 152 | B153: Giggle Fiber, LLC, AT&T California | C153: 51.95 | D153: =C153*(1+('Scenario Input'!$AA$15/100)) -> 52.56883129 | E153: =D153*(1+('Scenario Input'!$AD$15/100)) -> 53.58053361 | F153: =E153*(1+('Scenario Input'!$AG$15/100)) -> 54.91467825 | G153: =F153*(1+('Scenario Input'!$AJ$15/100)) -> 56.193306 | H153: =G153*(1+('Scenario Input'!$AM$15/100)) -> 57.40835897 | I153: =H153*(1+('Scenario Input'!$AP$15/100)) -> 58.56759194 | J153: =I153*(1+('Scenario Input'!$AS$15/100)) -> 59.75023301
A154: 153 | B154: Giggle Fiber, LLC, Frontier | C154: 47.2 | D154: =C154*(1+('Scenario Input'!$AA$15/100)) -> 47.76224903 | E154: =D154*(1+('Scenario Input'!$AD$15/100)) -> 48.68144729 | F154: =E154*(1+('Scenario Input'!$AG$15/100)) -> 49.89360565 | G154: =F154*(1+('Scenario Input'!$AJ$15/100)) -> 51.05532326 | H154: =G154*(1+('Scenario Input'!$AM$15/100)) -> 52.15927899 | I154: =H154*(1+('Scenario Input'!$AP$15/100)) -> 53.21251857 | J154: =I154*(1+('Scenario Input'!$AS$15/100)) -> 54.28702595
A155: 154 | B155: Google Fiber California, LLC, AT&T California | C155: 77 | D155: =C155*(1+('Scenario Input'!$AA$15/100)) -> 77.91722829 | E155: =D155*(1+('Scenario Input'!$AD$15/100)) -> 79.41676782 | F155: =E155*(1+('Scenario Input'!$AG$15/100)) -> 81.39422955 | G155: =F155*(1+('Scenario Input'!$AJ$15/100)) -> 83.28940447 | H155: =G155*(1+('Scenario Input'!$AM$15/100)) -> 85.0903492 | I155: =H155*(1+('Scenario Input'!$AP$15/100)) -> 86.80855783 | J155: =I155*(1+('Scenario Input'!$AS$15/100)) -> 88.56146183
A156: 155 | B156: Impulse Internet Services, Frontier | C156: 272.25 | D156: =C156*(1+('Scenario Input'!$AA$15/100)) -> 275.4930572 | E156: =D156*(1+('Scenario Input'!$AD$15/100)) -> 280.7950005 | F156: =E156*(1+('Scenario Input'!$AG$15/100)) -> 287.7867402 | G156: =F156*(1+('Scenario Input'!$AJ$15/100)) -> 294.4875372 | H156: =G156*(1+('Scenario Input'!$AM$15/100)) -> 300.8551633 | I156: =H156*(1+('Scenario Input'!$AP$15/100)) -> 306.930258 | J156: =I156*(1+('Scenario Input'!$AS$15/100)) -> 313.1280257
A157: 156 | B157: Internet Free Planet, | C157: 149 | D157: =C157*(1+('Scenario Input'!$AA$15/100)) -> 150.7748963 | E157: =D157*(1+('Scenario Input'!$AD$15/100)) -> 153.6766027 | F157: =E157*(1+('Scenario Input'!$AG$15/100)) -> 157.5031195 | G157: =F157*(1+('Scenario Input'!$AJ$15/100)) -> 161.1704061 | H157: =G157*(1+('Scenario Input'!$AM$15/100)) -> 164.6553511 | I157: =H157*(1+('Scenario Input'!$AP$15/100)) -> 167.9801963 | J157: =I157*(1+('Scenario Input'!$AS$15/100)) -> 171.3721794
A158: 157 | B158: Internet Free Planet, AT&T California | C158: 176 | D158: =C158*(1+('Scenario Input'!$AA$15/100)) -> 178.0965218 | E158: =D158*(1+('Scenario Input'!$AD$15/100)) -> 181.5240407 | F158: =E158*(1+('Scenario Input'!$AG$15/100)) -> 186.0439533 | G158: =F158*(1+('Scenario Input'!$AJ$15/100)) -> 190.3757817 | H158: =G158*(1+('Scenario Input'!$AM$15/100)) -> 194.4922267 | I158: =H158*(1+('Scenario Input'!$AP$15/100)) -> 198.4195608 | J158: =I158*(1+('Scenario Input'!$AS$15/100)) -> 202.4261985
A159: 158 | B159: Internet Free Planet, Frontier | C159: 171.25 | D159: =C159*(1+('Scenario Input'!$AA$15/100)) -> 173.2899395 | E159: =D159*(1+('Scenario Input'!$AD$15/100)) -> 176.6249544 | F159: =E159*(1+('Scenario Input'!$AG$15/100)) -> 181.0228807 | G159: =F159*(1+('Scenario Input'!$AJ$15/100)) -> 185.2377989 | H159: =G159*(1+('Scenario Input'!$AM$15/100)) -> 189.2431468 | I159: =H159*(1+('Scenario Input'!$AP$15/100)) -> 193.0644874 | J159: =I159*(1+('Scenario Input'!$AS$15/100)) -> 196.9629914
A160: 159 | B160: Internet Free Planet, Frontier - Citizens | C160: 170.75 | D160: =C160*(1+('Scenario Input'!$AA$15/100)) -> 172.7839835 | E160: =D160*(1+('Scenario Input'!$AD$15/100)) -> 176.1092611 | F160: =E160*(1+('Scenario Input'!$AG$15/100)) -> 180.4943467 | G160: =F160*(1+('Scenario Input'!$AJ$15/100)) -> 184.6969586 | H160: =G160*(1+('Scenario Input'!$AM$15/100)) -> 188.690612 | I160: =H160*(1+('Scenario Input'!$AP$15/100)) -> 192.5007955 | J160: =I160*(1+('Scenario Input'!$AS$15/100)) -> 196.387917
A161: 160 | B161: IWVISP, Frontier | C161: 122.25 | D161: =C161*(1+('Scenario Input'!$AA$15/100)) -> 123.7062488 | E161: =D161*(1+('Scenario Input'!$AD$15/100)) -> 126.0870112 | F161: =E161*(1+('Scenario Input'!$AG$15/100)) -> 129.2265528 | G161: =F161*(1+('Scenario Input'!$AJ$15/100)) -> 132.2354506 | H161: =G161*(1+('Scenario Input'!$AM$15/100)) -> 135.0947427 | I161: =H161*(1+('Scenario Input'!$AP$15/100)) -> 137.8226779 | J161: =I161*(1+('Scenario Input'!$AS$15/100)) -> 140.6056975
A162: 161 | B162: Kern Valley Wireless, | C162: 200 | D162: =C162*(1+('Scenario Input'!$AA$15/100)) -> 202.3824111 | E162: =D162*(1+('Scenario Input'!$AD$15/100)) -> 206.277319 | F162: =E162*(1+('Scenario Input'!$AG$15/100)) -> 211.4135833 | G162: =F162*(1+('Scenario Input'!$AJ$15/100)) -> 216.3361155 | H162: =G162*(1+('Scenario Input'!$AM$15/100)) -> 221.013894 | I162: =H162*(1+('Scenario Input'!$AP$15/100)) -> 225.4767736 | J162: =I162*(1+('Scenario Input'!$AS$15/100)) -> 230.029771
A163: 162 | B163: Kern Valley Wireless, Frontier | C163: 222.25 | D163: =C163*(1+('Scenario Input'!$AA$15/100)) -> 224.8974544 | E163: =D163*(1+('Scenario Input'!$AD$15/100)) -> 229.2256707 | F163: =E163*(1+('Scenario Input'!$AG$15/100)) -> 234.9333444 | G163: =F163*(1+('Scenario Input'!$AJ$15/100)) -> 240.4035084 | H163: =G163*(1+('Scenario Input'!$AM$15/100)) -> 245.6016897 | I163: =H163*(1+('Scenario Input'!$AP$15/100)) -> 250.5610647 | J163: =I163*(1+('Scenario Input'!$AS$15/100)) -> 255.620583
A164: 163 | B164: Kingsburg Media Foundation, | C164: 150 | D164: =C164*(1+('Scenario Input'!$AA$15/100)) -> 151.7868084 | E164: =D164*(1+('Scenario Input'!$AD$15/100)) -> 154.7079893 | F164: =E164*(1+('Scenario Input'!$AG$15/100)) -> 158.5601874 | G164: =F164*(1+('Scenario Input'!$AJ$15/100)) -> 162.2520866 | H164: =G164*(1+('Scenario Input'!$AM$15/100)) -> 165.7604205 | I164: =H164*(1+('Scenario Input'!$AP$15/100)) -> 169.1075802 | J164: =I164*(1+('Scenario Input'!$AS$15/100)) -> 172.5223282
A165: 164 | B165: Kingsburg Media Foundation, AT&T California | C165: 177 | D165: =C165*(1+('Scenario Input'!$AA$15/100)) -> 179.1084339 | E165: =D165*(1+('Scenario Input'!$AD$15/100)) -> 182.5554273 | F165: =E165*(1+('Scenario Input'!$AG$15/100)) -> 187.1010212 | G165: =F165*(1+('Scenario Input'!$AJ$15/100)) -> 191.4574622 | H165: =G165*(1+('Scenario Input'!$AM$15/100)) -> 195.5972962 | I165: =H165*(1+('Scenario Input'!$AP$15/100)) -> 199.5469446 | J165: =I165*(1+('Scenario Input'!$AS$15/100)) -> 203.5763473
A166: 165 | B166: Kingsburg Media Foundation, Frontier | C166: 172.25 | D166: =C166*(1+('Scenario Input'!$AA$15/100)) -> 174.3018516 | E166: =D166*(1+('Scenario Input'!$AD$15/100)) -> 177.656341 | F166: =E166*(1+('Scenario Input'!$AG$15/100)) -> 182.0799486 | G166: =F166*(1+('Scenario Input'!$AJ$15/100)) -> 186.3194795 | H166: =G166*(1+('Scenario Input'!$AM$15/100)) -> 190.3482162 | I166: =H166*(1+('Scenario Input'!$AP$15/100)) -> 194.1918713 | J166: =I166*(1+('Scenario Input'!$AS$15/100)) -> 198.1131403
A167: 166 | B167: Lone Pine Communications, | C167: 45.99 | D167: =C167*(1+('Scenario Input'!$AA$15/100)) -> 46.53783544 | E167: =D167*(1+('Scenario Input'!$AD$15/100)) -> 47.43346951 | F167: =E167*(1+('Scenario Input'!$AG$15/100)) -> 48.61455347 | G167: =F167*(1+('Scenario Input'!$AJ$15/100)) -> 49.74648976 | H167: =G167*(1+('Scenario Input'!$AM$15/100)) -> 50.82214493 | I167: =H167*(1+('Scenario Input'!$AP$15/100)) -> 51.84838409 | J167: =I167*(1+('Scenario Input'!$AS$15/100)) -> 52.89534584
A168: 167 | B168: Lone Pine Communications, Frontier | C168: 68.24 | D168: =C168*(1+('Scenario Input'!$AA$15/100)) -> 69.05287868 | E168: =D168*(1+('Scenario Input'!$AD$15/100)) -> 70.38182124 | F168: =E168*(1+('Scenario Input'!$AG$15/100)) -> 72.13431461 | G168: =F168*(1+('Scenario Input'!$AJ$15/100)) -> 73.81388261 | H168: =G168*(1+('Scenario Input'!$AM$15/100)) -> 75.40994064 | I168: =H168*(1+('Scenario Input'!$AP$15/100)) -> 76.93267515 | J168: =I168*(1+('Scenario Input'!$AS$15/100)) -> 78.48615786
A169: 168 | B169: Mediacom California LLC, | C169: 29.99 | D169: =C169*(1+('Scenario Input'!$AA$15/100)) -> 30.34724255 | E169: =D169*(1+('Scenario Input'!$AD$15/100)) -> 30.93128399 | F169: =E169*(1+('Scenario Input'!$AG$15/100)) -> 31.70146681 | G169: =F169*(1+('Scenario Input'!$AJ$15/100)) -> 32.43960052 | H169: =G169*(1+('Scenario Input'!$AM$15/100)) -> 33.14103341 | I169: =H169*(1+('Scenario Input'!$AP$15/100)) -> 33.8102422 | J169: =I169*(1+('Scenario Input'!$AS$15/100)) -> 34.49296416
A170: 169 | B170: Mediacom California LLC, AT&T California | C170: 56.99 | D170: =C170*(1+('Scenario Input'!$AA$15/100)) -> 57.66886805 | E170: =D170*(1+('Scenario Input'!$AD$15/100)) -> 58.77872205 | F170: =E170*(1+('Scenario Input'!$AG$15/100)) -> 60.24230055 | G170: =F170*(1+('Scenario Input'!$AJ$15/100)) -> 61.64497612 | H170: =G170*(1+('Scenario Input'!$AM$15/100)) -> 62.9779091 | I170: =H170*(1+('Scenario Input'!$AP$15/100)) -> 64.24960663 | J170: =I170*(1+('Scenario Input'!$AS$15/100)) -> 65.54698324
A171: 170 | B171: Mediacom California LLC, Frontier | C171: 52.24 | D171: =C171*(1+('Scenario Input'!$AA$15/100)) -> 52.86228579 | E171: =D171*(1+('Scenario Input'!$AD$15/100)) -> 53.87963572 | F171: =E171*(1+('Scenario Input'!$AG$15/100)) -> 55.22122795 | G171: =F171*(1+('Scenario Input'!$AJ$15/100)) -> 56.50699337 | H171: =G171*(1+('Scenario Input'!$AM$15/100)) -> 57.72882912 | I171: =H171*(1+('Scenario Input'!$AP$15/100)) -> 58.89453326 | J171: =I171*(1+('Scenario Input'!$AS$15/100)) -> 60.08377618
A172: 171 | B172: MINetworks, inc., AT&T California | C172: 126 | D172: =C172*(1+('Scenario Input'!$AA$15/100)) -> 127.500919 | E172: =D172*(1+('Scenario Input'!$AD$15/100)) -> 129.954711 | F172: =E172*(1+('Scenario Input'!$AG$15/100)) -> 133.1905575 | G172: =F172*(1+('Scenario Input'!$AJ$15/100)) -> 136.2917528 | H172: =G172*(1+('Scenario Input'!$AM$15/100)) -> 139.2387532 | I172: =H172*(1+('Scenario Input'!$AP$15/100)) -> 142.0503674 | J172: =I172*(1+('Scenario Input'!$AS$15/100)) -> 144.9187557
A173: 172 | B173: MountainMesh, AT&T California | C173: 177 | D173: =C173*(1+('Scenario Input'!$AA$15/100)) -> 179.1084339 | E173: =D173*(1+('Scenario Input'!$AD$15/100)) -> 182.5554273 | F173: =E173*(1+('Scenario Input'!$AG$15/100)) -> 187.1010212 | G173: =F173*(1+('Scenario Input'!$AJ$15/100)) -> 191.4574622 | H173: =G173*(1+('Scenario Input'!$AM$15/100)) -> 195.5972962 | I173: =H173*(1+('Scenario Input'!$AP$15/100)) -> 199.5469446 | J173: =I173*(1+('Scenario Input'!$AS$15/100)) -> 203.5763473
A174: 173 | B174: North Coast Internet, | C174: 199.99 | D174: =C174*(1+('Scenario Input'!$AA$15/100)) -> 202.372292 | E174: =D174*(1+('Scenario Input'!$AD$15/100)) -> 206.2670051 | F174: =E174*(1+('Scenario Input'!$AG$15/100)) -> 211.4030126 | G174: =F174*(1+('Scenario Input'!$AJ$15/100)) -> 216.3252987 | H174: =G174*(1+('Scenario Input'!$AM$15/100)) -> 221.0028433 | I174: =H174*(1+('Scenario Input'!$AP$15/100)) -> 225.4654997 | J174: =I174*(1+('Scenario Input'!$AS$15/100)) -> 230.0182695
A175: 174 | B175: North Coast Internet, AT&T California | C175: 226.99 | D175: =C175*(1+('Scenario Input'!$AA$15/100)) -> 229.6939175 | E175: =D175*(1+('Scenario Input'!$AD$15/100)) -> 234.1144432 | F175: =E175*(1+('Scenario Input'!$AG$15/100)) -> 239.9438463 | G175: =F175*(1+('Scenario Input'!$AJ$15/100)) -> 245.5306743 | H175: =G175*(1+('Scenario Input'!$AM$15/100)) -> 250.839719 | I175: =H175*(1+('Scenario Input'!$AP$15/100)) -> 255.9048642 | J175: =I175*(1+('Scenario Input'!$AS$15/100)) -> 261.0722886
A176: 175 | B176: North Coast Internet, Frontier | C176: 222.24 | D176: =C176*(1+('Scenario Input'!$AA$15/100)) -> 224.8873353 | E176: =D176*(1+('Scenario Input'!$AD$15/100)) -> 229.2153569 | F176: =E176*(1+('Scenario Input'!$AG$15/100)) -> 234.9227737 | G176: =F176*(1+('Scenario Input'!$AJ$15/100)) -> 240.3926916 | H176: =G176*(1+('Scenario Input'!$AM$15/100)) -> 245.590639 | I176: =H176*(1+('Scenario Input'!$AP$15/100)) -> 250.5497908 | J176: =I176*(1+('Scenario Input'!$AS$15/100)) -> 255.6090815
A177: 176 | B177: Northland Communications, | C177: 66.96 | D177: =C177*(1+('Scenario Input'!$AA$15/100)) -> 67.75763125 | E177: =D177*(1+('Scenario Input'!$AD$15/100)) -> 69.0616464 | F177: =E177*(1+('Scenario Input'!$AG$15/100)) -> 70.78126768 | G177: =F177*(1+('Scenario Input'!$AJ$15/100)) -> 72.42933147 | H177: =G177*(1+('Scenario Input'!$AM$15/100)) -> 73.99545172 | I177: =H177*(1+('Scenario Input'!$AP$15/100)) -> 75.4896238 | J177: =I177*(1+('Scenario Input'!$AS$15/100)) -> 77.01396732
A178: 177 | B178: Northland Communications, AT&T California | C178: 93.96 | D178: =C178*(1+('Scenario Input'!$AA$15/100)) -> 95.07925675 | E178: =D178*(1+('Scenario Input'!$AD$15/100)) -> 96.90908447 | F178: =E178*(1+('Scenario Input'!$AG$15/100)) -> 99.32210142 | G178: =F178*(1+('Scenario Input'!$AJ$15/100)) -> 101.6347071 | H178: =G178*(1+('Scenario Input'!$AM$15/100)) -> 103.8323274 | I178: =H178*(1+('Scenario Input'!$AP$15/100)) -> 105.9289882 | J178: =I178*(1+('Scenario Input'!$AS$15/100)) -> 108.0679864
A179: 178 | B179: Northland Communications, Cal-Ore | C179: 91.96 | D179: =C179*(1+('Scenario Input'!$AA$15/100)) -> 93.05543264 | E179: =D179*(1+('Scenario Input'!$AD$15/100)) -> 94.84631128 | F179: =E179*(1+('Scenario Input'!$AG$15/100)) -> 97.20796558 | G179: =F179*(1+('Scenario Input'!$AJ$15/100)) -> 99.47134591 | H179: =G179*(1+('Scenario Input'!$AM$15/100)) -> 101.6221885 | I179: =H179*(1+('Scenario Input'!$AP$15/100)) -> 103.6742205 | J179: =I179*(1+('Scenario Input'!$AS$15/100)) -> 105.7676887
A180: 179 | B180: Northland Communications, Frontier - Citizens | C180: 88.71 | D180: =C180*(1+('Scenario Input'!$AA$15/100)) -> 89.76671846 | E180: =D180*(1+('Scenario Input'!$AD$15/100)) -> 91.49430485 | F180: =E180*(1+('Scenario Input'!$AG$15/100)) -> 93.77249485 | G180: =F180*(1+('Scenario Input'!$AJ$15/100)) -> 95.95588404 | H180: =G180*(1+('Scenario Input'!$AM$15/100)) -> 98.0307127 | I180: =H180*(1+('Scenario Input'!$AP$15/100)) -> 100.0102229 | J180: =I180*(1+('Scenario Input'!$AS$15/100)) -> 102.0297049
A181: 180 | B181: Northland Communications, Ponderosa | C181: 91.96 | D181: =C181*(1+('Scenario Input'!$AA$15/100)) -> 93.05543264 | E181: =D181*(1+('Scenario Input'!$AD$15/100)) -> 94.84631128 | F181: =E181*(1+('Scenario Input'!$AG$15/100)) -> 97.20796558 | G181: =F181*(1+('Scenario Input'!$AJ$15/100)) -> 99.47134591 | H181: =G181*(1+('Scenario Input'!$AM$15/100)) -> 101.6221885 | I181: =H181*(1+('Scenario Input'!$AP$15/100)) -> 103.6742205 | J181: =I181*(1+('Scenario Input'!$AS$15/100)) -> 105.7676887
A182: 181 | B182: Northland Communications, Sierra | C182: 91.96 | D182: =C182*(1+('Scenario Input'!$AA$15/100)) -> 93.05543264 | E182: =D182*(1+('Scenario Input'!$AD$15/100)) -> 94.84631128 | F182: =E182*(1+('Scenario Input'!$AG$15/100)) -> 97.20796558 | G182: =F182*(1+('Scenario Input'!$AJ$15/100)) -> 99.47134591 | H182: =G182*(1+('Scenario Input'!$AM$15/100)) -> 101.6221885 | I182: =H182*(1+('Scenario Input'!$AP$15/100)) -> 103.6742205 | J182: =I182*(1+('Scenario Input'!$AS$15/100)) -> 105.7676887
A183: 182 | B183: OACYS Technology, | C183: 99.95 | D183: =C183*(1+('Scenario Input'!$AA$15/100)) -> 101.14061 | E183: =D183*(1+('Scenario Input'!$AD$15/100)) -> 103.0870902 | F183: =E183*(1+('Scenario Input'!$AG$15/100)) -> 105.6539382 | G183: =F183*(1+('Scenario Input'!$AJ$15/100)) -> 108.1139737 | H183: =G183*(1+('Scenario Input'!$AM$15/100)) -> 110.4516935 | I183: =H183*(1+('Scenario Input'!$AP$15/100)) -> 112.6820176 | J183: =I183*(1+('Scenario Input'!$AS$15/100)) -> 114.957378
A184: 183 | B184: OACYS Technology, AT&T California | C184: 126.95 | D184: =C184*(1+('Scenario Input'!$AA$15/100)) -> 128.4622355 | E184: =D184*(1+('Scenario Input'!$AD$15/100)) -> 130.9345282 | F184: =E184*(1+('Scenario Input'!$AG$15/100)) -> 134.194772 | G184: =F184*(1+('Scenario Input'!$AJ$15/100)) -> 137.3193493 | H184: =G184*(1+('Scenario Input'!$AM$15/100)) -> 140.2885692 | I184: =H184*(1+('Scenario Input'!$AP$15/100)) -> 143.121382 | J184: =I184*(1+('Scenario Input'!$AS$15/100)) -> 146.0113971
A185: 184 | B185: OACYS Technology, Ducor | C185: 122.58 | D185: =C185*(1+('Scenario Input'!$AA$15/100)) -> 124.0401798 | E185: =D185*(1+('Scenario Input'!$AD$15/100)) -> 126.4273688 | F185: =E185*(1+('Scenario Input'!$AG$15/100)) -> 129.5753852 | G185: =F185*(1+('Scenario Input'!$AJ$15/100)) -> 132.5924052 | H185: =G185*(1+('Scenario Input'!$AM$15/100)) -> 135.4594157 | I185: =H185*(1+('Scenario Input'!$AP$15/100)) -> 138.1947145 | J185: =I185*(1+('Scenario Input'!$AS$15/100)) -> 140.9852466
A186: 185 | B186: OACYS Technology, Frontier | C186: 122.2 | D186: =C186*(1+('Scenario Input'!$AA$15/100)) -> 123.6556532 | E186: =D186*(1+('Scenario Input'!$AD$15/100)) -> 126.0354419 | F186: =E186*(1+('Scenario Input'!$AG$15/100)) -> 129.1736994 | G186: =F186*(1+('Scenario Input'!$AJ$15/100)) -> 132.1813666 | H186: =G186*(1+('Scenario Input'!$AM$15/100)) -> 135.0394893 | I186: =H186*(1+('Scenario Input'!$AP$15/100)) -> 137.7663087 | J186: =I186*(1+('Scenario Input'!$AS$15/100)) -> 140.5481901
A187: 186 | B187: Outback Internet, AT&T California | C187: 127 | D187: =C187*(1+('Scenario Input'!$AA$15/100)) -> 128.5128311 | E187: =D187*(1+('Scenario Input'!$AD$15/100)) -> 130.9860976 | F187: =E187*(1+('Scenario Input'!$AG$15/100)) -> 134.2476254 | G187: =F187*(1+('Scenario Input'!$AJ$15/100)) -> 137.3734334 | H187: =G187*(1+('Scenario Input'!$AM$15/100)) -> 140.3438227 | I187: =H187*(1+('Scenario Input'!$AP$15/100)) -> 143.1777512 | J187: =I187*(1+('Scenario Input'!$AS$15/100)) -> 146.0689046
A188: 187 | B188: Outback Internet, Frontier | C188: 122.25 | D188: =C188*(1+('Scenario Input'!$AA$15/100)) -> 123.7062488 | E188: =D188*(1+('Scenario Input'!$AD$15/100)) -> 126.0870112 | F188: =E188*(1+('Scenario Input'!$AG$15/100)) -> 129.2265528 | G188: =F188*(1+('Scenario Input'!$AJ$15/100)) -> 132.2354506 | H188: =G188*(1+('Scenario Input'!$AM$15/100)) -> 135.0947427 | I188: =H188*(1+('Scenario Input'!$AP$15/100)) -> 137.8226779 | J188: =I188*(1+('Scenario Input'!$AS$15/100)) -> 140.6056975
A189: 188 | B189: Pacific Lightwave Inc, | C189: 79.99 | D189: =C189*(1+('Scenario Input'!$AA$15/100)) -> 80.94284533 | E189: =D189*(1+('Scenario Input'!$AD$15/100)) -> 82.50061374 | F189: =E189*(1+('Scenario Input'!$AG$15/100)) -> 84.55486262 | G189: =F189*(1+('Scenario Input'!$AJ$15/100)) -> 86.5236294 | H189: =G189*(1+('Scenario Input'!$AM$15/100)) -> 88.39450692 | I189: =H189*(1+('Scenario Input'!$AP$15/100)) -> 90.1794356 | J189: =I189*(1+('Scenario Input'!$AS$15/100)) -> 92.0004069
